Workbook

Sheet Title
C4: EID and Viral Load Product and Site Selection Tool
C7: Introduction
C9: The Early Infant Diagnosis (EID) and Viral Load (VL) Product and Site Selection Tool is designed to assist countries in selecting the most appropriate EID and VL products and sites for piloting and scale-up of POC diagnostic technologies. Currently, site selection options include the Abbott mPima, Cepheid GeneXpert, Cepheid Omni, and Diagnostics for the Real World's Samba II. The tool will be expanded as other products receive regulatory approval through WHO-PQ, FDA, or CE-marking for HIV 1-2 viral load and EID testing.
C13: Contact
C15: Clinton Health Access Initiative (CHAI)
C16: Global Laboratory Services Team
C18: Naoko Doi | G18: ndoi@clintonhealthaccess.org
C19: Katie Lamp | G19: klamp@clintonhealthaccess.org
B22: Note: Use of tool requires Microsoft Excel 2007 or later.

Sheet 0. Instructions
B3: Objective ---------------------------------------------- This tool is designed to assist countries in selecting the most appropriate POC VL and EID products and sites for piloting and scale-up. The tool has been used in several countries including Zimbabwe (see IAS relevant webinar, https://knowledge-gateway.org/?mlrf5l6l)
B5: Overview of the tool ------------------------------------------------------- The tool can be divided into four primary sections: inputs and site profiles, where users define existing EID and VL coverage at a site level and assumptions regarding scale-up; gap analysis, where users understand tradeoffs between price, patient coverage, and accessibility across POC and conventional placements; product selection, where users prioritize device characteristics and score available products; and site selection, where sites are scored based on their suitability for POC implementation. An appendix sheet shows information regarding each product to aide in the scoring process. This version of the product and site selection tool offers the Abbott mPima, Cepheid GeneXpert, Cepheid Omni, and Samba II as potential device options. Future versions will contain other products once they are on the market and have regulatory approval through FDA clearance, WHO-PQ, or CE-marking. Completing the tool will require the input of comprehensive and accurate site-level information. Prior to using the tool a MOH-led multi-stakeholder process should be initiated to provide for the collection and/or validation of the appropriate inputs. This may require site-level data collection, careful review of existing data, and/or reconciliation between multiple data sources. Without accurate inputs the tool may product inaccurate or misleading results. Please consult the CHAI contacts indicated on the 'Instructions' tab should you have any questions or concerns regarding the tool. While the analysis in this tool can be used to generate powerful conclusions regarding optimal device distribution, it should be regarded as just one component of a broader product and site selection process that should be undertaken with all relevant stakeholders to drive consensus. General instructions are provided below. Additionally, each tab includes a set of instructions at the top of the page which note any specific considerations for the specific tab and should be read carefully prior to completing the each tab.
B7: How to use the tool. --------------------------------------------------------------------------------- Note: 1. Yellow cells are the only input fields. All other fields are calculated and read-only. 2. Check the product information in the "Appendix" tab and ensure that the "Device Profiles" tab reflects up-to-date pricing information for your country. SHEET 1: "Inputs": This sheet is used to collect general information regarding country testing algorithms, lab infrastructure, costs, and operations, sample transportation costs, and patient outcomes. Here, users elect whether the tool will be used for EID site and product selection, VL site and production selection, or both, as well as weigh criteria for scoring sites. SHEET 2: "Site profiles": This sheet is used to collect site-level national-level data. Enter the site level information such as patient numbers, average turn aroundtime (TAT (or distance from the nearest testing hub, if TAT is not available), and the type of on-site VL/EID machine at each site, if any. In addition to helping with product selection, this data will also be critical in driving site selection after POC products have been selected.
B8: SHEET 3: "Gap Analysis": This sheet allows users to assess existing coverage and identify cost tradeoffs and patient outcomes by changing the relative balance between conventional and POC testing in a country. This sheet can help countries identify what the optimal balance should be between centralized and decentralized testing over time.
B9: SHEET 4: "Product Selection": This sheet provides current VL and EID need and coverage information and allows products to be scored and selected for piloting and rollout. Ensure the corresponding product pricing information in the "Appendix" and "Device Profiles" is up-to-date based on your country context.
B10: SHEET 5: "Site selection": This sheet allows the user to weigh the three criteria for selecting sites, scores the sites on based on these criteria and allows the user to select sites for POC rollout.
B11: SHEET 6: "Product assignment": This sheet allows products selected in "Product Selection" to be assigned to sites selected in "Site selection"
B12: SHEET 7: "Output": This sheet allows the user to review the impact of the site and product selection on testing coverage in each of the segments 1. Review impact of site selection on market segmentation 2. Review budget based on site and product selection 3. Review the impact of the sites selection on total coverage 4. Review the list of sites and # of devices selected

Sheet 1. Inputs
B2: Inputs and Assumptions
B6: INSTRUCTIONS: This sheet is used to collect general information regarding country testing algorithms, lab infrastructure, costs, and operations, sample transportation costs, and patient outcomes. 1. Select test type using dropdown menu: Choose between modeling for EID only, viral load only, or both, depending on how the national program expects to use the POC devices. 2. Assign weightings between various criteria and prioritize facility types: Select the desired weighting between the various criteria, which will indicate the relative importance of each characteristic. You may only assing one high, one medium, and one low. The three criteria are: a. Price - Gives preference to sites where cost of deploying POC is the lowest b. Patient coverage - Give preferences to sites with the greatest VL/EID testing need calculated from ART and EID patients and country's guidelines c. Distance from central testing lab - Gives preference to sites farther away from a testing hub and hence with poorer access through sample transport (this can be in terms of distance or turnaround- time/time in days from lab based on country preference and data availability) Next, select using the drop-down menu whether all selected sites must offer ART and/or pediatric ART. If "yes" is selected for either option, the model will rule out recommending any sites that cannot provide that form of treatment. 3. Insert assumptions: All cells in yellow need to be updated. Completing all inputs is important to make an appropriate cost comparison between POC and conventional testing.
B13: 1. Choose test type(s) to model: | C13: EID_and_VL
B14: Choose whether to conduct product and site selection for VL, EID, or both
B17: 2. Weight criteria for product and site selection
B20: a. Weigh Importance of Key Factors for Site Selection
B22: Lowest price | C22: High | D22: =IF($C$24="N/A",IF(C22="High",2/3,IF(C22="Low",1/3)),IF(C22="High",0.5,IF(C22="Medium",0.35,IF(C22="Low",0.15)))) -> 0.5 | E22: <--- Score and prioritize sites based on minimizing cost.
B23: Maximum patient coverage | C23: Medium | D23: =IF($C$24="N/A",IF(C23="High",2/3,IF(C23="Low",1/3)),IF(C23="High",0.5,IF(C23="Medium",0.35,IF(C23="Low",0.15)))) -> 0.35 | E23: <--- Score and prioritize sites based on maximizing patient access to testing. | Z23: High
B24: Distance from central testing lab | C24: Low | D24: 0.15 | E24: <--- Score and prioritize sites based on distance or turnaround time to improve access to most remote sites. | Z24: Medium
C25: Check Rankings | D25: =IF(SUM(D22:D24)=100%,"Okay","Verify") -> Okay | E25: Note: Rankings must be one each; High, Medium, Low, unless robust information is not available for distance, in which case the distance from central testing lab should be given N/A and the remaining two High and Low. | Z25: Low
Z26: N/A
B27: b. Should all viral load sites be ART sites? | C27: Yes
B29: c. Should all EID sites offer pediatric ART? | C29: Yes | E29: Note: If interested in selecting for both EID and VL sites and "Yes" is selected, the model will restrict placements to only pediatric ART sites.
B32: 3. Insert inputs and assumptions
B35: Country Guidelines
B36: # of VL for ART patient per year | D36: 1 | E36: <--- The WHO guidelines recommend at least one test per year for all patients on ART, beginning six months after initiating treatment. Patients with high viraemia should be retested within 3-6 months.
B37: Percent of patients requiring second viral load test due to treatment failure or non-adherence | D37: 0.1 | E37: <--- This figure should come from national program records and will vary by country.
B38: Number of EID tests per exposed infant | D38: 2 | E38: <--- The WHO guidelines recommend one virological test at 4-6 weeks for all HIV-exposed infants and a second test at 9 months. Countries with high 4-6 week coverage and high facility delivery rates should also consider testing at birth.
B39: Positivity rate in HIV-exposed infants | D39: 0.07 | E39: <--- This figure should come from national program records and will vary by country.
B42: Lab Infrastructure and Operations | E42: Note: Only the maximum number of POC devices per site dictates product and site selection. The remaining metrics only affect the gap analysis and can be estimates.
B43: # of PCR instruments in country | D43: 7 | E43: <--- Total number of instruments in public sector in country available for use or ready for installation
B44: Average throughput of PCR instrument | D44: 30000 | E44: <--- What is the average number of tests that can be run on the DNA-PCR instruments available in country?
B45: # of centralized testing labs | D45: 4 | E45: <--- # of centralized testing labs
B46: Maximum number of POC devices per site | D46: 2 | E46: <--- What is the maximum number of devices that can be deployed to a given site? If a technology cannot meet the total need of the site with the maximum number of devices per site, it will not be considered.
B47: # of working hours per work day in health facility | D47: 8
B48: # of working days per year in health facility | D48: 250
B51: Sample transport costs | E51: Note: Ensure that any costs below are not duplicative.
B52: Fixed central costs ($/per year) | D52: 200000 | E52: <--- Any national-level costs for orchestrating sample transport. These should be fixed costs such as program management or overhead. They should not overlap with lab overhead costs (row 63).
B53: Number of sites accessing sample transport | D53: 1750
B54: Frequency of ST per week | D54: 2 | E54: <--- Estimate of number of times sample is dropped off/picked up per week
B55: Variable costs per test ($/test) | D55: 0 | E55: <--- Additional cost incurred per test
B56: Variable costs per km ($/km) | D56: 0 | E56: <--- Additional cost incurred per km travelled
B57: Variable costs per site ($/route drop off) | D57: 0 | E57: <--- Additional cost incurred per site
B58: * ensure that these costs are mutually exclusive i.e. a cost (e.g. HR, fuel) is taken into account in only one of these rows
B60: Cost of running centralized lab
B61: Cost per PCR machine ($) | D61: 0 | E61: <--- Estimated cost of new DNA PCR instrument (only include if instruments are procured or purchased through reagent rental, not placed)
B62: Lifespan of device (# of years) | D62: 7 | E62: <--- How many years should equipment cost be distributed over?
B63: Cost per centralized lab ($/year) | D63: 210000 | E63: <--- Cost of running a centralized testing lab e.g. electricity, internet, rent etc.
B64: Cost per test ($/per test for all testing commodities) | D64: 19 | E64: <--- Cost of testing one sample using conventional instruments, including reagents, consumables, sample collection materials, etc.
B65: Lab technician salary per hour | D65: 7 | E65: <--- Salary of lab technician responsible for operating PCR instrument
B66: Number of lab technicians required per PCR device | D66: 2 | E66: <--- Number of staff required to operate 1 PCR device for 8 hrs. per day
B67: Annual cost per PCR machine for service and maintenance ($/machine) | D67: 15000 | E67: <--- Cost of running one PCR machines per year e.g. Service and Maintenance, Electricity
B69: Cost of running POC
B70: Avg. cost per POC machine ($/machine) | D70: 23000 | E70: <--- Avg. cost of POC device + accessories
B71: Lifespan of device (# of years) | D71: 5 | E71: <--- How many years should equipment cost be distributed over?
B72: Avg. cost per test ($/per test for all testing commodities) | D72: 23 | E72: <--- Cost of testing one sample using cartridge, reagents, consumables, and sample collection materials
B73: Phlebotomist or lab technician salary per hour | D73: 3 | E73: <--- Salary of lab technician responsible for operating POC instrument
B74: Number of lab technicians required per POC device | D74: 2 | E74: <--- Number of staff required to operate 1 PCR device for 8 hrs. per day
B75: Overhead cost per POC site ($/per site/per year) | D75: 0 | E75: <--- Additional cost per POC test e.g. HR, electricity
B77: Health impact | E77: Note: Given limited data availability, the below figures can be estimates based on experience with POC CD4 scale-up and conventional testing. Over time, these should be sourced from available research.
B78: EID LTFU with Sample Transport (%) | D78: 0.5 | E78: <--- % of HIV+ infants lost with conventional EID system
B79: EID LTFU with POC (%) | D79: 0 | E79: <--- % of HIV+ infants lost with POC EID system
B80: VL LTFU with Sample Transport (%) | D80: 0.3 | E80: <--- % of ART patients lost with centralized VL system
B81: VL LTFU with POC (%) | D81: 0 | E81: <--- % of ART patients lost with POC testing
B82: % of patients with elevated VL levels | D82: 0.14 | E82: <-- % of ART patients that have elevated VL levels
B83: % of patients where VL is reduced through adherence counselling | D83: 0.75 | E83: <--- % of ART patients with elevated VL levels where VL can be reduced by adherence counselling
B89: Max number of tests POC device can perform per day | D89: 15 | E89: <--- What is the maximum number of tests the POC device can do in a day? This will influence whether a site qualifies for POC in the gap analysis.

Sheet 2. Site profiles
B2: Site Profiles
B5: INSTRUCTIONS: Enter the site level information in all yellow columns for all facilities. In addition to helping with product selection, this data will also be critical in driving site selection after POC products have been selected. For EID, only the PMTCT patient numbers by site or the number of EID tests per year need be recorded, however both should be if they are available. The model will use the maximum of the two values to model the testing need. For Columns C, D, E, and F, values must be numerical. If no data is available, leave the cells blank. It is preferable to use the average TAT of conventional test results in column G. However if average TAT is not available you may use the distance to the conventional testing hub as a proxy. However, if you do so, be sure to use exclusively distance, rather than mixing distance and average TAT measurements. If neither data is unavailable, leave all cells blank. Do not assume uniform values for distance. Values for distance can be estimates, but they must not be equivalent across all sites or the score will generate an error. Note, if seasonality factors significantly into turnaround time, a weighted average between rainy and dry season turnaround time in days could be used to best approximate the difficulty of conventional sample transportation.
B10: Site Name | C10: District | D10: # of ART Patients | E10: # PMTCT Patients | F10: # of EID tests per year | G10: Avg TAT in Days | H10: Existing Access to VL | I10: Existing Access to EID | J10: ART Site? | K10: Pediatric ART site? | M10: Total Need for VL | N10: Total Need for VL (per day) | O10: Total Need for EID | P10: Total Need for EID (per day) | Q10: Current Access VL | R10: Current Access EID | S10: Total Need (per year) | T10: Total Need (per day) | U10: ART Site | V10: Ped ART Site | W10: POC Qualify | X10: Distance Qualifying | Y10: Patients Qualifying | Z10: Distance score | AA10: Price Score | AB10: Patient score | AC10: Weighted Score | AD10: POC Cost Per Test | AE10: Rank | AF10: Selected for POC | AG10: # of devices | AH10: Conventional | AI10: Sample Transport (cost per site) | AJ10: Site Selection | AK10: Conventional replacement (VL) | AL10: Conventional replacement (EID) | AM10: POC replacement (VL) | AN10: POC replacement (EID) | AO10: New access (VL) | AP10: New access (EID)
B11: SITE 1 | C11: District A | D11: 1378 | E11: 0 | F11: 16 | G11: 139 | H11: None | I11: Conventional | J11: No | K11: Yes | M11: =D11*'1. Inputs'!$D$36+D11*'1. Inputs'!$D$37 -> 1515.8 | N11: =M11/'1. Inputs'!$D$48 -> 6.0632 | O11: =MAX(F11,E11)*'1. Inputs'!$D$38+MAX(E11,F11)*'1. Inputs'!$D$39 -> 33.12 | P11: =O11/'1. Inputs'!$D$48 -> 0.13248 | Q11: =IF(H11="Conventional",H11,IF(H11="None","None",IF(H11="","","POC"))) -> None | R11: =IF(I11="Conventional",I11,IF(I11="None","None",IF(I11="","","POC"))) -> Conventional | S11: =IF('1. Inputs'!$C$13="VL_only",M11,IF('1. Inputs'!$C$13="EID_only",O11,M11+O11)) -> 1548.92 | T11: =S11/'1. Inputs'!$D$48 -> 6.19568 | U11: =IF(J11="Yes",1,0) -> 0 | V11: =IF(K11="Yes",1,0) -> 1 | W11: =IF(AND('1. Inputs'!$C$27="Yes",J11="No"),"No",IF(AND('1. Inputs'!$C$29="Yes",K11="No"),"No",IF(AND(S11>0,T11<='1. Inputs'!$D$46*'1. Inputs'!$D$89),"Yes","No"))) -> No | X11: =IF(W11="Yes",G11,0) -> 0 | Y11: =IF(W11="Yes",S11,0) -> 0 | Z11: =IFERROR(IF(W11="No","",(_xlfn.NORM.DIST(G11,$AW$15,$AV$16,TRUE)*'1. Inputs'!$D$24)),"") ->  | AA11: =IF(AD11="","",(1-_xlfn.NORM.DIST(AD11,$AW$12,$AV$13,TRUE))*'1. Inputs'!$D$22) ->  | AB11: =IF(W11="No","",_xlfn.NORM.DIST(Y11,$AW$18,$AV$19,TRUE)*'1. Inputs'!$D$23) ->  | AC11: =IFERROR(IF(AB11*(1-('3. Gap Analysis '!$J$109/100))+Z11*('3. Gap Analysis '!$J$109/100)=0,"",AB11*(1-('3. Gap Analysis '!$J$109/100))+Z11*('3. Gap Analysis '!$J$109/100)),"") ->  | AD11: =IF(W11="Yes",(S11*'1. Inputs'!$D$72+AG11*'1. Inputs'!$D$70/'1. Inputs'!$D$71+'1. Inputs'!$D$74*'1. Inputs'!$D$73*'1. Inputs'!$D$47*AG11+'1. Inputs'!$D$75)/S11,"") ->  | AE11: =IFERROR(IFERROR(_xlfn.RANK.EQ(AC11,$AC$11:$AC$2010),_xlfn.RANK.EQ(AD11,$AD$11:$AD$2010,1)),"") ->  | AF11: =IFERROR(IF(AND(AE11>0,AE11<MIN(COUNTA($B$11:$B$2000)*'3. Gap Analysis '!$B$104,COUNTIF($W$11:$W$2010,"Yes"))),"Yes","No"),"") -> No | AG11: =IFERROR(IF(W11="Yes",ROUNDUP(S11/('1. Inputs'!$D$89*'1. Inputs'!$D$48),0),0),"") -> 0 | AH11: =IF(AND(AF11="No",S11>0),"Yes","No") -> Yes | AI11: =IF(AND(AH11="Yes",S11>0),(G11*2*'1. Inputs'!$D$54)*'1. Inputs'!$D$56*52+'1. Inputs'!$D$52/'1. Inputs'!$D$53+'1. Inputs'!$D$55*T11*('1. Inputs'!$D$48/52)+'1. Inputs'!$D$57*'1. Inputs'!$D$54*52,"") -> 114.2857143 | AJ11: =IFERROR(IF(INDEX('6. Product assignment'!$Y$18:$Y$2017,MATCH(B11,'6. Product assignment'!$C$18:$C$2017,0))="POC",1,0),0) -> 1 | AK11: =IFERROR(INDEX('6. Product assignment'!$AB$18:$AB$2017,MATCH(B11,'6. Product assignment'!$C$18:$C$2017,0)),"") -> 0 | AL11: =IFERROR(INDEX('6. Product assignment'!$AC$18:$AC$2017,MATCH(B11,'6. Product assignment'!$C$18:$C$2017,0)),"") -> 1 | AM11: =IFERROR(INDEX('6. Product assignment'!$AD$18:$AD$2017,MATCH(B11,'6. Product assignment'!$C$18:$C$2017,0)),"") -> 0 | AN11: =IFERROR(INDEX('6. Product assignment'!$AE$18:$AE$2017,MATCH(B11,'6. Product assignment'!$C$18:$C$2017,0)),"") -> 0 | AO11: =IFERROR(INDEX('6. Product assignment'!$Z$18:$Z$2017,MATCH(B11,'6. Product assignment'!$C$18:$C$2017,0)),"") -> 1 | AP11: =IFERROR(INDEX('6. Product assignment'!$AA$18:$AA$2017,MATCH(B11,'6. Product assignment'!$C$18:$C$2017,0)),"") -> 0 | AR11: 1
B12: SITE 2 | C12: District A | D12: 104 | E12: 6 | F12: 18 | G12: 124.8813029 | H12: None | I12: Conventional | J12: Yes | K12: Yes | M12: =D12*'1. Inputs'!$D$36+D12*'1. Inputs'!$D$37 -> 114.4 | N12: =M12/'1. Inputs'!$D$48 -> 0.4576 | O12: =MAX(F12,E12)*'1. Inputs'!$D$38+MAX(E12,F12)*'1. Inputs'!$D$39 -> 37.26 | P12: =O12/'1. Inputs'!$D$48 -> 0.14904 | Q12: =IF(H12="Conventional",H12,IF(H12="None","None",IF(H12="","","POC"))) -> None | R12: =IF(I12="Conventional",I12,IF(I12="None","None",IF(I12="","","POC"))) -> Conventional | S12: =IF('1. Inputs'!$C$13="VL_only",M12,IF('1. Inputs'!$C$13="EID_only",O12,M12+O12)) -> 151.66 | T12: =S12/'1. Inputs'!$D$48 -> 0.60664 | U12: 1 | V12: 1 | W12: =IF(AND('1. Inputs'!$C$27="Yes",J12="No"),"No",IF(AND('1. Inputs'!$C$29="Yes",K12="No"),"No",IF(AND(S12>0,T12<='1. Inputs'!$D$46*'1. Inputs'!$D$89),"Yes","No"))) -> Yes | X12: 124.8813029 | Y12: 151.66 | Z12: =IFERROR(IF(W12="No","",(_xlfn.NORM.DIST(G12,$AW$15,$AV$16,TRUE)*'1. Inputs'!$D$24)),"") -> 0.06243546954 | AA12: =IF(AD12="","",(1-_xlfn.NORM.DIST(AD12,$AW$12,$AV$13,TRUE))*'1. Inputs'!$D$22) -> 0.1914363332 | AB12: =IF(W12="No","",_xlfn.NORM.DIST(Y12,$AW$18,$AV$19,TRUE)*'1. Inputs'!$D$23) -> 0.2227583983 | AC12: =IFERROR(IF(AB12*(1-('3. Gap Analysis '!$J$109/100))+Z12*('3. Gap Analysis '!$J$109/100)=0,"",AB12*(1-('3. Gap Analysis '!$J$109/100))+Z12*('3. Gap Analysis '!$J$109/100)),"") -> 0.1105323482 | AD12: =IF(W12="Yes",(S12*'1. Inputs'!$D$72+AG12*'1. Inputs'!$D$70/'1. Inputs'!$D$71+'1. Inputs'!$D$74*'1. Inputs'!$D$73*'1. Inputs'!$D$47*AG12+'1. Inputs'!$D$75)/S12,"") -> 53.64750099 | AE12: =IFERROR(IFERROR(_xlfn.RANK.EQ(AC12,$AC$11:$AC$2010),_xlfn.RANK.EQ(AD12,$AD$11:$AD$2010,1)),"") -> 71 | AF12: =IFERROR(IF(AND(AE12>0,AE12<MIN(COUNTA($B$11:$B$2000)*'3. Gap Analysis '!$B$104,COUNTIF($W$11:$W$2010,"Yes"))),"Yes","No"),"") -> No | AG12: =IFERROR(IF(W12="Yes",ROUNDUP(S12/('1. Inputs'!$D$89*'1. Inputs'!$D$48),0),0),"") -> 1 | AH12: Yes | AI12: =IF(AND(AH12="Yes",S12>0),(G12*2*'1. Inputs'!$D$54)*'1. Inputs'!$D$56*52+'1. Inputs'!$D$52/'1. Inputs'!$D$53+'1. Inputs'!$D$55*T12*('1. Inputs'!$D$48/52)+'1. Inputs'!$D$57*'1. Inputs'!$D$54*52,"") -> 114.2857143 | AJ12: =IFERROR(IF(INDEX('6. Product assignment'!$Y$18:$Y$2017,MATCH(B12,'6. Product assignment'!$C$18:$C$2017,0))="POC",1,0),0) -> 1 | AK12: =IFERROR(INDEX('6. Product assignment'!$AB$18:$AB$2017,MATCH(B12,'6. Product assignment'!$C$18:$C$2017,0)),"") -> 0 | AL12: =IFERROR(INDEX('6. Product assignment'!$AC$18:$AC$2017,MATCH(B12,'6. Product assignment'!$C$18:$C$2017,0)),"") -> 1 | AM12: =IFERROR(INDEX('6. Product assignment'!$AD$18:$AD$2017,MATCH(B12,'6. Product assignment'!$C$18:$C$2017,0)),"") -> 0 | AN12: =IFERROR(INDEX('6. Product assignment'!$AE$18:$AE$2017,MATCH(B12,'6. Product assignment'!$C$18:$C$2017,0)),"") -> 0 | AO12: =IFERROR(INDEX('6. Product assignment'!$Z$18:$Z$2017,MATCH(B12,'6. Product assignment'!$C$18:$C$2017,0)),"") -> 1 | AP12: =IFERROR(INDEX('6. Product assignment'!$AA$18:$AA$2017,MATCH(B12,'6. Product assignment'!$C$18:$C$2017,0)),"") -> 0 | AR12: =AR11+1 -> 2 | AS12: ='Device profiles'!B3 -> None | AT12: Yes | AV12: Price median | AW12: =MEDIAN(AD11:AD2011) -> 34.82100767
B13: SITE 3 | C13: District A | D13: 4 | E13: 22 | F13: 50 | G13: 109.7869469 | H13: None | I13: Conventional | J13: Yes | K13: Yes | M13: =D13*'1. Inputs'!$D$36+D13*'1. Inputs'!$D$37 -> 4.4 | N13: =M13/'1. Inputs'!$D$48 -> 0.0176 | O13: =MAX(F13,E13)*'1. Inputs'!$D$38+MAX(E13,F13)*'1. Inputs'!$D$39 -> 103.5 | P13: =O13/'1. Inputs'!$D$48 -> 0.414 | Q13: None | R13: Conventional | S13: =IF('1. Inputs'!$C$13="VL_only",M13,IF('1. Inputs'!$C$13="EID_only",O13,M13+O13)) -> 107.9 | T13: =S13/'1. Inputs'!$D$48 -> 0.4316 | U13: 1 | V13: 1 | W13: =IF(AND('1. Inputs'!$C$27="Yes",J13="No"),"No",IF(AND('1. Inputs'!$C$29="Yes",K13="No"),"No",IF(AND(S13>0,T13<='1. Inputs'!$D$46*'1. Inputs'!$D$89),"Yes","No"))) -> Yes | X13: 109.7869469 | Y13: 107.9 | Z13: =IFERROR(IF(W13="No","",(_xlfn.NORM.DIST(G13,$AW$15,$AV$16,TRUE)*'1. Inputs'!$D$24)),"") -> 0.05262653057 | AA13: =IF(AD13="","",(1-_xlfn.NORM.DIST(AD13,$AW$12,$AV$13,TRUE))*'1. Inputs'!$D$22) -> 0.1552116974 | AB13: =IF(W13="No","",_xlfn.NORM.DIST(Y13,$AW$18,$AV$19,TRUE)*'1. Inputs'!$D$23) -> 0.2046300156 | AC13: =IFERROR(IF(AB13*(1-('3. Gap Analysis '!$J$109/100))+Z13*('3. Gap Analysis '!$J$109/100)=0,"",AB13*(1-('3. Gap Analysis '!$J$109/100))+Z13*('3. Gap Analysis '!$J$109/100)),"") -> 0.09822757607 | AD13: =IF(W13="Yes",(S13*'1. Inputs'!$D$72+AG13*'1. Inputs'!$D$70/'1. Inputs'!$D$71+'1. Inputs'!$D$74*'1. Inputs'!$D$73*'1. Inputs'!$D$47*AG13+'1. Inputs'!$D$75)/S13,"") -> 66.07692308 | AE13: 83 | AF13: =IFERROR(IF(AND(AE13>0,AE13<MIN(COUNTA($B$11:$B$2000)*'3. Gap Analysis '!$B$104,COUNTIF($W$11:$W$2010,"Yes"))),"Yes","No"),"") -> No | AG13: =IFERROR(IF(W13="Yes",ROUNDUP(S13/('1. Inputs'!$D$89*'1. Inputs'!$D$48),0),0),"") -> 1 | AH13: Yes | AI13: =IF(AND(AH13="Yes",S13>0),(G13*2*'1. Inputs'!$D$54)*'1. Inputs'!$D$56*52+'1. Inputs'!$D$52/'1. Inputs'!$D$53+'1. Inputs'!$D$55*T13*('1. Inputs'!$D$48/52)+'1. Inputs'!$D$57*'1. Inputs'!$D$54*52,"") -> 114.2857143 | AJ13: =IFERROR(IF(INDEX('6. Product assignment'!$Y$18:$Y$2017,MATCH(B13,'6. Product assignment'!$C$18:$C$2017,0))="POC",1,0),0) -> 0 | AK13: =IFERROR(INDEX('6. Product assignment'!$AB$18:$AB$2017,MATCH(B13,'6. Product assignment'!$C$18:$C$2017,0)),"") -> 0 | AL13: =IFERROR(INDEX('6. Product assignment'!$AC$18:$AC$2017,MATCH(B13,'6. Product assignment'!$C$18:$C$2017,0)),"") -> 0 | AM13: =IFERROR(INDEX('6. Product assignment'!$AD$18:$AD$2017,MATCH(B13,'6. Product assignment'!$C$18:$C$2017,0)),"") -> 0 | AN13: =IFERROR(INDEX('6. Product assignment'!$AE$18:$AE$2017,MATCH(B13,'6. Product assignment'!$C$18:$C$2017,0)),"") -> 0 | AO13: =IFERROR(INDEX('6. Product assignment'!$Z$18:$Z$2017,MATCH(B13,'6. Product assignment'!$C$18:$C$2017,0)),"") -> 0 | AP13: =IFERROR(INDEX('6. Product assignment'!$AA$18:$AA$2017,MATCH(B13,'6. Product assignment'!$C$18:$C$2017,0)),"") -> 0 | AR13: =AR12+1 -> 3 | AS13: ='Device profiles'!B4 -> Conventional | AT13: No | AV13: =_xlfn.STDEV.P($AD$11:$AD$2000) -> 63.18786731
B14: SITE 4 | C14: District A | D14: 455 | E14: 229 | F14: 266 | G14: 113.2735 | H14: None | I14: Conventional | J14: Yes | K14: Yes | M14: =D14*'1. Inputs'!$D$36+D14*'1. Inputs'!$D$37 -> 500.5 | N14: =M14/'1. Inputs'!$D$48 -> 2.002 | O14: =MAX(F14,E14)*'1. Inputs'!$D$38+MAX(E14,F14)*'1. Inputs'!$D$39 -> 550.62 | P14: =O14/'1. Inputs'!$D$48 -> 2.20248 | Q14: None | R14: Conventional | S14: =IF('1. Inputs'!$C$13="VL_only",M14,IF('1. Inputs'!$C$13="EID_only",O14,M14+O14)) -> 1051.12 | T14: =S14/'1. Inputs'!$D$48 -> 4.20448 | U14: 1 | V14: 1 | W14: =IF(AND('1. Inputs'!$C$27="Yes",J14="No"),"No",IF(AND('1. Inputs'!$C$29="Yes",K14="No"),"No",IF(AND(S14>0,T14<='1. Inputs'!$D$46*'1. Inputs'!$D$89),"Yes","No"))) -> Yes | X14: 113.2735 | Y14: 1051.12 | Z14: =IFERROR(IF(W14="No","",(_xlfn.NORM.DIST(G14,$AW$15,$AV$16,TRUE)*'1. Inputs'!$D$24)),"") -> 0.05484577496 | AA14: =IF(AD14="","",(1-_xlfn.NORM.DIST(AD14,$AW$12,$AV$13,TRUE))*'1. Inputs'!$D$22) -> 0.2733040404 | AB14: =IF(W14="No","",_xlfn.NORM.DIST(Y14,$AW$18,$AV$19,TRUE)*'1. Inputs'!$D$23) -> 0.3496913021 | AC14: =IFERROR(IF(AB14*(1-('3. Gap Analysis '!$J$109/100))+Z14*('3. Gap Analysis '!$J$109/100)=0,"",AB14*(1-('3. Gap Analysis '!$J$109/100))+Z14*('3. Gap Analysis '!$J$109/100)),"") -> 0.1432994331 | AD14: =IF(W14="Yes",(S14*'1. Inputs'!$D$72+AG14*'1. Inputs'!$D$70/'1. Inputs'!$D$71+'1. Inputs'!$D$74*'1. Inputs'!$D$73*'1. Inputs'!$D$47*AG14+'1. Inputs'!$D$75)/S14,"") -> 27.42194992 | AE14: 42 | AF14: =IFERROR(IF(AND(AE14>0,AE14<MIN(COUNTA($B$11:$B$2000)*'3. Gap Analysis '!$B$104,COUNTIF($W$11:$W$2010,"Yes"))),"Yes","No"),"") -> Yes | AG14: =IFERROR(IF(W14="Yes",ROUNDUP(S14/('1. Inputs'!$D$89*'1. Inputs'!$D$48),0),0),"") -> 1 | AH14: No | AI14: =IF(AND(AH14="Yes",S14>0),(G14*2*'1. Inputs'!$D$54)*'1. Inputs'!$D$56*52+'1. Inputs'!$D$52/'1. Inputs'!$D$53+'1. Inputs'!$D$55*T14*('1. Inputs'!$D$48/52)+'1. Inputs'!$D$57*'1. Inputs'!$D$54*52,"") ->  | AJ14: =IFERROR(IF(INDEX('6. Product assignment'!$Y$18:$Y$2017,MATCH(B14,'6. Product assignment'!$C$18:$C$2017,0))="POC",1,0),0) -> 1 | AK14: =IFERROR(INDEX('6. Product assignment'!$AB$18:$AB$2017,MATCH(B14,'6. Product assignment'!$C$18:$C$2017,0)),"") -> 0 | AL14: =IFERROR(INDEX('6. Product assignment'!$AC$18:$AC$2017,MATCH(B14,'6. Product assignment'!$C$18:$C$2017,0)),"") -> 1 | AM14: =IFERROR(INDEX('6. Product assignment'!$AD$18:$AD$2017,MATCH(B14,'6. Product assignment'!$C$18:$C$2017,0)),"") -> 0 | AN14: =IFERROR(INDEX('6. Product assignment'!$AE$18:$AE$2017,MATCH(B14,'6. Product assignment'!$C$18:$C$2017,0)),"") -> 0 | AO14: =IFERROR(INDEX('6. Product assignment'!$Z$18:$Z$2017,MATCH(B14,'6. Product assignment'!$C$18:$C$2017,0)),"") -> 1 | AP14: =IFERROR(INDEX('6. Product assignment'!$AA$18:$AA$2017,MATCH(B14,'6. Product assignment'!$C$18:$C$2017,0)),"") -> 0 | AR14: 4 | AS14: ='Device profiles'!B5 -> Abbott mPima
B15: SITE 5 | C15: District A | D15: 6218 | E15: 0 | F15: 8 | G15: 22.60916652 | H15: None | I15: Conventional | J15: Yes | K15: Yes | M15: =D15*'1. Inputs'!$D$36+D15*'1. Inputs'!$D$37 -> 6839.8 | N15: =M15/'1. Inputs'!$D$48 -> 27.3592 | O15: =MAX(F15,E15)*'1. Inputs'!$D$38+MAX(E15,F15)*'1. Inputs'!$D$39 -> 16.56 | P15: =O15/'1. Inputs'!$D$48 -> 0.06624 | Q15: None | R15: Conventional | S15: =IF('1. Inputs'!$C$13="VL_only",M15,IF('1. Inputs'!$C$13="EID_only",O15,M15+O15)) -> 6856.36 | T15: =S15/'1. Inputs'!$D$48 -> 27.42544 | U15: 1 | V15: 1 | W15: =IF(AND('1. Inputs'!$C$27="Yes",J15="No"),"No",IF(AND('1. Inputs'!$C$29="Yes",K15="No"),"No",IF(AND(S15>0,T15<='1. Inputs'!$D$46*'1. Inputs'!$D$89),"Yes","No"))) -> Yes | X15: 22.60916652 | Y15: 6856.36 | Z15: =IFERROR(IF(W15="No","",(_xlfn.NORM.DIST(G15,$AW$15,$AV$16,TRUE)*'1. Inputs'!$D$24)),"") -> 0.01271694092 | AA15: =IF(AD15="","",(1-_xlfn.NORM.DIST(AD15,$AW$12,$AV$13,TRUE))*'1. Inputs'!$D$22) -> 0.2828860345 | AB15: =IF(W15="No","",_xlfn.NORM.DIST(Y15,$AW$18,$AV$19,TRUE)*'1. Inputs'!$D$23) -> 0.35 | AC15: =IFERROR(IF(AB15*(1-('3. Gap Analysis '!$J$109/100))+Z15*('3. Gap Analysis '!$J$109/100)=0,"",AB15*(1-('3. Gap Analysis '!$J$109/100))+Z15*('3. Gap Analysis '!$J$109/100)),"") -> 0.1139018586 | AD15: =IF(W15="Yes",(S15*'1. Inputs'!$D$72+AG15*'1. Inputs'!$D$70/'1. Inputs'!$D$71+'1. Inputs'!$D$74*'1. Inputs'!$D$73*'1. Inputs'!$D$47*AG15+'1. Inputs'!$D$75)/S15,"") -> 24.35582146 | AE15: 63 | AF15: =IFERROR(IF(AND(AE15>0,AE15<MIN(COUNTA($B$11:$B$2000)*'3. Gap Analysis '!$B$104,COUNTIF($W$11:$W$2010,"Yes"))),"Yes","No"),"") -> Yes | AG15: =IFERROR(IF(W15="Yes",ROUNDUP(S15/('1. Inputs'!$D$89*'1. Inputs'!$D$48),0),0),"") -> 2 | AH15: No | AI15: =IF(AND(AH15="Yes",S15>0),(G15*2*'1. Inputs'!$D$54)*'1. Inputs'!$D$56*52+'1. Inputs'!$D$52/'1. Inputs'!$D$53+'1. Inputs'!$D$55*T15*('1. Inputs'!$D$48/52)+'1. Inputs'!$D$57*'1. Inputs'!$D$54*52,"") ->  | AJ15: =IFERROR(IF(INDEX('6. Product assignment'!$Y$18:$Y$2017,MATCH(B15,'6. Product assignment'!$C$18:$C$2017,0))="POC",1,0),0) -> 1 | AK15: =IFERROR(INDEX('6. Product assignment'!$AB$18:$AB$2017,MATCH(B15,'6. Product assignment'!$C$18:$C$2017,0)),"") -> 0 | AL15: =IFERROR(INDEX('6. Product assignment'!$AC$18:$AC$2017,MATCH(B15,'6. Product assignment'!$C$18:$C$2017,0)),"") -> 1 | AM15: =IFERROR(INDEX('6. Product assignment'!$AD$18:$AD$2017,MATCH(B15,'6. Product assignment'!$C$18:$C$2017,0)),"") -> 0 | AN15: =IFERROR(INDEX('6. Product assignment'!$AE$18:$AE$2017,MATCH(B15,'6. Product assignment'!$C$18:$C$2017,0)),"") -> 0 | AO15: =IFERROR(INDEX('6. Product assignment'!$Z$18:$Z$2017,MATCH(B15,'6. Product assignment'!$C$18:$C$2017,0)),"") -> 1 | AP15: =IFERROR(INDEX('6. Product assignment'!$AA$18:$AA$2017,MATCH(B15,'6. Product assignment'!$C$18:$C$2017,0)),"") -> 0 | AR15: 5 | AS15: ='Device profiles'!B6 -> Cepheid GeneXpert | AV15: Distance | AW15: =AVERAGE(G11:G2000) -> 143.4975206
B16: SITE 6 | C16: District A | D16: 14 | E16: 26 | F16: 34 | G16: 46.26566757 | H16: None | I16: Conventional | J16: Yes | K16: Yes | M16: =D16*'1. Inputs'!$D$36+D16*'1. Inputs'!$D$37 -> 15.4 | N16: =M16/'1. Inputs'!$D$48 -> 0.0616 | O16: =MAX(F16,E16)*'1. Inputs'!$D$38+MAX(E16,F16)*'1. Inputs'!$D$39 -> 70.38 | P16: =O16/'1. Inputs'!$D$48 -> 0.28152 | Q16: None | R16: Conventional | S16: =IF('1. Inputs'!$C$13="VL_only",M16,IF('1. Inputs'!$C$13="EID_only",O16,M16+O16)) -> 85.78 | T16: =S16/'1. Inputs'!$D$48 -> 0.34312 | U16: 1 | V16: 1 | W16: =IF(AND('1. Inputs'!$C$27="Yes",J16="No"),"No",IF(AND('1. Inputs'!$C$29="Yes",K16="No"),"No",IF(AND(S16>0,T16<='1. Inputs'!$D$46*'1. Inputs'!$D$89),"Yes","No"))) -> Yes | X16: 46.26566757 | Y16: 85.78 | Z16: =IFERROR(IF(W16="No","",(_xlfn.NORM.DIST(G16,$AW$15,$AV$16,TRUE)*'1. Inputs'!$D$24)),"") -> 0.02019284782 | AA16: =IF(AD16="","",(1-_xlfn.NORM.DIST(AD16,$AW$12,$AV$13,TRUE))*'1. Inputs'!$D$22) -> 0.125643218 | AB16: =IF(W16="No","",_xlfn.NORM.DIST(Y16,$AW$18,$AV$19,TRUE)*'1. Inputs'!$D$23) -> 0.1952441039 | AC16: =IFERROR(IF(AB16*(1-('3. Gap Analysis '!$J$109/100))+Z16*('3. Gap Analysis '!$J$109/100)=0,"",AB16*(1-('3. Gap Analysis '!$J$109/100))+Z16*('3. Gap Analysis '!$J$109/100)),"") -> 0.07270822465 | AD16: =IF(W16="Yes",(S16*'1. Inputs'!$D$72+AG16*'1. Inputs'!$D$70/'1. Inputs'!$D$71+'1. Inputs'!$D$74*'1. Inputs'!$D$73*'1. Inputs'!$D$47*AG16+'1. Inputs'!$D$75)/S16,"") -> 77.18512474 | AE16: 93 | AF16: =IFERROR(IF(AND(AE16>0,AE16<MIN(COUNTA($B$11:$B$2000)*'3. Gap Analysis '!$B$104,COUNTIF($W$11:$W$2010,"Yes"))),"Yes","No"),"") -> No | AG16: =IFERROR(IF(W16="Yes",ROUNDUP(S16/('1. Inputs'!$D$89*'1. Inputs'!$D$48),0),0),"") -> 1 | AH16: Yes | AI16: =IF(AND(AH16="Yes",S16>0),(G16*2*'1. Inputs'!$D$54)*'1. Inputs'!$D$56*52+'1. Inputs'!$D$52/'1. Inputs'!$D$53+'1. Inputs'!$D$55*T16*('1. Inputs'!$D$48/52)+'1. Inputs'!$D$57*'1. Inputs'!$D$54*52,"") -> 114.2857143 | AJ16: =IFERROR(IF(INDEX('6. Product assignment'!$Y$18:$Y$2017,MATCH(B16,'6. Product assignment'!$C$18:$C$2017,0))="POC",1,0),0) -> 0 | AK16: =IFERROR(INDEX('6. Product assignment'!$AB$18:$AB$2017,MATCH(B16,'6. Product assignment'!$C$18:$C$2017,0)),"") -> 0 | AL16: =IFERROR(INDEX('6. Product assignment'!$AC$18:$AC$2017,MATCH(B16,'6. Product assignment'!$C$18:$C$2017,0)),"") -> 0 | AM16: =IFERROR(INDEX('6. Product assignment'!$AD$18:$AD$2017,MATCH(B16,'6. Product assignment'!$C$18:$C$2017,0)),"") -> 0 | AN16: =IFERROR(INDEX('6. Product assignment'!$AE$18:$AE$2017,MATCH(B16,'6. Product assignment'!$C$18:$C$2017,0)),"") -> 0 | AO16: =IFERROR(INDEX('6. Product assignment'!$Z$18:$Z$2017,MATCH(B16,'6. Product assignment'!$C$18:$C$2017,0)),"") -> 0 | AP16: =IFERROR(INDEX('6. Product assignment'!$AA$18:$AA$2017,MATCH(B16,'6. Product assignment'!$C$18:$C$2017,0)),"") -> 0 | AR16: 6 | AS16: ='Device profiles'!B7 -> Samba II | AV16: =_xlfn.STDEV.P($G$11:$G$2000) -> 88.00703268
B17: SITE 7 | C17: District A | D17: 425 | E17: 65 | F17: 88 | G17: 101.0974127 | H17: None | I17: Conventional | J17: Yes | K17: Yes | M17: =D17*'1. Inputs'!$D$36+D17*'1. Inputs'!$D$37 -> 467.5 | N17: =M17/'1. Inputs'!$D$48 -> 1.87 | O17: =MAX(F17,E17)*'1. Inputs'!$D$38+MAX(E17,F17)*'1. Inputs'!$D$39 -> 182.16 | P17: =O17/'1. Inputs'!$D$48 -> 0.72864 | Q17: None | R17: Conventional | S17: =IF('1. Inputs'!$C$13="VL_only",M17,IF('1. Inputs'!$C$13="EID_only",O17,M17+O17)) -> 649.66 | T17: =S17/'1. Inputs'!$D$48 -> 2.59864 | U17: 1 | V17: 1 | W17: =IF(AND('1. Inputs'!$C$27="Yes",J17="No"),"No",IF(AND('1. Inputs'!$C$29="Yes",K17="No"),"No",IF(AND(S17>0,T17<='1. Inputs'!$D$46*'1. Inputs'!$D$89),"Yes","No"))) -> Yes | X17: 101.0974127 | Y17: 649.66 | Z17: =IFERROR(IF(W17="No","",(_xlfn.NORM.DIST(G17,$AW$15,$AV$16,TRUE)*'1. Inputs'!$D$24)),"") -> 0.04724711963 | AA17: =IF(AD17="","",(1-_xlfn.NORM.DIST(AD17,$AW$12,$AV$13,TRUE))*'1. Inputs'!$D$22) -> 0.2647177916 | AB17: =IF(W17="No","",_xlfn.NORM.DIST(Y17,$AW$18,$AV$19,TRUE)*'1. Inputs'!$D$23) -> 0.3396531802 | AC17: =IFERROR(IF(AB17*(1-('3. Gap Analysis '!$J$109/100))+Z17*('3. Gap Analysis '!$J$109/100)=0,"",AB17*(1-('3. Gap Analysis '!$J$109/100))+Z17*('3. Gap Analysis '!$J$109/100)),"") -> 0.1349689378 | AD17: =IF(W17="Yes",(S17*'1. Inputs'!$D$72+AG17*'1. Inputs'!$D$70/'1. Inputs'!$D$71+'1. Inputs'!$D$74*'1. Inputs'!$D$73*'1. Inputs'!$D$47*AG17+'1. Inputs'!$D$75)/S17,"") -> 30.15451159 | AE17: 47 | AF17: =IFERROR(IF(AND(AE17>0,AE17<MIN(COUNTA($B$11:$B$2000)*'3. Gap Analysis '!$B$104,COUNTIF($W$11:$W$2010,"Yes"))),"Yes","No"),"") -> Yes | AG17: =IFERROR(IF(W17="Yes",ROUNDUP(S17/('1. Inputs'!$D$89*'1. Inputs'!$D$48),0),0),"") -> 1 | AH17: No | AI17: =IF(AND(AH17="Yes",S17>0),(G17*2*'1. Inputs'!$D$54)*'1. Inputs'!$D$56*52+'1. Inputs'!$D$52/'1. Inputs'!$D$53+'1. Inputs'!$D$55*T17*('1. Inputs'!$D$48/52)+'1. Inputs'!$D$57*'1. Inputs'!$D$54*52,"") ->  | AJ17: =IFERROR(IF(INDEX('6. Product assignment'!$Y$18:$Y$2017,MATCH(B17,'6. Product assignment'!$C$18:$C$2017,0))="POC",1,0),0) -> 1 | AK17: =IFERROR(INDEX('6. Product assignment'!$AB$18:$AB$2017,MATCH(B17,'6. Product assignment'!$C$18:$C$2017,0)),"") -> 0 | AL17: =IFERROR(INDEX('6. Product assignment'!$AC$18:$AC$2017,MATCH(B17,'6. Product assignment'!$C$18:$C$2017,0)),"") -> 1 | AM17: =IFERROR(INDEX('6. Product assignment'!$AD$18:$AD$2017,MATCH(B17,'6. Product assignment'!$C$18:$C$2017,0)),"") -> 0 | AN17: =IFERROR(INDEX('6. Product assignment'!$AE$18:$AE$2017,MATCH(B17,'6. Product assignment'!$C$18:$C$2017,0)),"") -> 0 | AO17: =IFERROR(INDEX('6. Product assignment'!$Z$18:$Z$2017,MATCH(B17,'6. Product assignment'!$C$18:$C$2017,0)),"") -> 1 | AP17: =IFERROR(INDEX('6. Product assignment'!$AA$18:$AA$2017,MATCH(B17,'6. Product assignment'!$C$18:$C$2017,0)),"") -> 0 | AR17: 7 | AS17: Omni
B18: SITE 8 | C18: District A | D18: 590 | E18: 15 | F18: 34 | G18: 6.8124881 | H18: None | I18: Conventional | J18: Yes | K18: Yes | M18: =D18*'1. Inputs'!$D$36+D18*'1. Inputs'!$D$37 -> 649 | N18: =M18/'1. Inputs'!$D$48 -> 2.596 | O18: =MAX(F18,E18)*'1. Inputs'!$D$38+MAX(E18,F18)*'1. Inputs'!$D$39 -> 70.38 | P18: =O18/'1. Inputs'!$D$48 -> 0.28152 | Q18: None | R18: Conventional | S18: =IF('1. Inputs'!$C$13="VL_only",M18,IF('1. Inputs'!$C$13="EID_only",O18,M18+O18)) -> 719.38 | T18: =S18/'1. Inputs'!$D$48 -> 2.87752 | U18: 1 | V18: 1 | W18: =IF(AND('1. Inputs'!$C$27="Yes",J18="No"),"No",IF(AND('1. Inputs'!$C$29="Yes",K18="No"),"No",IF(AND(S18>0,T18<='1. Inputs'!$D$46*'1. Inputs'!$D$89),"Yes","No"))) -> Yes | X18: 6.8124881 | Y18: 719.38 | Z18: =IFERROR(IF(W18="No","",(_xlfn.NORM.DIST(G18,$AW$15,$AV$16,TRUE)*'1. Inputs'!$D$24)),"") -> 0.009029676792 | AA18: =IF(AD18="","",(1-_xlfn.NORM.DIST(AD18,$AW$12,$AV$13,TRUE))*'1. Inputs'!$D$22) -> 0.2668997998 | AB18: =IF(W18="No","",_xlfn.NORM.DIST(Y18,$AW$18,$AV$19,TRUE)*'1. Inputs'!$D$23) -> 0.3437877239 | AC18: =IFERROR(IF(AB18*(1-('3. Gap Analysis '!$J$109/100))+Z18*('3. Gap Analysis '!$J$109/100)=0,"",AB18*(1-('3. Gap Analysis '!$J$109/100))+Z18*('3. Gap Analysis '!$J$109/100)),"") -> 0.1094570909 | AD18: =IF(W18="Yes",(S18*'1. Inputs'!$D$72+AG18*'1. Inputs'!$D$70/'1. Inputs'!$D$71+'1. Inputs'!$D$74*'1. Inputs'!$D$73*'1. Inputs'!$D$47*AG18+'1. Inputs'!$D$75)/S18,"") -> 29.4611193 | AE18: 73 | AF18: =IFERROR(IF(AND(AE18>0,AE18<MIN(COUNTA($B$11:$B$2000)*'3. Gap Analysis '!$B$104,COUNTIF($W$11:$W$2010,"Yes"))),"Yes","No"),"") -> No | AG18: =IFERROR(IF(W18="Yes",ROUNDUP(S18/('1. Inputs'!$D$89*'1. Inputs'!$D$48),0),0),"") -> 1 | AH18: Yes | AI18: =IF(AND(AH18="Yes",S18>0),(G18*2*'1. Inputs'!$D$54)*'1. Inputs'!$D$56*52+'1. Inputs'!$D$52/'1. Inputs'!$D$53+'1. Inputs'!$D$55*T18*('1. Inputs'!$D$48/52)+'1. Inputs'!$D$57*'1. Inputs'!$D$54*52,"") -> 114.2857143 | AJ18: =IFERROR(IF(INDEX('6. Product assignment'!$Y$18:$Y$2017,MATCH(B18,'6. Product assignment'!$C$18:$C$2017,0))="POC",1,0),0) -> 0 | AK18: =IFERROR(INDEX('6. Product assignment'!$AB$18:$AB$2017,MATCH(B18,'6. Product assignment'!$C$18:$C$2017,0)),"") -> 0 | AL18: =IFERROR(INDEX('6. Product assignment'!$AC$18:$AC$2017,MATCH(B18,'6. Product assignment'!$C$18:$C$2017,0)),"") -> 0 | AM18: =IFERROR(INDEX('6. Product assignment'!$AD$18:$AD$2017,MATCH(B18,'6. Product assignment'!$C$18:$C$2017,0)),"") -> 0 | AN18: =IFERROR(INDEX('6. Product assignment'!$AE$18:$AE$2017,MATCH(B18,'6. Product assignment'!$C$18:$C$2017,0)),"") -> 0 | AO18: =IFERROR(INDEX('6. Product assignment'!$Z$18:$Z$2017,MATCH(B18,'6. Product assignment'!$C$18:$C$2017,0)),"") -> 0 | AP18: =IFERROR(INDEX('6. Product assignment'!$AA$18:$AA$2017,MATCH(B18,'6. Product assignment'!$C$18:$C$2017,0)),"") -> 0 | AR18: 8 | AV18: Patients | AW18: =AVERAGE(Y11:Y2010) -> 38.67721
B19: SITE 9 | C19: District A | D19: 46 | E19: 8 | F19: 14 | G19: 50 | H19: None | I19: Conventional | J19: Yes | K19: Yes | M19: =D19*'1. Inputs'!$D$36+D19*'1. Inputs'!$D$37 -> 50.6 | N19: =M19/'1. Inputs'!$D$48 -> 0.2024 | O19: =MAX(F19,E19)*'1. Inputs'!$D$38+MAX(E19,F19)*'1. Inputs'!$D$39 -> 28.98 | P19: =O19/'1. Inputs'!$D$48 -> 0.11592 | Q19: None | R19: Conventional | S19: =IF('1. Inputs'!$C$13="VL_only",M19,IF('1. Inputs'!$C$13="EID_only",O19,M19+O19)) -> 79.58 | T19: =S19/'1. Inputs'!$D$48 -> 0.31832 | U19: 1 | V19: 1 | W19: =IF(AND('1. Inputs'!$C$27="Yes",J19="No"),"No",IF(AND('1. Inputs'!$C$29="Yes",K19="No"),"No",IF(AND(S19>0,T19<='1. Inputs'!$D$46*'1. Inputs'!$D$89),"Yes","No"))) -> Yes | X19: 50 | Y19: 79.58 | Z19: =IFERROR(IF(W19="No","",(_xlfn.NORM.DIST(G19,$AW$15,$AV$16,TRUE)*'1. Inputs'!$D$24)),"") -> 0.02160450513 | AA19: =IF(AD19="","",(1-_xlfn.NORM.DIST(AD19,$AW$12,$AV$13,TRUE))*'1. Inputs'!$D$22) -> 0.1152416882 | AB19: =IF(W19="No","",_xlfn.NORM.DIST(Y19,$AW$18,$AV$19,TRUE)*'1. Inputs'!$D$23) -> 0.1925946549 | AC19: =IFERROR(IF(AB19*(1-('3. Gap Analysis '!$J$109/100))+Z19*('3. Gap Analysis '!$J$109/100)=0,"",AB19*(1-('3. Gap Analysis '!$J$109/100))+Z19*('3. Gap Analysis '!$J$109/100)),"") -> 0.07290155007 | AD19: =IF(W19="Yes",(S19*'1. Inputs'!$D$72+AG19*'1. Inputs'!$D$70/'1. Inputs'!$D$71+'1. Inputs'!$D$74*'1. Inputs'!$D$73*'1. Inputs'!$D$47*AG19+'1. Inputs'!$D$75)/S19,"") -> 81.40663483 | AE19: 92 | AF19: =IFERROR(IF(AND(AE19>0,AE19<MIN(COUNTA($B$11:$B$2000)*'3. Gap Analysis '!$B$104,COUNTIF($W$11:$W$2010,"Yes"))),"Yes","No"),"") -> No | AG19: =IFERROR(IF(W19="Yes",ROUNDUP(S19/('1. Inputs'!$D$89*'1. Inputs'!$D$48),0),0),"") -> 1 | AH19: Yes | AI19: =IF(AND(AH19="Yes",S19>0),(G19*2*'1. Inputs'!$D$54)*'1. Inputs'!$D$56*52+'1. Inputs'!$D$52/'1. Inputs'!$D$53+'1. Inputs'!$D$55*T19*('1. Inputs'!$D$48/52)+'1. Inputs'!$D$57*'1. Inputs'!$D$54*52,"") -> 114.2857143 | AJ19: =IFERROR(IF(INDEX('6. Product assignment'!$Y$18:$Y$2017,MATCH(B19,'6. Product assignment'!$C$18:$C$2017,0))="POC",1,0),0) -> 0 | AK19: =IFERROR(INDEX('6. Product assignment'!$AB$18:$AB$2017,MATCH(B19,'6. Product assignment'!$C$18:$C$2017,0)),"") -> 0 | AL19: =IFERROR(INDEX('6. Product assignment'!$AC$18:$AC$2017,MATCH(B19,'6. Product assignment'!$C$18:$C$2017,0)),"") -> 0 | AM19: =IFERROR(INDEX('6. Product assignment'!$AD$18:$AD$2017,MATCH(B19,'6. Product assignment'!$C$18:$C$2017,0)),"") -> 0 | AN19: =IFERROR(INDEX('6. Product assignment'!$AE$18:$AE$2017,MATCH(B19,'6. Product assignment'!$C$18:$C$2017,0)),"") -> 0 | AO19: =IFERROR(INDEX('6. Product assignment'!$Z$18:$Z$2017,MATCH(B19,'6. Product assignment'!$C$18:$C$2017,0)),"") -> 0 | AP19: =IFERROR(INDEX('6. Product assignment'!$AA$18:$AA$2017,MATCH(B19,'6. Product assignment'!$C$18:$C$2017,0)),"") -> 0 | AR19: 9 | AV19: =_xlfn.STDEV.P(Y11:Y2010) -> 323.7397892
B20: SITE 10 | C20: District A | D20: 449 | E20: 158 | F20: 280 | G20: 189 | H20: None | I20: Conventional | J20: Yes | K20: Yes | M20: =D20*'1. Inputs'!$D$36+D20*'1. Inputs'!$D$37 -> 493.9 | N20: =M20/'1. Inputs'!$D$48 -> 1.9756 | O20: =MAX(F20,E20)*'1. Inputs'!$D$38+MAX(E20,F20)*'1. Inputs'!$D$39 -> 579.6 | P20: =O20/'1. Inputs'!$D$48 -> 2.3184 | Q20: None | R20: Conventional | S20: =IF('1. Inputs'!$C$13="VL_only",M20,IF('1. Inputs'!$C$13="EID_only",O20,M20+O20)) -> 1073.5 | T20: =S20/'1. Inputs'!$D$48 -> 4.294 | U20: 1 | V20: 1 | W20: =IF(AND('1. Inputs'!$C$27="Yes",J20="No"),"No",IF(AND('1. Inputs'!$C$29="Yes",K20="No"),"No",IF(AND(S20>0,T20<='1. Inputs'!$D$46*'1. Inputs'!$D$89),"Yes","No"))) -> Yes | X20: 189 | Y20: 1073.5 | Z20: =IFERROR(IF(W20="No","",(_xlfn.NORM.DIST(G20,$AW$15,$AV$16,TRUE)*'1. Inputs'!$D$24)),"") -> 0.1046149797 | AA20: =IF(AD20="","",(1-_xlfn.NORM.DIST(AD20,$AW$12,$AV$13,TRUE))*'1. Inputs'!$D$22) -> 0.2735930442 | AB20: =IF(W20="No","",_xlfn.NORM.DIST(Y20,$AW$18,$AV$19,TRUE)*'1. Inputs'!$D$23) -> 0.349756535 | AC20: =IFERROR(IF(AB20*(1-('3. Gap Analysis '!$J$109/100))+Z20*('3. Gap Analysis '!$J$109/100)=0,"",AB20*(1-('3. Gap Analysis '!$J$109/100))+Z20*('3. Gap Analysis '!$J$109/100)),"") -> 0.1781574463 | AD20: =IF(W20="Yes",(S20*'1. Inputs'!$D$72+AG20*'1. Inputs'!$D$70/'1. Inputs'!$D$71+'1. Inputs'!$D$74*'1. Inputs'!$D$73*'1. Inputs'!$D$47*AG20+'1. Inputs'!$D$75)/S20,"") -> 27.32976246 | AE20: 11 | AF20: =IFERROR(IF(AND(AE20>0,AE20<MIN(COUNTA($B$11:$B$2000)*'3. Gap Analysis '!$B$104,COUNTIF($W$11:$W$2010,"Yes"))),"Yes","No"),"") -> Yes | AG20: =IFERROR(IF(W20="Yes",ROUNDUP(S20/('1. Inputs'!$D$89*'1. Inputs'!$D$48),0),0),"") -> 1 | AH20: No | AI20: =IF(AND(AH20="Yes",S20>0),(G20*2*'1. Inputs'!$D$54)*'1. Inputs'!$D$56*52+'1. Inputs'!$D$52/'1. Inputs'!$D$53+'1. Inputs'!$D$55*T20*('1. Inputs'!$D$48/52)+'1. Inputs'!$D$57*'1. Inputs'!$D$54*52,"") ->  | AJ20: =IFERROR(IF(INDEX('6. Product assignment'!$Y$18:$Y$2017,MATCH(B20,'6. Product assignment'!$C$18:$C$2017,0))="POC",1,0),0) -> 1 | AK20: =IFERROR(INDEX('6. Product assignment'!$AB$18:$AB$2017,MATCH(B20,'6. Product assignment'!$C$18:$C$2017,0)),"") -> 0 | AL20: =IFERROR(INDEX('6. Product assignment'!$AC$18:$AC$2017,MATCH(B20,'6. Product assignment'!$C$18:$C$2017,0)),"") -> 1 | AM20: =IFERROR(INDEX('6. Product assignment'!$AD$18:$AD$2017,MATCH(B20,'6. Product assignment'!$C$18:$C$2017,0)),"") -> 0 | AN20: =IFERROR(INDEX('6. Product assignment'!$AE$18:$AE$2017,MATCH(B20,'6. Product assignment'!$C$18:$C$2017,0)),"") -> 0 | AO20: =IFERROR(INDEX('6. Product assignment'!$Z$18:$Z$2017,MATCH(B20,'6. Product assignment'!$C$18:$C$2017,0)),"") -> 1 | AP20: =IFERROR(INDEX('6. Product assignment'!$AA$18:$AA$2017,MATCH(B20,'6. Product assignment'!$C$18:$C$2017,0)),"") -> 0 | AR20: 10
B21: SITE 11 | C21: District A | D21: 0 | E21: 3 | F21: 6 | G21: 109.6963652 | H21: None | I21: Conventional | J21: Yes | K21: Yes | M21: =D21*'1. Inputs'!$D$36+D21*'1. Inputs'!$D$37 -> 0 | N21: =M21/'1. Inputs'!$D$48 -> 0 | O21: =MAX(F21,E21)*'1. Inputs'!$D$38+MAX(E21,F21)*'1. Inputs'!$D$39 -> 12.42 | P21: =O21/'1. Inputs'!$D$48 -> 0.04968 | Q21: None | R21: Conventional | S21: =IF('1. Inputs'!$C$13="VL_only",M21,IF('1. Inputs'!$C$13="EID_only",O21,M21+O21)) -> 12.42 | T21: =S21/'1. Inputs'!$D$48 -> 0.04968 | U21: 1 | V21: 1 | W21: =IF(AND('1. Inputs'!$C$27="Yes",J21="No"),"No",IF(AND('1. Inputs'!$C$29="Yes",K21="No"),"No",IF(AND(S21>0,T21<='1. Inputs'!$D$46*'1. Inputs'!$D$89),"Yes","No"))) -> Yes | X21: 109.6963652 | Y21: 12.42 | Z21: =IFERROR(IF(W21="No","",(_xlfn.NORM.DIST(G21,$AW$15,$AV$16,TRUE)*'1. Inputs'!$D$24)),"") -> 0.05256930658 | AA21: =IF(AD21="","",(1-_xlfn.NORM.DIST(AD21,$AW$12,$AV$13,TRUE))*'1. Inputs'!$D$22) -> 2.430608215e-09 | AB21: =IF(W21="No","",_xlfn.NORM.DIST(Y21,$AW$18,$AV$19,TRUE)*'1. Inputs'!$D$23) -> 0.1636876021 | AC21: =IFERROR(IF(AB21*(1-('3. Gap Analysis '!$J$109/100))+Z21*('3. Gap Analysis '!$J$109/100)=0,"",AB21*(1-('3. Gap Analysis '!$J$109/100))+Z21*('3. Gap Analysis '!$J$109/100)),"") -> 0.08590479523 | AD21: =IF(W21="Yes",(S21*'1. Inputs'!$D$72+AG21*'1. Inputs'!$D$70/'1. Inputs'!$D$71+'1. Inputs'!$D$74*'1. Inputs'!$D$73*'1. Inputs'!$D$47*AG21+'1. Inputs'!$D$75)/S21,"") -> 397.2351047 | AE21: 88 | AF21: =IFERROR(IF(AND(AE21>0,AE21<MIN(COUNTA($B$11:$B$2000)*'3. Gap Analysis '!$B$104,COUNTIF($W$11:$W$2010,"Yes"))),"Yes","No"),"") -> No | AG21: =IFERROR(IF(W21="Yes",ROUNDUP(S21/('1. Inputs'!$D$89*'1. Inputs'!$D$48),0),0),"") -> 1 | AH21: Yes | AI21: =IF(AND(AH21="Yes",S21>0),(G21*2*'1. Inputs'!$D$54)*'1. Inputs'!$D$56*52+'1. Inputs'!$D$52/'1. Inputs'!$D$53+'1. Inputs'!$D$55*T21*('1. Inputs'!$D$48/52)+'1. Inputs'!$D$57*'1. Inputs'!$D$54*52,"") -> 114.2857143 | AJ21: =IFERROR(IF(INDEX('6. Product assignment'!$Y$18:$Y$2017,MATCH(B21,'6. Product assignment'!$C$18:$C$2017,0))="POC",1,0),0) -> 0 | AK21: =IFERROR(INDEX('6. Product assignment'!$AB$18:$AB$2017,MATCH(B21,'6. Product assignment'!$C$18:$C$2017,0)),"") -> 0 | AL21: =IFERROR(INDEX('6. Product assignment'!$AC$18:$AC$2017,MATCH(B21,'6. Product assignment'!$C$18:$C$2017,0)),"") -> 0 | AM21: =IFERROR(INDEX('6. Product assignment'!$AD$18:$AD$2017,MATCH(B21,'6. Product assignment'!$C$18:$C$2017,0)),"") -> 0 | AN21: =IFERROR(INDEX('6. Product assignment'!$AE$18:$AE$2017,MATCH(B21,'6. Product assignment'!$C$18:$C$2017,0)),"") -> 0 | AO21: =IFERROR(INDEX('6. Product assignment'!$Z$18:$Z$2017,MATCH(B21,'6. Product assignment'!$C$18:$C$2017,0)),"") -> 0 | AP21: =IFERROR(INDEX('6. Product assignment'!$AA$18:$AA$2017,MATCH(B21,'6. Product assignment'!$C$18:$C$2017,0)),"") -> 0 | AR21: 11
B22: SITE 12 | C22: District A | D22: 133 | E22: 2 | F22: 8 | G22: 216.737788 | H22: Conventional | I22: Conventional | J22: Yes | K22: Yes | M22: =D22*'1. Inputs'!$D$36+D22*'1. Inputs'!$D$37 -> 146.3 | N22: =M22/'1. Inputs'!$D$48 -> 0.5852 | O22: =MAX(F22,E22)*'1. Inputs'!$D$38+MAX(E22,F22)*'1. Inputs'!$D$39 -> 16.56 | P22: =O22/'1. Inputs'!$D$48 -> 0.06624 | Q22: Conventional | R22: Conventional | S22: =IF('1. Inputs'!$C$13="VL_only",M22,IF('1. Inputs'!$C$13="EID_only",O22,M22+O22)) -> 162.86 | T22: =S22/'1. Inputs'!$D$48 -> 0.65144 | U22: 1 | V22: 1 | W22: =IF(AND('1. Inputs'!$C$27="Yes",J22="No"),"No",IF(AND('1. Inputs'!$C$29="Yes",K22="No"),"No",IF(AND(S22>0,T22<='1. Inputs'!$D$46*'1. Inputs'!$D$89),"Yes","No"))) -> Yes | X22: 216.737788 | Y22: 162.86 | Z22: =IFERROR(IF(W22="No","",(_xlfn.NORM.DIST(G22,$AW$15,$AV$16,TRUE)*'1. Inputs'!$D$24)),"") -> 0.1196031871 | AA22: =IF(AD22="","",(1-_xlfn.NORM.DIST(AD22,$AW$12,$AV$13,TRUE))*'1. Inputs'!$D$22) -> 0.1978314387 | AB22: =IF(W22="No","",_xlfn.NORM.DIST(Y22,$AW$18,$AV$19,TRUE)*'1. Inputs'!$D$23) -> 0.2272753656 | AC22: =IFERROR(IF(AB22*(1-('3. Gap Analysis '!$J$109/100))+Z22*('3. Gap Analysis '!$J$109/100)=0,"",AB22*(1-('3. Gap Analysis '!$J$109/100))+Z22*('3. Gap Analysis '!$J$109/100)),"") -> 0.1519048407 | AD22: =IF(W22="Yes",(S22*'1. Inputs'!$D$72+AG22*'1. Inputs'!$D$70/'1. Inputs'!$D$71+'1. Inputs'!$D$74*'1. Inputs'!$D$73*'1. Inputs'!$D$47*AG22+'1. Inputs'!$D$75)/S22,"") -> 51.53985018 | AE22: 32 | AF22: =IFERROR(IF(AND(AE22>0,AE22<MIN(COUNTA($B$11:$B$2000)*'3. Gap Analysis '!$B$104,COUNTIF($W$11:$W$2010,"Yes"))),"Yes","No"),"") -> Yes | AG22: =IFERROR(IF(W22="Yes",ROUNDUP(S22/('1. Inputs'!$D$89*'1. Inputs'!$D$48),0),0),"") -> 1 | AH22: No | AI22: =IF(AND(AH22="Yes",S22>0),(G22*2*'1. Inputs'!$D$54)*'1. Inputs'!$D$56*52+'1. Inputs'!$D$52/'1. Inputs'!$D$53+'1. Inputs'!$D$55*T22*('1. Inputs'!$D$48/52)+'1. Inputs'!$D$57*'1. Inputs'!$D$54*52,"") ->  | AJ22: =IFERROR(IF(INDEX('6. Product assignment'!$Y$18:$Y$2017,MATCH(B22,'6. Product assignment'!$C$18:$C$2017,0))="POC",1,0),0) -> 1 | AK22: =IFERROR(INDEX('6. Product assignment'!$AB$18:$AB$2017,MATCH(B22,'6. Product assignment'!$C$18:$C$2017,0)),"") -> 1 | AL22: =IFERROR(INDEX('6. Product assignment'!$AC$18:$AC$2017,MATCH(B22,'6. Product assignment'!$C$18:$C$2017,0)),"") -> 1 | AM22: =IFERROR(INDEX('6. Product assignment'!$AD$18:$AD$2017,MATCH(B22,'6. Product assignment'!$C$18:$C$2017,0)),"") -> 0 | AN22: =IFERROR(INDEX('6. Product assignment'!$AE$18:$AE$2017,MATCH(B22,'6. Product assignment'!$C$18:$C$2017,0)),"") -> 0 | AO22: =IFERROR(INDEX('6. Product assignment'!$Z$18:$Z$2017,MATCH(B22,'6. Product assignment'!$C$18:$C$2017,0)),"") -> 0 | AP22: =IFERROR(INDEX('6. Product assignment'!$AA$18:$AA$2017,MATCH(B22,'6. Product assignment'!$C$18:$C$2017,0)),"") -> 0 | AR22: 12
B23: SITE 13 | C23: District A | D23: 1889 | E23: 20 | F23: 22 | G23: 8.5 | H23: None | I23: Conventional | J23: No | K23: Yes | M23: =D23*'1. Inputs'!$D$36+D23*'1. Inputs'!$D$37 -> 2077.9 | N23: =M23/'1. Inputs'!$D$48 -> 8.3116 | O23: =MAX(F23,E23)*'1. Inputs'!$D$38+MAX(E23,F23)*'1. Inputs'!$D$39 -> 45.54 | P23: =O23/'1. Inputs'!$D$48 -> 0.18216 | Q23: None | R23: Conventional | S23: =IF('1. Inputs'!$C$13="VL_only",M23,IF('1. Inputs'!$C$13="EID_only",O23,M23+O23)) -> 2123.44 | T23: =S23/'1. Inputs'!$D$48 -> 8.49376 | U23: 0 | V23: 1 | W23: =IF(AND('1. Inputs'!$C$27="Yes",J23="No"),"No",IF(AND('1. Inputs'!$C$29="Yes",K23="No"),"No",IF(AND(S23>0,T23<='1. Inputs'!$D$46*'1. Inputs'!$D$89),"Yes","No"))) -> No | X23: 0 | Y23: 0 | Z23: =IFERROR(IF(W23="No","",(_xlfn.NORM.DIST(G23,$AW$15,$AV$16,TRUE)*'1. Inputs'!$D$24)),"") ->  | AA23: =IF(AD23="","",(1-_xlfn.NORM.DIST(AD23,$AW$12,$AV$13,TRUE))*'1. Inputs'!$D$22) ->  | AB23: =IF(W23="No","",_xlfn.NORM.DIST(Y23,$AW$18,$AV$19,TRUE)*'1. Inputs'!$D$23) ->  | AC23: =IFERROR(IF(AB23*(1-('3. Gap Analysis '!$J$109/100))+Z23*('3. Gap Analysis '!$J$109/100)=0,"",AB23*(1-('3. Gap Analysis '!$J$109/100))+Z23*('3. Gap Analysis '!$J$109/100)),"") ->  | AD23: =IF(W23="Yes",(S23*'1. Inputs'!$D$72+AG23*'1. Inputs'!$D$70/'1. Inputs'!$D$71+'1. Inputs'!$D$74*'1. Inputs'!$D$73*'1. Inputs'!$D$47*AG23+'1. Inputs'!$D$75)/S23,"") ->  | AF23: =IFERROR(IF(AND(AE23>0,AE23<MIN(COUNTA($B$11:$B$2000)*'3. Gap Analysis '!$B$104,COUNTIF($W$11:$W$2010,"Yes"))),"Yes","No"),"") -> No | AG23: =IFERROR(IF(W23="Yes",ROUNDUP(S23/('1. Inputs'!$D$89*'1. Inputs'!$D$48),0),0),"") -> 0 | AH23: Yes | AI23: =IF(AND(AH23="Yes",S23>0),(G23*2*'1. Inputs'!$D$54)*'1. Inputs'!$D$56*52+'1. Inputs'!$D$52/'1. Inputs'!$D$53+'1. Inputs'!$D$55*T23*('1. Inputs'!$D$48/52)+'1. Inputs'!$D$57*'1. Inputs'!$D$54*52,"") -> 114.2857143 | AJ23: =IFERROR(IF(INDEX('6. Product assignment'!$Y$18:$Y$2017,MATCH(B23,'6. Product assignment'!$C$18:$C$2017,0))="POC",1,0),0) -> 1 | AK23: =IFERROR(INDEX('6. Product assignment'!$AB$18:$AB$2017,MATCH(B23,'6. Product assignment'!$C$18:$C$2017,0)),"") -> 0 | AL23: =IFERROR(INDEX('6. Product assignment'!$AC$18:$AC$2017,MATCH(B23,'6. Product assignment'!$C$18:$C$2017,0)),"") -> 1 | AM23: =IFERROR(INDEX('6. Product assignment'!$AD$18:$AD$2017,MATCH(B23,'6. Product assignment'!$C$18:$C$2017,0)),"") -> 0 | AN23: =IFERROR(INDEX('6. Product assignment'!$AE$18:$AE$2017,MATCH(B23,'6. Product assignment'!$C$18:$C$2017,0)),"") -> 0 | AO23: =IFERROR(INDEX('6. Product assignment'!$Z$18:$Z$2017,MATCH(B23,'6. Product assignment'!$C$18:$C$2017,0)),"") -> 1 | AP23: =IFERROR(INDEX('6. Product assignment'!$AA$18:$AA$2017,MATCH(B23,'6. Product assignment'!$C$18:$C$2017,0)),"") -> 0 | AR23: 13
B24: SITE 14 | C24: District A | D24: 840 | E24: 342 | F24: 722 | G24: 7.51431696 | H24: None | I24: Conventional | J24: Yes | K24: Yes | M24: =D24*'1. Inputs'!$D$36+D24*'1. Inputs'!$D$37 -> 924 | N24: =M24/'1. Inputs'!$D$48 -> 3.696 | O24: =MAX(F24,E24)*'1. Inputs'!$D$38+MAX(E24,F24)*'1. Inputs'!$D$39 -> 1494.54 | P24: =O24/'1. Inputs'!$D$48 -> 5.97816 | Q24: None | R24: Conventional | S24: =IF('1. Inputs'!$C$13="VL_only",M24,IF('1. Inputs'!$C$13="EID_only",O24,M24+O24)) -> 2418.54 | T24: =S24/'1. Inputs'!$D$48 -> 9.67416 | U24: 1 | V24: 1 | W24: =IF(AND('1. Inputs'!$C$27="Yes",J24="No"),"No",IF(AND('1. Inputs'!$C$29="Yes",K24="No"),"No",IF(AND(S24>0,T24<='1. Inputs'!$D$46*'1. Inputs'!$D$89),"Yes","No"))) -> Yes | X24: 7.51431696 | Y24: 2418.54 | Z24: =IFERROR(IF(W24="No","",(_xlfn.NORM.DIST(G24,$AW$15,$AV$16,TRUE)*'1. Inputs'!$D$24)),"") -> 0.009173426732 | AA24: =IF(AD24="","",(1-_xlfn.NORM.DIST(AD24,$AW$12,$AV$13,TRUE))*'1. Inputs'!$D$22) -> 0.2811223448 | AB24: =IF(W24="No","",_xlfn.NORM.DIST(Y24,$AW$18,$AV$19,TRUE)*'1. Inputs'!$D$23) -> 0.35 | AC24: =IFERROR(IF(AB24*(1-('3. Gap Analysis '!$J$109/100))+Z24*('3. Gap Analysis '!$J$109/100)=0,"",AB24*(1-('3. Gap Analysis '!$J$109/100))+Z24*('3. Gap Analysis '!$J$109/100)),"") -> 0.1114213987 | AD24: =IF(W24="Yes",(S24*'1. Inputs'!$D$72+AG24*'1. Inputs'!$D$70/'1. Inputs'!$D$71+'1. Inputs'!$D$74*'1. Inputs'!$D$73*'1. Inputs'!$D$47*AG24+'1. Inputs'!$D$75)/S24,"") -> 24.9218206 | AE24: 68 | AF24: =IFERROR(IF(AND(AE24>0,AE24<MIN(COUNTA($B$11:$B$2000)*'3. Gap Analysis '!$B$104,COUNTIF($W$11:$W$2010,"Yes"))),"Yes","No"),"") -> Yes | AG24: =IFERROR(IF(W24="Yes",ROUNDUP(S24/('1. Inputs'!$D$89*'1. Inputs'!$D$48),0),0),"") -> 1 | AH24: No | AI24: =IF(AND(AH24="Yes",S24>0),(G24*2*'1. Inputs'!$D$54)*'1. Inputs'!$D$56*52+'1. Inputs'!$D$52/'1. Inputs'!$D$53+'1. Inputs'!$D$55*T24*('1. Inputs'!$D$48/52)+'1. Inputs'!$D$57*'1. Inputs'!$D$54*52,"") ->  | AJ24: =IFERROR(IF(INDEX('6. Product assignment'!$Y$18:$Y$2017,MATCH(B24,'6. Product assignment'!$C$18:$C$2017,0))="POC",1,0),0) -> 1 | AK24: =IFERROR(INDEX('6. Product assignment'!$AB$18:$AB$2017,MATCH(B24,'6. Product assignment'!$C$18:$C$2017,0)),"") -> 0 | AL24: =IFERROR(INDEX('6. Product assignment'!$AC$18:$AC$2017,MATCH(B24,'6. Product assignment'!$C$18:$C$2017,0)),"") -> 1 | AM24: =IFERROR(INDEX('6. Product assignment'!$AD$18:$AD$2017,MATCH(B24,'6. Product assignment'!$C$18:$C$2017,0)),"") -> 0 | AN24: =IFERROR(INDEX('6. Product assignment'!$AE$18:$AE$2017,MATCH(B24,'6. Product assignment'!$C$18:$C$2017,0)),"") -> 0 | AO24: =IFERROR(INDEX('6. Product assignment'!$Z$18:$Z$2017,MATCH(B24,'6. Product assignment'!$C$18:$C$2017,0)),"") -> 1 | AP24: =IFERROR(INDEX('6. Product assignment'!$AA$18:$AA$2017,MATCH(B24,'6. Product assignment'!$C$18:$C$2017,0)),"") -> 0 | AR24: 14
B25: SITE 15 | C25: District A | D25: 483 | E25: 9 | F25: 18 | G25: 73.38075646 | H25: None | I25: Conventional | J25: Yes | K25: Yes | M25: =D25*'1. Inputs'!$D$36+D25*'1. Inputs'!$D$37 -> 531.3 | N25: =M25/'1. Inputs'!$D$48 -> 2.1252 | O25: =MAX(F25,E25)*'1. Inputs'!$D$38+MAX(E25,F25)*'1. Inputs'!$D$39 -> 37.26 | P25: =O25/'1. Inputs'!$D$48 -> 0.14904 | Q25: None | R25: Conventional | S25: =IF('1. Inputs'!$C$13="VL_only",M25,IF('1. Inputs'!$C$13="EID_only",O25,M25+O25)) -> 568.56 | T25: =S25/'1. Inputs'!$D$48 -> 2.27424 | U25: 1 | V25: 1 | W25: =IF(AND('1. Inputs'!$C$27="Yes",J25="No"),"No",IF(AND('1. Inputs'!$C$29="Yes",K25="No"),"No",IF(AND(S25>0,T25<='1. Inputs'!$D$46*'1. Inputs'!$D$89),"Yes","No"))) -> Yes | X25: 73.38075646 | Y25: 568.56 | Z25: =IFERROR(IF(W25="No","",(_xlfn.NORM.DIST(G25,$AW$15,$AV$16,TRUE)*'1. Inputs'!$D$24)),"") -> 0.03192112343 | AA25: =IF(AD25="","",(1-_xlfn.NORM.DIST(AD25,$AW$12,$AV$13,TRUE))*'1. Inputs'!$D$22) -> 0.2615031931 | AB25: =IF(W25="No","",_xlfn.NORM.DIST(Y25,$AW$18,$AV$19,TRUE)*'1. Inputs'!$D$23) -> 0.3322057155 | AC25: =IFERROR(IF(AB25*(1-('3. Gap Analysis '!$J$109/100))+Z25*('3. Gap Analysis '!$J$109/100)=0,"",AB25*(1-('3. Gap Analysis '!$J$109/100))+Z25*('3. Gap Analysis '!$J$109/100)),"") -> 0.1220065011 | AD25: =IF(W25="Yes",(S25*'1. Inputs'!$D$72+AG25*'1. Inputs'!$D$70/'1. Inputs'!$D$71+'1. Inputs'!$D$74*'1. Inputs'!$D$73*'1. Inputs'!$D$47*AG25+'1. Inputs'!$D$75)/S25,"") -> 31.17503869 | AE25: 55 | AF25: =IFERROR(IF(AND(AE25>0,AE25<MIN(COUNTA($B$11:$B$2000)*'3. Gap Analysis '!$B$104,COUNTIF($W$11:$W$2010,"Yes"))),"Yes","No"),"") -> Yes | AG25: =IFERROR(IF(W25="Yes",ROUNDUP(S25/('1. Inputs'!$D$89*'1. Inputs'!$D$48),0),0),"") -> 1 | AH25: No | AI25: =IF(AND(AH25="Yes",S25>0),(G25*2*'1. Inputs'!$D$54)*'1. Inputs'!$D$56*52+'1. Inputs'!$D$52/'1. Inputs'!$D$53+'1. Inputs'!$D$55*T25*('1. Inputs'!$D$48/52)+'1. Inputs'!$D$57*'1. Inputs'!$D$54*52,"") ->  | AJ25: =IFERROR(IF(INDEX('6. Product assignment'!$Y$18:$Y$2017,MATCH(B25,'6. Product assignment'!$C$18:$C$2017,0))="POC",1,0),0) -> 0 | AK25: =IFERROR(INDEX('6. Product assignment'!$AB$18:$AB$2017,MATCH(B25,'6. Product assignment'!$C$18:$C$2017,0)),"") -> 0 | AL25: =IFERROR(INDEX('6. Product assignment'!$AC$18:$AC$2017,MATCH(B25,'6. Product assignment'!$C$18:$C$2017,0)),"") -> 0 | AM25: =IFERROR(INDEX('6. Product assignment'!$AD$18:$AD$2017,MATCH(B25,'6. Product assignment'!$C$18:$C$2017,0)),"") -> 0 | AN25: =IFERROR(INDEX('6. Product assignment'!$AE$18:$AE$2017,MATCH(B25,'6. Product assignment'!$C$18:$C$2017,0)),"") -> 0 | AO25: =IFERROR(INDEX('6. Product assignment'!$Z$18:$Z$2017,MATCH(B25,'6. Product assignment'!$C$18:$C$2017,0)),"") -> 0 | AP25: =IFERROR(INDEX('6. Product assignment'!$AA$18:$AA$2017,MATCH(B25,'6. Product assignment'!$C$18:$C$2017,0)),"") -> 0 | AR25: 15
B26: SITE 16 | C26: District A | D26: 7 | E26: 117 | F26: 120 | G26: 196.0304885 | H26: None | I26: Conventional | J26: Yes | K26: Yes | M26: =D26*'1. Inputs'!$D$36+D26*'1. Inputs'!$D$37 -> 7.7 | N26: =M26/'1. Inputs'!$D$48 -> 0.0308 | O26: =MAX(F26,E26)*'1. Inputs'!$D$38+MAX(E26,F26)*'1. Inputs'!$D$39 -> 248.4 | P26: =O26/'1. Inputs'!$D$48 -> 0.9936 | Q26: None | R26: Conventional | S26: =IF('1. Inputs'!$C$13="VL_only",M26,IF('1. Inputs'!$C$13="EID_only",O26,M26+O26)) -> 256.1 | T26: =S26/'1. Inputs'!$D$48 -> 1.0244 | U26: 1 | V26: 1 | W26: =IF(AND('1. Inputs'!$C$27="Yes",J26="No"),"No",IF(AND('1. Inputs'!$C$29="Yes",K26="No"),"No",IF(AND(S26>0,T26<='1. Inputs'!$D$46*'1. Inputs'!$D$89),"Yes","No"))) -> Yes | X26: 196.0304885 | Y26: 256.1 | Z26: =IFERROR(IF(W26="No","",(_xlfn.NORM.DIST(G26,$AW$15,$AV$16,TRUE)*'1. Inputs'!$D$24)),"") -> 0.1087078324 | AA26: =IF(AD26="","",(1-_xlfn.NORM.DIST(AD26,$AW$12,$AV$13,TRUE))*'1. Inputs'!$D$22) -> 0.2300566622 | AB26: =IF(W26="No","",_xlfn.NORM.DIST(Y26,$AW$18,$AV$19,TRUE)*'1. Inputs'!$D$23) -> 0.2621779904 | AC26: =IFERROR(IF(AB26*(1-('3. Gap Analysis '!$J$109/100))+Z26*('3. Gap Analysis '!$J$109/100)=0,"",AB26*(1-('3. Gap Analysis '!$J$109/100))+Z26*('3. Gap Analysis '!$J$109/100)),"") -> 0.1547488798 | AD26: =IF(W26="Yes",(S26*'1. Inputs'!$D$72+AG26*'1. Inputs'!$D$70/'1. Inputs'!$D$71+'1. Inputs'!$D$74*'1. Inputs'!$D$73*'1. Inputs'!$D$47*AG26+'1. Inputs'!$D$75)/S26,"") -> 41.14916048 | AE26: 29 | AF26: =IFERROR(IF(AND(AE26>0,AE26<MIN(COUNTA($B$11:$B$2000)*'3. Gap Analysis '!$B$104,COUNTIF($W$11:$W$2010,"Yes"))),"Yes","No"),"") -> Yes | AG26: =IFERROR(IF(W26="Yes",ROUNDUP(S26/('1. Inputs'!$D$89*'1. Inputs'!$D$48),0),0),"") -> 1 | AH26: No | AI26: =IF(AND(AH26="Yes",S26>0),(G26*2*'1. Inputs'!$D$54)*'1. Inputs'!$D$56*52+'1. Inputs'!$D$52/'1. Inputs'!$D$53+'1. Inputs'!$D$55*T26*('1. Inputs'!$D$48/52)+'1. Inputs'!$D$57*'1. Inputs'!$D$54*52,"") ->  | AJ26: =IFERROR(IF(INDEX('6. Product assignment'!$Y$18:$Y$2017,MATCH(B26,'6. Product assignment'!$C$18:$C$2017,0))="POC",1,0),0) -> 1 | AK26: =IFERROR(INDEX('6. Product assignment'!$AB$18:$AB$2017,MATCH(B26,'6. Product assignment'!$C$18:$C$2017,0)),"") -> 0 | AL26: =IFERROR(INDEX('6. Product assignment'!$AC$18:$AC$2017,MATCH(B26,'6. Product assignment'!$C$18:$C$2017,0)),"") -> 1 | AM26: =IFERROR(INDEX('6. Product assignment'!$AD$18:$AD$2017,MATCH(B26,'6. Product assignment'!$C$18:$C$2017,0)),"") -> 0 | AN26: =IFERROR(INDEX('6. Product assignment'!$AE$18:$AE$2017,MATCH(B26,'6. Product assignment'!$C$18:$C$2017,0)),"") -> 0 | AO26: =IFERROR(INDEX('6. Product assignment'!$Z$18:$Z$2017,MATCH(B26,'6. Product assignment'!$C$18:$C$2017,0)),"") -> 1 | AP26: =IFERROR(INDEX('6. Product assignment'!$AA$18:$AA$2017,MATCH(B26,'6. Product assignment'!$C$18:$C$2017,0)),"") -> 0 | AR26: 16
B27: SITE 17 | C27: District A | D27: 9290 | E27: 11 | F27: 28 | G27: 209.519726 | H27: None | I27: Conventional | J27: Yes | K27: Yes | M27: =D27*'1. Inputs'!$D$36+D27*'1. Inputs'!$D$37 -> 10219 | N27: =M27/'1. Inputs'!$D$48 -> 40.876 | O27: =MAX(F27,E27)*'1. Inputs'!$D$38+MAX(E27,F27)*'1. Inputs'!$D$39 -> 57.96 | P27: =O27/'1. Inputs'!$D$48 -> 0.23184 | Q27: None | R27: Conventional | S27: =IF('1. Inputs'!$C$13="VL_only",M27,IF('1. Inputs'!$C$13="EID_only",O27,M27+O27)) -> 10276.96 | T27: =S27/'1. Inputs'!$D$48 -> 41.10784 | U27: 1 | V27: 1 | W27: =IF(AND('1. Inputs'!$C$27="Yes",J27="No"),"No",IF(AND('1. Inputs'!$C$29="Yes",K27="No"),"No",IF(AND(S27>0,T27<='1. Inputs'!$D$46*'1. Inputs'!$D$89),"Yes","No"))) -> No | X27: 0 | Y27: 0 | Z27: =IFERROR(IF(W27="No","",(_xlfn.NORM.DIST(G27,$AW$15,$AV$16,TRUE)*'1. Inputs'!$D$24)),"") ->  | AA27: =IF(AD27="","",(1-_xlfn.NORM.DIST(AD27,$AW$12,$AV$13,TRUE))*'1. Inputs'!$D$22) ->  | AB27: =IF(W27="No","",_xlfn.NORM.DIST(Y27,$AW$18,$AV$19,TRUE)*'1. Inputs'!$D$23) ->  | AC27: =IFERROR(IF(AB27*(1-('3. Gap Analysis '!$J$109/100))+Z27*('3. Gap Analysis '!$J$109/100)=0,"",AB27*(1-('3. Gap Analysis '!$J$109/100))+Z27*('3. Gap Analysis '!$J$109/100)),"") ->  | AD27: =IF(W27="Yes",(S27*'1. Inputs'!$D$72+AG27*'1. Inputs'!$D$70/'1. Inputs'!$D$71+'1. Inputs'!$D$74*'1. Inputs'!$D$73*'1. Inputs'!$D$47*AG27+'1. Inputs'!$D$75)/S27,"") ->  | AF27: =IFERROR(IF(AND(AE27>0,AE27<MIN(COUNTA($B$11:$B$2000)*'3. Gap Analysis '!$B$104,COUNTIF($W$11:$W$2010,"Yes"))),"Yes","No"),"") -> No | AG27: =IFERROR(IF(W27="Yes",ROUNDUP(S27/('1. Inputs'!$D$89*'1. Inputs'!$D$48),0),0),"") -> 0 | AH27: Yes | AI27: =IF(AND(AH27="Yes",S27>0),(G27*2*'1. Inputs'!$D$54)*'1. Inputs'!$D$56*52+'1. Inputs'!$D$52/'1. Inputs'!$D$53+'1. Inputs'!$D$55*T27*('1. Inputs'!$D$48/52)+'1. Inputs'!$D$57*'1. Inputs'!$D$54*52,"") -> 114.2857143 | AJ27: =IFERROR(IF(INDEX('6. Product assignment'!$Y$18:$Y$2017,MATCH(B27,'6. Product assignment'!$C$18:$C$2017,0))="POC",1,0),0) -> 0 | AK27: =IFERROR(INDEX('6. Product assignment'!$AB$18:$AB$2017,MATCH(B27,'6. Product assignment'!$C$18:$C$2017,0)),"") -> 0 | AL27: =IFERROR(INDEX('6. Product assignment'!$AC$18:$AC$2017,MATCH(B27,'6. Product assignment'!$C$18:$C$2017,0)),"") -> 0 | AM27: =IFERROR(INDEX('6. Product assignment'!$AD$18:$AD$2017,MATCH(B27,'6. Product assignment'!$C$18:$C$2017,0)),"") -> 0 | AN27: =IFERROR(INDEX('6. Product assignment'!$AE$18:$AE$2017,MATCH(B27,'6. Product assignment'!$C$18:$C$2017,0)),"") -> 0 | AO27: =IFERROR(INDEX('6. Product assignment'!$Z$18:$Z$2017,MATCH(B27,'6. Product assignment'!$C$18:$C$2017,0)),"") -> 0 | AP27: =IFERROR(INDEX('6. Product assignment'!$AA$18:$AA$2017,MATCH(B27,'6. Product assignment'!$C$18:$C$2017,0)),"") -> 0 | AR27: 17
B28: SITE 18 | C28: District A | D28: 829 | E28: 23 | F28: 26 | G28: 180.8338269 | H28: None | I28: Conventional | J28: Yes | K28: Yes | M28: =D28*'1. Inputs'!$D$36+D28*'1. Inputs'!$D$37 -> 911.9 | N28: =M28/'1. Inputs'!$D$48 -> 3.6476 | O28: =MAX(F28,E28)*'1. Inputs'!$D$38+MAX(E28,F28)*'1. Inputs'!$D$39 -> 53.82 | P28: =O28/'1. Inputs'!$D$48 -> 0.21528 | Q28: None | R28: Conventional | S28: =IF('1. Inputs'!$C$13="VL_only",M28,IF('1. Inputs'!$C$13="EID_only",O28,M28+O28)) -> 965.72 | T28: =S28/'1. Inputs'!$D$48 -> 3.86288 | U28: 1 | V28: 1 | W28: =IF(AND('1. Inputs'!$C$27="Yes",J28="No"),"No",IF(AND('1. Inputs'!$C$29="Yes",K28="No"),"No",IF(AND(S28>0,T28<='1. Inputs'!$D$46*'1. Inputs'!$D$89),"Yes","No"))) -> Yes | X28: 180.8338269 | Y28: 965.72 | Z28: =IFERROR(IF(W28="No","",(_xlfn.NORM.DIST(G28,$AW$15,$AV$16,TRUE)*'1. Inputs'!$D$24)),"") -> 0.09964581665 | AA28: =IF(AD28="","",(1-_xlfn.NORM.DIST(AD28,$AW$12,$AV$13,TRUE))*'1. Inputs'!$D$22) -> 0.2720776068 | AB28: =IF(W28="No","",_xlfn.NORM.DIST(Y28,$AW$18,$AV$19,TRUE)*'1. Inputs'!$D$23) -> 0.349266869 | AC28: =IFERROR(IF(AB28*(1-('3. Gap Analysis '!$J$109/100))+Z28*('3. Gap Analysis '!$J$109/100)=0,"",AB28*(1-('3. Gap Analysis '!$J$109/100))+Z28*('3. Gap Analysis '!$J$109/100)),"") -> 0.1745321323 | AD28: =IF(W28="Yes",(S28*'1. Inputs'!$D$72+AG28*'1. Inputs'!$D$70/'1. Inputs'!$D$71+'1. Inputs'!$D$74*'1. Inputs'!$D$73*'1. Inputs'!$D$47*AG28+'1. Inputs'!$D$75)/S28,"") -> 27.81298927 | AE28: 13 | AF28: =IFERROR(IF(AND(AE28>0,AE28<MIN(COUNTA($B$11:$B$2000)*'3. Gap Analysis '!$B$104,COUNTIF($W$11:$W$2010,"Yes"))),"Yes","No"),"") -> Yes | AG28: =IFERROR(IF(W28="Yes",ROUNDUP(S28/('1. Inputs'!$D$89*'1. Inputs'!$D$48),0),0),"") -> 1 | AH28: No | AI28: =IF(AND(AH28="Yes",S28>0),(G28*2*'1. Inputs'!$D$54)*'1. Inputs'!$D$56*52+'1. Inputs'!$D$52/'1. Inputs'!$D$53+'1. Inputs'!$D$55*T28*('1. Inputs'!$D$48/52)+'1. Inputs'!$D$57*'1. Inputs'!$D$54*52,"") ->  | AJ28: =IFERROR(IF(INDEX('6. Product assignment'!$Y$18:$Y$2017,MATCH(B28,'6. Product assignment'!$C$18:$C$2017,0))="POC",1,0),0) -> 1 | AK28: =IFERROR(INDEX('6. Product assignment'!$AB$18:$AB$2017,MATCH(B28,'6. Product assignment'!$C$18:$C$2017,0)),"") -> 0 | AL28: =IFERROR(INDEX('6. Product assignment'!$AC$18:$AC$2017,MATCH(B28,'6. Product assignment'!$C$18:$C$2017,0)),"") -> 1 | AM28: =IFERROR(INDEX('6. Product assignment'!$AD$18:$AD$2017,MATCH(B28,'6. Product assignment'!$C$18:$C$2017,0)),"") -> 0 | AN28: =IFERROR(INDEX('6. Product assignment'!$AE$18:$AE$2017,MATCH(B28,'6. Product assignment'!$C$18:$C$2017,0)),"") -> 0 | AO28: =IFERROR(INDEX('6. Product assignment'!$Z$18:$Z$2017,MATCH(B28,'6. Product assignment'!$C$18:$C$2017,0)),"") -> 1 | AP28: =IFERROR(INDEX('6. Product assignment'!$AA$18:$AA$2017,MATCH(B28,'6. Product assignment'!$C$18:$C$2017,0)),"") -> 0 | AR28: 18
B29: SITE 19 | C29: District A | D29: 186 | E29: 34 | F29: 40 | G29: 160 | H29: None | I29: Conventional | J29: Yes | K29: Yes | M29: =D29*'1. Inputs'!$D$36+D29*'1. Inputs'!$D$37 -> 204.6 | N29: =M29/'1. Inputs'!$D$48 -> 0.8184 | O29: =MAX(F29,E29)*'1. Inputs'!$D$38+MAX(E29,F29)*'1. Inputs'!$D$39 -> 82.8 | P29: =O29/'1. Inputs'!$D$48 -> 0.3312 | Q29: None | R29: Conventional | S29: =IF('1. Inputs'!$C$13="VL_only",M29,IF('1. Inputs'!$C$13="EID_only",O29,M29+O29)) -> 287.4 | T29: =S29/'1. Inputs'!$D$48 -> 1.1496 | U29: 1 | V29: 1 | W29: =IF(AND('1. Inputs'!$C$27="Yes",J29="No"),"No",IF(AND('1. Inputs'!$C$29="Yes",K29="No"),"No",IF(AND(S29>0,T29<='1. Inputs'!$D$46*'1. Inputs'!$D$89),"Yes","No"))) -> Yes | X29: 160 | Y29: 287.4 | Z29: =IFERROR(IF(W29="No","",(_xlfn.NORM.DIST(G29,$AW$15,$AV$16,TRUE)*'1. Inputs'!$D$24)),"") -> 0.08615562877 | AA29: =IF(AD29="","",(1-_xlfn.NORM.DIST(AD29,$AW$12,$AV$13,TRUE))*'1. Inputs'!$D$22) -> 0.2362738236 | AB29: =IF(W29="No","",_xlfn.NORM.DIST(Y29,$AW$18,$AV$19,TRUE)*'1. Inputs'!$D$23) -> 0.2725938456 | AC29: =IFERROR(IF(AB29*(1-('3. Gap Analysis '!$J$109/100))+Z29*('3. Gap Analysis '!$J$109/100)=0,"",AB29*(1-('3. Gap Analysis '!$J$109/100))+Z29*('3. Gap Analysis '!$J$109/100)),"") -> 0.1420870938 | AD29: =IF(W29="Yes",(S29*'1. Inputs'!$D$72+AG29*'1. Inputs'!$D$70/'1. Inputs'!$D$71+'1. Inputs'!$D$74*'1. Inputs'!$D$73*'1. Inputs'!$D$47*AG29+'1. Inputs'!$D$75)/S29,"") -> 39.17258177 | AE29: 43 | AF29: =IFERROR(IF(AND(AE29>0,AE29<MIN(COUNTA($B$11:$B$2000)*'3. Gap Analysis '!$B$104,COUNTIF($W$11:$W$2010,"Yes"))),"Yes","No"),"") -> Yes | AG29: =IFERROR(IF(W29="Yes",ROUNDUP(S29/('1. Inputs'!$D$89*'1. Inputs'!$D$48),0),0),"") -> 1 | AH29: No | AI29: =IF(AND(AH29="Yes",S29>0),(G29*2*'1. Inputs'!$D$54)*'1. Inputs'!$D$56*52+'1. Inputs'!$D$52/'1. Inputs'!$D$53+'1. Inputs'!$D$55*T29*('1. Inputs'!$D$48/52)+'1. Inputs'!$D$57*'1. Inputs'!$D$54*52,"") ->  | AJ29: =IFERROR(IF(INDEX('6. Product assignment'!$Y$18:$Y$2017,MATCH(B29,'6. Product assignment'!$C$18:$C$2017,0))="POC",1,0),0) -> 1 | AK29: =IFERROR(INDEX('6. Product assignment'!$AB$18:$AB$2017,MATCH(B29,'6. Product assignment'!$C$18:$C$2017,0)),"") -> 0 | AL29: =IFERROR(INDEX('6. Product assignment'!$AC$18:$AC$2017,MATCH(B29,'6. Product assignment'!$C$18:$C$2017,0)),"") -> 1 | AM29: =IFERROR(INDEX('6. Product assignment'!$AD$18:$AD$2017,MATCH(B29,'6. Product assignment'!$C$18:$C$2017,0)),"") -> 0 | AN29: =IFERROR(INDEX('6. Product assignment'!$AE$18:$AE$2017,MATCH(B29,'6. Product assignment'!$C$18:$C$2017,0)),"") -> 0 | AO29: =IFERROR(INDEX('6. Product assignment'!$Z$18:$Z$2017,MATCH(B29,'6. Product assignment'!$C$18:$C$2017,0)),"") -> 1 | AP29: =IFERROR(INDEX('6. Product assignment'!$AA$18:$AA$2017,MATCH(B29,'6. Product assignment'!$C$18:$C$2017,0)),"") -> 0 | AR29: 19
B30: SITE 20 | C30: District A | D30: 18 | E30: 13 | F30: 32 | G30: 230 | H30: None | I30: Conventional | J30: Yes | K30: Yes | M30: =D30*'1. Inputs'!$D$36+D30*'1. Inputs'!$D$37 -> 19.8 | N30: =M30/'1. Inputs'!$D$48 -> 0.0792 | O30: =MAX(F30,E30)*'1. Inputs'!$D$38+MAX(E30,F30)*'1. Inputs'!$D$39 -> 66.24 | P30: =O30/'1. Inputs'!$D$48 -> 0.26496 | Q30: None | R30: Conventional | S30: =IF('1. Inputs'!$C$13="VL_only",M30,IF('1. Inputs'!$C$13="EID_only",O30,M30+O30)) -> 86.04 | T30: =S30/'1. Inputs'!$D$48 -> 0.34416 | U30: 1 | V30: 1 | W30: =IF(AND('1. Inputs'!$C$27="Yes",J30="No"),"No",IF(AND('1. Inputs'!$C$29="Yes",K30="No"),"No",IF(AND(S30>0,T30<='1. Inputs'!$D$46*'1. Inputs'!$D$89),"Yes","No"))) -> Yes | X30: 230 | Y30: 86.04 | Z30: =IFERROR(IF(W30="No","",(_xlfn.NORM.DIST(G30,$AW$15,$AV$16,TRUE)*'1. Inputs'!$D$24)),"") -> 0.1255759046 | AA30: =IF(AD30="","",(1-_xlfn.NORM.DIST(AD30,$AW$12,$AV$13,TRUE))*'1. Inputs'!$D$22) -> 0.126056426 | AB30: =IF(W30="No","",_xlfn.NORM.DIST(Y30,$AW$18,$AV$19,TRUE)*'1. Inputs'!$D$23) -> 0.1953550554 | AC30: =IFERROR(IF(AB30*(1-('3. Gap Analysis '!$J$109/100))+Z30*('3. Gap Analysis '!$J$109/100)=0,"",AB30*(1-('3. Gap Analysis '!$J$109/100))+Z30*('3. Gap Analysis '!$J$109/100)),"") -> 0.1465096498 | AD30: =IF(W30="Yes",(S30*'1. Inputs'!$D$72+AG30*'1. Inputs'!$D$70/'1. Inputs'!$D$71+'1. Inputs'!$D$74*'1. Inputs'!$D$73*'1. Inputs'!$D$47*AG30+'1. Inputs'!$D$75)/S30,"") -> 77.0213854 | AE30: 41 | AF30: =IFERROR(IF(AND(AE30>0,AE30<MIN(COUNTA($B$11:$B$2000)*'3. Gap Analysis '!$B$104,COUNTIF($W$11:$W$2010,"Yes"))),"Yes","No"),"") -> Yes | AG30: =IFERROR(IF(W30="Yes",ROUNDUP(S30/('1. Inputs'!$D$89*'1. Inputs'!$D$48),0),0),"") -> 1 | AH30: No | AI30: =IF(AND(AH30="Yes",S30>0),(G30*2*'1. Inputs'!$D$54)*'1. Inputs'!$D$56*52+'1. Inputs'!$D$52/'1. Inputs'!$D$53+'1. Inputs'!$D$55*T30*('1. Inputs'!$D$48/52)+'1. Inputs'!$D$57*'1. Inputs'!$D$54*52,"") ->  | AJ30: =IFERROR(IF(INDEX('6. Product assignment'!$Y$18:$Y$2017,MATCH(B30,'6. Product assignment'!$C$18:$C$2017,0))="POC",1,0),0) -> 1 | AK30: =IFERROR(INDEX('6. Product assignment'!$AB$18:$AB$2017,MATCH(B30,'6. Product assignment'!$C$18:$C$2017,0)),"") -> 0 | AL30: =IFERROR(INDEX('6. Product assignment'!$AC$18:$AC$2017,MATCH(B30,'6. Product assignment'!$C$18:$C$2017,0)),"") -> 1 | AM30: =IFERROR(INDEX('6. Product assignment'!$AD$18:$AD$2017,MATCH(B30,'6. Product assignment'!$C$18:$C$2017,0)),"") -> 0 | AN30: =IFERROR(INDEX('6. Product assignment'!$AE$18:$AE$2017,MATCH(B30,'6. Product assignment'!$C$18:$C$2017,0)),"") -> 0 | AO30: =IFERROR(INDEX('6. Product assignment'!$Z$18:$Z$2017,MATCH(B30,'6. Product assignment'!$C$18:$C$2017,0)),"") -> 1 | AP30: =IFERROR(INDEX('6. Product assignment'!$AA$18:$AA$2017,MATCH(B30,'6. Product assignment'!$C$18:$C$2017,0)),"") -> 0 | AR30: 20
B31: SITE 21 | C31: District A | D31: 385 | E31: 60 | F31: 74 | G31: 54.64179285 | H31: None | I31: Conventional | J31: Yes | K31: Yes | M31: =D31*'1. Inputs'!$D$36+D31*'1. Inputs'!$D$37 -> 423.5 | N31: =M31/'1. Inputs'!$D$48 -> 1.694 | O31: =MAX(F31,E31)*'1. Inputs'!$D$38+MAX(E31,F31)*'1. Inputs'!$D$39 -> 153.18 | P31: =O31/'1. Inputs'!$D$48 -> 0.61272 | Q31: None | R31: Conventional | S31: =IF('1. Inputs'!$C$13="VL_only",M31,IF('1. Inputs'!$C$13="EID_only",O31,M31+O31)) -> 576.68 | T31: =S31/'1. Inputs'!$D$48 -> 2.30672 | U31: 1 | V31: 1 | W31: =IF(AND('1. Inputs'!$C$27="Yes",J31="No"),"No",IF(AND('1. Inputs'!$C$29="Yes",K31="No"),"No",IF(AND(S31>0,T31<='1. Inputs'!$D$46*'1. Inputs'!$D$89),"Yes","No"))) -> Yes | X31: 54.64179285 | Y31: 576.68 | Z31: =IFERROR(IF(W31="No","",(_xlfn.NORM.DIST(G31,$AW$15,$AV$16,TRUE)*'1. Inputs'!$D$24)),"") -> 0.02344995937 | AA31: =IF(AD31="","",(1-_xlfn.NORM.DIST(AD31,$AW$12,$AV$13,TRUE))*'1. Inputs'!$D$22) -> 0.2618659463 | AB31: =IF(W31="No","",_xlfn.NORM.DIST(Y31,$AW$18,$AV$19,TRUE)*'1. Inputs'!$D$23) -> 0.3331045475 | AC31: =IFERROR(IF(AB31*(1-('3. Gap Analysis '!$J$109/100))+Z31*('3. Gap Analysis '!$J$109/100)=0,"",AB31*(1-('3. Gap Analysis '!$J$109/100))+Z31*('3. Gap Analysis '!$J$109/100)),"") -> 0.1163463358 | AD31: =IF(W31="Yes",(S31*'1. Inputs'!$D$72+AG31*'1. Inputs'!$D$70/'1. Inputs'!$D$71+'1. Inputs'!$D$74*'1. Inputs'!$D$73*'1. Inputs'!$D$47*AG31+'1. Inputs'!$D$75)/S31,"") -> 31.05992925 | AE31: 58 | AF31: =IFERROR(IF(AND(AE31>0,AE31<MIN(COUNTA($B$11:$B$2000)*'3. Gap Analysis '!$B$104,COUNTIF($W$11:$W$2010,"Yes"))),"Yes","No"),"") -> Yes | AG31: =IFERROR(IF(W31="Yes",ROUNDUP(S31/('1. Inputs'!$D$89*'1. Inputs'!$D$48),0),0),"") -> 1 | AH31: No | AI31: =IF(AND(AH31="Yes",S31>0),(G31*2*'1. Inputs'!$D$54)*'1. Inputs'!$D$56*52+'1. Inputs'!$D$52/'1. Inputs'!$D$53+'1. Inputs'!$D$55*T31*('1. Inputs'!$D$48/52)+'1. Inputs'!$D$57*'1. Inputs'!$D$54*52,"") ->  | AJ31: =IFERROR(IF(INDEX('6. Product assignment'!$Y$18:$Y$2017,MATCH(B31,'6. Product assignment'!$C$18:$C$2017,0))="POC",1,0),0) -> 0 | AK31: =IFERROR(INDEX('6. Product assignment'!$AB$18:$AB$2017,MATCH(B31,'6. Product assignment'!$C$18:$C$2017,0)),"") -> 0 | AL31: =IFERROR(INDEX('6. Product assignment'!$AC$18:$AC$2017,MATCH(B31,'6. Product assignment'!$C$18:$C$2017,0)),"") -> 0 | AM31: =IFERROR(INDEX('6. Product assignment'!$AD$18:$AD$2017,MATCH(B31,'6. Product assignment'!$C$18:$C$2017,0)),"") -> 0 | AN31: =IFERROR(INDEX('6. Product assignment'!$AE$18:$AE$2017,MATCH(B31,'6. Product assignment'!$C$18:$C$2017,0)),"") -> 0 | AO31: =IFERROR(INDEX('6. Product assignment'!$Z$18:$Z$2017,MATCH(B31,'6. Product assignment'!$C$18:$C$2017,0)),"") -> 0 | AP31: =IFERROR(INDEX('6. Product assignment'!$AA$18:$AA$2017,MATCH(B31,'6. Product assignment'!$C$18:$C$2017,0)),"") -> 0 | AR31: 21
B32: SITE 22 | C32: District A | D32: 10 | E32: 107 | F32: 128 | G32: 185.6798467 | H32: None | I32: Conventional | J32: Yes | K32: Yes | M32: =D32*'1. Inputs'!$D$36+D32*'1. Inputs'!$D$37 -> 11 | N32: =M32/'1. Inputs'!$D$48 -> 0.044 | O32: =MAX(F32,E32)*'1. Inputs'!$D$38+MAX(E32,F32)*'1. Inputs'!$D$39 -> 264.96 | P32: =O32/'1. Inputs'!$D$48 -> 1.05984 | Q32: None | R32: Conventional | S32: =IF('1. Inputs'!$C$13="VL_only",M32,IF('1. Inputs'!$C$13="EID_only",O32,M32+O32)) -> 275.96 | T32: =S32/'1. Inputs'!$D$48 -> 1.10384 | U32: 1 | V32: 1 | W32: =IF(AND('1. Inputs'!$C$27="Yes",J32="No"),"No",IF(AND('1. Inputs'!$C$29="Yes",K32="No"),"No",IF(AND(S32>0,T32<='1. Inputs'!$D$46*'1. Inputs'!$D$89),"Yes","No"))) -> Yes | X32: 185.6798467 | Y32: 275.96 | Z32: =IFERROR(IF(W32="No","",(_xlfn.NORM.DIST(G32,$AW$15,$AV$16,TRUE)*'1. Inputs'!$D$24)),"") -> 0.102620945 | AA32: =IF(AD32="","",(1-_xlfn.NORM.DIST(AD32,$AW$12,$AV$13,TRUE))*'1. Inputs'!$D$22) -> 0.2341632089 | AB32: =IF(W32="No","",_xlfn.NORM.DIST(Y32,$AW$18,$AV$19,TRUE)*'1. Inputs'!$D$23) -> 0.2688711835 | AC32: =IFERROR(IF(AB32*(1-('3. Gap Analysis '!$J$109/100))+Z32*('3. Gap Analysis '!$J$109/100)=0,"",AB32*(1-('3. Gap Analysis '!$J$109/100))+Z32*('3. Gap Analysis '!$J$109/100)),"") -> 0.1524960165 | AD32: =IF(W32="Yes",(S32*'1. Inputs'!$D$72+AG32*'1. Inputs'!$D$70/'1. Inputs'!$D$71+'1. Inputs'!$D$74*'1. Inputs'!$D$73*'1. Inputs'!$D$47*AG32+'1. Inputs'!$D$75)/S32,"") -> 39.84302073 | AE32: 30 | AF32: =IFERROR(IF(AND(AE32>0,AE32<MIN(COUNTA($B$11:$B$2000)*'3. Gap Analysis '!$B$104,COUNTIF($W$11:$W$2010,"Yes"))),"Yes","No"),"") -> Yes | AG32: =IFERROR(IF(W32="Yes",ROUNDUP(S32/('1. Inputs'!$D$89*'1. Inputs'!$D$48),0),0),"") -> 1 | AH32: No | AI32: =IF(AND(AH32="Yes",S32>0),(G32*2*'1. Inputs'!$D$54)*'1. Inputs'!$D$56*52+'1. Inputs'!$D$52/'1. Inputs'!$D$53+'1. Inputs'!$D$55*T32*('1. Inputs'!$D$48/52)+'1. Inputs'!$D$57*'1. Inputs'!$D$54*52,"") ->  | AJ32: =IFERROR(IF(INDEX('6. Product assignment'!$Y$18:$Y$2017,MATCH(B32,'6. Product assignment'!$C$18:$C$2017,0))="POC",1,0),0) -> 1 | AK32: =IFERROR(INDEX('6. Product assignment'!$AB$18:$AB$2017,MATCH(B32,'6. Product assignment'!$C$18:$C$2017,0)),"") -> 0 | AL32: =IFERROR(INDEX('6. Product assignment'!$AC$18:$AC$2017,MATCH(B32,'6. Product assignment'!$C$18:$C$2017,0)),"") -> 1 | AM32: =IFERROR(INDEX('6. Product assignment'!$AD$18:$AD$2017,MATCH(B32,'6. Product assignment'!$C$18:$C$2017,0)),"") -> 0 | AN32: =IFERROR(INDEX('6. Product assignment'!$AE$18:$AE$2017,MATCH(B32,'6. Product assignment'!$C$18:$C$2017,0)),"") -> 0 | AO32: =IFERROR(INDEX('6. Product assignment'!$Z$18:$Z$2017,MATCH(B32,'6. Product assignment'!$C$18:$C$2017,0)),"") -> 1 | AP32: =IFERROR(INDEX('6. Product assignment'!$AA$18:$AA$2017,MATCH(B32,'6. Product assignment'!$C$18:$C$2017,0)),"") -> 0 | AR32: 22
B33: SITE 23 | C33: District A | D33: 172 | E33: 23 | F33: 26 | G33: 233.8630468 | H33: None | I33: Conventional | J33: Yes | K33: Yes | M33: =D33*'1. Inputs'!$D$36+D33*'1. Inputs'!$D$37 -> 189.2 | N33: =M33/'1. Inputs'!$D$48 -> 0.7568 | O33: =MAX(F33,E33)*'1. Inputs'!$D$38+MAX(E33,F33)*'1. Inputs'!$D$39 -> 53.82 | P33: =O33/'1. Inputs'!$D$48 -> 0.21528 | Q33: None | R33: Conventional | S33: =IF('1. Inputs'!$C$13="VL_only",M33,IF('1. Inputs'!$C$13="EID_only",O33,M33+O33)) -> 243.02 | T33: =S33/'1. Inputs'!$D$48 -> 0.97208 | U33: 1 | V33: 1 | W33: =IF(AND('1. Inputs'!$C$27="Yes",J33="No"),"No",IF(AND('1. Inputs'!$C$29="Yes",K33="No"),"No",IF(AND(S33>0,T33<='1. Inputs'!$D$46*'1. Inputs'!$D$89),"Yes","No"))) -> Yes | X33: 233.8630468 | Y33: 243.02 | Z33: =IFERROR(IF(W33="No","",(_xlfn.NORM.DIST(G33,$AW$15,$AV$16,TRUE)*'1. Inputs'!$D$24)),"") -> 0.1271613632 | AA33: =IF(AD33="","",(1-_xlfn.NORM.DIST(AD33,$AW$12,$AV$13,TRUE))*'1. Inputs'!$D$22) -> 0.2269909083 | AB33: =IF(W33="No","",_xlfn.NORM.DIST(Y33,$AW$18,$AV$19,TRUE)*'1. Inputs'!$D$23) -> 0.2576151679 | AC33: =IFERROR(IF(AB33*(1-('3. Gap Analysis '!$J$109/100))+Z33*('3. Gap Analysis '!$J$109/100)=0,"",AB33*(1-('3. Gap Analysis '!$J$109/100))+Z33*('3. Gap Analysis '!$J$109/100)),"") -> 0.1662975046 | AD33: =IF(W33="Yes",(S33*'1. Inputs'!$D$72+AG33*'1. Inputs'!$D$70/'1. Inputs'!$D$71+'1. Inputs'!$D$74*'1. Inputs'!$D$73*'1. Inputs'!$D$47*AG33+'1. Inputs'!$D$75)/S33,"") -> 42.12599786 | AE33: 14 | AF33: =IFERROR(IF(AND(AE33>0,AE33<MIN(COUNTA($B$11:$B$2000)*'3. Gap Analysis '!$B$104,COUNTIF($W$11:$W$2010,"Yes"))),"Yes","No"),"") -> Yes | AG33: =IFERROR(IF(W33="Yes",ROUNDUP(S33/('1. Inputs'!$D$89*'1. Inputs'!$D$48),0),0),"") -> 1 | AH33: No | AI33: =IF(AND(AH33="Yes",S33>0),(G33*2*'1. Inputs'!$D$54)*'1. Inputs'!$D$56*52+'1. Inputs'!$D$52/'1. Inputs'!$D$53+'1. Inputs'!$D$55*T33*('1. Inputs'!$D$48/52)+'1. Inputs'!$D$57*'1. Inputs'!$D$54*52,"") ->  | AJ33: =IFERROR(IF(INDEX('6. Product assignment'!$Y$18:$Y$2017,MATCH(B33,'6. Product assignment'!$C$18:$C$2017,0))="POC",1,0),0) -> 1 | AK33: =IFERROR(INDEX('6. Product assignment'!$AB$18:$AB$2017,MATCH(B33,'6. Product assignment'!$C$18:$C$2017,0)),"") -> 0 | AL33: =IFERROR(INDEX('6. Product assignment'!$AC$18:$AC$2017,MATCH(B33,'6. Product assignment'!$C$18:$C$2017,0)),"") -> 1 | AM33: =IFERROR(INDEX('6. Product assignment'!$AD$18:$AD$2017,MATCH(B33,'6. Product assignment'!$C$18:$C$2017,0)),"") -> 0 | AN33: =IFERROR(INDEX('6. Product assignment'!$AE$18:$AE$2017,MATCH(B33,'6. Product assignment'!$C$18:$C$2017,0)),"") -> 0 | AO33: =IFERROR(INDEX('6. Product assignment'!$Z$18:$Z$2017,MATCH(B33,'6. Product assignment'!$C$18:$C$2017,0)),"") -> 1 | AP33: =IFERROR(INDEX('6. Product assignment'!$AA$18:$AA$2017,MATCH(B33,'6. Product assignment'!$C$18:$C$2017,0)),"") -> 0 | AR33: 23
B34: SITE 24 | C34: District A | D34: 126 | E34: 245 | F34: 274 | G34: 148 | H34: Conventional | I34: Conventional | J34: Yes | K34: Yes | M34: =D34*'1. Inputs'!$D$36+D34*'1. Inputs'!$D$37 -> 138.6 | N34: =M34/'1. Inputs'!$D$48 -> 0.5544 | O34: =MAX(F34,E34)*'1. Inputs'!$D$38+MAX(E34,F34)*'1. Inputs'!$D$39 -> 567.18 | P34: =O34/'1. Inputs'!$D$48 -> 2.26872 | Q34: Conventional | R34: Conventional | S34: =IF('1. Inputs'!$C$13="VL_only",M34,IF('1. Inputs'!$C$13="EID_only",O34,M34+O34)) -> 705.78 | T34: =S34/'1. Inputs'!$D$48 -> 2.82312 | U34: 1 | V34: 1 | W34: =IF(AND('1. Inputs'!$C$27="Yes",J34="No"),"No",IF(AND('1. Inputs'!$C$29="Yes",K34="No"),"No",IF(AND(S34>0,T34<='1. Inputs'!$D$46*'1. Inputs'!$D$89),"Yes","No"))) -> Yes | X34: 148 | Y34: 705.78 | Z34: =IFERROR(IF(W34="No","",(_xlfn.NORM.DIST(G34,$AW$15,$AV$16,TRUE)*'1. Inputs'!$D$24)),"") -> 0.07806017501 | AA34: =IF(AD34="","",(1-_xlfn.NORM.DIST(AD34,$AW$12,$AV$13,TRUE))*'1. Inputs'!$D$22) -> 0.2665081506 | AB34: =IF(W34="No","",_xlfn.NORM.DIST(Y34,$AW$18,$AV$19,TRUE)*'1. Inputs'!$D$23) -> 0.3431155235 | AC34: =IFERROR(IF(AB34*(1-('3. Gap Analysis '!$J$109/100))+Z34*('3. Gap Analysis '!$J$109/100)=0,"",AB34*(1-('3. Gap Analysis '!$J$109/100))+Z34*('3. Gap Analysis '!$J$109/100)),"") -> 0.1575767795 | AD34: =IF(W34="Yes",(S34*'1. Inputs'!$D$72+AG34*'1. Inputs'!$D$70/'1. Inputs'!$D$71+'1. Inputs'!$D$74*'1. Inputs'!$D$73*'1. Inputs'!$D$47*AG34+'1. Inputs'!$D$75)/S34,"") -> 29.58562158 | AE34: 27 | AF34: =IFERROR(IF(AND(AE34>0,AE34<MIN(COUNTA($B$11:$B$2000)*'3. Gap Analysis '!$B$104,COUNTIF($W$11:$W$2010,"Yes"))),"Yes","No"),"") -> Yes | AG34: =IFERROR(IF(W34="Yes",ROUNDUP(S34/('1. Inputs'!$D$89*'1. Inputs'!$D$48),0),0),"") -> 1 | AH34: No | AI34: =IF(AND(AH34="Yes",S34>0),(G34*2*'1. Inputs'!$D$54)*'1. Inputs'!$D$56*52+'1. Inputs'!$D$52/'1. Inputs'!$D$53+'1. Inputs'!$D$55*T34*('1. Inputs'!$D$48/52)+'1. Inputs'!$D$57*'1. Inputs'!$D$54*52,"") ->  | AJ34: =IFERROR(IF(INDEX('6. Product assignment'!$Y$18:$Y$2017,MATCH(B34,'6. Product assignment'!$C$18:$C$2017,0))="POC",1,0),0) -> 1 | AK34: =IFERROR(INDEX('6. Product assignment'!$AB$18:$AB$2017,MATCH(B34,'6. Product assignment'!$C$18:$C$2017,0)),"") -> 1 | AL34: =IFERROR(INDEX('6. Product assignment'!$AC$18:$AC$2017,MATCH(B34,'6. Product assignment'!$C$18:$C$2017,0)),"") -> 1 | AM34: =IFERROR(INDEX('6. Product assignment'!$AD$18:$AD$2017,MATCH(B34,'6. Product assignment'!$C$18:$C$2017,0)),"") -> 0 | AN34: =IFERROR(INDEX('6. Product assignment'!$AE$18:$AE$2017,MATCH(B34,'6. Product assignment'!$C$18:$C$2017,0)),"") -> 0 | AO34: =IFERROR(INDEX('6. Product assignment'!$Z$18:$Z$2017,MATCH(B34,'6. Product assignment'!$C$18:$C$2017,0)),"") -> 0 | AP34: =IFERROR(INDEX('6. Product assignment'!$AA$18:$AA$2017,MATCH(B34,'6. Product assignment'!$C$18:$C$2017,0)),"") -> 0 | AR34: 24
B35: SITE 25 | C35: District B | D35: 152 | E35: 30 | F35: 38 | G35: 229.9826147 | H35: None | I35: Conventional | J35: Yes | K35: Yes | M35: =D35*'1. Inputs'!$D$36+D35*'1. Inputs'!$D$37 -> 167.2 | N35: =M35/'1. Inputs'!$D$48 -> 0.6688 | O35: =MAX(F35,E35)*'1. Inputs'!$D$38+MAX(E35,F35)*'1. Inputs'!$D$39 -> 78.66 | P35: =O35/'1. Inputs'!$D$48 -> 0.31464 | Q35: None | R35: Conventional | S35: =IF('1. Inputs'!$C$13="VL_only",M35,IF('1. Inputs'!$C$13="EID_only",O35,M35+O35)) -> 245.86 | T35: =S35/'1. Inputs'!$D$48 -> 0.98344 | U35: 1 | V35: 1 | W35: =IF(AND('1. Inputs'!$C$27="Yes",J35="No"),"No",IF(AND('1. Inputs'!$C$29="Yes",K35="No"),"No",IF(AND(S35>0,T35<='1. Inputs'!$D$46*'1. Inputs'!$D$89),"Yes","No"))) -> Yes | X35: 229.9826147 | Y35: 245.86 | Z35: =IFERROR(IF(W35="No","",(_xlfn.NORM.DIST(G35,$AW$15,$AV$16,TRUE)*'1. Inputs'!$D$24)),"") -> 0.1255686114 | AA35: =IF(AD35="","",(1-_xlfn.NORM.DIST(AD35,$AW$12,$AV$13,TRUE))*'1. Inputs'!$D$22) -> 0.2276838324 | AB35: =IF(W35="No","",_xlfn.NORM.DIST(Y35,$AW$18,$AV$19,TRUE)*'1. Inputs'!$D$23) -> 0.2586160435 | AC35: =IFERROR(IF(AB35*(1-('3. Gap Analysis '!$J$109/100))+Z35*('3. Gap Analysis '!$J$109/100)=0,"",AB35*(1-('3. Gap Analysis '!$J$109/100))+Z35*('3. Gap Analysis '!$J$109/100)),"") -> 0.165482841 | AD35: =IF(W35="Yes",(S35*'1. Inputs'!$D$72+AG35*'1. Inputs'!$D$70/'1. Inputs'!$D$71+'1. Inputs'!$D$74*'1. Inputs'!$D$73*'1. Inputs'!$D$47*AG35+'1. Inputs'!$D$75)/S35,"") -> 41.90506792 | AE35: 15 | AF35: =IFERROR(IF(AND(AE35>0,AE35<MIN(COUNTA($B$11:$B$2000)*'3. Gap Analysis '!$B$104,COUNTIF($W$11:$W$2010,"Yes"))),"Yes","No"),"") -> Yes | AG35: =IFERROR(IF(W35="Yes",ROUNDUP(S35/('1. Inputs'!$D$89*'1. Inputs'!$D$48),0),0),"") -> 1 | AH35: No | AI35: =IF(AND(AH35="Yes",S35>0),(G35*2*'1. Inputs'!$D$54)*'1. Inputs'!$D$56*52+'1. Inputs'!$D$52/'1. Inputs'!$D$53+'1. Inputs'!$D$55*T35*('1. Inputs'!$D$48/52)+'1. Inputs'!$D$57*'1. Inputs'!$D$54*52,"") ->  | AJ35: =IFERROR(IF(INDEX('6. Product assignment'!$Y$18:$Y$2017,MATCH(B35,'6. Product assignment'!$C$18:$C$2017,0))="POC",1,0),0) -> 1 | AK35: =IFERROR(INDEX('6. Product assignment'!$AB$18:$AB$2017,MATCH(B35,'6. Product assignment'!$C$18:$C$2017,0)),"") -> 0 | AL35: =IFERROR(INDEX('6. Product assignment'!$AC$18:$AC$2017,MATCH(B35,'6. Product assignment'!$C$18:$C$2017,0)),"") -> 1 | AM35: =IFERROR(INDEX('6. Product assignment'!$AD$18:$AD$2017,MATCH(B35,'6. Product assignment'!$C$18:$C$2017,0)),"") -> 0 | AN35: =IFERROR(INDEX('6. Product assignment'!$AE$18:$AE$2017,MATCH(B35,'6. Product assignment'!$C$18:$C$2017,0)),"") -> 0 | AO35: =IFERROR(INDEX('6. Product assignment'!$Z$18:$Z$2017,MATCH(B35,'6. Product assignment'!$C$18:$C$2017,0)),"") -> 1 | AP35: =IFERROR(INDEX('6. Product assignment'!$AA$18:$AA$2017,MATCH(B35,'6. Product assignment'!$C$18:$C$2017,0)),"") -> 0 | AR35: 25
B36: SITE 26 | C36: District B | E36: 10 | F36: 16 | G36: 92.60031905 | H36: None | I36: Conventional | J36: Yes | K36: Yes | M36: =D36*'1. Inputs'!$D$36+D36*'1. Inputs'!$D$37 -> 0 | N36: =M36/'1. Inputs'!$D$48 -> 0 | O36: =MAX(F36,E36)*'1. Inputs'!$D$38+MAX(E36,F36)*'1. Inputs'!$D$39 -> 33.12 | P36: =O36/'1. Inputs'!$D$48 -> 0.13248 | Q36: None | R36: Conventional | S36: =IF('1. Inputs'!$C$13="VL_only",M36,IF('1. Inputs'!$C$13="EID_only",O36,M36+O36)) -> 33.12 | T36: =S36/'1. Inputs'!$D$48 -> 0.13248 | U36: 1 | V36: 1 | W36: =IF(AND('1. Inputs'!$C$27="Yes",J36="No"),"No",IF(AND('1. Inputs'!$C$29="Yes",K36="No"),"No",IF(AND(S36>0,T36<='1. Inputs'!$D$46*'1. Inputs'!$D$89),"Yes","No"))) -> Yes | X36: 92.60031905 | Y36: 33.12 | Z36: =IFERROR(IF(W36="No","",(_xlfn.NORM.DIST(G36,$AW$15,$AV$16,TRUE)*'1. Inputs'!$D$24)),"") -> 0.04222804654 | AA36: =IF(AD36="","",(1-_xlfn.NORM.DIST(AD36,$AW$12,$AV$13,TRUE))*'1. Inputs'!$D$22) -> 0.01049067779 | AB36: =IF(W36="No","",_xlfn.NORM.DIST(Y36,$AW$18,$AV$19,TRUE)*'1. Inputs'!$D$23) -> 0.1726032788 | AC36: =IFERROR(IF(AB36*(1-('3. Gap Analysis '!$J$109/100))+Z36*('3. Gap Analysis '!$J$109/100)=0,"",AB36*(1-('3. Gap Analysis '!$J$109/100))+Z36*('3. Gap Analysis '!$J$109/100)),"") -> 0.08134061623 | AD36: =IF(W36="Yes",(S36*'1. Inputs'!$D$72+AG36*'1. Inputs'!$D$70/'1. Inputs'!$D$71+'1. Inputs'!$D$74*'1. Inputs'!$D$73*'1. Inputs'!$D$47*AG36+'1. Inputs'!$D$75)/S36,"") -> 163.3381643 | AE36: 89 | AF36: =IFERROR(IF(AND(AE36>0,AE36<MIN(COUNTA($B$11:$B$2000)*'3. Gap Analysis '!$B$104,COUNTIF($W$11:$W$2010,"Yes"))),"Yes","No"),"") -> No | AG36: =IFERROR(IF(W36="Yes",ROUNDUP(S36/('1. Inputs'!$D$89*'1. Inputs'!$D$48),0),0),"") -> 1 | AH36: Yes | AI36: =IF(AND(AH36="Yes",S36>0),(G36*2*'1. Inputs'!$D$54)*'1. Inputs'!$D$56*52+'1. Inputs'!$D$52/'1. Inputs'!$D$53+'1. Inputs'!$D$55*T36*('1. Inputs'!$D$48/52)+'1. Inputs'!$D$57*'1. Inputs'!$D$54*52,"") -> 114.2857143 | AJ36: =IFERROR(IF(INDEX('6. Product assignment'!$Y$18:$Y$2017,MATCH(B36,'6. Product assignment'!$C$18:$C$2017,0))="POC",1,0),0) -> 0 | AK36: =IFERROR(INDEX('6. Product assignment'!$AB$18:$AB$2017,MATCH(B36,'6. Product assignment'!$C$18:$C$2017,0)),"") -> 0 | AL36: =IFERROR(INDEX('6. Product assignment'!$AC$18:$AC$2017,MATCH(B36,'6. Product assignment'!$C$18:$C$2017,0)),"") -> 0 | AM36: =IFERROR(INDEX('6. Product assignment'!$AD$18:$AD$2017,MATCH(B36,'6. Product assignment'!$C$18:$C$2017,0)),"") -> 0 | AN36: =IFERROR(INDEX('6. Product assignment'!$AE$18:$AE$2017,MATCH(B36,'6. Product assignment'!$C$18:$C$2017,0)),"") -> 0 | AO36: =IFERROR(INDEX('6. Product assignment'!$Z$18:$Z$2017,MATCH(B36,'6. Product assignment'!$C$18:$C$2017,0)),"") -> 0 | AP36: =IFERROR(INDEX('6. Product assignment'!$AA$18:$AA$2017,MATCH(B36,'6. Product assignment'!$C$18:$C$2017,0)),"") -> 0 | AR36: 26
B37: SITE 27 | C37: District B | D37: 500 | E37: 3 | F37: 6 | G37: 320 | H37: None | I37: Conventional | J37: Yes | K37: Yes | M37: =D37*'1. Inputs'!$D$36+D37*'1. Inputs'!$D$37 -> 550 | N37: =M37/'1. Inputs'!$D$48 -> 2.2 | O37: =MAX(F37,E37)*'1. Inputs'!$D$38+MAX(E37,F37)*'1. Inputs'!$D$39 -> 12.42 | P37: =O37/'1. Inputs'!$D$48 -> 0.04968 | Q37: None | R37: Conventional | S37: =IF('1. Inputs'!$C$13="VL_only",M37,IF('1. Inputs'!$C$13="EID_only",O37,M37+O37)) -> 562.42 | T37: =S37/'1. Inputs'!$D$48 -> 2.24968 | U37: 1 | V37: 1 | W37: =IF(AND('1. Inputs'!$C$27="Yes",J37="No"),"No",IF(AND('1. Inputs'!$C$29="Yes",K37="No"),"No",IF(AND(S37>0,T37<='1. Inputs'!$D$46*'1. Inputs'!$D$89),"Yes","No"))) -> Yes | X37: 320 | Y37: 562.42 | Z37: =IFERROR(IF(W37="No","",(_xlfn.NORM.DIST(G37,$AW$15,$AV$16,TRUE)*'1. Inputs'!$D$24)),"") -> 0.1466321766 | AA37: =IF(AD37="","",(1-_xlfn.NORM.DIST(AD37,$AW$12,$AV$13,TRUE))*'1. Inputs'!$D$22) -> 0.2612219134 | AB37: =IF(W37="No","",_xlfn.NORM.DIST(Y37,$AW$18,$AV$19,TRUE)*'1. Inputs'!$D$23) -> 0.3315011004 | AC37: =IFERROR(IF(AB37*(1-('3. Gap Analysis '!$J$109/100))+Z37*('3. Gap Analysis '!$J$109/100)=0,"",AB37*(1-('3. Gap Analysis '!$J$109/100))+Z37*('3. Gap Analysis '!$J$109/100)),"") -> 0.2020928538 | AD37: =IF(W37="Yes",(S37*'1. Inputs'!$D$72+AG37*'1. Inputs'!$D$70/'1. Inputs'!$D$71+'1. Inputs'!$D$74*'1. Inputs'!$D$73*'1. Inputs'!$D$47*AG37+'1. Inputs'!$D$75)/S37,"") -> 31.26428648 | AE37: 2 | AF37: =IFERROR(IF(AND(AE37>0,AE37<MIN(COUNTA($B$11:$B$2000)*'3. Gap Analysis '!$B$104,COUNTIF($W$11:$W$2010,"Yes"))),"Yes","No"),"") -> Yes | AG37: =IFERROR(IF(W37="Yes",ROUNDUP(S37/('1. Inputs'!$D$89*'1. Inputs'!$D$48),0),0),"") -> 1 | AH37: No | AI37: =IF(AND(AH37="Yes",S37>0),(G37*2*'1. Inputs'!$D$54)*'1. Inputs'!$D$56*52+'1. Inputs'!$D$52/'1. Inputs'!$D$53+'1. Inputs'!$D$55*T37*('1. Inputs'!$D$48/52)+'1. Inputs'!$D$57*'1. Inputs'!$D$54*52,"") ->  | AJ37: =IFERROR(IF(INDEX('6. Product assignment'!$Y$18:$Y$2017,MATCH(B37,'6. Product assignment'!$C$18:$C$2017,0))="POC",1,0),0) -> 1 | AK37: =IFERROR(INDEX('6. Product assignment'!$AB$18:$AB$2017,MATCH(B37,'6. Product assignment'!$C$18:$C$2017,0)),"") -> 0 | AL37: =IFERROR(INDEX('6. Product assignment'!$AC$18:$AC$2017,MATCH(B37,'6. Product assignment'!$C$18:$C$2017,0)),"") -> 1 | AM37: =IFERROR(INDEX('6. Product assignment'!$AD$18:$AD$2017,MATCH(B37,'6. Product assignment'!$C$18:$C$2017,0)),"") -> 0 | AN37: =IFERROR(INDEX('6. Product assignment'!$AE$18:$AE$2017,MATCH(B37,'6. Product assignment'!$C$18:$C$2017,0)),"") -> 0 | AO37: =IFERROR(INDEX('6. Product assignment'!$Z$18:$Z$2017,MATCH(B37,'6. Product assignment'!$C$18:$C$2017,0)),"") -> 1 | AP37: =IFERROR(INDEX('6. Product assignment'!$AA$18:$AA$2017,MATCH(B37,'6. Product assignment'!$C$18:$C$2017,0)),"") -> 0 | AR37: 27
B38: SITE 28 | C38: District B | D38: 353 | E38: 13 | F38: 24 | G38: 61.40278484 | H38: None | I38: Conventional | J38: Yes | K38: Yes | M38: =D38*'1. Inputs'!$D$36+D38*'1. Inputs'!$D$37 -> 388.3 | N38: =M38/'1. Inputs'!$D$48 -> 1.5532 | O38: =MAX(F38,E38)*'1. Inputs'!$D$38+MAX(E38,F38)*'1. Inputs'!$D$39 -> 49.68 | P38: =O38/'1. Inputs'!$D$48 -> 0.19872 | Q38: None | R38: Conventional | S38: =IF('1. Inputs'!$C$13="VL_only",M38,IF('1. Inputs'!$C$13="EID_only",O38,M38+O38)) -> 437.98 | T38: =S38/'1. Inputs'!$D$48 -> 1.75192 | U38: 1 | V38: 1 | W38: =IF(AND('1. Inputs'!$C$27="Yes",J38="No"),"No",IF(AND('1. Inputs'!$C$29="Yes",K38="No"),"No",IF(AND(S38>0,T38<='1. Inputs'!$D$46*'1. Inputs'!$D$89),"Yes","No"))) -> Yes | X38: 61.40278484 | Y38: 437.98 | Z38: =IFERROR(IF(W38="No","",(_xlfn.NORM.DIST(G38,$AW$15,$AV$16,TRUE)*'1. Inputs'!$D$24)),"") -> 0.02631846166 | AA38: =IF(AD38="","",(1-_xlfn.NORM.DIST(AD38,$AW$12,$AV$13,TRUE))*'1. Inputs'!$D$22) -> 0.2538152305 | AB38: =IF(W38="No","",_xlfn.NORM.DIST(Y38,$AW$18,$AV$19,TRUE)*'1. Inputs'!$D$23) -> 0.3119507813 | AC38: =IFERROR(IF(AB38*(1-('3. Gap Analysis '!$J$109/100))+Z38*('3. Gap Analysis '!$J$109/100)=0,"",AB38*(1-('3. Gap Analysis '!$J$109/100))+Z38*('3. Gap Analysis '!$J$109/100)),"") -> 0.1120081575 | AD38: =IF(W38="Yes",(S38*'1. Inputs'!$D$72+AG38*'1. Inputs'!$D$70/'1. Inputs'!$D$71+'1. Inputs'!$D$74*'1. Inputs'!$D$73*'1. Inputs'!$D$47*AG38+'1. Inputs'!$D$75)/S38,"") -> 33.61235673 | AE38: 65 | AF38: =IFERROR(IF(AND(AE38>0,AE38<MIN(COUNTA($B$11:$B$2000)*'3. Gap Analysis '!$B$104,COUNTIF($W$11:$W$2010,"Yes"))),"Yes","No"),"") -> Yes | AG38: =IFERROR(IF(W38="Yes",ROUNDUP(S38/('1. Inputs'!$D$89*'1. Inputs'!$D$48),0),0),"") -> 1 | AH38: No | AI38: =IF(AND(AH38="Yes",S38>0),(G38*2*'1. Inputs'!$D$54)*'1. Inputs'!$D$56*52+'1. Inputs'!$D$52/'1. Inputs'!$D$53+'1. Inputs'!$D$55*T38*('1. Inputs'!$D$48/52)+'1. Inputs'!$D$57*'1. Inputs'!$D$54*52,"") ->  | AJ38: =IFERROR(IF(INDEX('6. Product assignment'!$Y$18:$Y$2017,MATCH(B38,'6. Product assignment'!$C$18:$C$2017,0))="POC",1,0),0) -> 0 | AK38: =IFERROR(INDEX('6. Product assignment'!$AB$18:$AB$2017,MATCH(B38,'6. Product assignment'!$C$18:$C$2017,0)),"") -> 0 | AL38: =IFERROR(INDEX('6. Product assignment'!$AC$18:$AC$2017,MATCH(B38,'6. Product assignment'!$C$18:$C$2017,0)),"") -> 0 | AM38: =IFERROR(INDEX('6. Product assignment'!$AD$18:$AD$2017,MATCH(B38,'6. Product assignment'!$C$18:$C$2017,0)),"") -> 0 | AN38: =IFERROR(INDEX('6. Product assignment'!$AE$18:$AE$2017,MATCH(B38,'6. Product assignment'!$C$18:$C$2017,0)),"") -> 0 | AO38: =IFERROR(INDEX('6. Product assignment'!$Z$18:$Z$2017,MATCH(B38,'6. Product assignment'!$C$18:$C$2017,0)),"") -> 0 | AP38: =IFERROR(INDEX('6. Product assignment'!$AA$18:$AA$2017,MATCH(B38,'6. Product assignment'!$C$18:$C$2017,0)),"") -> 0 | AR38: 28
B39: SITE 29 | C39: District B | D39: 216 | E39: 716 | F39: 744 | G39: 188.7672237 | H39: None | I39: Conventional | J39: Yes | K39: Yes | M39: =D39*'1. Inputs'!$D$36+D39*'1. Inputs'!$D$37 -> 237.6 | N39: =M39/'1. Inputs'!$D$48 -> 0.9504 | O39: =MAX(F39,E39)*'1. Inputs'!$D$38+MAX(E39,F39)*'1. Inputs'!$D$39 -> 1540.08 | P39: =O39/'1. Inputs'!$D$48 -> 6.16032 | Q39: None | R39: Conventional | S39: =IF('1. Inputs'!$C$13="VL_only",M39,IF('1. Inputs'!$C$13="EID_only",O39,M39+O39)) -> 1777.68 | T39: =S39/'1. Inputs'!$D$48 -> 7.11072 | U39: 1 | V39: 1 | W39: =IF(AND('1. Inputs'!$C$27="Yes",J39="No"),"No",IF(AND('1. Inputs'!$C$29="Yes",K39="No"),"No",IF(AND(S39>0,T39<='1. Inputs'!$D$46*'1. Inputs'!$D$89),"Yes","No"))) -> Yes | X39: 188.7672237 | Y39: 1777.68 | Z39: =IFERROR(IF(W39="No","",(_xlfn.NORM.DIST(G39,$AW$15,$AV$16,TRUE)*'1. Inputs'!$D$24)),"") -> 0.1044764092 | AA39: =IF(AD39="","",(1-_xlfn.NORM.DIST(AD39,$AW$12,$AV$13,TRUE))*'1. Inputs'!$D$22) -> 0.2789601061 | AB39: =IF(W39="No","",_xlfn.NORM.DIST(Y39,$AW$18,$AV$19,TRUE)*'1. Inputs'!$D$23) -> 0.3499999863 | AC39: =IFERROR(IF(AB39*(1-('3. Gap Analysis '!$J$109/100))+Z39*('3. Gap Analysis '!$J$109/100)=0,"",AB39*(1-('3. Gap Analysis '!$J$109/100))+Z39*('3. Gap Analysis '!$J$109/100)),"") -> 0.1781334823 | AD39: =IF(W39="Yes",(S39*'1. Inputs'!$D$72+AG39*'1. Inputs'!$D$70/'1. Inputs'!$D$71+'1. Inputs'!$D$74*'1. Inputs'!$D$73*'1. Inputs'!$D$47*AG39+'1. Inputs'!$D$75)/S39,"") -> 25.61464381 | AE39: 12 | AF39: =IFERROR(IF(AND(AE39>0,AE39<MIN(COUNTA($B$11:$B$2000)*'3. Gap Analysis '!$B$104,COUNTIF($W$11:$W$2010,"Yes"))),"Yes","No"),"") -> Yes | AG39: =IFERROR(IF(W39="Yes",ROUNDUP(S39/('1. Inputs'!$D$89*'1. Inputs'!$D$48),0),0),"") -> 1 | AH39: No | AI39: =IF(AND(AH39="Yes",S39>0),(G39*2*'1. Inputs'!$D$54)*'1. Inputs'!$D$56*52+'1. Inputs'!$D$52/'1. Inputs'!$D$53+'1. Inputs'!$D$55*T39*('1. Inputs'!$D$48/52)+'1. Inputs'!$D$57*'1. Inputs'!$D$54*52,"") ->  | AJ39: =IFERROR(IF(INDEX('6. Product assignment'!$Y$18:$Y$2017,MATCH(B39,'6. Product assignment'!$C$18:$C$2017,0))="POC",1,0),0) -> 1 | AK39: =IFERROR(INDEX('6. Product assignment'!$AB$18:$AB$2017,MATCH(B39,'6. Product assignment'!$C$18:$C$2017,0)),"") -> 0 | AL39: =IFERROR(INDEX('6. Product assignment'!$AC$18:$AC$2017,MATCH(B39,'6. Product assignment'!$C$18:$C$2017,0)),"") -> 1 | AM39: =IFERROR(INDEX('6. Product assignment'!$AD$18:$AD$2017,MATCH(B39,'6. Product assignment'!$C$18:$C$2017,0)),"") -> 0 | AN39: =IFERROR(INDEX('6. Product assignment'!$AE$18:$AE$2017,MATCH(B39,'6. Product assignment'!$C$18:$C$2017,0)),"") -> 0 | AO39: =IFERROR(INDEX('6. Product assignment'!$Z$18:$Z$2017,MATCH(B39,'6. Product assignment'!$C$18:$C$2017,0)),"") -> 1 | AP39: =IFERROR(INDEX('6. Product assignment'!$AA$18:$AA$2017,MATCH(B39,'6. Product assignment'!$C$18:$C$2017,0)),"") -> 0 | AR39: 29
B40: SITE 30 | C40: District B | D40: 496 | E40: 7 | F40: 12 | G40: 51.79657971 | H40: None | I40: Conventional | J40: Yes | K40: Yes | M40: =D40*'1. Inputs'!$D$36+D40*'1. Inputs'!$D$37 -> 545.6 | N40: =M40/'1. Inputs'!$D$48 -> 2.1824 | O40: =MAX(F40,E40)*'1. Inputs'!$D$38+MAX(E40,F40)*'1. Inputs'!$D$39 -> 24.84 | P40: =O40/'1. Inputs'!$D$48 -> 0.09936 | Q40: None | R40: Conventional | S40: =IF('1. Inputs'!$C$13="VL_only",M40,IF('1. Inputs'!$C$13="EID_only",O40,M40+O40)) -> 570.44 | T40: =S40/'1. Inputs'!$D$48 -> 2.28176 | U40: 1 | V40: 1 | W40: =IF(AND('1. Inputs'!$C$27="Yes",J40="No"),"No",IF(AND('1. Inputs'!$C$29="Yes",K40="No"),"No",IF(AND(S40>0,T40<='1. Inputs'!$D$46*'1. Inputs'!$D$89),"Yes","No"))) -> Yes | X40: 51.79657971 | Y40: 570.44 | Z40: =IFERROR(IF(W40="No","",(_xlfn.NORM.DIST(G40,$AW$15,$AV$16,TRUE)*'1. Inputs'!$D$24)),"") -> 0.02230681913 | AA40: =IF(AD40="","",(1-_xlfn.NORM.DIST(AD40,$AW$12,$AV$13,TRUE))*'1. Inputs'!$D$22) -> 0.2615881025 | AB40: =IF(W40="No","",_xlfn.NORM.DIST(Y40,$AW$18,$AV$19,TRUE)*'1. Inputs'!$D$23) -> 0.3324171348 | AC40: =IFERROR(IF(AB40*(1-('3. Gap Analysis '!$J$109/100))+Z40*('3. Gap Analysis '!$J$109/100)=0,"",AB40*(1-('3. Gap Analysis '!$J$109/100))+Z40*('3. Gap Analysis '!$J$109/100)),"") -> 0.1153399138 | AD40: =IF(W40="Yes",(S40*'1. Inputs'!$D$72+AG40*'1. Inputs'!$D$70/'1. Inputs'!$D$71+'1. Inputs'!$D$74*'1. Inputs'!$D$73*'1. Inputs'!$D$47*AG40+'1. Inputs'!$D$75)/S40,"") -> 31.14809621 | AE40: 60 | AF40: =IFERROR(IF(AND(AE40>0,AE40<MIN(COUNTA($B$11:$B$2000)*'3. Gap Analysis '!$B$104,COUNTIF($W$11:$W$2010,"Yes"))),"Yes","No"),"") -> Yes | AG40: =IFERROR(IF(W40="Yes",ROUNDUP(S40/('1. Inputs'!$D$89*'1. Inputs'!$D$48),0),0),"") -> 1 | AH40: No | AI40: =IF(AND(AH40="Yes",S40>0),(G40*2*'1. Inputs'!$D$54)*'1. Inputs'!$D$56*52+'1. Inputs'!$D$52/'1. Inputs'!$D$53+'1. Inputs'!$D$55*T40*('1. Inputs'!$D$48/52)+'1. Inputs'!$D$57*'1. Inputs'!$D$54*52,"") ->  | AJ40: =IFERROR(IF(INDEX('6. Product assignment'!$Y$18:$Y$2017,MATCH(B40,'6. Product assignment'!$C$18:$C$2017,0))="POC",1,0),0) -> 0 | AK40: =IFERROR(INDEX('6. Product assignment'!$AB$18:$AB$2017,MATCH(B40,'6. Product assignment'!$C$18:$C$2017,0)),"") -> 0 | AL40: =IFERROR(INDEX('6. Product assignment'!$AC$18:$AC$2017,MATCH(B40,'6. Product assignment'!$C$18:$C$2017,0)),"") -> 0 | AM40: =IFERROR(INDEX('6. Product assignment'!$AD$18:$AD$2017,MATCH(B40,'6. Product assignment'!$C$18:$C$2017,0)),"") -> 0 | AN40: =IFERROR(INDEX('6. Product assignment'!$AE$18:$AE$2017,MATCH(B40,'6. Product assignment'!$C$18:$C$2017,0)),"") -> 0 | AO40: =IFERROR(INDEX('6. Product assignment'!$Z$18:$Z$2017,MATCH(B40,'6. Product assignment'!$C$18:$C$2017,0)),"") -> 0 | AP40: =IFERROR(INDEX('6. Product assignment'!$AA$18:$AA$2017,MATCH(B40,'6. Product assignment'!$C$18:$C$2017,0)),"") -> 0 | AR40: 30
B41: SITE 31 | C41: District B | D41: 1012 | E41: 48 | F41: 56 | G41: 154.7769463 | H41: None | I41: Conventional | J41: Yes | K41: Yes | M41: =D41*'1. Inputs'!$D$36+D41*'1. Inputs'!$D$37 -> 1113.2 | N41: =M41/'1. Inputs'!$D$48 -> 4.4528 | O41: =MAX(F41,E41)*'1. Inputs'!$D$38+MAX(E41,F41)*'1. Inputs'!$D$39 -> 115.92 | P41: =O41/'1. Inputs'!$D$48 -> 0.46368 | Q41: None | R41: Conventional | S41: =IF('1. Inputs'!$C$13="VL_only",M41,IF('1. Inputs'!$C$13="EID_only",O41,M41+O41)) -> 1229.12 | T41: =S41/'1. Inputs'!$D$48 -> 4.91648 | U41: 1 | V41: 1 | W41: =IF(AND('1. Inputs'!$C$27="Yes",J41="No"),"No",IF(AND('1. Inputs'!$C$29="Yes",K41="No"),"No",IF(AND(S41>0,T41<='1. Inputs'!$D$46*'1. Inputs'!$D$89),"Yes","No"))) -> Yes | X41: 154.7769463 | Y41: 1229.12 | Z41: =IFERROR(IF(W41="No","",(_xlfn.NORM.DIST(G41,$AW$15,$AV$16,TRUE)*'1. Inputs'!$D$24)),"") -> 0.08264862316 | AA41: =IF(AD41="","",(1-_xlfn.NORM.DIST(AD41,$AW$12,$AV$13,TRUE))*'1. Inputs'!$D$22) -> 0.2753105599 | AB41: =IF(W41="No","",_xlfn.NORM.DIST(Y41,$AW$18,$AV$19,TRUE)*'1. Inputs'!$D$23) -> 0.349958727 | AC41: =IFERROR(IF(AB41*(1-('3. Gap Analysis '!$J$109/100))+Z41*('3. Gap Analysis '!$J$109/100)=0,"",AB41*(1-('3. Gap Analysis '!$J$109/100))+Z41*('3. Gap Analysis '!$J$109/100)),"") -> 0.1628416543 | AD41: =IF(W41="Yes",(S41*'1. Inputs'!$D$72+AG41*'1. Inputs'!$D$70/'1. Inputs'!$D$71+'1. Inputs'!$D$74*'1. Inputs'!$D$73*'1. Inputs'!$D$47*AG41+'1. Inputs'!$D$75)/S41,"") -> 26.7815673 | AE41: 18 | AF41: =IFERROR(IF(AND(AE41>0,AE41<MIN(COUNTA($B$11:$B$2000)*'3. Gap Analysis '!$B$104,COUNTIF($W$11:$W$2010,"Yes"))),"Yes","No"),"") -> Yes | AG41: =IFERROR(IF(W41="Yes",ROUNDUP(S41/('1. Inputs'!$D$89*'1. Inputs'!$D$48),0),0),"") -> 1 | AH41: No | AI41: =IF(AND(AH41="Yes",S41>0),(G41*2*'1. Inputs'!$D$54)*'1. Inputs'!$D$56*52+'1. Inputs'!$D$52/'1. Inputs'!$D$53+'1. Inputs'!$D$55*T41*('1. Inputs'!$D$48/52)+'1. Inputs'!$D$57*'1. Inputs'!$D$54*52,"") ->  | AJ41: =IFERROR(IF(INDEX('6. Product assignment'!$Y$18:$Y$2017,MATCH(B41,'6. Product assignment'!$C$18:$C$2017,0))="POC",1,0),0) -> 1 | AK41: =IFERROR(INDEX('6. Product assignment'!$AB$18:$AB$2017,MATCH(B41,'6. Product assignment'!$C$18:$C$2017,0)),"") -> 0 | AL41: =IFERROR(INDEX('6. Product assignment'!$AC$18:$AC$2017,MATCH(B41,'6. Product assignment'!$C$18:$C$2017,0)),"") -> 1 | AM41: =IFERROR(INDEX('6. Product assignment'!$AD$18:$AD$2017,MATCH(B41,'6. Product assignment'!$C$18:$C$2017,0)),"") -> 0 | AN41: =IFERROR(INDEX('6. Product assignment'!$AE$18:$AE$2017,MATCH(B41,'6. Product assignment'!$C$18:$C$2017,0)),"") -> 0 | AO41: =IFERROR(INDEX('6. Product assignment'!$Z$18:$Z$2017,MATCH(B41,'6. Product assignment'!$C$18:$C$2017,0)),"") -> 1 | AP41: =IFERROR(INDEX('6. Product assignment'!$AA$18:$AA$2017,MATCH(B41,'6. Product assignment'!$C$18:$C$2017,0)),"") -> 0 | AR41: 31
B42: SITE 32 | C42: District B | D42: 846 | E42: 250 | F42: 278 | G42: 33.4158592 | H42: None | I42: Conventional | J42: Yes | K42: Yes | M42: =D42*'1. Inputs'!$D$36+D42*'1. Inputs'!$D$37 -> 930.6 | N42: =M42/'1. Inputs'!$D$48 -> 3.7224 | O42: =MAX(F42,E42)*'1. Inputs'!$D$38+MAX(E42,F42)*'1. Inputs'!$D$39 -> 575.46 | P42: =O42/'1. Inputs'!$D$48 -> 2.30184 | Q42: None | R42: Conventional | S42: =IF('1. Inputs'!$C$13="VL_only",M42,IF('1. Inputs'!$C$13="EID_only",O42,M42+O42)) -> 1506.06 | T42: =S42/'1. Inputs'!$D$48 -> 6.02424 | U42: 1 | V42: 1 | W42: =IF(AND('1. Inputs'!$C$27="Yes",J42="No"),"No",IF(AND('1. Inputs'!$C$29="Yes",K42="No"),"No",IF(AND(S42>0,T42<='1. Inputs'!$D$46*'1. Inputs'!$D$89),"Yes","No"))) -> Yes | X42: 33.4158592 | Y42: 1506.06 | Z42: =IFERROR(IF(W42="No","",(_xlfn.NORM.DIST(G42,$AW$15,$AV$16,TRUE)*'1. Inputs'!$D$24)),"") -> 0.01582479256 | AA42: =IF(AD42="","",(1-_xlfn.NORM.DIST(AD42,$AW$12,$AV$13,TRUE))*'1. Inputs'!$D$22) -> 0.2774864339 | AB42: =IF(W42="No","",_xlfn.NORM.DIST(Y42,$AW$18,$AV$19,TRUE)*'1. Inputs'!$D$23) -> 0.3499989804 | AC42: =IFERROR(IF(AB42*(1-('3. Gap Analysis '!$J$109/100))+Z42*('3. Gap Analysis '!$J$109/100)=0,"",AB42*(1-('3. Gap Analysis '!$J$109/100))+Z42*('3. Gap Analysis '!$J$109/100)),"") -> 0.1160770489 | AD42: =IF(W42="Yes",(S42*'1. Inputs'!$D$72+AG42*'1. Inputs'!$D$70/'1. Inputs'!$D$71+'1. Inputs'!$D$74*'1. Inputs'!$D$73*'1. Inputs'!$D$47*AG42+'1. Inputs'!$D$75)/S42,"") -> 26.08619843 | AE42: 59 | AF42: =IFERROR(IF(AND(AE42>0,AE42<MIN(COUNTA($B$11:$B$2000)*'3. Gap Analysis '!$B$104,COUNTIF($W$11:$W$2010,"Yes"))),"Yes","No"),"") -> Yes | AG42: =IFERROR(IF(W42="Yes",ROUNDUP(S42/('1. Inputs'!$D$89*'1. Inputs'!$D$48),0),0),"") -> 1 | AH42: No | AI42: =IF(AND(AH42="Yes",S42>0),(G42*2*'1. Inputs'!$D$54)*'1. Inputs'!$D$56*52+'1. Inputs'!$D$52/'1. Inputs'!$D$53+'1. Inputs'!$D$55*T42*('1. Inputs'!$D$48/52)+'1. Inputs'!$D$57*'1. Inputs'!$D$54*52,"") ->  | AJ42: =IFERROR(IF(INDEX('6. Product assignment'!$Y$18:$Y$2017,MATCH(B42,'6. Product assignment'!$C$18:$C$2017,0))="POC",1,0),0) -> 1 | AK42: =IFERROR(INDEX('6. Product assignment'!$AB$18:$AB$2017,MATCH(B42,'6. Product assignment'!$C$18:$C$2017,0)),"") -> 0 | AL42: =IFERROR(INDEX('6. Product assignment'!$AC$18:$AC$2017,MATCH(B42,'6. Product assignment'!$C$18:$C$2017,0)),"") -> 1 | AM42: =IFERROR(INDEX('6. Product assignment'!$AD$18:$AD$2017,MATCH(B42,'6. Product assignment'!$C$18:$C$2017,0)),"") -> 0 | AN42: =IFERROR(INDEX('6. Product assignment'!$AE$18:$AE$2017,MATCH(B42,'6. Product assignment'!$C$18:$C$2017,0)),"") -> 0 | AO42: =IFERROR(INDEX('6. Product assignment'!$Z$18:$Z$2017,MATCH(B42,'6. Product assignment'!$C$18:$C$2017,0)),"") -> 1 | AP42: =IFERROR(INDEX('6. Product assignment'!$AA$18:$AA$2017,MATCH(B42,'6. Product assignment'!$C$18:$C$2017,0)),"") -> 0 | AR42: 32
B43: SITE 33 | C43: District B | D43: 72 | E43: 13 | F43: 18 | G43: 81.24662847 | H43: None | I43: Conventional | J43: Yes | K43: Yes | M43: =D43*'1. Inputs'!$D$36+D43*'1. Inputs'!$D$37 -> 79.2 | N43: =M43/'1. Inputs'!$D$48 -> 0.3168 | O43: =MAX(F43,E43)*'1. Inputs'!$D$38+MAX(E43,F43)*'1. Inputs'!$D$39 -> 37.26 | P43: =O43/'1. Inputs'!$D$48 -> 0.14904 | Q43: None | R43: Conventional | S43: =IF('1. Inputs'!$C$13="VL_only",M43,IF('1. Inputs'!$C$13="EID_only",O43,M43+O43)) -> 116.46 | T43: =S43/'1. Inputs'!$D$48 -> 0.46584 | U43: 1 | V43: 1 | W43: =IF(AND('1. Inputs'!$C$27="Yes",J43="No"),"No",IF(AND('1. Inputs'!$C$29="Yes",K43="No"),"No",IF(AND(S43>0,T43<='1. Inputs'!$D$46*'1. Inputs'!$D$89),"Yes","No"))) -> Yes | X43: 81.24662847 | Y43: 116.46 | Z43: =IFERROR(IF(W43="No","",(_xlfn.NORM.DIST(G43,$AW$15,$AV$16,TRUE)*'1. Inputs'!$D$24)),"") -> 0.03595164229 | AA43: =IF(AD43="","",(1-_xlfn.NORM.DIST(AD43,$AW$12,$AV$13,TRUE))*'1. Inputs'!$D$22) -> 0.1641626057 | AB43: =IF(W43="No","",_xlfn.NORM.DIST(Y43,$AW$18,$AV$19,TRUE)*'1. Inputs'!$D$23) -> 0.2082279247 | AC43: =IFERROR(IF(AB43*(1-('3. Gap Analysis '!$J$109/100))+Z43*('3. Gap Analysis '!$J$109/100)=0,"",AB43*(1-('3. Gap Analysis '!$J$109/100))+Z43*('3. Gap Analysis '!$J$109/100)),"") -> 0.08763452702 | AD43: =IF(W43="Yes",(S43*'1. Inputs'!$D$72+AG43*'1. Inputs'!$D$70/'1. Inputs'!$D$71+'1. Inputs'!$D$74*'1. Inputs'!$D$73*'1. Inputs'!$D$47*AG43+'1. Inputs'!$D$75)/S43,"") -> 62.91069895 | AE43: 86 | AF43: =IFERROR(IF(AND(AE43>0,AE43<MIN(COUNTA($B$11:$B$2000)*'3. Gap Analysis '!$B$104,COUNTIF($W$11:$W$2010,"Yes"))),"Yes","No"),"") -> No | AG43: =IFERROR(IF(W43="Yes",ROUNDUP(S43/('1. Inputs'!$D$89*'1. Inputs'!$D$48),0),0),"") -> 1 | AH43: Yes | AI43: =IF(AND(AH43="Yes",S43>0),(G43*2*'1. Inputs'!$D$54)*'1. Inputs'!$D$56*52+'1. Inputs'!$D$52/'1. Inputs'!$D$53+'1. Inputs'!$D$55*T43*('1. Inputs'!$D$48/52)+'1. Inputs'!$D$57*'1. Inputs'!$D$54*52,"") -> 114.2857143 | AJ43: =IFERROR(IF(INDEX('6. Product assignment'!$Y$18:$Y$2017,MATCH(B43,'6. Product assignment'!$C$18:$C$2017,0))="POC",1,0),0) -> 0 | AK43: =IFERROR(INDEX('6. Product assignment'!$AB$18:$AB$2017,MATCH(B43,'6. Product assignment'!$C$18:$C$2017,0)),"") -> 0 | AL43: =IFERROR(INDEX('6. Product assignment'!$AC$18:$AC$2017,MATCH(B43,'6. Product assignment'!$C$18:$C$2017,0)),"") -> 0 | AM43: =IFERROR(INDEX('6. Product assignment'!$AD$18:$AD$2017,MATCH(B43,'6. Product assignment'!$C$18:$C$2017,0)),"") -> 0 | AN43: =IFERROR(INDEX('6. Product assignment'!$AE$18:$AE$2017,MATCH(B43,'6. Product assignment'!$C$18:$C$2017,0)),"") -> 0 | AO43: =IFERROR(INDEX('6. Product assignment'!$Z$18:$Z$2017,MATCH(B43,'6. Product assignment'!$C$18:$C$2017,0)),"") -> 0 | AP43: =IFERROR(INDEX('6. Product assignment'!$AA$18:$AA$2017,MATCH(B43,'6. Product assignment'!$C$18:$C$2017,0)),"") -> 0 | AR43: 33
B44: SITE 34 | C44: District B | D44: 257 | E44: 25 | F44: 40 | G44: 180.2206559 | H44: None | I44: Conventional | J44: Yes | K44: Yes | M44: =D44*'1. Inputs'!$D$36+D44*'1. Inputs'!$D$37 -> 282.7 | N44: =M44/'1. Inputs'!$D$48 -> 1.1308 | O44: =MAX(F44,E44)*'1. Inputs'!$D$38+MAX(E44,F44)*'1. Inputs'!$D$39 -> 82.8 | P44: =O44/'1. Inputs'!$D$48 -> 0.3312 | Q44: None | R44: Conventional | S44: =IF('1. Inputs'!$C$13="VL_only",M44,IF('1. Inputs'!$C$13="EID_only",O44,M44+O44)) -> 365.5 | T44: =S44/'1. Inputs'!$D$48 -> 1.462 | U44: 1 | V44: 1 | W44: =IF(AND('1. Inputs'!$C$27="Yes",J44="No"),"No",IF(AND('1. Inputs'!$C$29="Yes",K44="No"),"No",IF(AND(S44>0,T44<='1. Inputs'!$D$46*'1. Inputs'!$D$89),"Yes","No"))) -> Yes | X44: 180.2206559 | Y44: 365.5 | Z44: =IFERROR(IF(W44="No","",(_xlfn.NORM.DIST(G44,$AW$15,$AV$16,TRUE)*'1. Inputs'!$D$24)),"") -> 0.09926420503 | AA44: =IF(AD44="","",(1-_xlfn.NORM.DIST(AD44,$AW$12,$AV$13,TRUE))*'1. Inputs'!$D$22) -> 0.2471721791 | AB44: =IF(W44="No","",_xlfn.NORM.DIST(Y44,$AW$18,$AV$19,TRUE)*'1. Inputs'!$D$23) -> 0.2952733285 | AC44: =IFERROR(IF(AB44*(1-('3. Gap Analysis '!$J$109/100))+Z44*('3. Gap Analysis '!$J$109/100)=0,"",AB44*(1-('3. Gap Analysis '!$J$109/100))+Z44*('3. Gap Analysis '!$J$109/100)),"") -> 0.1580669421 | AD44: =IF(W44="Yes",(S44*'1. Inputs'!$D$72+AG44*'1. Inputs'!$D$70/'1. Inputs'!$D$71+'1. Inputs'!$D$74*'1. Inputs'!$D$73*'1. Inputs'!$D$47*AG44+'1. Inputs'!$D$75)/S44,"") -> 35.71682627 | AE44: 25 | AF44: =IFERROR(IF(AND(AE44>0,AE44<MIN(COUNTA($B$11:$B$2000)*'3. Gap Analysis '!$B$104,COUNTIF($W$11:$W$2010,"Yes"))),"Yes","No"),"") -> Yes | AG44: =IFERROR(IF(W44="Yes",ROUNDUP(S44/('1. Inputs'!$D$89*'1. Inputs'!$D$48),0),0),"") -> 1 | AH44: No | AI44: =IF(AND(AH44="Yes",S44>0),(G44*2*'1. Inputs'!$D$54)*'1. Inputs'!$D$56*52+'1. Inputs'!$D$52/'1. Inputs'!$D$53+'1. Inputs'!$D$55*T44*('1. Inputs'!$D$48/52)+'1. Inputs'!$D$57*'1. Inputs'!$D$54*52,"") ->  | AJ44: =IFERROR(IF(INDEX('6. Product assignment'!$Y$18:$Y$2017,MATCH(B44,'6. Product assignment'!$C$18:$C$2017,0))="POC",1,0),0) -> 1 | AK44: =IFERROR(INDEX('6. Product assignment'!$AB$18:$AB$2017,MATCH(B44,'6. Product assignment'!$C$18:$C$2017,0)),"") -> 0 | AL44: =IFERROR(INDEX('6. Product assignment'!$AC$18:$AC$2017,MATCH(B44,'6. Product assignment'!$C$18:$C$2017,0)),"") -> 1 | AM44: =IFERROR(INDEX('6. Product assignment'!$AD$18:$AD$2017,MATCH(B44,'6. Product assignment'!$C$18:$C$2017,0)),"") -> 0 | AN44: =IFERROR(INDEX('6. Product assignment'!$AE$18:$AE$2017,MATCH(B44,'6. Product assignment'!$C$18:$C$2017,0)),"") -> 0 | AO44: =IFERROR(INDEX('6. Product assignment'!$Z$18:$Z$2017,MATCH(B44,'6. Product assignment'!$C$18:$C$2017,0)),"") -> 1 | AP44: =IFERROR(INDEX('6. Product assignment'!$AA$18:$AA$2017,MATCH(B44,'6. Product assignment'!$C$18:$C$2017,0)),"") -> 0 | AR44: 34
B45: SITE 35 | C45: District B | D45: 409 | E45: 16 | F45: 20 | G45: 2.875328483 | H45: None | I45: Conventional | J45: Yes | K45: Yes | M45: =D45*'1. Inputs'!$D$36+D45*'1. Inputs'!$D$37 -> 449.9 | N45: =M45/'1. Inputs'!$D$48 -> 1.7996 | O45: =MAX(F45,E45)*'1. Inputs'!$D$38+MAX(E45,F45)*'1. Inputs'!$D$39 -> 41.4 | P45: =O45/'1. Inputs'!$D$48 -> 0.1656 | Q45: None | R45: Conventional | S45: =IF('1. Inputs'!$C$13="VL_only",M45,IF('1. Inputs'!$C$13="EID_only",O45,M45+O45)) -> 491.3 | T45: =S45/'1. Inputs'!$D$48 -> 1.9652 | U45: 1 | V45: 1 | W45: =IF(AND('1. Inputs'!$C$27="Yes",J45="No"),"No",IF(AND('1. Inputs'!$C$29="Yes",K45="No"),"No",IF(AND(S45>0,T45<='1. Inputs'!$D$46*'1. Inputs'!$D$89),"Yes","No"))) -> Yes | X45: 2.875328483 | Y45: 491.3 | Z45: =IFERROR(IF(W45="No","",(_xlfn.NORM.DIST(G45,$AW$15,$AV$16,TRUE)*'1. Inputs'!$D$24)),"") -> 0.008255697906 | AA45: =IF(AD45="","",(1-_xlfn.NORM.DIST(AD45,$AW$12,$AV$13,TRUE))*'1. Inputs'!$D$22) -> 0.257449544 | AB45: =IF(W45="No","",_xlfn.NORM.DIST(Y45,$AW$18,$AV$19,TRUE)*'1. Inputs'!$D$23) -> 0.3216358236 | AC45: =IFERROR(IF(AB45*(1-('3. Gap Analysis '!$J$109/100))+Z45*('3. Gap Analysis '!$J$109/100)=0,"",AB45*(1-('3. Gap Analysis '!$J$109/100))+Z45*('3. Gap Analysis '!$J$109/100)),"") -> 0.1022697356 | AD45: =IF(W45="Yes",(S45*'1. Inputs'!$D$72+AG45*'1. Inputs'!$D$70/'1. Inputs'!$D$71+'1. Inputs'!$D$74*'1. Inputs'!$D$73*'1. Inputs'!$D$47*AG45+'1. Inputs'!$D$75)/S45,"") -> 32.4606147 | AE45: 81 | AF45: =IFERROR(IF(AND(AE45>0,AE45<MIN(COUNTA($B$11:$B$2000)*'3. Gap Analysis '!$B$104,COUNTIF($W$11:$W$2010,"Yes"))),"Yes","No"),"") -> No | AG45: =IFERROR(IF(W45="Yes",ROUNDUP(S45/('1. Inputs'!$D$89*'1. Inputs'!$D$48),0),0),"") -> 1 | AH45: Yes | AI45: =IF(AND(AH45="Yes",S45>0),(G45*2*'1. Inputs'!$D$54)*'1. Inputs'!$D$56*52+'1. Inputs'!$D$52/'1. Inputs'!$D$53+'1. Inputs'!$D$55*T45*('1. Inputs'!$D$48/52)+'1. Inputs'!$D$57*'1. Inputs'!$D$54*52,"") -> 114.2857143 | AJ45: =IFERROR(IF(INDEX('6. Product assignment'!$Y$18:$Y$2017,MATCH(B45,'6. Product assignment'!$C$18:$C$2017,0))="POC",1,0),0) -> 0 | AK45: =IFERROR(INDEX('6. Product assignment'!$AB$18:$AB$2017,MATCH(B45,'6. Product assignment'!$C$18:$C$2017,0)),"") -> 0 | AL45: =IFERROR(INDEX('6. Product assignment'!$AC$18:$AC$2017,MATCH(B45,'6. Product assignment'!$C$18:$C$2017,0)),"") -> 0 | AM45: =IFERROR(INDEX('6. Product assignment'!$AD$18:$AD$2017,MATCH(B45,'6. Product assignment'!$C$18:$C$2017,0)),"") -> 0 | AN45: =IFERROR(INDEX('6. Product assignment'!$AE$18:$AE$2017,MATCH(B45,'6. Product assignment'!$C$18:$C$2017,0)),"") -> 0 | AO45: =IFERROR(INDEX('6. Product assignment'!$Z$18:$Z$2017,MATCH(B45,'6. Product assignment'!$C$18:$C$2017,0)),"") -> 0 | AP45: =IFERROR(INDEX('6. Product assignment'!$AA$18:$AA$2017,MATCH(B45,'6. Product assignment'!$C$18:$C$2017,0)),"") -> 0 | AR45: 35
B46: SITE 36 | C46: District B | E46: 0 | F46: 12 | G46: 106.3286759 | H46: None | I46: Conventional | J46: Yes | K46: Yes | M46: =D46*'1. Inputs'!$D$36+D46*'1. Inputs'!$D$37 -> 0 | N46: =M46/'1. Inputs'!$D$48 -> 0 | O46: =MAX(F46,E46)*'1. Inputs'!$D$38+MAX(E46,F46)*'1. Inputs'!$D$39 -> 24.84 | P46: =O46/'1. Inputs'!$D$48 -> 0.09936 | Q46: None | R46: Conventional | S46: =IF('1. Inputs'!$C$13="VL_only",M46,IF('1. Inputs'!$C$13="EID_only",O46,M46+O46)) -> 24.84 | T46: =S46/'1. Inputs'!$D$48 -> 0.09936 | U46: 1 | V46: 1 | W46: =IF(AND('1. Inputs'!$C$27="Yes",J46="No"),"No",IF(AND('1. Inputs'!$C$29="Yes",K46="No"),"No",IF(AND(S46>0,T46<='1. Inputs'!$D$46*'1. Inputs'!$D$89),"Yes","No"))) -> Yes | X46: 106.3286759 | Y46: 24.84 | Z46: =IFERROR(IF(W46="No","",(_xlfn.NORM.DIST(G46,$AW$15,$AV$16,TRUE)*'1. Inputs'!$D$24)),"") -> 0.05045829325 | AA46: =IF(AD46="","",(1-_xlfn.NORM.DIST(AD46,$AW$12,$AV$13,TRUE))*'1. Inputs'!$D$22) -> 0.001383389797 | AB46: =IF(W46="No","",_xlfn.NORM.DIST(Y46,$AW$18,$AV$19,TRUE)*'1. Inputs'!$D$23) -> 0.1690337926 | AC46: =IFERROR(IF(AB46*(1-('3. Gap Analysis '!$J$109/100))+Z46*('3. Gap Analysis '!$J$109/100)=0,"",AB46*(1-('3. Gap Analysis '!$J$109/100))+Z46*('3. Gap Analysis '!$J$109/100)),"") -> 0.08603094305 | AD46: =IF(W46="Yes",(S46*'1. Inputs'!$D$72+AG46*'1. Inputs'!$D$70/'1. Inputs'!$D$71+'1. Inputs'!$D$74*'1. Inputs'!$D$73*'1. Inputs'!$D$47*AG46+'1. Inputs'!$D$75)/S46,"") -> 210.1175523 | AE46: 87 | AF46: =IFERROR(IF(AND(AE46>0,AE46<MIN(COUNTA($B$11:$B$2000)*'3. Gap Analysis '!$B$104,COUNTIF($W$11:$W$2010,"Yes"))),"Yes","No"),"") -> No | AG46: =IFERROR(IF(W46="Yes",ROUNDUP(S46/('1. Inputs'!$D$89*'1. Inputs'!$D$48),0),0),"") -> 1 | AH46: Yes | AI46: =IF(AND(AH46="Yes",S46>0),(G46*2*'1. Inputs'!$D$54)*'1. Inputs'!$D$56*52+'1. Inputs'!$D$52/'1. Inputs'!$D$53+'1. Inputs'!$D$55*T46*('1. Inputs'!$D$48/52)+'1. Inputs'!$D$57*'1. Inputs'!$D$54*52,"") -> 114.2857143 | AJ46: =IFERROR(IF(INDEX('6. Product assignment'!$Y$18:$Y$2017,MATCH(B46,'6. Product assignment'!$C$18:$C$2017,0))="POC",1,0),0) -> 0 | AK46: =IFERROR(INDEX('6. Product assignment'!$AB$18:$AB$2017,MATCH(B46,'6. Product assignment'!$C$18:$C$2017,0)),"") -> 0 | AL46: =IFERROR(INDEX('6. Product assignment'!$AC$18:$AC$2017,MATCH(B46,'6. Product assignment'!$C$18:$C$2017,0)),"") -> 0 | AM46: =IFERROR(INDEX('6. Product assignment'!$AD$18:$AD$2017,MATCH(B46,'6. Product assignment'!$C$18:$C$2017,0)),"") -> 0 | AN46: =IFERROR(INDEX('6. Product assignment'!$AE$18:$AE$2017,MATCH(B46,'6. Product assignment'!$C$18:$C$2017,0)),"") -> 0 | AO46: =IFERROR(INDEX('6. Product assignment'!$Z$18:$Z$2017,MATCH(B46,'6. Product assignment'!$C$18:$C$2017,0)),"") -> 0 | AP46: =IFERROR(INDEX('6. Product assignment'!$AA$18:$AA$2017,MATCH(B46,'6. Product assignment'!$C$18:$C$2017,0)),"") -> 0 | AR46: 36
B47: SITE 37 | C47: District B | D47: 238 | E47: 11 | F47: 16 | G47: 171 | H47: None | I47: Conventional | J47: Yes | K47: Yes | M47: =D47*'1. Inputs'!$D$36+D47*'1. Inputs'!$D$37 -> 261.8 | N47: =M47/'1. Inputs'!$D$48 -> 1.0472 | O47: =MAX(F47,E47)*'1. Inputs'!$D$38+MAX(E47,F47)*'1. Inputs'!$D$39 -> 33.12 | P47: =O47/'1. Inputs'!$D$48 -> 0.13248 | Q47: None | R47: Conventional | S47: =IF('1. Inputs'!$C$13="VL_only",M47,IF('1. Inputs'!$C$13="EID_only",O47,M47+O47)) -> 294.92 | T47: =S47/'1. Inputs'!$D$48 -> 1.17968 | U47: 1 | V47: 1 | W47: =IF(AND('1. Inputs'!$C$27="Yes",J47="No"),"No",IF(AND('1. Inputs'!$C$29="Yes",K47="No"),"No",IF(AND(S47>0,T47<='1. Inputs'!$D$46*'1. Inputs'!$D$89),"Yes","No"))) -> Yes | X47: 171 | Y47: 294.92 | Z47: =IFERROR(IF(W47="No","",(_xlfn.NORM.DIST(G47,$AW$15,$AV$16,TRUE)*'1. Inputs'!$D$24)),"") -> 0.0934006402 | AA47: =IF(AD47="","",(1-_xlfn.NORM.DIST(AD47,$AW$12,$AV$13,TRUE))*'1. Inputs'!$D$22) -> 0.2375728082 | AB47: =IF(W47="No","",_xlfn.NORM.DIST(Y47,$AW$18,$AV$19,TRUE)*'1. Inputs'!$D$23) -> 0.2749867178 | AC47: =IFERROR(IF(AB47*(1-('3. Gap Analysis '!$J$109/100))+Z47*('3. Gap Analysis '!$J$109/100)=0,"",AB47*(1-('3. Gap Analysis '!$J$109/100))+Z47*('3. Gap Analysis '!$J$109/100)),"") -> 0.1478764635 | AD47: =IF(W47="Yes",(S47*'1. Inputs'!$D$72+AG47*'1. Inputs'!$D$70/'1. Inputs'!$D$71+'1. Inputs'!$D$74*'1. Inputs'!$D$73*'1. Inputs'!$D$47*AG47+'1. Inputs'!$D$75)/S47,"") -> 38.76020616 | AE47: 39 | AF47: =IFERROR(IF(AND(AE47>0,AE47<MIN(COUNTA($B$11:$B$2000)*'3. Gap Analysis '!$B$104,COUNTIF($W$11:$W$2010,"Yes"))),"Yes","No"),"") -> Yes | AG47: =IFERROR(IF(W47="Yes",ROUNDUP(S47/('1. Inputs'!$D$89*'1. Inputs'!$D$48),0),0),"") -> 1 | AH47: No | AI47: =IF(AND(AH47="Yes",S47>0),(G47*2*'1. Inputs'!$D$54)*'1. Inputs'!$D$56*52+'1. Inputs'!$D$52/'1. Inputs'!$D$53+'1. Inputs'!$D$55*T47*('1. Inputs'!$D$48/52)+'1. Inputs'!$D$57*'1. Inputs'!$D$54*52,"") ->  | AJ47: =IFERROR(IF(INDEX('6. Product assignment'!$Y$18:$Y$2017,MATCH(B47,'6. Product assignment'!$C$18:$C$2017,0))="POC",1,0),0) -> 1 | AK47: =IFERROR(INDEX('6. Product assignment'!$AB$18:$AB$2017,MATCH(B47,'6. Product assignment'!$C$18:$C$2017,0)),"") -> 0 | AL47: =IFERROR(INDEX('6. Product assignment'!$AC$18:$AC$2017,MATCH(B47,'6. Product assignment'!$C$18:$C$2017,0)),"") -> 1 | AM47: =IFERROR(INDEX('6. Product assignment'!$AD$18:$AD$2017,MATCH(B47,'6. Product assignment'!$C$18:$C$2017,0)),"") -> 0 | AN47: =IFERROR(INDEX('6. Product assignment'!$AE$18:$AE$2017,MATCH(B47,'6. Product assignment'!$C$18:$C$2017,0)),"") -> 0 | AO47: =IFERROR(INDEX('6. Product assignment'!$Z$18:$Z$2017,MATCH(B47,'6. Product assignment'!$C$18:$C$2017,0)),"") -> 1 | AP47: =IFERROR(INDEX('6. Product assignment'!$AA$18:$AA$2017,MATCH(B47,'6. Product assignment'!$C$18:$C$2017,0)),"") -> 0 | AR47: 37
B48: SITE 38 | C48: District B | D48: 627 | E48: 28 | F48: 48 | G48: 67.80428299 | H48: None | I48: Conventional | J48: Yes | K48: Yes | M48: =D48*'1. Inputs'!$D$36+D48*'1. Inputs'!$D$37 -> 689.7 | N48: =M48/'1. Inputs'!$D$48 -> 2.7588 | O48: =MAX(F48,E48)*'1. Inputs'!$D$38+MAX(E48,F48)*'1. Inputs'!$D$39 -> 99.36 | P48: =O48/'1. Inputs'!$D$48 -> 0.39744 | Q48: None | R48: Conventional | S48: =IF('1. Inputs'!$C$13="VL_only",M48,IF('1. Inputs'!$C$13="EID_only",O48,M48+O48)) -> 789.06 | T48: =S48/'1. Inputs'!$D$48 -> 3.15624 | U48: 1 | V48: 1 | W48: =IF(AND('1. Inputs'!$C$27="Yes",J48="No"),"No",IF(AND('1. Inputs'!$C$29="Yes",K48="No"),"No",IF(AND(S48>0,T48<='1. Inputs'!$D$46*'1. Inputs'!$D$89),"Yes","No"))) -> Yes | X48: 67.80428299 | Y48: 789.06 | Z48: =IFERROR(IF(W48="No","",(_xlfn.NORM.DIST(G48,$AW$15,$AV$16,TRUE)*'1. Inputs'!$D$24)),"") -> 0.02923080094 | AA48: =IF(AD48="","",(1-_xlfn.NORM.DIST(AD48,$AW$12,$AV$13,TRUE))*'1. Inputs'!$D$22) -> 0.2686937799 | AB48: =IF(W48="No","",_xlfn.NORM.DIST(Y48,$AW$18,$AV$19,TRUE)*'1. Inputs'!$D$23) -> 0.346420016 | AC48: =IFERROR(IF(AB48*(1-('3. Gap Analysis '!$J$109/100))+Z48*('3. Gap Analysis '!$J$109/100)=0,"",AB48*(1-('3. Gap Analysis '!$J$109/100))+Z48*('3. Gap Analysis '!$J$109/100)),"") -> 0.1243875655 | AD48: =IF(W48="Yes",(S48*'1. Inputs'!$D$72+AG48*'1. Inputs'!$D$70/'1. Inputs'!$D$71+'1. Inputs'!$D$74*'1. Inputs'!$D$73*'1. Inputs'!$D$47*AG48+'1. Inputs'!$D$75)/S48,"") -> 28.89055332 | AE48: 53 | AF48: =IFERROR(IF(AND(AE48>0,AE48<MIN(COUNTA($B$11:$B$2000)*'3. Gap Analysis '!$B$104,COUNTIF($W$11:$W$2010,"Yes"))),"Yes","No"),"") -> Yes | AG48: =IFERROR(IF(W48="Yes",ROUNDUP(S48/('1. Inputs'!$D$89*'1. Inputs'!$D$48),0),0),"") -> 1 | AH48: No | AI48: =IF(AND(AH48="Yes",S48>0),(G48*2*'1. Inputs'!$D$54)*'1. Inputs'!$D$56*52+'1. Inputs'!$D$52/'1. Inputs'!$D$53+'1. Inputs'!$D$55*T48*('1. Inputs'!$D$48/52)+'1. Inputs'!$D$57*'1. Inputs'!$D$54*52,"") ->  | AJ48: =IFERROR(IF(INDEX('6. Product assignment'!$Y$18:$Y$2017,MATCH(B48,'6. Product assignment'!$C$18:$C$2017,0))="POC",1,0),0) -> 1 | AK48: =IFERROR(INDEX('6. Product assignment'!$AB$18:$AB$2017,MATCH(B48,'6. Product assignment'!$C$18:$C$2017,0)),"") -> 0 | AL48: =IFERROR(INDEX('6. Product assignment'!$AC$18:$AC$2017,MATCH(B48,'6. Product assignment'!$C$18:$C$2017,0)),"") -> 1 | AM48: =IFERROR(INDEX('6. Product assignment'!$AD$18:$AD$2017,MATCH(B48,'6. Product assignment'!$C$18:$C$2017,0)),"") -> 0 | AN48: =IFERROR(INDEX('6. Product assignment'!$AE$18:$AE$2017,MATCH(B48,'6. Product assignment'!$C$18:$C$2017,0)),"") -> 0 | AO48: =IFERROR(INDEX('6. Product assignment'!$Z$18:$Z$2017,MATCH(B48,'6. Product assignment'!$C$18:$C$2017,0)),"") -> 1 | AP48: =IFERROR(INDEX('6. Product assignment'!$AA$18:$AA$2017,MATCH(B48,'6. Product assignment'!$C$18:$C$2017,0)),"") -> 0 | AR48: 38
B49: SITE 39 | C49: District B | D49: 298 | E49: 20 | F49: 22 | G49: 196.4151178 | H49: None | I49: Conventional | J49: No | K49: Yes | M49: =D49*'1. Inputs'!$D$36+D49*'1. Inputs'!$D$37 -> 327.8 | N49: =M49/'1. Inputs'!$D$48 -> 1.3112 | O49: =MAX(F49,E49)*'1. Inputs'!$D$38+MAX(E49,F49)*'1. Inputs'!$D$39 -> 45.54 | P49: =O49/'1. Inputs'!$D$48 -> 0.18216 | Q49: None | R49: Conventional | S49: =IF('1. Inputs'!$C$13="VL_only",M49,IF('1. Inputs'!$C$13="EID_only",O49,M49+O49)) -> 373.34 | T49: =S49/'1. Inputs'!$D$48 -> 1.49336 | U49: 0 | V49: 1 | W49: =IF(AND('1. Inputs'!$C$27="Yes",J49="No"),"No",IF(AND('1. Inputs'!$C$29="Yes",K49="No"),"No",IF(AND(S49>0,T49<='1. Inputs'!$D$46*'1. Inputs'!$D$89),"Yes","No"))) -> No | X49: 0 | Y49: 0 | Z49: =IFERROR(IF(W49="No","",(_xlfn.NORM.DIST(G49,$AW$15,$AV$16,TRUE)*'1. Inputs'!$D$24)),"") ->  | AA49: =IF(AD49="","",(1-_xlfn.NORM.DIST(AD49,$AW$12,$AV$13,TRUE))*'1. Inputs'!$D$22) ->  | AB49: =IF(W49="No","",_xlfn.NORM.DIST(Y49,$AW$18,$AV$19,TRUE)*'1. Inputs'!$D$23) ->  | AC49: =IFERROR(IF(AB49*(1-('3. Gap Analysis '!$J$109/100))+Z49*('3. Gap Analysis '!$J$109/100)=0,"",AB49*(1-('3. Gap Analysis '!$J$109/100))+Z49*('3. Gap Analysis '!$J$109/100)),"") ->  | AD49: =IF(W49="Yes",(S49*'1. Inputs'!$D$72+AG49*'1. Inputs'!$D$70/'1. Inputs'!$D$71+'1. Inputs'!$D$74*'1. Inputs'!$D$73*'1. Inputs'!$D$47*AG49+'1. Inputs'!$D$75)/S49,"") ->  | AF49: =IFERROR(IF(AND(AE49>0,AE49<MIN(COUNTA($B$11:$B$2000)*'3. Gap Analysis '!$B$104,COUNTIF($W$11:$W$2010,"Yes"))),"Yes","No"),"") -> No | AG49: =IFERROR(IF(W49="Yes",ROUNDUP(S49/('1. Inputs'!$D$89*'1. Inputs'!$D$48),0),0),"") -> 0 | AH49: Yes | AI49: =IF(AND(AH49="Yes",S49>0),(G49*2*'1. Inputs'!$D$54)*'1. Inputs'!$D$56*52+'1. Inputs'!$D$52/'1. Inputs'!$D$53+'1. Inputs'!$D$55*T49*('1. Inputs'!$D$48/52)+'1. Inputs'!$D$57*'1. Inputs'!$D$54*52,"") -> 114.2857143 | AJ49: =IFERROR(IF(INDEX('6. Product assignment'!$Y$18:$Y$2017,MATCH(B49,'6. Product assignment'!$C$18:$C$2017,0))="POC",1,0),0) -> 1 | AK49: =IFERROR(INDEX('6. Product assignment'!$AB$18:$AB$2017,MATCH(B49,'6. Product assignment'!$C$18:$C$2017,0)),"") -> 0 | AL49: =IFERROR(INDEX('6. Product assignment'!$AC$18:$AC$2017,MATCH(B49,'6. Product assignment'!$C$18:$C$2017,0)),"") -> 1 | AM49: =IFERROR(INDEX('6. Product assignment'!$AD$18:$AD$2017,MATCH(B49,'6. Product assignment'!$C$18:$C$2017,0)),"") -> 0 | AN49: =IFERROR(INDEX('6. Product assignment'!$AE$18:$AE$2017,MATCH(B49,'6. Product assignment'!$C$18:$C$2017,0)),"") -> 0 | AO49: =IFERROR(INDEX('6. Product assignment'!$Z$18:$Z$2017,MATCH(B49,'6. Product assignment'!$C$18:$C$2017,0)),"") -> 1 | AP49: =IFERROR(INDEX('6. Product assignment'!$AA$18:$AA$2017,MATCH(B49,'6. Product assignment'!$C$18:$C$2017,0)),"") -> 0 | AR49: 39
B50: SITE 40 | C50: District B | D50: 4641 | E50: 32 | F50: 40 | G50: 129.7198117 | H50: None | I50: Conventional | J50: Yes | K50: Yes | M50: =D50*'1. Inputs'!$D$36+D50*'1. Inputs'!$D$37 -> 5105.1 | N50: =M50/'1. Inputs'!$D$48 -> 20.4204 | O50: =MAX(F50,E50)*'1. Inputs'!$D$38+MAX(E50,F50)*'1. Inputs'!$D$39 -> 82.8 | P50: =O50/'1. Inputs'!$D$48 -> 0.3312 | Q50: None | R50: Conventional | S50: =IF('1. Inputs'!$C$13="VL_only",M50,IF('1. Inputs'!$C$13="EID_only",O50,M50+O50)) -> 5187.9 | T50: =S50/'1. Inputs'!$D$48 -> 20.7516 | U50: 1 | V50: 1 | W50: =IF(AND('1. Inputs'!$C$27="Yes",J50="No"),"No",IF(AND('1. Inputs'!$C$29="Yes",K50="No"),"No",IF(AND(S50>0,T50<='1. Inputs'!$D$46*'1. Inputs'!$D$89),"Yes","No"))) -> Yes | X50: 129.7198117 | Y50: 5187.9 | Z50: =IFERROR(IF(W50="No","",(_xlfn.NORM.DIST(G50,$AW$15,$AV$16,TRUE)*'1. Inputs'!$D$24)),"") -> 0.06566982369 | AA50: =IF(AD50="","",(1-_xlfn.NORM.DIST(AD50,$AW$12,$AV$13,TRUE))*'1. Inputs'!$D$22) -> 0.2815275287 | AB50: =IF(W50="No","",_xlfn.NORM.DIST(Y50,$AW$18,$AV$19,TRUE)*'1. Inputs'!$D$23) -> 0.35 | AC50: =IFERROR(IF(AB50*(1-('3. Gap Analysis '!$J$109/100))+Z50*('3. Gap Analysis '!$J$109/100)=0,"",AB50*(1-('3. Gap Analysis '!$J$109/100))+Z50*('3. Gap Analysis '!$J$109/100)),"") -> 0.1509688766 | AD50: =IF(W50="Yes",(S50*'1. Inputs'!$D$72+AG50*'1. Inputs'!$D$70/'1. Inputs'!$D$71+'1. Inputs'!$D$74*'1. Inputs'!$D$73*'1. Inputs'!$D$47*AG50+'1. Inputs'!$D$75)/S50,"") -> 24.79186183 | AE50: 36 | AF50: =IFERROR(IF(AND(AE50>0,AE50<MIN(COUNTA($B$11:$B$2000)*'3. Gap Analysis '!$B$104,COUNTIF($W$11:$W$2010,"Yes"))),"Yes","No"),"") -> Yes | AG50: =IFERROR(IF(W50="Yes",ROUNDUP(S50/('1. Inputs'!$D$89*'1. Inputs'!$D$48),0),0),"") -> 2 | AH50: No | AI50: =IF(AND(AH50="Yes",S50>0),(G50*2*'1. Inputs'!$D$54)*'1. Inputs'!$D$56*52+'1. Inputs'!$D$52/'1. Inputs'!$D$53+'1. Inputs'!$D$55*T50*('1. Inputs'!$D$48/52)+'1. Inputs'!$D$57*'1. Inputs'!$D$54*52,"") ->  | AJ50: =IFERROR(IF(INDEX('6. Product assignment'!$Y$18:$Y$2017,MATCH(B50,'6. Product assignment'!$C$18:$C$2017,0))="POC",1,0),0) -> 1 | AK50: =IFERROR(INDEX('6. Product assignment'!$AB$18:$AB$2017,MATCH(B50,'6. Product assignment'!$C$18:$C$2017,0)),"") -> 0 | AL50: =IFERROR(INDEX('6. Product assignment'!$AC$18:$AC$2017,MATCH(B50,'6. Product assignment'!$C$18:$C$2017,0)),"") -> 1 | AM50: =IFERROR(INDEX('6. Product assignment'!$AD$18:$AD$2017,MATCH(B50,'6. Product assignment'!$C$18:$C$2017,0)),"") -> 0 | AN50: =IFERROR(INDEX('6. Product assignment'!$AE$18:$AE$2017,MATCH(B50,'6. Product assignment'!$C$18:$C$2017,0)),"") -> 0 | AO50: =IFERROR(INDEX('6. Product assignment'!$Z$18:$Z$2017,MATCH(B50,'6. Product assignment'!$C$18:$C$2017,0)),"") -> 1 | AP50: =IFERROR(INDEX('6. Product assignment'!$AA$18:$AA$2017,MATCH(B50,'6. Product assignment'!$C$18:$C$2017,0)),"") -> 0 | AR50: 40
B51: SITE 41 | C51: District B | D51: 12064 | E51: 109 | F51: 110 | G51: 191.2724131 | H51: Omni | I51: Omni | J51: Yes | K51: Yes | M51: =D51*'1. Inputs'!$D$36+D51*'1. Inputs'!$D$37 -> 13270.4 | N51: =M51/'1. Inputs'!$D$48 -> 53.0816 | O51: =MAX(F51,E51)*'1. Inputs'!$D$38+MAX(E51,F51)*'1. Inputs'!$D$39 -> 227.7 | P51: =O51/'1. Inputs'!$D$48 -> 0.9108 | Q51: POC | R51: POC | S51: =IF('1. Inputs'!$C$13="VL_only",M51,IF('1. Inputs'!$C$13="EID_only",O51,M51+O51)) -> 13498.1 | T51: =S51/'1. Inputs'!$D$48 -> 53.9924 | U51: 1 | V51: 1 | W51: =IF(AND('1. Inputs'!$C$27="Yes",J51="No"),"No",IF(AND('1. Inputs'!$C$29="Yes",K51="No"),"No",IF(AND(S51>0,T51<='1. Inputs'!$D$46*'1. Inputs'!$D$89),"Yes","No"))) -> No | X51: 0 | Y51: 0 | Z51: =IFERROR(IF(W51="No","",(_xlfn.NORM.DIST(G51,$AW$15,$AV$16,TRUE)*'1. Inputs'!$D$24)),"") ->  | AA51: =IF(AD51="","",(1-_xlfn.NORM.DIST(AD51,$AW$12,$AV$13,TRUE))*'1. Inputs'!$D$22) ->  | AB51: =IF(W51="No","",_xlfn.NORM.DIST(Y51,$AW$18,$AV$19,TRUE)*'1. Inputs'!$D$23) ->  | AC51: =IFERROR(IF(AB51*(1-('3. Gap Analysis '!$J$109/100))+Z51*('3. Gap Analysis '!$J$109/100)=0,"",AB51*(1-('3. Gap Analysis '!$J$109/100))+Z51*('3. Gap Analysis '!$J$109/100)),"") ->  | AD51: =IF(W51="Yes",(S51*'1. Inputs'!$D$72+AG51*'1. Inputs'!$D$70/'1. Inputs'!$D$71+'1. Inputs'!$D$74*'1. Inputs'!$D$73*'1. Inputs'!$D$47*AG51+'1. Inputs'!$D$75)/S51,"") ->  | AF51: =IFERROR(IF(AND(AE51>0,AE51<MIN(COUNTA($B$11:$B$2000)*'3. Gap Analysis '!$B$104,COUNTIF($W$11:$W$2010,"Yes"))),"Yes","No"),"") -> No | AG51: =IFERROR(IF(W51="Yes",ROUNDUP(S51/('1. Inputs'!$D$89*'1. Inputs'!$D$48),0),0),"") -> 0 | AH51: Yes | AI51: =IF(AND(AH51="Yes",S51>0),(G51*2*'1. Inputs'!$D$54)*'1. Inputs'!$D$56*52+'1. Inputs'!$D$52/'1. Inputs'!$D$53+'1. Inputs'!$D$55*T51*('1. Inputs'!$D$48/52)+'1. Inputs'!$D$57*'1. Inputs'!$D$54*52,"") -> 114.2857143 | AJ51: =IFERROR(IF(INDEX('6. Product assignment'!$Y$18:$Y$2017,MATCH(B51,'6. Product assignment'!$C$18:$C$2017,0))="POC",1,0),0) -> 1 | AK51: =IFERROR(INDEX('6. Product assignment'!$AB$18:$AB$2017,MATCH(B51,'6. Product assignment'!$C$18:$C$2017,0)),"") -> 0 | AL51: =IFERROR(INDEX('6. Product assignment'!$AC$18:$AC$2017,MATCH(B51,'6. Product assignment'!$C$18:$C$2017,0)),"") -> 0 | AM51: =IFERROR(INDEX('6. Product assignment'!$AD$18:$AD$2017,MATCH(B51,'6. Product assignment'!$C$18:$C$2017,0)),"") -> 1 | AN51: =IFERROR(INDEX('6. Product assignment'!$AE$18:$AE$2017,MATCH(B51,'6. Product assignment'!$C$18:$C$2017,0)),"") -> 1 | AO51: =IFERROR(INDEX('6. Product assignment'!$Z$18:$Z$2017,MATCH(B51,'6. Product assignment'!$C$18:$C$2017,0)),"") -> 0 | AP51: =IFERROR(INDEX('6. Product assignment'!$AA$18:$AA$2017,MATCH(B51,'6. Product assignment'!$C$18:$C$2017,0)),"") -> 0 | AR51: 41
B52: SITE 42 | C52: District B | E52: 5 | F52: 20 | G52: 125 | H52: None | I52: None | J52: Yes | K52: Yes | M52: =D52*'1. Inputs'!$D$36+D52*'1. Inputs'!$D$37 -> 0 | N52: =M52/'1. Inputs'!$D$48 -> 0 | O52: =MAX(F52,E52)*'1. Inputs'!$D$38+MAX(E52,F52)*'1. Inputs'!$D$39 -> 41.4 | P52: =O52/'1. Inputs'!$D$48 -> 0.1656 | Q52: None | R52: None | S52: =IF('1. Inputs'!$C$13="VL_only",M52,IF('1. Inputs'!$C$13="EID_only",O52,M52+O52)) -> 41.4 | T52: =S52/'1. Inputs'!$D$48 -> 0.1656 | U52: 1 | V52: 1 | W52: =IF(AND('1. Inputs'!$C$27="Yes",J52="No"),"No",IF(AND('1. Inputs'!$C$29="Yes",K52="No"),"No",IF(AND(S52>0,T52<='1. Inputs'!$D$46*'1. Inputs'!$D$89),"Yes","No"))) -> Yes | X52: 125 | Y52: 41.4 | Z52: =IFERROR(IF(W52="No","",(_xlfn.NORM.DIST(G52,$AW$15,$AV$16,TRUE)*'1. Inputs'!$D$24)),"") -> 0.0625144045 | AA52: =IF(AD52="","",(1-_xlfn.NORM.DIST(AD52,$AW$12,$AV$13,TRUE))*'1. Inputs'!$D$22) -> 0.02797581519 | AB52: =IF(W52="No","",_xlfn.NORM.DIST(Y52,$AW$18,$AV$19,TRUE)*'1. Inputs'!$D$23) -> 0.1761743324 | AC52: =IFERROR(IF(AB52*(1-('3. Gap Analysis '!$J$109/100))+Z52*('3. Gap Analysis '!$J$109/100)=0,"",AB52*(1-('3. Gap Analysis '!$J$109/100))+Z52*('3. Gap Analysis '!$J$109/100)),"") -> 0.09661238288 | AD52: =IF(W52="Yes",(S52*'1. Inputs'!$D$72+AG52*'1. Inputs'!$D$70/'1. Inputs'!$D$71+'1. Inputs'!$D$74*'1. Inputs'!$D$73*'1. Inputs'!$D$47*AG52+'1. Inputs'!$D$75)/S52,"") -> 135.2705314 | AE52: 85 | AF52: =IFERROR(IF(AND(AE52>0,AE52<MIN(COUNTA($B$11:$B$2000)*'3. Gap Analysis '!$B$104,COUNTIF($W$11:$W$2010,"Yes"))),"Yes","No"),"") -> No | AG52: =IFERROR(IF(W52="Yes",ROUNDUP(S52/('1. Inputs'!$D$89*'1. Inputs'!$D$48),0),0),"") -> 1 | AH52: Yes | AI52: =IF(AND(AH52="Yes",S52>0),(G52*2*'1. Inputs'!$D$54)*'1. Inputs'!$D$56*52+'1. Inputs'!$D$52/'1. Inputs'!$D$53+'1. Inputs'!$D$55*T52*('1. Inputs'!$D$48/52)+'1. Inputs'!$D$57*'1. Inputs'!$D$54*52,"") -> 114.2857143 | AJ52: =IFERROR(IF(INDEX('6. Product assignment'!$Y$18:$Y$2017,MATCH(B52,'6. Product assignment'!$C$18:$C$2017,0))="POC",1,0),0) -> 0 | AK52: =IFERROR(INDEX('6. Product assignment'!$AB$18:$AB$2017,MATCH(B52,'6. Product assignment'!$C$18:$C$2017,0)),"") -> 0 | AL52: =IFERROR(INDEX('6. Product assignment'!$AC$18:$AC$2017,MATCH(B52,'6. Product assignment'!$C$18:$C$2017,0)),"") -> 0 | AM52: =IFERROR(INDEX('6. Product assignment'!$AD$18:$AD$2017,MATCH(B52,'6. Product assignment'!$C$18:$C$2017,0)),"") -> 0 | AN52: =IFERROR(INDEX('6. Product assignment'!$AE$18:$AE$2017,MATCH(B52,'6. Product assignment'!$C$18:$C$2017,0)),"") -> 0 | AO52: =IFERROR(INDEX('6. Product assignment'!$Z$18:$Z$2017,MATCH(B52,'6. Product assignment'!$C$18:$C$2017,0)),"") -> 0 | AP52: =IFERROR(INDEX('6. Product assignment'!$AA$18:$AA$2017,MATCH(B52,'6. Product assignment'!$C$18:$C$2017,0)),"") -> 0 | AR52: 42
B53: SITE 43 | C53: District B | D53: 504 | E53: 6 | F53: 26 | G53: 40 | H53: None | I53: Conventional | J53: Yes | K53: Yes | M53: =D53*'1. Inputs'!$D$36+D53*'1. Inputs'!$D$37 -> 554.4 | N53: =M53/'1. Inputs'!$D$48 -> 2.2176 | O53: =MAX(F53,E53)*'1. Inputs'!$D$38+MAX(E53,F53)*'1. Inputs'!$D$39 -> 53.82 | P53: =O53/'1. Inputs'!$D$48 -> 0.21528 | Q53: None | R53: Conventional | S53: =IF('1. Inputs'!$C$13="VL_only",M53,IF('1. Inputs'!$C$13="EID_only",O53,M53+O53)) -> 608.22 | T53: =S53/'1. Inputs'!$D$48 -> 2.43288 | U53: 1 | V53: 1 | W53: =IF(AND('1. Inputs'!$C$27="Yes",J53="No"),"No",IF(AND('1. Inputs'!$C$29="Yes",K53="No"),"No",IF(AND(S53>0,T53<='1. Inputs'!$D$46*'1. Inputs'!$D$89),"Yes","No"))) -> Yes | X53: 40 | Y53: 608.22 | Z53: =IFERROR(IF(W53="No","",(_xlfn.NORM.DIST(G53,$AW$15,$AV$16,TRUE)*'1. Inputs'!$D$24)),"") -> 0.01796918998 | AA53: =IF(AD53="","",(1-_xlfn.NORM.DIST(AD53,$AW$12,$AV$13,TRUE))*'1. Inputs'!$D$22) -> 0.2631827487 | AB53: =IF(W53="No","",_xlfn.NORM.DIST(Y53,$AW$18,$AV$19,TRUE)*'1. Inputs'!$D$23) -> 0.3362566926 | AC53: =IFERROR(IF(AB53*(1-('3. Gap Analysis '!$J$109/100))+Z53*('3. Gap Analysis '!$J$109/100)=0,"",AB53*(1-('3. Gap Analysis '!$J$109/100))+Z53*('3. Gap Analysis '!$J$109/100)),"") -> 0.1134554408 | AD53: =IF(W53="Yes",(S53*'1. Inputs'!$D$72+AG53*'1. Inputs'!$D$70/'1. Inputs'!$D$71+'1. Inputs'!$D$74*'1. Inputs'!$D$73*'1. Inputs'!$D$47*AG53+'1. Inputs'!$D$75)/S53,"") -> 30.64197165 | AE53: 64 | AF53: =IFERROR(IF(AND(AE53>0,AE53<MIN(COUNTA($B$11:$B$2000)*'3. Gap Analysis '!$B$104,COUNTIF($W$11:$W$2010,"Yes"))),"Yes","No"),"") -> Yes | AG53: =IFERROR(IF(W53="Yes",ROUNDUP(S53/('1. Inputs'!$D$89*'1. Inputs'!$D$48),0),0),"") -> 1 | AH53: No | AI53: =IF(AND(AH53="Yes",S53>0),(G53*2*'1. Inputs'!$D$54)*'1. Inputs'!$D$56*52+'1. Inputs'!$D$52/'1. Inputs'!$D$53+'1. Inputs'!$D$55*T53*('1. Inputs'!$D$48/52)+'1. Inputs'!$D$57*'1. Inputs'!$D$54*52,"") ->  | AJ53: =IFERROR(IF(INDEX('6. Product assignment'!$Y$18:$Y$2017,MATCH(B53,'6. Product assignment'!$C$18:$C$2017,0))="POC",1,0),0) -> 0 | AK53: =IFERROR(INDEX('6. Product assignment'!$AB$18:$AB$2017,MATCH(B53,'6. Product assignment'!$C$18:$C$2017,0)),"") -> 0 | AL53: =IFERROR(INDEX('6. Product assignment'!$AC$18:$AC$2017,MATCH(B53,'6. Product assignment'!$C$18:$C$2017,0)),"") -> 0 | AM53: =IFERROR(INDEX('6. Product assignment'!$AD$18:$AD$2017,MATCH(B53,'6. Product assignment'!$C$18:$C$2017,0)),"") -> 0 | AN53: =IFERROR(INDEX('6. Product assignment'!$AE$18:$AE$2017,MATCH(B53,'6. Product assignment'!$C$18:$C$2017,0)),"") -> 0 | AO53: =IFERROR(INDEX('6. Product assignment'!$Z$18:$Z$2017,MATCH(B53,'6. Product assignment'!$C$18:$C$2017,0)),"") -> 0 | AP53: =IFERROR(INDEX('6. Product assignment'!$AA$18:$AA$2017,MATCH(B53,'6. Product assignment'!$C$18:$C$2017,0)),"") -> 0 | AR53: 43
B54: SITE 44 | C54: District B | D54: 128 | E54: 165 | F54: 180 | G54: 85.10266851 | H54: None | I54: Conventional | J54: Yes | K54: Yes | M54: =D54*'1. Inputs'!$D$36+D54*'1. Inputs'!$D$37 -> 140.8 | N54: =M54/'1. Inputs'!$D$48 -> 0.5632 | O54: =MAX(F54,E54)*'1. Inputs'!$D$38+MAX(E54,F54)*'1. Inputs'!$D$39 -> 372.6 | P54: =O54/'1. Inputs'!$D$48 -> 1.4904 | Q54: None | R54: Conventional | S54: =IF('1. Inputs'!$C$13="VL_only",M54,IF('1. Inputs'!$C$13="EID_only",O54,M54+O54)) -> 513.4 | T54: =S54/'1. Inputs'!$D$48 -> 2.0536 | U54: 1 | V54: 1 | W54: =IF(AND('1. Inputs'!$C$27="Yes",J54="No"),"No",IF(AND('1. Inputs'!$C$29="Yes",K54="No"),"No",IF(AND(S54>0,T54<='1. Inputs'!$D$46*'1. Inputs'!$D$89),"Yes","No"))) -> Yes | X54: 85.10266851 | Y54: 513.4 | Z54: =IFERROR(IF(W54="No","",(_xlfn.NORM.DIST(G54,$AW$15,$AV$16,TRUE)*'1. Inputs'!$D$24)),"") -> 0.03802458582 | AA54: =IF(AD54="","",(1-_xlfn.NORM.DIST(AD54,$AW$12,$AV$13,TRUE))*'1. Inputs'!$D$22) -> 0.2587340728 | AB54: =IF(W54="No","",_xlfn.NORM.DIST(Y54,$AW$18,$AV$19,TRUE)*'1. Inputs'!$D$23) -> 0.3250542549 | AC54: =IFERROR(IF(AB54*(1-('3. Gap Analysis '!$J$109/100))+Z54*('3. Gap Analysis '!$J$109/100)=0,"",AB54*(1-('3. Gap Analysis '!$J$109/100))+Z54*('3. Gap Analysis '!$J$109/100)),"") -> 0.1241334865 | AD54: =IF(W54="Yes",(S54*'1. Inputs'!$D$72+AG54*'1. Inputs'!$D$70/'1. Inputs'!$D$71+'1. Inputs'!$D$74*'1. Inputs'!$D$73*'1. Inputs'!$D$47*AG54+'1. Inputs'!$D$75)/S54,"") -> 32.05336969 | AE54: 54 | AF54: =IFERROR(IF(AND(AE54>0,AE54<MIN(COUNTA($B$11:$B$2000)*'3. Gap Analysis '!$B$104,COUNTIF($W$11:$W$2010,"Yes"))),"Yes","No"),"") -> Yes | AG54: =IFERROR(IF(W54="Yes",ROUNDUP(S54/('1. Inputs'!$D$89*'1. Inputs'!$D$48),0),0),"") -> 1 | AH54: No | AI54: =IF(AND(AH54="Yes",S54>0),(G54*2*'1. Inputs'!$D$54)*'1. Inputs'!$D$56*52+'1. Inputs'!$D$52/'1. Inputs'!$D$53+'1. Inputs'!$D$55*T54*('1. Inputs'!$D$48/52)+'1. Inputs'!$D$57*'1. Inputs'!$D$54*52,"") ->  | AJ54: =IFERROR(IF(INDEX('6. Product assignment'!$Y$18:$Y$2017,MATCH(B54,'6. Product assignment'!$C$18:$C$2017,0))="POC",1,0),0) -> 1 | AK54: =IFERROR(INDEX('6. Product assignment'!$AB$18:$AB$2017,MATCH(B54,'6. Product assignment'!$C$18:$C$2017,0)),"") -> 0 | AL54: =IFERROR(INDEX('6. Product assignment'!$AC$18:$AC$2017,MATCH(B54,'6. Product assignment'!$C$18:$C$2017,0)),"") -> 1 | AM54: =IFERROR(INDEX('6. Product assignment'!$AD$18:$AD$2017,MATCH(B54,'6. Product assignment'!$C$18:$C$2017,0)),"") -> 0 | AN54: =IFERROR(INDEX('6. Product assignment'!$AE$18:$AE$2017,MATCH(B54,'6. Product assignment'!$C$18:$C$2017,0)),"") -> 0 | AO54: =IFERROR(INDEX('6. Product assignment'!$Z$18:$Z$2017,MATCH(B54,'6. Product assignment'!$C$18:$C$2017,0)),"") -> 1 | AP54: =IFERROR(INDEX('6. Product assignment'!$AA$18:$AA$2017,MATCH(B54,'6. Product assignment'!$C$18:$C$2017,0)),"") -> 0 | AR54: 44
B55: SITE 45 | C55: District B | D55: 21 | E55: 10 | F55: 20 | G55: 20 | H55: None | I55: Conventional | J55: Yes | K55: Yes | M55: =D55*'1. Inputs'!$D$36+D55*'1. Inputs'!$D$37 -> 23.1 | N55: =M55/'1. Inputs'!$D$48 -> 0.0924 | O55: =MAX(F55,E55)*'1. Inputs'!$D$38+MAX(E55,F55)*'1. Inputs'!$D$39 -> 41.4 | P55: =O55/'1. Inputs'!$D$48 -> 0.1656 | Q55: None | R55: Conventional | S55: =IF('1. Inputs'!$C$13="VL_only",M55,IF('1. Inputs'!$C$13="EID_only",O55,M55+O55)) -> 64.5 | T55: =S55/'1. Inputs'!$D$48 -> 0.258 | U55: 1 | V55: 1 | W55: =IF(AND('1. Inputs'!$C$27="Yes",J55="No"),"No",IF(AND('1. Inputs'!$C$29="Yes",K55="No"),"No",IF(AND(S55>0,T55<='1. Inputs'!$D$46*'1. Inputs'!$D$89),"Yes","No"))) -> Yes | X55: 20 | Y55: 64.5 | Z55: =IFERROR(IF(W55="No","",(_xlfn.NORM.DIST(G55,$AW$15,$AV$16,TRUE)*'1. Inputs'!$D$24)),"") -> 0.01204025303 | AA55: =IF(AD55="","",(1-_xlfn.NORM.DIST(AD55,$AW$12,$AV$13,TRUE))*'1. Inputs'!$D$22) -> 0.08510147904 | AB55: =IF(W55="No","",_xlfn.NORM.DIST(Y55,$AW$18,$AV$19,TRUE)*'1. Inputs'!$D$23) -> 0.1861256366 | AC55: =IFERROR(IF(AB55*(1-('3. Gap Analysis '!$J$109/100))+Z55*('3. Gap Analysis '!$J$109/100)=0,"",AB55*(1-('3. Gap Analysis '!$J$109/100))+Z55*('3. Gap Analysis '!$J$109/100)),"") -> 0.0642658681 | AD55: =IF(W55="Yes",(S55*'1. Inputs'!$D$72+AG55*'1. Inputs'!$D$70/'1. Inputs'!$D$71+'1. Inputs'!$D$74*'1. Inputs'!$D$73*'1. Inputs'!$D$47*AG55+'1. Inputs'!$D$75)/S55,"") -> 95.0620155 | AE55: 94 | AF55: =IFERROR(IF(AND(AE55>0,AE55<MIN(COUNTA($B$11:$B$2000)*'3. Gap Analysis '!$B$104,COUNTIF($W$11:$W$2010,"Yes"))),"Yes","No"),"") -> No | AG55: =IFERROR(IF(W55="Yes",ROUNDUP(S55/('1. Inputs'!$D$89*'1. Inputs'!$D$48),0),0),"") -> 1 | AH55: Yes | AI55: =IF(AND(AH55="Yes",S55>0),(G55*2*'1. Inputs'!$D$54)*'1. Inputs'!$D$56*52+'1. Inputs'!$D$52/'1. Inputs'!$D$53+'1. Inputs'!$D$55*T55*('1. Inputs'!$D$48/52)+'1. Inputs'!$D$57*'1. Inputs'!$D$54*52,"") -> 114.2857143 | AJ55: =IFERROR(IF(INDEX('6. Product assignment'!$Y$18:$Y$2017,MATCH(B55,'6. Product assignment'!$C$18:$C$2017,0))="POC",1,0),0) -> 0 | AK55: =IFERROR(INDEX('6. Product assignment'!$AB$18:$AB$2017,MATCH(B55,'6. Product assignment'!$C$18:$C$2017,0)),"") -> 0 | AL55: =IFERROR(INDEX('6. Product assignment'!$AC$18:$AC$2017,MATCH(B55,'6. Product assignment'!$C$18:$C$2017,0)),"") -> 0 | AM55: =IFERROR(INDEX('6. Product assignment'!$AD$18:$AD$2017,MATCH(B55,'6. Product assignment'!$C$18:$C$2017,0)),"") -> 0 | AN55: =IFERROR(INDEX('6. Product assignment'!$AE$18:$AE$2017,MATCH(B55,'6. Product assignment'!$C$18:$C$2017,0)),"") -> 0 | AO55: =IFERROR(INDEX('6. Product assignment'!$Z$18:$Z$2017,MATCH(B55,'6. Product assignment'!$C$18:$C$2017,0)),"") -> 0 | AP55: =IFERROR(INDEX('6. Product assignment'!$AA$18:$AA$2017,MATCH(B55,'6. Product assignment'!$C$18:$C$2017,0)),"") -> 0 | AR55: 45
B56: SITE 46 | C56: District B | D56: 685 | E56: 4 | F56: 14 | G56: 232.2424506 | H56: None | I56: Conventional | J56: Yes | K56: Yes | M56: =D56*'1. Inputs'!$D$36+D56*'1. Inputs'!$D$37 -> 753.5 | N56: =M56/'1. Inputs'!$D$48 -> 3.014 | O56: =MAX(F56,E56)*'1. Inputs'!$D$38+MAX(E56,F56)*'1. Inputs'!$D$39 -> 28.98 | P56: =O56/'1. Inputs'!$D$48 -> 0.11592 | Q56: None | R56: Conventional | S56: =IF('1. Inputs'!$C$13="VL_only",M56,IF('1. Inputs'!$C$13="EID_only",O56,M56+O56)) -> 782.48 | T56: =S56/'1. Inputs'!$D$48 -> 3.12992 | U56: 1 | V56: 1 | W56: =IF(AND('1. Inputs'!$C$27="Yes",J56="No"),"No",IF(AND('1. Inputs'!$C$29="Yes",K56="No"),"No",IF(AND(S56>0,T56<='1. Inputs'!$D$46*'1. Inputs'!$D$89),"Yes","No"))) -> Yes | X56: 232.2424506 | Y56: 782.48 | Z56: =IFERROR(IF(W56="No","",(_xlfn.NORM.DIST(G56,$AW$15,$AV$16,TRUE)*'1. Inputs'!$D$24)),"") -> 0.1265047576 | AA56: =IF(AD56="","",(1-_xlfn.NORM.DIST(AD56,$AW$12,$AV$13,TRUE))*'1. Inputs'!$D$22) -> 0.2685380907 | AB56: =IF(W56="No","",_xlfn.NORM.DIST(Y56,$AW$18,$AV$19,TRUE)*'1. Inputs'!$D$23) -> 0.3462220312 | AC56: =IFERROR(IF(AB56*(1-('3. Gap Analysis '!$J$109/100))+Z56*('3. Gap Analysis '!$J$109/100)=0,"",AB56*(1-('3. Gap Analysis '!$J$109/100))+Z56*('3. Gap Analysis '!$J$109/100)),"") -> 0.1924199397 | AD56: =IF(W56="Yes",(S56*'1. Inputs'!$D$72+AG56*'1. Inputs'!$D$70/'1. Inputs'!$D$71+'1. Inputs'!$D$74*'1. Inputs'!$D$73*'1. Inputs'!$D$47*AG56+'1. Inputs'!$D$75)/S56,"") -> 28.94008793 | AE56: 4 | AF56: =IFERROR(IF(AND(AE56>0,AE56<MIN(COUNTA($B$11:$B$2000)*'3. Gap Analysis '!$B$104,COUNTIF($W$11:$W$2010,"Yes"))),"Yes","No"),"") -> Yes | AG56: =IFERROR(IF(W56="Yes",ROUNDUP(S56/('1. Inputs'!$D$89*'1. Inputs'!$D$48),0),0),"") -> 1 | AH56: No | AI56: =IF(AND(AH56="Yes",S56>0),(G56*2*'1. Inputs'!$D$54)*'1. Inputs'!$D$56*52+'1. Inputs'!$D$52/'1. Inputs'!$D$53+'1. Inputs'!$D$55*T56*('1. Inputs'!$D$48/52)+'1. Inputs'!$D$57*'1. Inputs'!$D$54*52,"") ->  | AJ56: =IFERROR(IF(INDEX('6. Product assignment'!$Y$18:$Y$2017,MATCH(B56,'6. Product assignment'!$C$18:$C$2017,0))="POC",1,0),0) -> 1 | AK56: =IFERROR(INDEX('6. Product assignment'!$AB$18:$AB$2017,MATCH(B56,'6. Product assignment'!$C$18:$C$2017,0)),"") -> 0 | AL56: =IFERROR(INDEX('6. Product assignment'!$AC$18:$AC$2017,MATCH(B56,'6. Product assignment'!$C$18:$C$2017,0)),"") -> 1 | AM56: =IFERROR(INDEX('6. Product assignment'!$AD$18:$AD$2017,MATCH(B56,'6. Product assignment'!$C$18:$C$2017,0)),"") -> 0 | AN56: =IFERROR(INDEX('6. Product assignment'!$AE$18:$AE$2017,MATCH(B56,'6. Product assignment'!$C$18:$C$2017,0)),"") -> 0 | AO56: =IFERROR(INDEX('6. Product assignment'!$Z$18:$Z$2017,MATCH(B56,'6. Product assignment'!$C$18:$C$2017,0)),"") -> 1 | AP56: =IFERROR(INDEX('6. Product assignment'!$AA$18:$AA$2017,MATCH(B56,'6. Product assignment'!$C$18:$C$2017,0)),"") -> 0 | AR56: 46
B57: SITE 47 | C57: District B | D57: 341 | E57: 395 | G57: 9 | H57: None | I57: Conventional | J57: Yes | K57: Yes | M57: =D57*'1. Inputs'!$D$36+D57*'1. Inputs'!$D$37 -> 375.1 | N57: =M57/'1. Inputs'!$D$48 -> 1.5004 | O57: =MAX(F57,E57)*'1. Inputs'!$D$38+MAX(E57,F57)*'1. Inputs'!$D$39 -> 817.65 | P57: =O57/'1. Inputs'!$D$48 -> 3.2706 | Q57: None | R57: Conventional | S57: =IF('1. Inputs'!$C$13="VL_only",M57,IF('1. Inputs'!$C$13="EID_only",O57,M57+O57)) -> 1192.75 | T57: =S57/'1. Inputs'!$D$48 -> 4.771 | U57: 1 | V57: 1 | W57: =IF(AND('1. Inputs'!$C$27="Yes",J57="No"),"No",IF(AND('1. Inputs'!$C$29="Yes",K57="No"),"No",IF(AND(S57>0,T57<='1. Inputs'!$D$46*'1. Inputs'!$D$89),"Yes","No"))) -> Yes | X57: 9 | Y57: 1192.75 | Z57: =IFERROR(IF(W57="No","",(_xlfn.NORM.DIST(G57,$AW$15,$AV$16,TRUE)*'1. Inputs'!$D$24)),"") -> 0.009483622449 | AA57: =IF(AD57="","",(1-_xlfn.NORM.DIST(AD57,$AW$12,$AV$13,TRUE))*'1. Inputs'!$D$22) -> 0.2749494435 | AB57: =IF(W57="No","",_xlfn.NORM.DIST(Y57,$AW$18,$AV$19,TRUE)*'1. Inputs'!$D$23) -> 0.3499362805 | AC57: =IFERROR(IF(AB57*(1-('3. Gap Analysis '!$J$109/100))+Z57*('3. Gap Analysis '!$J$109/100)=0,"",AB57*(1-('3. Gap Analysis '!$J$109/100))+Z57*('3. Gap Analysis '!$J$109/100)),"") -> 0.1116194199 | AD57: =IF(W57="Yes",(S57*'1. Inputs'!$D$72+AG57*'1. Inputs'!$D$70/'1. Inputs'!$D$71+'1. Inputs'!$D$74*'1. Inputs'!$D$73*'1. Inputs'!$D$47*AG57+'1. Inputs'!$D$75)/S57,"") -> 26.89687696 | AE57: 67 | AF57: =IFERROR(IF(AND(AE57>0,AE57<MIN(COUNTA($B$11:$B$2000)*'3. Gap Analysis '!$B$104,COUNTIF($W$11:$W$2010,"Yes"))),"Yes","No"),"") -> Yes | AG57: =IFERROR(IF(W57="Yes",ROUNDUP(S57/('1. Inputs'!$D$89*'1. Inputs'!$D$48),0),0),"") -> 1 | AH57: No | AI57: =IF(AND(AH57="Yes",S57>0),(G57*2*'1. Inputs'!$D$54)*'1. Inputs'!$D$56*52+'1. Inputs'!$D$52/'1. Inputs'!$D$53+'1. Inputs'!$D$55*T57*('1. Inputs'!$D$48/52)+'1. Inputs'!$D$57*'1. Inputs'!$D$54*52,"") ->  | AJ57: =IFERROR(IF(INDEX('6. Product assignment'!$Y$18:$Y$2017,MATCH(B57,'6. Product assignment'!$C$18:$C$2017,0))="POC",1,0),0) -> 1 | AK57: =IFERROR(INDEX('6. Product assignment'!$AB$18:$AB$2017,MATCH(B57,'6. Product assignment'!$C$18:$C$2017,0)),"") -> 0 | AL57: =IFERROR(INDEX('6. Product assignment'!$AC$18:$AC$2017,MATCH(B57,'6. Product assignment'!$C$18:$C$2017,0)),"") -> 1 | AM57: =IFERROR(INDEX('6. Product assignment'!$AD$18:$AD$2017,MATCH(B57,'6. Product assignment'!$C$18:$C$2017,0)),"") -> 0 | AN57: =IFERROR(INDEX('6. Product assignment'!$AE$18:$AE$2017,MATCH(B57,'6. Product assignment'!$C$18:$C$2017,0)),"") -> 0 | AO57: =IFERROR(INDEX('6. Product assignment'!$Z$18:$Z$2017,MATCH(B57,'6. Product assignment'!$C$18:$C$2017,0)),"") -> 1 | AP57: =IFERROR(INDEX('6. Product assignment'!$AA$18:$AA$2017,MATCH(B57,'6. Product assignment'!$C$18:$C$2017,0)),"") -> 0 | AR57: 47
B58: SITE 48 | C58: District B | D58: 1924 | E58: 15 | F58: 28 | G58: 148.9609366 | H58: None | I58: Conventional | J58: Yes | K58: Yes | M58: =D58*'1. Inputs'!$D$36+D58*'1. Inputs'!$D$37 -> 2116.4 | N58: =M58/'1. Inputs'!$D$48 -> 8.4656 | O58: =MAX(F58,E58)*'1. Inputs'!$D$38+MAX(E58,F58)*'1. Inputs'!$D$39 -> 57.96 | P58: =O58/'1. Inputs'!$D$48 -> 0.23184 | Q58: None | R58: Conventional | S58: =IF('1. Inputs'!$C$13="VL_only",M58,IF('1. Inputs'!$C$13="EID_only",O58,M58+O58)) -> 2174.36 | T58: =S58/'1. Inputs'!$D$48 -> 8.69744 | U58: 1 | V58: 1 | W58: =IF(AND('1. Inputs'!$C$27="Yes",J58="No"),"No",IF(AND('1. Inputs'!$C$29="Yes",K58="No"),"No",IF(AND(S58>0,T58<='1. Inputs'!$D$46*'1. Inputs'!$D$89),"Yes","No"))) -> Yes | X58: 148.9609366 | Y58: 2174.36 | Z58: =IFERROR(IF(W58="No","",(_xlfn.NORM.DIST(G58,$AW$15,$AV$16,TRUE)*'1. Inputs'!$D$24)),"") -> 0.07871252464 | AA58: =IF(AD58="","",(1-_xlfn.NORM.DIST(AD58,$AW$12,$AV$13,TRUE))*'1. Inputs'!$D$22) -> 0.2804491764 | AB58: =IF(W58="No","",_xlfn.NORM.DIST(Y58,$AW$18,$AV$19,TRUE)*'1. Inputs'!$D$23) -> 0.35 | AC58: =IFERROR(IF(AB58*(1-('3. Gap Analysis '!$J$109/100))+Z58*('3. Gap Analysis '!$J$109/100)=0,"",AB58*(1-('3. Gap Analysis '!$J$109/100))+Z58*('3. Gap Analysis '!$J$109/100)),"") -> 0.1600987672 | AD58: =IF(W58="Yes",(S58*'1. Inputs'!$D$72+AG58*'1. Inputs'!$D$70/'1. Inputs'!$D$71+'1. Inputs'!$D$74*'1. Inputs'!$D$73*'1. Inputs'!$D$47*AG58+'1. Inputs'!$D$75)/S58,"") -> 25.1376405 | AE58: 20 | AF58: =IFERROR(IF(AND(AE58>0,AE58<MIN(COUNTA($B$11:$B$2000)*'3. Gap Analysis '!$B$104,COUNTIF($W$11:$W$2010,"Yes"))),"Yes","No"),"") -> Yes | AG58: =IFERROR(IF(W58="Yes",ROUNDUP(S58/('1. Inputs'!$D$89*'1. Inputs'!$D$48),0),0),"") -> 1 | AH58: No | AI58: =IF(AND(AH58="Yes",S58>0),(G58*2*'1. Inputs'!$D$54)*'1. Inputs'!$D$56*52+'1. Inputs'!$D$52/'1. Inputs'!$D$53+'1. Inputs'!$D$55*T58*('1. Inputs'!$D$48/52)+'1. Inputs'!$D$57*'1. Inputs'!$D$54*52,"") ->  | AJ58: =IFERROR(IF(INDEX('6. Product assignment'!$Y$18:$Y$2017,MATCH(B58,'6. Product assignment'!$C$18:$C$2017,0))="POC",1,0),0) -> 1 | AK58: =IFERROR(INDEX('6. Product assignment'!$AB$18:$AB$2017,MATCH(B58,'6. Product assignment'!$C$18:$C$2017,0)),"") -> 0 | AL58: =IFERROR(INDEX('6. Product assignment'!$AC$18:$AC$2017,MATCH(B58,'6. Product assignment'!$C$18:$C$2017,0)),"") -> 1 | AM58: =IFERROR(INDEX('6. Product assignment'!$AD$18:$AD$2017,MATCH(B58,'6. Product assignment'!$C$18:$C$2017,0)),"") -> 0 | AN58: =IFERROR(INDEX('6. Product assignment'!$AE$18:$AE$2017,MATCH(B58,'6. Product assignment'!$C$18:$C$2017,0)),"") -> 0 | AO58: =IFERROR(INDEX('6. Product assignment'!$Z$18:$Z$2017,MATCH(B58,'6. Product assignment'!$C$18:$C$2017,0)),"") -> 1 | AP58: =IFERROR(INDEX('6. Product assignment'!$AA$18:$AA$2017,MATCH(B58,'6. Product assignment'!$C$18:$C$2017,0)),"") -> 0 | AR58: 48
B59: SITE 49 | C59: District B | D59: 214 | E59: 256 | F59: 258 | G59: 213 | H59: None | I59: Conventional | J59: Yes | K59: Yes | M59: =D59*'1. Inputs'!$D$36+D59*'1. Inputs'!$D$37 -> 235.4 | N59: =M59/'1. Inputs'!$D$48 -> 0.9416 | O59: =MAX(F59,E59)*'1. Inputs'!$D$38+MAX(E59,F59)*'1. Inputs'!$D$39 -> 534.06 | P59: =O59/'1. Inputs'!$D$48 -> 2.13624 | Q59: None | R59: Conventional | S59: =IF('1. Inputs'!$C$13="VL_only",M59,IF('1. Inputs'!$C$13="EID_only",O59,M59+O59)) -> 769.46 | T59: =S59/'1. Inputs'!$D$48 -> 3.07784 | U59: 1 | V59: 1 | W59: =IF(AND('1. Inputs'!$C$27="Yes",J59="No"),"No",IF(AND('1. Inputs'!$C$29="Yes",K59="No"),"No",IF(AND(S59>0,T59<='1. Inputs'!$D$46*'1. Inputs'!$D$89),"Yes","No"))) -> Yes | X59: 213 | Y59: 769.46 | Z59: =IFERROR(IF(W59="No","",(_xlfn.NORM.DIST(G59,$AW$15,$AV$16,TRUE)*'1. Inputs'!$D$24)),"") -> 0.1177739312 | AA59: =IF(AD59="","",(1-_xlfn.NORM.DIST(AD59,$AW$12,$AV$13,TRUE))*'1. Inputs'!$D$22) -> 0.268222143 | AB59: =IF(W59="No","",_xlfn.NORM.DIST(Y59,$AW$18,$AV$19,TRUE)*'1. Inputs'!$D$23) -> 0.3458020339 | AC59: =IFERROR(IF(AB59*(1-('3. Gap Analysis '!$J$109/100))+Z59*('3. Gap Analysis '!$J$109/100)=0,"",AB59*(1-('3. Gap Analysis '!$J$109/100))+Z59*('3. Gap Analysis '!$J$109/100)),"") -> 0.186182362 | AD59: =IF(W59="Yes",(S59*'1. Inputs'!$D$72+AG59*'1. Inputs'!$D$70/'1. Inputs'!$D$71+'1. Inputs'!$D$74*'1. Inputs'!$D$73*'1. Inputs'!$D$47*AG59+'1. Inputs'!$D$75)/S59,"") -> 29.0405999 | AE59: 7 | AF59: =IFERROR(IF(AND(AE59>0,AE59<MIN(COUNTA($B$11:$B$2000)*'3. Gap Analysis '!$B$104,COUNTIF($W$11:$W$2010,"Yes"))),"Yes","No"),"") -> Yes | AG59: =IFERROR(IF(W59="Yes",ROUNDUP(S59/('1. Inputs'!$D$89*'1. Inputs'!$D$48),0),0),"") -> 1 | AH59: No | AI59: =IF(AND(AH59="Yes",S59>0),(G59*2*'1. Inputs'!$D$54)*'1. Inputs'!$D$56*52+'1. Inputs'!$D$52/'1. Inputs'!$D$53+'1. Inputs'!$D$55*T59*('1. Inputs'!$D$48/52)+'1. Inputs'!$D$57*'1. Inputs'!$D$54*52,"") ->  | AJ59: =IFERROR(IF(INDEX('6. Product assignment'!$Y$18:$Y$2017,MATCH(B59,'6. Product assignment'!$C$18:$C$2017,0))="POC",1,0),0) -> 1 | AK59: =IFERROR(INDEX('6. Product assignment'!$AB$18:$AB$2017,MATCH(B59,'6. Product assignment'!$C$18:$C$2017,0)),"") -> 0 | AL59: =IFERROR(INDEX('6. Product assignment'!$AC$18:$AC$2017,MATCH(B59,'6. Product assignment'!$C$18:$C$2017,0)),"") -> 1 | AM59: =IFERROR(INDEX('6. Product assignment'!$AD$18:$AD$2017,MATCH(B59,'6. Product assignment'!$C$18:$C$2017,0)),"") -> 0 | AN59: =IFERROR(INDEX('6. Product assignment'!$AE$18:$AE$2017,MATCH(B59,'6. Product assignment'!$C$18:$C$2017,0)),"") -> 0 | AO59: =IFERROR(INDEX('6. Product assignment'!$Z$18:$Z$2017,MATCH(B59,'6. Product assignment'!$C$18:$C$2017,0)),"") -> 1 | AP59: =IFERROR(INDEX('6. Product assignment'!$AA$18:$AA$2017,MATCH(B59,'6. Product assignment'!$C$18:$C$2017,0)),"") -> 0 | AR59: 49
B60: SITE 50 | C60: District B | D60: 446 | E60: 17 | F60: 30 | G60: 161.2078004 | H60: None | I60: Conventional | J60: Yes | K60: Yes | M60: =D60*'1. Inputs'!$D$36+D60*'1. Inputs'!$D$37 -> 490.6 | N60: =M60/'1. Inputs'!$D$48 -> 1.9624 | O60: =MAX(F60,E60)*'1. Inputs'!$D$38+MAX(E60,F60)*'1. Inputs'!$D$39 -> 62.1 | P60: =O60/'1. Inputs'!$D$48 -> 0.2484 | Q60: None | R60: Conventional | S60: =IF('1. Inputs'!$C$13="VL_only",M60,IF('1. Inputs'!$C$13="EID_only",O60,M60+O60)) -> 552.7 | T60: =S60/'1. Inputs'!$D$48 -> 2.2108 | U60: 1 | V60: 1 | W60: =IF(AND('1. Inputs'!$C$27="Yes",J60="No"),"No",IF(AND('1. Inputs'!$C$29="Yes",K60="No"),"No",IF(AND(S60>0,T60<='1. Inputs'!$D$46*'1. Inputs'!$D$89),"Yes","No"))) -> Yes | X60: 161.2078004 | Y60: 552.7 | Z60: =IFERROR(IF(W60="No","",(_xlfn.NORM.DIST(G60,$AW$15,$AV$16,TRUE)*'1. Inputs'!$D$24)),"") -> 0.08696151113 | AA60: =IF(AD60="","",(1-_xlfn.NORM.DIST(AD60,$AW$12,$AV$13,TRUE))*'1. Inputs'!$D$22) -> 0.2607638049 | AB60: =IF(W60="No","",_xlfn.NORM.DIST(Y60,$AW$18,$AV$19,TRUE)*'1. Inputs'!$D$23) -> 0.3303405997 | AC60: =IFERROR(IF(AB60*(1-('3. Gap Analysis '!$J$109/100))+Z60*('3. Gap Analysis '!$J$109/100)=0,"",AB60*(1-('3. Gap Analysis '!$J$109/100))+Z60*('3. Gap Analysis '!$J$109/100)),"") -> 0.1599752377 | AD60: =IF(W60="Yes",(S60*'1. Inputs'!$D$72+AG60*'1. Inputs'!$D$70/'1. Inputs'!$D$71+'1. Inputs'!$D$74*'1. Inputs'!$D$73*'1. Inputs'!$D$47*AG60+'1. Inputs'!$D$75)/S60,"") -> 31.40962547 | AE60: 21 | AF60: =IFERROR(IF(AND(AE60>0,AE60<MIN(COUNTA($B$11:$B$2000)*'3. Gap Analysis '!$B$104,COUNTIF($W$11:$W$2010,"Yes"))),"Yes","No"),"") -> Yes | AG60: =IFERROR(IF(W60="Yes",ROUNDUP(S60/('1. Inputs'!$D$89*'1. Inputs'!$D$48),0),0),"") -> 1 | AH60: No | AI60: =IF(AND(AH60="Yes",S60>0),(G60*2*'1. Inputs'!$D$54)*'1. Inputs'!$D$56*52+'1. Inputs'!$D$52/'1. Inputs'!$D$53+'1. Inputs'!$D$55*T60*('1. Inputs'!$D$48/52)+'1. Inputs'!$D$57*'1. Inputs'!$D$54*52,"") ->  | AJ60: =IFERROR(IF(INDEX('6. Product assignment'!$Y$18:$Y$2017,MATCH(B60,'6. Product assignment'!$C$18:$C$2017,0))="POC",1,0),0) -> 1 | AK60: =IFERROR(INDEX('6. Product assignment'!$AB$18:$AB$2017,MATCH(B60,'6. Product assignment'!$C$18:$C$2017,0)),"") -> 0 | AL60: =IFERROR(INDEX('6. Product assignment'!$AC$18:$AC$2017,MATCH(B60,'6. Product assignment'!$C$18:$C$2017,0)),"") -> 1 | AM60: =IFERROR(INDEX('6. Product assignment'!$AD$18:$AD$2017,MATCH(B60,'6. Product assignment'!$C$18:$C$2017,0)),"") -> 0 | AN60: =IFERROR(INDEX('6. Product assignment'!$AE$18:$AE$2017,MATCH(B60,'6. Product assignment'!$C$18:$C$2017,0)),"") -> 0 | AO60: =IFERROR(INDEX('6. Product assignment'!$Z$18:$Z$2017,MATCH(B60,'6. Product assignment'!$C$18:$C$2017,0)),"") -> 1 | AP60: =IFERROR(INDEX('6. Product assignment'!$AA$18:$AA$2017,MATCH(B60,'6. Product assignment'!$C$18:$C$2017,0)),"") -> 0 | AR60: 50
B61: SITE 51 | C61: District B | D61: 113 | E61: 14 | F61: 18 | G61: 163.7782625 | H61: None | I61: Conventional | J61: Yes | K61: Yes | M61: =D61*'1. Inputs'!$D$36+D61*'1. Inputs'!$D$37 -> 124.3 | N61: =M61/'1. Inputs'!$D$48 -> 0.4972 | O61: =MAX(F61,E61)*'1. Inputs'!$D$38+MAX(E61,F61)*'1. Inputs'!$D$39 -> 37.26 | P61: =O61/'1. Inputs'!$D$48 -> 0.14904 | Q61: None | R61: Conventional | S61: =IF('1. Inputs'!$C$13="VL_only",M61,IF('1. Inputs'!$C$13="EID_only",O61,M61+O61)) -> 161.56 | T61: =S61/'1. Inputs'!$D$48 -> 0.64624 | U61: 1 | V61: 1 | W61: =IF(AND('1. Inputs'!$C$27="Yes",J61="No"),"No",IF(AND('1. Inputs'!$C$29="Yes",K61="No"),"No",IF(AND(S61>0,T61<='1. Inputs'!$D$46*'1. Inputs'!$D$89),"Yes","No"))) -> Yes | X61: 163.7782625 | Y61: 161.56 | Z61: =IFERROR(IF(W61="No","",(_xlfn.NORM.DIST(G61,$AW$15,$AV$16,TRUE)*'1. Inputs'!$D$24)),"") -> 0.08866902458 | AA61: =IF(AD61="","",(1-_xlfn.NORM.DIST(AD61,$AW$12,$AV$13,TRUE))*'1. Inputs'!$D$22) -> 0.1971317645 | AB61: =IF(W61="No","",_xlfn.NORM.DIST(Y61,$AW$18,$AV$19,TRUE)*'1. Inputs'!$D$23) -> 0.2267540416 | AC61: =IFERROR(IF(AB61*(1-('3. Gap Analysis '!$J$109/100))+Z61*('3. Gap Analysis '!$J$109/100)=0,"",AB61*(1-('3. Gap Analysis '!$J$109/100))+Z61*('3. Gap Analysis '!$J$109/100)),"") -> 0.1300945297 | AD61: =IF(W61="Yes",(S61*'1. Inputs'!$D$72+AG61*'1. Inputs'!$D$70/'1. Inputs'!$D$71+'1. Inputs'!$D$74*'1. Inputs'!$D$73*'1. Inputs'!$D$47*AG61+'1. Inputs'!$D$75)/S61,"") -> 51.7694974 | AE61: 49 | AF61: =IFERROR(IF(AND(AE61>0,AE61<MIN(COUNTA($B$11:$B$2000)*'3. Gap Analysis '!$B$104,COUNTIF($W$11:$W$2010,"Yes"))),"Yes","No"),"") -> Yes | AG61: =IFERROR(IF(W61="Yes",ROUNDUP(S61/('1. Inputs'!$D$89*'1. Inputs'!$D$48),0),0),"") -> 1 | AH61: No | AI61: =IF(AND(AH61="Yes",S61>0),(G61*2*'1. Inputs'!$D$54)*'1. Inputs'!$D$56*52+'1. Inputs'!$D$52/'1. Inputs'!$D$53+'1. Inputs'!$D$55*T61*('1. Inputs'!$D$48/52)+'1. Inputs'!$D$57*'1. Inputs'!$D$54*52,"") ->  | AJ61: =IFERROR(IF(INDEX('6. Product assignment'!$Y$18:$Y$2017,MATCH(B61,'6. Product assignment'!$C$18:$C$2017,0))="POC",1,0),0) -> 1 | AK61: =IFERROR(INDEX('6. Product assignment'!$AB$18:$AB$2017,MATCH(B61,'6. Product assignment'!$C$18:$C$2017,0)),"") -> 0 | AL61: =IFERROR(INDEX('6. Product assignment'!$AC$18:$AC$2017,MATCH(B61,'6. Product assignment'!$C$18:$C$2017,0)),"") -> 1 | AM61: =IFERROR(INDEX('6. Product assignment'!$AD$18:$AD$2017,MATCH(B61,'6. Product assignment'!$C$18:$C$2017,0)),"") -> 0 | AN61: =IFERROR(INDEX('6. Product assignment'!$AE$18:$AE$2017,MATCH(B61,'6. Product assignment'!$C$18:$C$2017,0)),"") -> 0 | AO61: =IFERROR(INDEX('6. Product assignment'!$Z$18:$Z$2017,MATCH(B61,'6. Product assignment'!$C$18:$C$2017,0)),"") -> 1 | AP61: =IFERROR(INDEX('6. Product assignment'!$AA$18:$AA$2017,MATCH(B61,'6. Product assignment'!$C$18:$C$2017,0)),"") -> 0 | AR61: 51
B62: SITE 52 | C62: District B | D62: 2 | E62: 77 | F62: 82 | G62: 253.9435888 | H62: None | I62: Conventional | J62: Yes | K62: Yes | M62: =D62*'1. Inputs'!$D$36+D62*'1. Inputs'!$D$37 -> 2.2 | N62: =M62/'1. Inputs'!$D$48 -> 0.0088 | O62: =MAX(F62,E62)*'1. Inputs'!$D$38+MAX(E62,F62)*'1. Inputs'!$D$39 -> 169.74 | P62: =O62/'1. Inputs'!$D$48 -> 0.67896 | Q62: None | R62: Conventional | S62: =IF('1. Inputs'!$C$13="VL_only",M62,IF('1. Inputs'!$C$13="EID_only",O62,M62+O62)) -> 171.94 | T62: =S62/'1. Inputs'!$D$48 -> 0.68776 | U62: 1 | V62: 1 | W62: =IF(AND('1. Inputs'!$C$27="Yes",J62="No"),"No",IF(AND('1. Inputs'!$C$29="Yes",K62="No"),"No",IF(AND(S62>0,T62<='1. Inputs'!$D$46*'1. Inputs'!$D$89),"Yes","No"))) -> Yes | X62: 253.9435888 | Y62: 171.94 | Z62: =IFERROR(IF(W62="No","",(_xlfn.NORM.DIST(G62,$AW$15,$AV$16,TRUE)*'1. Inputs'!$D$24)),"") -> 0.1342882398 | AA62: =IF(AD62="","",(1-_xlfn.NORM.DIST(AD62,$AW$12,$AV$13,TRUE))*'1. Inputs'!$D$22) -> 0.2024396771 | AB62: =IF(W62="No","",_xlfn.NORM.DIST(Y62,$AW$18,$AV$19,TRUE)*'1. Inputs'!$D$23) -> 0.2308938437 | AC62: =IFERROR(IF(AB62*(1-('3. Gap Analysis '!$J$109/100))+Z62*('3. Gap Analysis '!$J$109/100)=0,"",AB62*(1-('3. Gap Analysis '!$J$109/100))+Z62*('3. Gap Analysis '!$J$109/100)),"") -> 0.163269921 | AD62: =IF(W62="Yes",(S62*'1. Inputs'!$D$72+AG62*'1. Inputs'!$D$70/'1. Inputs'!$D$71+'1. Inputs'!$D$74*'1. Inputs'!$D$73*'1. Inputs'!$D$47*AG62+'1. Inputs'!$D$75)/S62,"") -> 50.03268582 | AE62: 17 | AF62: =IFERROR(IF(AND(AE62>0,AE62<MIN(COUNTA($B$11:$B$2000)*'3. Gap Analysis '!$B$104,COUNTIF($W$11:$W$2010,"Yes"))),"Yes","No"),"") -> Yes | AG62: =IFERROR(IF(W62="Yes",ROUNDUP(S62/('1. Inputs'!$D$89*'1. Inputs'!$D$48),0),0),"") -> 1 | AH62: No | AI62: =IF(AND(AH62="Yes",S62>0),(G62*2*'1. Inputs'!$D$54)*'1. Inputs'!$D$56*52+'1. Inputs'!$D$52/'1. Inputs'!$D$53+'1. Inputs'!$D$55*T62*('1. Inputs'!$D$48/52)+'1. Inputs'!$D$57*'1. Inputs'!$D$54*52,"") ->  | AJ62: =IFERROR(IF(INDEX('6. Product assignment'!$Y$18:$Y$2017,MATCH(B62,'6. Product assignment'!$C$18:$C$2017,0))="POC",1,0),0) -> 1 | AK62: =IFERROR(INDEX('6. Product assignment'!$AB$18:$AB$2017,MATCH(B62,'6. Product assignment'!$C$18:$C$2017,0)),"") -> 0 | AL62: =IFERROR(INDEX('6. Product assignment'!$AC$18:$AC$2017,MATCH(B62,'6. Product assignment'!$C$18:$C$2017,0)),"") -> 1 | AM62: =IFERROR(INDEX('6. Product assignment'!$AD$18:$AD$2017,MATCH(B62,'6. Product assignment'!$C$18:$C$2017,0)),"") -> 0 | AN62: =IFERROR(INDEX('6. Product assignment'!$AE$18:$AE$2017,MATCH(B62,'6. Product assignment'!$C$18:$C$2017,0)),"") -> 0 | AO62: =IFERROR(INDEX('6. Product assignment'!$Z$18:$Z$2017,MATCH(B62,'6. Product assignment'!$C$18:$C$2017,0)),"") -> 1 | AP62: =IFERROR(INDEX('6. Product assignment'!$AA$18:$AA$2017,MATCH(B62,'6. Product assignment'!$C$18:$C$2017,0)),"") -> 0 | AR62: 52
B63: SITE 53 | C63: District B | D63: 0 | E63: 1 | F63: 12 | G63: 275 | H63: None | I63: Conventional | J63: Yes | K63: Yes | M63: =D63*'1. Inputs'!$D$36+D63*'1. Inputs'!$D$37 -> 0 | N63: =M63/'1. Inputs'!$D$48 -> 0 | O63: =MAX(F63,E63)*'1. Inputs'!$D$38+MAX(E63,F63)*'1. Inputs'!$D$39 -> 24.84 | P63: =O63/'1. Inputs'!$D$48 -> 0.09936 | Q63: None | R63: Conventional | S63: =IF('1. Inputs'!$C$13="VL_only",M63,IF('1. Inputs'!$C$13="EID_only",O63,M63+O63)) -> 24.84 | T63: =S63/'1. Inputs'!$D$48 -> 0.09936 | U63: 1 | V63: 1 | W63: =IF(AND('1. Inputs'!$C$27="Yes",J63="No"),"No",IF(AND('1. Inputs'!$C$29="Yes",K63="No"),"No",IF(AND(S63>0,T63<='1. Inputs'!$D$46*'1. Inputs'!$D$89),"Yes","No"))) -> Yes | X63: 275 | Y63: 24.84 | Z63: =IFERROR(IF(W63="No","",(_xlfn.NORM.DIST(G63,$AW$15,$AV$16,TRUE)*'1. Inputs'!$D$24)),"") -> 0.1398662766 | AA63: =IF(AD63="","",(1-_xlfn.NORM.DIST(AD63,$AW$12,$AV$13,TRUE))*'1. Inputs'!$D$22) -> 0.001383389797 | AB63: =IF(W63="No","",_xlfn.NORM.DIST(Y63,$AW$18,$AV$19,TRUE)*'1. Inputs'!$D$23) -> 0.1690337926 | AC63: =IFERROR(IF(AB63*(1-('3. Gap Analysis '!$J$109/100))+Z63*('3. Gap Analysis '!$J$109/100)=0,"",AB63*(1-('3. Gap Analysis '!$J$109/100))+Z63*('3. Gap Analysis '!$J$109/100)),"") -> 0.1486165314 | AD63: =IF(W63="Yes",(S63*'1. Inputs'!$D$72+AG63*'1. Inputs'!$D$70/'1. Inputs'!$D$71+'1. Inputs'!$D$74*'1. Inputs'!$D$73*'1. Inputs'!$D$47*AG63+'1. Inputs'!$D$75)/S63,"") -> 210.1175523 | AE63: 38 | AF63: =IFERROR(IF(AND(AE63>0,AE63<MIN(COUNTA($B$11:$B$2000)*'3. Gap Analysis '!$B$104,COUNTIF($W$11:$W$2010,"Yes"))),"Yes","No"),"") -> Yes | AG63: =IFERROR(IF(W63="Yes",ROUNDUP(S63/('1. Inputs'!$D$89*'1. Inputs'!$D$48),0),0),"") -> 1 | AH63: No | AI63: =IF(AND(AH63="Yes",S63>0),(G63*2*'1. Inputs'!$D$54)*'1. Inputs'!$D$56*52+'1. Inputs'!$D$52/'1. Inputs'!$D$53+'1. Inputs'!$D$55*T63*('1. Inputs'!$D$48/52)+'1. Inputs'!$D$57*'1. Inputs'!$D$54*52,"") ->  | AJ63: =IFERROR(IF(INDEX('6. Product assignment'!$Y$18:$Y$2017,MATCH(B63,'6. Product assignment'!$C$18:$C$2017,0))="POC",1,0),0) -> 0 | AK63: =IFERROR(INDEX('6. Product assignment'!$AB$18:$AB$2017,MATCH(B63,'6. Product assignment'!$C$18:$C$2017,0)),"") -> 0 | AL63: =IFERROR(INDEX('6. Product assignment'!$AC$18:$AC$2017,MATCH(B63,'6. Product assignment'!$C$18:$C$2017,0)),"") -> 0 | AM63: =IFERROR(INDEX('6. Product assignment'!$AD$18:$AD$2017,MATCH(B63,'6. Product assignment'!$C$18:$C$2017,0)),"") -> 0 | AN63: =IFERROR(INDEX('6. Product assignment'!$AE$18:$AE$2017,MATCH(B63,'6. Product assignment'!$C$18:$C$2017,0)),"") -> 0 | AO63: =IFERROR(INDEX('6. Product assignment'!$Z$18:$Z$2017,MATCH(B63,'6. Product assignment'!$C$18:$C$2017,0)),"") -> 0 | AP63: =IFERROR(INDEX('6. Product assignment'!$AA$18:$AA$2017,MATCH(B63,'6. Product assignment'!$C$18:$C$2017,0)),"") -> 0 | AR63: 53 | BA63: =(IF(INDEX('2. Site profiles'!$M$11:$M$2010,MATCH('5. Site selection'!C101,'2. Site profiles'!$AR$11:$AR$2010,0))=0,"",INDEX('2. Site profiles'!$M$11:$M$2010,MATCH('5. Site selection'!C101,'2. Site profiles'!$AR$11:$AR$2010,0)))) -> 
B64: SITE 54 | C64: District B | D64: 64 | E64: 3 | F64: 10 | G64: 430 | H64: None | I64: Conventional | J64: Yes | K64: Yes | M64: =D64*'1. Inputs'!$D$36+D64*'1. Inputs'!$D$37 -> 70.4 | N64: =M64/'1. Inputs'!$D$48 -> 0.2816 | O64: =MAX(F64,E64)*'1. Inputs'!$D$38+MAX(E64,F64)*'1. Inputs'!$D$39 -> 20.7 | P64: =O64/'1. Inputs'!$D$48 -> 0.0828 | Q64: None | R64: Conventional | S64: =IF('1. Inputs'!$C$13="VL_only",M64,IF('1. Inputs'!$C$13="EID_only",O64,M64+O64)) -> 91.1 | T64: =S64/'1. Inputs'!$D$48 -> 0.3644 | U64: 1 | V64: 1 | W64: =IF(AND('1. Inputs'!$C$27="Yes",J64="No"),"No",IF(AND('1. Inputs'!$C$29="Yes",K64="No"),"No",IF(AND(S64>0,T64<='1. Inputs'!$D$46*'1. Inputs'!$D$89),"Yes","No"))) -> Yes | X64: 430 | Y64: 91.1 | Z64: =IFERROR(IF(W64="No","",(_xlfn.NORM.DIST(G64,$AW$15,$AV$16,TRUE)*'1. Inputs'!$D$24)),"") -> 0.1499150903 | AA64: =IF(AD64="","",(1-_xlfn.NORM.DIST(AD64,$AW$12,$AV$13,TRUE))*'1. Inputs'!$D$22) -> 0.1337535774 | AB64: =IF(W64="No","",_xlfn.NORM.DIST(Y64,$AW$18,$AV$19,TRUE)*'1. Inputs'!$D$23) -> 0.1975116611 | AC64: =IFERROR(IF(AB64*(1-('3. Gap Analysis '!$J$109/100))+Z64*('3. Gap Analysis '!$J$109/100)=0,"",AB64*(1-('3. Gap Analysis '!$J$109/100))+Z64*('3. Gap Analysis '!$J$109/100)),"") -> 0.1641940616 | AD64: =IF(W64="Yes",(S64*'1. Inputs'!$D$72+AG64*'1. Inputs'!$D$70/'1. Inputs'!$D$71+'1. Inputs'!$D$74*'1. Inputs'!$D$73*'1. Inputs'!$D$47*AG64+'1. Inputs'!$D$75)/S64,"") -> 74.0208562 | AE64: 16 | AF64: =IFERROR(IF(AND(AE64>0,AE64<MIN(COUNTA($B$11:$B$2000)*'3. Gap Analysis '!$B$104,COUNTIF($W$11:$W$2010,"Yes"))),"Yes","No"),"") -> Yes | AG64: =IFERROR(IF(W64="Yes",ROUNDUP(S64/('1. Inputs'!$D$89*'1. Inputs'!$D$48),0),0),"") -> 1 | AH64: No | AI64: =IF(AND(AH64="Yes",S64>0),(G64*2*'1. Inputs'!$D$54)*'1. Inputs'!$D$56*52+'1. Inputs'!$D$52/'1. Inputs'!$D$53+'1. Inputs'!$D$55*T64*('1. Inputs'!$D$48/52)+'1. Inputs'!$D$57*'1. Inputs'!$D$54*52,"") ->  | AJ64: =IFERROR(IF(INDEX('6. Product assignment'!$Y$18:$Y$2017,MATCH(B64,'6. Product assignment'!$C$18:$C$2017,0))="POC",1,0),0) -> 1 | AK64: =IFERROR(INDEX('6. Product assignment'!$AB$18:$AB$2017,MATCH(B64,'6. Product assignment'!$C$18:$C$2017,0)),"") -> 0 | AL64: =IFERROR(INDEX('6. Product assignment'!$AC$18:$AC$2017,MATCH(B64,'6. Product assignment'!$C$18:$C$2017,0)),"") -> 1 | AM64: =IFERROR(INDEX('6. Product assignment'!$AD$18:$AD$2017,MATCH(B64,'6. Product assignment'!$C$18:$C$2017,0)),"") -> 0 | AN64: =IFERROR(INDEX('6. Product assignment'!$AE$18:$AE$2017,MATCH(B64,'6. Product assignment'!$C$18:$C$2017,0)),"") -> 0 | AO64: =IFERROR(INDEX('6. Product assignment'!$Z$18:$Z$2017,MATCH(B64,'6. Product assignment'!$C$18:$C$2017,0)),"") -> 1 | AP64: =IFERROR(INDEX('6. Product assignment'!$AA$18:$AA$2017,MATCH(B64,'6. Product assignment'!$C$18:$C$2017,0)),"") -> 0 | AR64: 54
B65: SITE 55 | C65: District B | D65: 6 | E65: 10 | F65: 16 | G65: 150.5439721 | H65: Cepheid GeneXpert | I65: Cepheid GeneXpert | J65: Yes | K65: Yes | M65: =D65*'1. Inputs'!$D$36+D65*'1. Inputs'!$D$37 -> 6.6 | N65: =M65/'1. Inputs'!$D$48 -> 0.0264 | O65: =MAX(F65,E65)*'1. Inputs'!$D$38+MAX(E65,F65)*'1. Inputs'!$D$39 -> 33.12 | P65: =O65/'1. Inputs'!$D$48 -> 0.13248 | Q65: POC | R65: POC | S65: =IF('1. Inputs'!$C$13="VL_only",M65,IF('1. Inputs'!$C$13="EID_only",O65,M65+O65)) -> 39.72 | T65: =S65/'1. Inputs'!$D$48 -> 0.15888 | U65: 1 | V65: 1 | W65: =IF(AND('1. Inputs'!$C$27="Yes",J65="No"),"No",IF(AND('1. Inputs'!$C$29="Yes",K65="No"),"No",IF(AND(S65>0,T65<='1. Inputs'!$D$46*'1. Inputs'!$D$89),"Yes","No"))) -> Yes | X65: 150.5439721 | Y65: 39.72 | Z65: =IFERROR(IF(W65="No","",(_xlfn.NORM.DIST(G65,$AW$15,$AV$16,TRUE)*'1. Inputs'!$D$24)),"") -> 0.07978619726 | AA65: =IF(AD65="","",(1-_xlfn.NORM.DIST(AD65,$AW$12,$AV$13,TRUE))*'1. Inputs'!$D$22) -> 0.02398582508 | AB65: =IF(W65="No","",_xlfn.NORM.DIST(Y65,$AW$18,$AV$19,TRUE)*'1. Inputs'!$D$23) -> 0.1754497572 | AC65: =IFERROR(IF(AB65*(1-('3. Gap Analysis '!$J$109/100))+Z65*('3. Gap Analysis '!$J$109/100)=0,"",AB65*(1-('3. Gap Analysis '!$J$109/100))+Z65*('3. Gap Analysis '!$J$109/100)),"") -> 0.1084852652 | AD65: =IF(W65="Yes",(S65*'1. Inputs'!$D$72+AG65*'1. Inputs'!$D$70/'1. Inputs'!$D$71+'1. Inputs'!$D$74*'1. Inputs'!$D$73*'1. Inputs'!$D$47*AG65+'1. Inputs'!$D$75)/S65,"") -> 140.0191339 | AE65: 74 | AF65: =IFERROR(IF(AND(AE65>0,AE65<MIN(COUNTA($B$11:$B$2000)*'3. Gap Analysis '!$B$104,COUNTIF($W$11:$W$2010,"Yes"))),"Yes","No"),"") -> No | AG65: =IFERROR(IF(W65="Yes",ROUNDUP(S65/('1. Inputs'!$D$89*'1. Inputs'!$D$48),0),0),"") -> 1 | AH65: Yes | AI65: =IF(AND(AH65="Yes",S65>0),(G65*2*'1. Inputs'!$D$54)*'1. Inputs'!$D$56*52+'1. Inputs'!$D$52/'1. Inputs'!$D$53+'1. Inputs'!$D$55*T65*('1. Inputs'!$D$48/52)+'1. Inputs'!$D$57*'1. Inputs'!$D$54*52,"") -> 114.2857143 | AJ65: =IFERROR(IF(INDEX('6. Product assignment'!$Y$18:$Y$2017,MATCH(B65,'6. Product assignment'!$C$18:$C$2017,0))="POC",1,0),0) -> 1 | AK65: =IFERROR(INDEX('6. Product assignment'!$AB$18:$AB$2017,MATCH(B65,'6. Product assignment'!$C$18:$C$2017,0)),"") -> 0 | AL65: =IFERROR(INDEX('6. Product assignment'!$AC$18:$AC$2017,MATCH(B65,'6. Product assignment'!$C$18:$C$2017,0)),"") -> 0 | AM65: =IFERROR(INDEX('6. Product assignment'!$AD$18:$AD$2017,MATCH(B65,'6. Product assignment'!$C$18:$C$2017,0)),"") -> 1 | AN65: =IFERROR(INDEX('6. Product assignment'!$AE$18:$AE$2017,MATCH(B65,'6. Product assignment'!$C$18:$C$2017,0)),"") -> 1 | AO65: =IFERROR(INDEX('6. Product assignment'!$Z$18:$Z$2017,MATCH(B65,'6. Product assignment'!$C$18:$C$2017,0)),"") -> 0 | AP65: =IFERROR(INDEX('6. Product assignment'!$AA$18:$AA$2017,MATCH(B65,'6. Product assignment'!$C$18:$C$2017,0)),"") -> 0 | AR65: 55
B66: SITE 56 | C66: District B | D66: 184 | E66: 230 | F66: 260 | G66: 179.3897186 | H66: None | I66: Conventional | J66: No | K66: Yes | M66: =D66*'1. Inputs'!$D$36+D66*'1. Inputs'!$D$37 -> 202.4 | N66: =M66/'1. Inputs'!$D$48 -> 0.8096 | O66: =MAX(F66,E66)*'1. Inputs'!$D$38+MAX(E66,F66)*'1. Inputs'!$D$39 -> 538.2 | P66: =O66/'1. Inputs'!$D$48 -> 2.1528 | Q66: None | R66: Conventional | S66: =IF('1. Inputs'!$C$13="VL_only",M66,IF('1. Inputs'!$C$13="EID_only",O66,M66+O66)) -> 740.6 | T66: =S66/'1. Inputs'!$D$48 -> 2.9624 | U66: 0 | V66: 1 | W66: =IF(AND('1. Inputs'!$C$27="Yes",J66="No"),"No",IF(AND('1. Inputs'!$C$29="Yes",K66="No"),"No",IF(AND(S66>0,T66<='1. Inputs'!$D$46*'1. Inputs'!$D$89),"Yes","No"))) -> No | X66: 0 | Y66: 0 | Z66: =IFERROR(IF(W66="No","",(_xlfn.NORM.DIST(G66,$AW$15,$AV$16,TRUE)*'1. Inputs'!$D$24)),"") ->  | AA66: =IF(AD66="","",(1-_xlfn.NORM.DIST(AD66,$AW$12,$AV$13,TRUE))*'1. Inputs'!$D$22) ->  | AB66: =IF(W66="No","",_xlfn.NORM.DIST(Y66,$AW$18,$AV$19,TRUE)*'1. Inputs'!$D$23) ->  | AC66: =IFERROR(IF(AB66*(1-('3. Gap Analysis '!$J$109/100))+Z66*('3. Gap Analysis '!$J$109/100)=0,"",AB66*(1-('3. Gap Analysis '!$J$109/100))+Z66*('3. Gap Analysis '!$J$109/100)),"") ->  | AD66: =IF(W66="Yes",(S66*'1. Inputs'!$D$72+AG66*'1. Inputs'!$D$70/'1. Inputs'!$D$71+'1. Inputs'!$D$74*'1. Inputs'!$D$73*'1. Inputs'!$D$47*AG66+'1. Inputs'!$D$75)/S66,"") ->  | AF66: =IFERROR(IF(AND(AE66>0,AE66<MIN(COUNTA($B$11:$B$2000)*'3. Gap Analysis '!$B$104,COUNTIF($W$11:$W$2010,"Yes"))),"Yes","No"),"") -> No | AG66: =IFERROR(IF(W66="Yes",ROUNDUP(S66/('1. Inputs'!$D$89*'1. Inputs'!$D$48),0),0),"") -> 0 | AH66: Yes | AI66: =IF(AND(AH66="Yes",S66>0),(G66*2*'1. Inputs'!$D$54)*'1. Inputs'!$D$56*52+'1. Inputs'!$D$52/'1. Inputs'!$D$53+'1. Inputs'!$D$55*T66*('1. Inputs'!$D$48/52)+'1. Inputs'!$D$57*'1. Inputs'!$D$54*52,"") -> 114.2857143 | AJ66: =IFERROR(IF(INDEX('6. Product assignment'!$Y$18:$Y$2017,MATCH(B66,'6. Product assignment'!$C$18:$C$2017,0))="POC",1,0),0) -> 1 | AK66: =IFERROR(INDEX('6. Product assignment'!$AB$18:$AB$2017,MATCH(B66,'6. Product assignment'!$C$18:$C$2017,0)),"") -> 0 | AL66: =IFERROR(INDEX('6. Product assignment'!$AC$18:$AC$2017,MATCH(B66,'6. Product assignment'!$C$18:$C$2017,0)),"") -> 1 | AM66: =IFERROR(INDEX('6. Product assignment'!$AD$18:$AD$2017,MATCH(B66,'6. Product assignment'!$C$18:$C$2017,0)),"") -> 0 | AN66: =IFERROR(INDEX('6. Product assignment'!$AE$18:$AE$2017,MATCH(B66,'6. Product assignment'!$C$18:$C$2017,0)),"") -> 0 | AO66: =IFERROR(INDEX('6. Product assignment'!$Z$18:$Z$2017,MATCH(B66,'6. Product assignment'!$C$18:$C$2017,0)),"") -> 1 | AP66: =IFERROR(INDEX('6. Product assignment'!$AA$18:$AA$2017,MATCH(B66,'6. Product assignment'!$C$18:$C$2017,0)),"") -> 0 | AR66: 56
B67: SITE 57 | C67: District B | D67: 50 | E67: 8 | F67: 20 | G67: 187.9136796 | H67: None | I67: Conventional | J67: Yes | K67: Yes | M67: =D67*'1. Inputs'!$D$36+D67*'1. Inputs'!$D$37 -> 55 | N67: =M67/'1. Inputs'!$D$48 -> 0.22 | O67: =MAX(F67,E67)*'1. Inputs'!$D$38+MAX(E67,F67)*'1. Inputs'!$D$39 -> 41.4 | P67: =O67/'1. Inputs'!$D$48 -> 0.1656 | Q67: None | R67: Conventional | S67: =IF('1. Inputs'!$C$13="VL_only",M67,IF('1. Inputs'!$C$13="EID_only",O67,M67+O67)) -> 96.4 | T67: =S67/'1. Inputs'!$D$48 -> 0.3856 | U67: 1 | V67: 1 | W67: =IF(AND('1. Inputs'!$C$27="Yes",J67="No"),"No",IF(AND('1. Inputs'!$C$29="Yes",K67="No"),"No",IF(AND(S67>0,T67<='1. Inputs'!$D$46*'1. Inputs'!$D$89),"Yes","No"))) -> Yes | X67: 187.9136796 | Y67: 96.4 | Z67: =IFERROR(IF(W67="No","",(_xlfn.NORM.DIST(G67,$AW$15,$AV$16,TRUE)*'1. Inputs'!$D$24)),"") -> 0.10396669 | AA67: =IF(AD67="","",(1-_xlfn.NORM.DIST(AD67,$AW$12,$AV$13,TRUE))*'1. Inputs'!$D$22) -> 0.1411576774 | AB67: =IF(W67="No","",_xlfn.NORM.DIST(Y67,$AW$18,$AV$19,TRUE)*'1. Inputs'!$D$23) -> 0.1997647026 | AC67: =IFERROR(IF(AB67*(1-('3. Gap Analysis '!$J$109/100))+Z67*('3. Gap Analysis '!$J$109/100)=0,"",AB67*(1-('3. Gap Analysis '!$J$109/100))+Z67*('3. Gap Analysis '!$J$109/100)),"") -> 0.1327060938 | AD67: =IF(W67="Yes",(S67*'1. Inputs'!$D$72+AG67*'1. Inputs'!$D$70/'1. Inputs'!$D$71+'1. Inputs'!$D$74*'1. Inputs'!$D$73*'1. Inputs'!$D$47*AG67+'1. Inputs'!$D$75)/S67,"") -> 71.21576763 | AE67: 48 | AF67: =IFERROR(IF(AND(AE67>0,AE67<MIN(COUNTA($B$11:$B$2000)*'3. Gap Analysis '!$B$104,COUNTIF($W$11:$W$2010,"Yes"))),"Yes","No"),"") -> Yes | AG67: =IFERROR(IF(W67="Yes",ROUNDUP(S67/('1. Inputs'!$D$89*'1. Inputs'!$D$48),0),0),"") -> 1 | AH67: No | AI67: =IF(AND(AH67="Yes",S67>0),(G67*2*'1. Inputs'!$D$54)*'1. Inputs'!$D$56*52+'1. Inputs'!$D$52/'1. Inputs'!$D$53+'1. Inputs'!$D$55*T67*('1. Inputs'!$D$48/52)+'1. Inputs'!$D$57*'1. Inputs'!$D$54*52,"") ->  | AJ67: =IFERROR(IF(INDEX('6. Product assignment'!$Y$18:$Y$2017,MATCH(B67,'6. Product assignment'!$C$18:$C$2017,0))="POC",1,0),0) -> 1 | AK67: =IFERROR(INDEX('6. Product assignment'!$AB$18:$AB$2017,MATCH(B67,'6. Product assignment'!$C$18:$C$2017,0)),"") -> 0 | AL67: =IFERROR(INDEX('6. Product assignment'!$AC$18:$AC$2017,MATCH(B67,'6. Product assignment'!$C$18:$C$2017,0)),"") -> 1 | AM67: =IFERROR(INDEX('6. Product assignment'!$AD$18:$AD$2017,MATCH(B67,'6. Product assignment'!$C$18:$C$2017,0)),"") -> 0 | AN67: =IFERROR(INDEX('6. Product assignment'!$AE$18:$AE$2017,MATCH(B67,'6. Product assignment'!$C$18:$C$2017,0)),"") -> 0 | AO67: =IFERROR(INDEX('6. Product assignment'!$Z$18:$Z$2017,MATCH(B67,'6. Product assignment'!$C$18:$C$2017,0)),"") -> 1 | AP67: =IFERROR(INDEX('6. Product assignment'!$AA$18:$AA$2017,MATCH(B67,'6. Product assignment'!$C$18:$C$2017,0)),"") -> 0 | AR67: 57
B68: SITE 58 | C68: District B | D68: 6 | E68: 18 | F68: 22 | G68: 340 | H68: None | I68: Conventional | J68: Yes | K68: Yes | M68: =D68*'1. Inputs'!$D$36+D68*'1. Inputs'!$D$37 -> 6.6 | N68: =M68/'1. Inputs'!$D$48 -> 0.0264 | O68: =MAX(F68,E68)*'1. Inputs'!$D$38+MAX(E68,F68)*'1. Inputs'!$D$39 -> 45.54 | P68: =O68/'1. Inputs'!$D$48 -> 0.18216 | Q68: None | R68: Conventional | S68: =IF('1. Inputs'!$C$13="VL_only",M68,IF('1. Inputs'!$C$13="EID_only",O68,M68+O68)) -> 52.14 | T68: =S68/'1. Inputs'!$D$48 -> 0.20856 | U68: 1 | V68: 1 | W68: =IF(AND('1. Inputs'!$C$27="Yes",J68="No"),"No",IF(AND('1. Inputs'!$C$29="Yes",K68="No"),"No",IF(AND(S68>0,T68<='1. Inputs'!$D$46*'1. Inputs'!$D$89),"Yes","No"))) -> Yes | X68: 340 | Y68: 52.14 | Z68: =IFERROR(IF(W68="No","",(_xlfn.NORM.DIST(G68,$AW$15,$AV$16,TRUE)*'1. Inputs'!$D$24)),"") -> 0.148082861 | AA68: =IF(AD68="","",(1-_xlfn.NORM.DIST(AD68,$AW$12,$AV$13,TRUE))*'1. Inputs'!$D$22) -> 0.0552654445 | AB68: =IF(W68="No","",_xlfn.NORM.DIST(Y68,$AW$18,$AV$19,TRUE)*'1. Inputs'!$D$23) -> 0.1808048626 | AC68: =IFERROR(IF(AB68*(1-('3. Gap Analysis '!$J$109/100))+Z68*('3. Gap Analysis '!$J$109/100)=0,"",AB68*(1-('3. Gap Analysis '!$J$109/100))+Z68*('3. Gap Analysis '!$J$109/100)),"") -> 0.1578994615 | AD68: =IF(W68="Yes",(S68*'1. Inputs'!$D$72+AG68*'1. Inputs'!$D$70/'1. Inputs'!$D$71+'1. Inputs'!$D$74*'1. Inputs'!$D$73*'1. Inputs'!$D$47*AG68+'1. Inputs'!$D$75)/S68,"") -> 112.1446107 | AE68: 26 | AF68: =IFERROR(IF(AND(AE68>0,AE68<MIN(COUNTA($B$11:$B$2000)*'3. Gap Analysis '!$B$104,COUNTIF($W$11:$W$2010,"Yes"))),"Yes","No"),"") -> Yes | AG68: =IFERROR(IF(W68="Yes",ROUNDUP(S68/('1. Inputs'!$D$89*'1. Inputs'!$D$48),0),0),"") -> 1 | AH68: No | AI68: =IF(AND(AH68="Yes",S68>0),(G68*2*'1. Inputs'!$D$54)*'1. Inputs'!$D$56*52+'1. Inputs'!$D$52/'1. Inputs'!$D$53+'1. Inputs'!$D$55*T68*('1. Inputs'!$D$48/52)+'1. Inputs'!$D$57*'1. Inputs'!$D$54*52,"") ->  | AJ68: =IFERROR(IF(INDEX('6. Product assignment'!$Y$18:$Y$2017,MATCH(B68,'6. Product assignment'!$C$18:$C$2017,0))="POC",1,0),0) -> 1 | AK68: =IFERROR(INDEX('6. Product assignment'!$AB$18:$AB$2017,MATCH(B68,'6. Product assignment'!$C$18:$C$2017,0)),"") -> 0 | AL68: =IFERROR(INDEX('6. Product assignment'!$AC$18:$AC$2017,MATCH(B68,'6. Product assignment'!$C$18:$C$2017,0)),"") -> 1 | AM68: =IFERROR(INDEX('6. Product assignment'!$AD$18:$AD$2017,MATCH(B68,'6. Product assignment'!$C$18:$C$2017,0)),"") -> 0 | AN68: =IFERROR(INDEX('6. Product assignment'!$AE$18:$AE$2017,MATCH(B68,'6. Product assignment'!$C$18:$C$2017,0)),"") -> 0 | AO68: =IFERROR(INDEX('6. Product assignment'!$Z$18:$Z$2017,MATCH(B68,'6. Product assignment'!$C$18:$C$2017,0)),"") -> 1 | AP68: =IFERROR(INDEX('6. Product assignment'!$AA$18:$AA$2017,MATCH(B68,'6. Product assignment'!$C$18:$C$2017,0)),"") -> 0 | AR68: 58
B69: SITE 59 | C69: District B | D69: 161 | E69: 88 | F69: 104 | G69: 64.39834994 | H69: None | I69: Conventional | J69: Yes | K69: Yes | M69: =D69*'1. Inputs'!$D$36+D69*'1. Inputs'!$D$37 -> 177.1 | N69: =M69/'1. Inputs'!$D$48 -> 0.7084 | O69: =MAX(F69,E69)*'1. Inputs'!$D$38+MAX(E69,F69)*'1. Inputs'!$D$39 -> 215.28 | P69: =O69/'1. Inputs'!$D$48 -> 0.86112 | Q69: None | R69: Conventional | S69: =IF('1. Inputs'!$C$13="VL_only",M69,IF('1. Inputs'!$C$13="EID_only",O69,M69+O69)) -> 392.38 | T69: =S69/'1. Inputs'!$D$48 -> 1.56952 | U69: 1 | V69: 1 | W69: =IF(AND('1. Inputs'!$C$27="Yes",J69="No"),"No",IF(AND('1. Inputs'!$C$29="Yes",K69="No"),"No",IF(AND(S69>0,T69<='1. Inputs'!$D$46*'1. Inputs'!$D$89),"Yes","No"))) -> Yes | X69: 64.39834994 | Y69: 392.38 | Z69: =IFERROR(IF(W69="No","",(_xlfn.NORM.DIST(G69,$AW$15,$AV$16,TRUE)*'1. Inputs'!$D$24)),"") -> 0.02765764388 | AA69: =IF(AD69="","",(1-_xlfn.NORM.DIST(AD69,$AW$12,$AV$13,TRUE))*'1. Inputs'!$D$22) -> 0.2499221782 | AB69: =IF(W69="No","",_xlfn.NORM.DIST(Y69,$AW$18,$AV$19,TRUE)*'1. Inputs'!$D$23) -> 0.3019467102 | AC69: =IFERROR(IF(AB69*(1-('3. Gap Analysis '!$J$109/100))+Z69*('3. Gap Analysis '!$J$109/100)=0,"",AB69*(1-('3. Gap Analysis '!$J$109/100))+Z69*('3. Gap Analysis '!$J$109/100)),"") -> 0.1099443638 | AD69: =IF(W69="Yes",(S69*'1. Inputs'!$D$72+AG69*'1. Inputs'!$D$70/'1. Inputs'!$D$71+'1. Inputs'!$D$74*'1. Inputs'!$D$73*'1. Inputs'!$D$47*AG69+'1. Inputs'!$D$75)/S69,"") -> 34.84565982 | AE69: 72 | AF69: =IFERROR(IF(AND(AE69>0,AE69<MIN(COUNTA($B$11:$B$2000)*'3. Gap Analysis '!$B$104,COUNTIF($W$11:$W$2010,"Yes"))),"Yes","No"),"") -> No | AG69: =IFERROR(IF(W69="Yes",ROUNDUP(S69/('1. Inputs'!$D$89*'1. Inputs'!$D$48),0),0),"") -> 1 | AH69: Yes | AI69: =IF(AND(AH69="Yes",S69>0),(G69*2*'1. Inputs'!$D$54)*'1. Inputs'!$D$56*52+'1. Inputs'!$D$52/'1. Inputs'!$D$53+'1. Inputs'!$D$55*T69*('1. Inputs'!$D$48/52)+'1. Inputs'!$D$57*'1. Inputs'!$D$54*52,"") -> 114.2857143 | AJ69: =IFERROR(IF(INDEX('6. Product assignment'!$Y$18:$Y$2017,MATCH(B69,'6. Product assignment'!$C$18:$C$2017,0))="POC",1,0),0) -> 0 | AK69: =IFERROR(INDEX('6. Product assignment'!$AB$18:$AB$2017,MATCH(B69,'6. Product assignment'!$C$18:$C$2017,0)),"") -> 0 | AL69: =IFERROR(INDEX('6. Product assignment'!$AC$18:$AC$2017,MATCH(B69,'6. Product assignment'!$C$18:$C$2017,0)),"") -> 0 | AM69: =IFERROR(INDEX('6. Product assignment'!$AD$18:$AD$2017,MATCH(B69,'6. Product assignment'!$C$18:$C$2017,0)),"") -> 0 | AN69: =IFERROR(INDEX('6. Product assignment'!$AE$18:$AE$2017,MATCH(B69,'6. Product assignment'!$C$18:$C$2017,0)),"") -> 0 | AO69: =IFERROR(INDEX('6. Product assignment'!$Z$18:$Z$2017,MATCH(B69,'6. Product assignment'!$C$18:$C$2017,0)),"") -> 0 | AP69: =IFERROR(INDEX('6. Product assignment'!$AA$18:$AA$2017,MATCH(B69,'6. Product assignment'!$C$18:$C$2017,0)),"") -> 0 | AR69: 59
B70: SITE 60 | C70: District C | D70: 19 | E70: 22 | F70: 23 | G70: 137.3331612 | H70: None | I70: Conventional | J70: Yes | K70: Yes | M70: =D70*'1. Inputs'!$D$36+D70*'1. Inputs'!$D$37 -> 20.9 | N70: =M70/'1. Inputs'!$D$48 -> 0.0836 | O70: =MAX(F70,E70)*'1. Inputs'!$D$38+MAX(E70,F70)*'1. Inputs'!$D$39 -> 47.61 | P70: =O70/'1. Inputs'!$D$48 -> 0.19044 | Q70: None | R70: Conventional | S70: =IF('1. Inputs'!$C$13="VL_only",M70,IF('1. Inputs'!$C$13="EID_only",O70,M70+O70)) -> 68.51 | T70: =S70/'1. Inputs'!$D$48 -> 0.27404 | U70: 1 | V70: 1 | W70: =IF(AND('1. Inputs'!$C$27="Yes",J70="No"),"No",IF(AND('1. Inputs'!$C$29="Yes",K70="No"),"No",IF(AND(S70>0,T70<='1. Inputs'!$D$46*'1. Inputs'!$D$89),"Yes","No"))) -> Yes | X70: 137.3331612 | Y70: 68.51 | Z70: =IFERROR(IF(W70="No","",(_xlfn.NORM.DIST(G70,$AW$15,$AV$16,TRUE)*'1. Inputs'!$D$24)),"") -> 0.07081190146 | AA70: =IF(AD70="","",(1-_xlfn.NORM.DIST(AD70,$AW$12,$AV$13,TRUE))*'1. Inputs'!$D$22) -> 0.09382199766 | AB70: =IF(W70="No","",_xlfn.NORM.DIST(Y70,$AW$18,$AV$19,TRUE)*'1. Inputs'!$D$23) -> 0.1878487713 | AC70: =IFERROR(IF(AB70*(1-('3. Gap Analysis '!$J$109/100))+Z70*('3. Gap Analysis '!$J$109/100)=0,"",AB70*(1-('3. Gap Analysis '!$J$109/100))+Z70*('3. Gap Analysis '!$J$109/100)),"") -> 0.1059229624 | AD70: =IF(W70="Yes",(S70*'1. Inputs'!$D$72+AG70*'1. Inputs'!$D$70/'1. Inputs'!$D$71+'1. Inputs'!$D$74*'1. Inputs'!$D$73*'1. Inputs'!$D$47*AG70+'1. Inputs'!$D$75)/S70,"") -> 90.84411035 | AE70: 76 | AF70: =IFERROR(IF(AND(AE70>0,AE70<MIN(COUNTA($B$11:$B$2000)*'3. Gap Analysis '!$B$104,COUNTIF($W$11:$W$2010,"Yes"))),"Yes","No"),"") -> No | AG70: =IFERROR(IF(W70="Yes",ROUNDUP(S70/('1. Inputs'!$D$89*'1. Inputs'!$D$48),0),0),"") -> 1 | AH70: Yes | AI70: =IF(AND(AH70="Yes",S70>0),(G70*2*'1. Inputs'!$D$54)*'1. Inputs'!$D$56*52+'1. Inputs'!$D$52/'1. Inputs'!$D$53+'1. Inputs'!$D$55*T70*('1. Inputs'!$D$48/52)+'1. Inputs'!$D$57*'1. Inputs'!$D$54*52,"") -> 114.2857143 | AJ70: =IFERROR(IF(INDEX('6. Product assignment'!$Y$18:$Y$2017,MATCH(B70,'6. Product assignment'!$C$18:$C$2017,0))="POC",1,0),0) -> 0 | AK70: =IFERROR(INDEX('6. Product assignment'!$AB$18:$AB$2017,MATCH(B70,'6. Product assignment'!$C$18:$C$2017,0)),"") -> 0 | AL70: =IFERROR(INDEX('6. Product assignment'!$AC$18:$AC$2017,MATCH(B70,'6. Product assignment'!$C$18:$C$2017,0)),"") -> 0 | AM70: =IFERROR(INDEX('6. Product assignment'!$AD$18:$AD$2017,MATCH(B70,'6. Product assignment'!$C$18:$C$2017,0)),"") -> 0 | AN70: =IFERROR(INDEX('6. Product assignment'!$AE$18:$AE$2017,MATCH(B70,'6. Product assignment'!$C$18:$C$2017,0)),"") -> 0 | AO70: =IFERROR(INDEX('6. Product assignment'!$Z$18:$Z$2017,MATCH(B70,'6. Product assignment'!$C$18:$C$2017,0)),"") -> 0 | AP70: =IFERROR(INDEX('6. Product assignment'!$AA$18:$AA$2017,MATCH(B70,'6. Product assignment'!$C$18:$C$2017,0)),"") -> 0 | AR70: 60
B71: SITE 61 | C71: District C | D71: 345 | E71: 1 | F71: 8 | G71: 160 | H71: None | I71: Conventional | J71: Yes | K71: Yes | M71: =D71*'1. Inputs'!$D$36+D71*'1. Inputs'!$D$37 -> 379.5 | N71: =M71/'1. Inputs'!$D$48 -> 1.518 | O71: =MAX(F71,E71)*'1. Inputs'!$D$38+MAX(E71,F71)*'1. Inputs'!$D$39 -> 16.56 | P71: =O71/'1. Inputs'!$D$48 -> 0.06624 | Q71: None | R71: Conventional | S71: =IF('1. Inputs'!$C$13="VL_only",M71,IF('1. Inputs'!$C$13="EID_only",O71,M71+O71)) -> 396.06 | T71: =S71/'1. Inputs'!$D$48 -> 1.58424 | U71: 1 | V71: 1 | W71: =IF(AND('1. Inputs'!$C$27="Yes",J71="No"),"No",IF(AND('1. Inputs'!$C$29="Yes",K71="No"),"No",IF(AND(S71>0,T71<='1. Inputs'!$D$46*'1. Inputs'!$D$89),"Yes","No"))) -> Yes | X71: 160 | Y71: 396.06 | Z71: =IFERROR(IF(W71="No","",(_xlfn.NORM.DIST(G71,$AW$15,$AV$16,TRUE)*'1. Inputs'!$D$24)),"") -> 0.08615562877 | AA71: =IF(AD71="","",(1-_xlfn.NORM.DIST(AD71,$AW$12,$AV$13,TRUE))*'1. Inputs'!$D$22) -> 0.2502696282 | AB71: =IF(W71="No","",_xlfn.NORM.DIST(Y71,$AW$18,$AV$19,TRUE)*'1. Inputs'!$D$23) -> 0.3028151187 | AC71: =IFERROR(IF(AB71*(1-('3. Gap Analysis '!$J$109/100))+Z71*('3. Gap Analysis '!$J$109/100)=0,"",AB71*(1-('3. Gap Analysis '!$J$109/100))+Z71*('3. Gap Analysis '!$J$109/100)),"") -> 0.1511534757 | AD71: =IF(W71="Yes",(S71*'1. Inputs'!$D$72+AG71*'1. Inputs'!$D$70/'1. Inputs'!$D$71+'1. Inputs'!$D$74*'1. Inputs'!$D$73*'1. Inputs'!$D$47*AG71+'1. Inputs'!$D$75)/S71,"") -> 34.73559562 | AE71: 34 | AF71: =IFERROR(IF(AND(AE71>0,AE71<MIN(COUNTA($B$11:$B$2000)*'3. Gap Analysis '!$B$104,COUNTIF($W$11:$W$2010,"Yes"))),"Yes","No"),"") -> Yes | AG71: =IFERROR(IF(W71="Yes",ROUNDUP(S71/('1. Inputs'!$D$89*'1. Inputs'!$D$48),0),0),"") -> 1 | AH71: No | AI71: =IF(AND(AH71="Yes",S71>0),(G71*2*'1. Inputs'!$D$54)*'1. Inputs'!$D$56*52+'1. Inputs'!$D$52/'1. Inputs'!$D$53+'1. Inputs'!$D$55*T71*('1. Inputs'!$D$48/52)+'1. Inputs'!$D$57*'1. Inputs'!$D$54*52,"") ->  | AJ71: =IFERROR(IF(INDEX('6. Product assignment'!$Y$18:$Y$2017,MATCH(B71,'6. Product assignment'!$C$18:$C$2017,0))="POC",1,0),0) -> 1 | AK71: =IFERROR(INDEX('6. Product assignment'!$AB$18:$AB$2017,MATCH(B71,'6. Product assignment'!$C$18:$C$2017,0)),"") -> 0 | AL71: =IFERROR(INDEX('6. Product assignment'!$AC$18:$AC$2017,MATCH(B71,'6. Product assignment'!$C$18:$C$2017,0)),"") -> 1 | AM71: =IFERROR(INDEX('6. Product assignment'!$AD$18:$AD$2017,MATCH(B71,'6. Product assignment'!$C$18:$C$2017,0)),"") -> 0 | AN71: =IFERROR(INDEX('6. Product assignment'!$AE$18:$AE$2017,MATCH(B71,'6. Product assignment'!$C$18:$C$2017,0)),"") -> 0 | AO71: =IFERROR(INDEX('6. Product assignment'!$Z$18:$Z$2017,MATCH(B71,'6. Product assignment'!$C$18:$C$2017,0)),"") -> 1 | AP71: =IFERROR(INDEX('6. Product assignment'!$AA$18:$AA$2017,MATCH(B71,'6. Product assignment'!$C$18:$C$2017,0)),"") -> 0 | AR71: 61
B72: SITE 62 | C72: District C | D72: 0 | E72: 2 | F72: 8 | G72: 192.745392 | H72: None | I72: Conventional | J72: Yes | K72: Yes | M72: =D72*'1. Inputs'!$D$36+D72*'1. Inputs'!$D$37 -> 0 | N72: =M72/'1. Inputs'!$D$48 -> 0 | O72: =MAX(F72,E72)*'1. Inputs'!$D$38+MAX(E72,F72)*'1. Inputs'!$D$39 -> 16.56 | P72: =O72/'1. Inputs'!$D$48 -> 0.06624 | Q72: None | R72: Conventional | S72: =IF('1. Inputs'!$C$13="VL_only",M72,IF('1. Inputs'!$C$13="EID_only",O72,M72+O72)) -> 16.56 | T72: =S72/'1. Inputs'!$D$48 -> 0.06624 | U72: 1 | V72: 1 | W72: =IF(AND('1. Inputs'!$C$27="Yes",J72="No"),"No",IF(AND('1. Inputs'!$C$29="Yes",K72="No"),"No",IF(AND(S72>0,T72<='1. Inputs'!$D$46*'1. Inputs'!$D$89),"Yes","No"))) -> Yes | X72: 192.745392 | Y72: 16.56 | Z72: =IFERROR(IF(W72="No","",(_xlfn.NORM.DIST(G72,$AW$15,$AV$16,TRUE)*'1. Inputs'!$D$24)),"") -> 0.1068180747 | AA72: =IF(AD72="","",(1-_xlfn.NORM.DIST(AD72,$AW$12,$AV$13,TRUE))*'1. Inputs'!$D$22) -> 5.229573425e-06 | AB72: =IF(W72="No","",_xlfn.NORM.DIST(Y72,$AW$18,$AV$19,TRUE)*'1. Inputs'!$D$23) -> 0.1654682061 | AC72: =IFERROR(IF(AB72*(1-('3. Gap Analysis '!$J$109/100))+Z72*('3. Gap Analysis '!$J$109/100)=0,"",AB72*(1-('3. Gap Analysis '!$J$109/100))+Z72*('3. Gap Analysis '!$J$109/100)),"") -> 0.1244131141 | AD72: =IF(W72="Yes",(S72*'1. Inputs'!$D$72+AG72*'1. Inputs'!$D$70/'1. Inputs'!$D$71+'1. Inputs'!$D$74*'1. Inputs'!$D$73*'1. Inputs'!$D$47*AG72+'1. Inputs'!$D$75)/S72,"") -> 303.6763285 | AE72: 52 | AF72: =IFERROR(IF(AND(AE72>0,AE72<MIN(COUNTA($B$11:$B$2000)*'3. Gap Analysis '!$B$104,COUNTIF($W$11:$W$2010,"Yes"))),"Yes","No"),"") -> Yes | AG72: =IFERROR(IF(W72="Yes",ROUNDUP(S72/('1. Inputs'!$D$89*'1. Inputs'!$D$48),0),0),"") -> 1 | AH72: No | AI72: =IF(AND(AH72="Yes",S72>0),(G72*2*'1. Inputs'!$D$54)*'1. Inputs'!$D$56*52+'1. Inputs'!$D$52/'1. Inputs'!$D$53+'1. Inputs'!$D$55*T72*('1. Inputs'!$D$48/52)+'1. Inputs'!$D$57*'1. Inputs'!$D$54*52,"") ->  | AJ72: =IFERROR(IF(INDEX('6. Product assignment'!$Y$18:$Y$2017,MATCH(B72,'6. Product assignment'!$C$18:$C$2017,0))="POC",1,0),0) -> 0 | AK72: =IFERROR(INDEX('6. Product assignment'!$AB$18:$AB$2017,MATCH(B72,'6. Product assignment'!$C$18:$C$2017,0)),"") -> 0 | AL72: =IFERROR(INDEX('6. Product assignment'!$AC$18:$AC$2017,MATCH(B72,'6. Product assignment'!$C$18:$C$2017,0)),"") -> 0 | AM72: =IFERROR(INDEX('6. Product assignment'!$AD$18:$AD$2017,MATCH(B72,'6. Product assignment'!$C$18:$C$2017,0)),"") -> 0 | AN72: =IFERROR(INDEX('6. Product assignment'!$AE$18:$AE$2017,MATCH(B72,'6. Product assignment'!$C$18:$C$2017,0)),"") -> 0 | AO72: =IFERROR(INDEX('6. Product assignment'!$Z$18:$Z$2017,MATCH(B72,'6. Product assignment'!$C$18:$C$2017,0)),"") -> 0 | AP72: =IFERROR(INDEX('6. Product assignment'!$AA$18:$AA$2017,MATCH(B72,'6. Product assignment'!$C$18:$C$2017,0)),"") -> 0 | AR72: 62
B73: SITE 63 | C73: District C | D73: 33 | E73: 0 | F73: 6 | G73: 320 | H73: None | I73: Conventional | J73: Yes | K73: Yes | M73: =D73*'1. Inputs'!$D$36+D73*'1. Inputs'!$D$37 -> 36.3 | N73: =M73/'1. Inputs'!$D$48 -> 0.1452 | O73: =MAX(F73,E73)*'1. Inputs'!$D$38+MAX(E73,F73)*'1. Inputs'!$D$39 -> 12.42 | P73: =O73/'1. Inputs'!$D$48 -> 0.04968 | Q73: None | R73: Conventional | S73: =IF('1. Inputs'!$C$13="VL_only",M73,IF('1. Inputs'!$C$13="EID_only",O73,M73+O73)) -> 48.72 | T73: =S73/'1. Inputs'!$D$48 -> 0.19488 | U73: 1 | V73: 1 | W73: =IF(AND('1. Inputs'!$C$27="Yes",J73="No"),"No",IF(AND('1. Inputs'!$C$29="Yes",K73="No"),"No",IF(AND(S73>0,T73<='1. Inputs'!$D$46*'1. Inputs'!$D$89),"Yes","No"))) -> Yes | X73: 320 | Y73: 48.72 | Z73: =IFERROR(IF(W73="No","",(_xlfn.NORM.DIST(G73,$AW$15,$AV$16,TRUE)*'1. Inputs'!$D$24)),"") -> 0.1466321766 | AA73: =IF(AD73="","",(1-_xlfn.NORM.DIST(AD73,$AW$12,$AV$13,TRUE))*'1. Inputs'!$D$22) -> 0.0464802383 | AB73: =IF(W73="No","",_xlfn.NORM.DIST(Y73,$AW$18,$AV$19,TRUE)*'1. Inputs'!$D$23) -> 0.1793307864 | AC73: =IFERROR(IF(AB73*(1-('3. Gap Analysis '!$J$109/100))+Z73*('3. Gap Analysis '!$J$109/100)=0,"",AB73*(1-('3. Gap Analysis '!$J$109/100))+Z73*('3. Gap Analysis '!$J$109/100)),"") -> 0.1564417596 | AD73: =IF(W73="Yes",(S73*'1. Inputs'!$D$72+AG73*'1. Inputs'!$D$70/'1. Inputs'!$D$71+'1. Inputs'!$D$74*'1. Inputs'!$D$73*'1. Inputs'!$D$47*AG73+'1. Inputs'!$D$75)/S73,"") -> 118.4022989 | AE73: 28 | AF73: =IFERROR(IF(AND(AE73>0,AE73<MIN(COUNTA($B$11:$B$2000)*'3. Gap Analysis '!$B$104,COUNTIF($W$11:$W$2010,"Yes"))),"Yes","No"),"") -> Yes | AG73: =IFERROR(IF(W73="Yes",ROUNDUP(S73/('1. Inputs'!$D$89*'1. Inputs'!$D$48),0),0),"") -> 1 | AH73: No | AI73: =IF(AND(AH73="Yes",S73>0),(G73*2*'1. Inputs'!$D$54)*'1. Inputs'!$D$56*52+'1. Inputs'!$D$52/'1. Inputs'!$D$53+'1. Inputs'!$D$55*T73*('1. Inputs'!$D$48/52)+'1. Inputs'!$D$57*'1. Inputs'!$D$54*52,"") ->  | AJ73: =IFERROR(IF(INDEX('6. Product assignment'!$Y$18:$Y$2017,MATCH(B73,'6. Product assignment'!$C$18:$C$2017,0))="POC",1,0),0) -> 1 | AK73: =IFERROR(INDEX('6. Product assignment'!$AB$18:$AB$2017,MATCH(B73,'6. Product assignment'!$C$18:$C$2017,0)),"") -> 0 | AL73: =IFERROR(INDEX('6. Product assignment'!$AC$18:$AC$2017,MATCH(B73,'6. Product assignment'!$C$18:$C$2017,0)),"") -> 1 | AM73: =IFERROR(INDEX('6. Product assignment'!$AD$18:$AD$2017,MATCH(B73,'6. Product assignment'!$C$18:$C$2017,0)),"") -> 0 | AN73: =IFERROR(INDEX('6. Product assignment'!$AE$18:$AE$2017,MATCH(B73,'6. Product assignment'!$C$18:$C$2017,0)),"") -> 0 | AO73: =IFERROR(INDEX('6. Product assignment'!$Z$18:$Z$2017,MATCH(B73,'6. Product assignment'!$C$18:$C$2017,0)),"") -> 1 | AP73: =IFERROR(INDEX('6. Product assignment'!$AA$18:$AA$2017,MATCH(B73,'6. Product assignment'!$C$18:$C$2017,0)),"") -> 0 | AR73: 63
B74: SITE 64 | C74: District C | D74: 177 | E74: 18 | F74: 22 | G74: 213.3928109 | H74: None | I74: Conventional | J74: Yes | K74: Yes | M74: =D74*'1. Inputs'!$D$36+D74*'1. Inputs'!$D$37 -> 194.7 | N74: =M74/'1. Inputs'!$D$48 -> 0.7788 | O74: =MAX(F74,E74)*'1. Inputs'!$D$38+MAX(E74,F74)*'1. Inputs'!$D$39 -> 45.54 | P74: =O74/'1. Inputs'!$D$48 -> 0.18216 | Q74: None | R74: Conventional | S74: =IF('1. Inputs'!$C$13="VL_only",M74,IF('1. Inputs'!$C$13="EID_only",O74,M74+O74)) -> 240.24 | T74: =S74/'1. Inputs'!$D$48 -> 0.96096 | U74: 1 | V74: 1 | W74: =IF(AND('1. Inputs'!$C$27="Yes",J74="No"),"No",IF(AND('1. Inputs'!$C$29="Yes",K74="No"),"No",IF(AND(S74>0,T74<='1. Inputs'!$D$46*'1. Inputs'!$D$89),"Yes","No"))) -> Yes | X74: 213.3928109 | Y74: 240.24 | Z74: =IFERROR(IF(W74="No","",(_xlfn.NORM.DIST(G74,$AW$15,$AV$16,TRUE)*'1. Inputs'!$D$24)),"") -> 0.1179691264 | AA74: =IF(AD74="","",(1-_xlfn.NORM.DIST(AD74,$AW$12,$AV$13,TRUE))*'1. Inputs'!$D$22) -> 0.226297037 | AB74: =IF(W74="No","",_xlfn.NORM.DIST(Y74,$AW$18,$AV$19,TRUE)*'1. Inputs'!$D$23) -> 0.2566300548 | AC74: =IFERROR(IF(AB74*(1-('3. Gap Analysis '!$J$109/100))+Z74*('3. Gap Analysis '!$J$109/100)=0,"",AB74*(1-('3. Gap Analysis '!$J$109/100))+Z74*('3. Gap Analysis '!$J$109/100)),"") -> 0.1595674049 | AD74: =IF(W74="Yes",(S74*'1. Inputs'!$D$72+AG74*'1. Inputs'!$D$70/'1. Inputs'!$D$71+'1. Inputs'!$D$74*'1. Inputs'!$D$73*'1. Inputs'!$D$47*AG74+'1. Inputs'!$D$75)/S74,"") -> 42.34731935 | AE74: 22 | AF74: =IFERROR(IF(AND(AE74>0,AE74<MIN(COUNTA($B$11:$B$2000)*'3. Gap Analysis '!$B$104,COUNTIF($W$11:$W$2010,"Yes"))),"Yes","No"),"") -> Yes | AG74: =IFERROR(IF(W74="Yes",ROUNDUP(S74/('1. Inputs'!$D$89*'1. Inputs'!$D$48),0),0),"") -> 1 | AH74: No | AI74: =IF(AND(AH74="Yes",S74>0),(G74*2*'1. Inputs'!$D$54)*'1. Inputs'!$D$56*52+'1. Inputs'!$D$52/'1. Inputs'!$D$53+'1. Inputs'!$D$55*T74*('1. Inputs'!$D$48/52)+'1. Inputs'!$D$57*'1. Inputs'!$D$54*52,"") ->  | AJ74: =IFERROR(IF(INDEX('6. Product assignment'!$Y$18:$Y$2017,MATCH(B74,'6. Product assignment'!$C$18:$C$2017,0))="POC",1,0),0) -> 1 | AK74: =IFERROR(INDEX('6. Product assignment'!$AB$18:$AB$2017,MATCH(B74,'6. Product assignment'!$C$18:$C$2017,0)),"") -> 0 | AL74: =IFERROR(INDEX('6. Product assignment'!$AC$18:$AC$2017,MATCH(B74,'6. Product assignment'!$C$18:$C$2017,0)),"") -> 1 | AM74: =IFERROR(INDEX('6. Product assignment'!$AD$18:$AD$2017,MATCH(B74,'6. Product assignment'!$C$18:$C$2017,0)),"") -> 0 | AN74: =IFERROR(INDEX('6. Product assignment'!$AE$18:$AE$2017,MATCH(B74,'6. Product assignment'!$C$18:$C$2017,0)),"") -> 0 | AO74: =IFERROR(INDEX('6. Product assignment'!$Z$18:$Z$2017,MATCH(B74,'6. Product assignment'!$C$18:$C$2017,0)),"") -> 1 | AP74: =IFERROR(INDEX('6. Product assignment'!$AA$18:$AA$2017,MATCH(B74,'6. Product assignment'!$C$18:$C$2017,0)),"") -> 0 | AR74: 64
B75: SITE 65 | C75: District C | D75: 167 | E75: 4 | F75: 12 | G75: 202.4536415 | H75: None | I75: Conventional | J75: Yes | K75: Yes | M75: =D75*'1. Inputs'!$D$36+D75*'1. Inputs'!$D$37 -> 183.7 | N75: =M75/'1. Inputs'!$D$48 -> 0.7348 | O75: =MAX(F75,E75)*'1. Inputs'!$D$38+MAX(E75,F75)*'1. Inputs'!$D$39 -> 24.84 | P75: =O75/'1. Inputs'!$D$48 -> 0.09936 | Q75: None | R75: Conventional | S75: =IF('1. Inputs'!$C$13="VL_only",M75,IF('1. Inputs'!$C$13="EID_only",O75,M75+O75)) -> 208.54 | T75: =S75/'1. Inputs'!$D$48 -> 0.83416 | U75: =IF(J75="Yes",1,0) -> 1 | V75: =IF(K75="Yes",1,0) -> 1 | W75: =IF(AND('1. Inputs'!$C$27="Yes",J75="No"),"No",IF(AND('1. Inputs'!$C$29="Yes",K75="No"),"No",IF(AND(S75>0,T75<='1. Inputs'!$D$46*'1. Inputs'!$D$89),"Yes","No"))) -> Yes | X75: =IF(W75="Yes",G75,0) -> 202.4536415 | Y75: =IF(W75="Yes",S75,0) -> 208.54 | Z75: =IFERROR(IF(W75="No","",(_xlfn.NORM.DIST(G75,$AW$15,$AV$16,TRUE)*'1. Inputs'!$D$24)),"") -> 0.1122809985 | AA75: =IF(AD75="","",(1-_xlfn.NORM.DIST(AD75,$AW$12,$AV$13,TRUE))*'1. Inputs'!$D$22) -> 0.2171074386 | AB75: =IF(W75="No","",_xlfn.NORM.DIST(Y75,$AW$18,$AV$19,TRUE)*'1. Inputs'!$D$23) -> 0.2450351355 | AC75: =IFERROR(IF(AB75*(1-('3. Gap Analysis '!$J$109/100))+Z75*('3. Gap Analysis '!$J$109/100)=0,"",AB75*(1-('3. Gap Analysis '!$J$109/100))+Z75*('3. Gap Analysis '!$J$109/100)),"") -> 0.1521072396 | AD75: =IF(W75="Yes",(S75*'1. Inputs'!$D$72+AG75*'1. Inputs'!$D$70/'1. Inputs'!$D$71+'1. Inputs'!$D$74*'1. Inputs'!$D$73*'1. Inputs'!$D$47*AG75+'1. Inputs'!$D$75)/S75,"") -> 45.28829002 | AE75: 31 | AF75: =IFERROR(IF(AND(AE75>0,AE75<MIN(COUNTA($B$11:$B$2000)*'3. Gap Analysis '!$B$104,COUNTIF($W$11:$W$2010,"Yes"))),"Yes","No"),"") -> Yes | AG75: =IFERROR(IF(W75="Yes",ROUNDUP(S75/('1. Inputs'!$D$89*'1. Inputs'!$D$48),0),0),"") -> 1 | AH75: =IF(AND(AF75="No",S75>0),"Yes","No") -> No | AI75: =IF(AND(AH75="Yes",S75>0),(G75*2*'1. Inputs'!$D$54)*'1. Inputs'!$D$56*52+'1. Inputs'!$D$52/'1. Inputs'!$D$53+'1. Inputs'!$D$55*T75*('1. Inputs'!$D$48/52)+'1. Inputs'!$D$57*'1. Inputs'!$D$54*52,"") ->  | AJ75: =IFERROR(IF(INDEX('6. Product assignment'!$Y$18:$Y$2017,MATCH(B75,'6. Product assignment'!$C$18:$C$2017,0))="POC",1,0),0) -> 1 | AK75: =IFERROR(INDEX('6. Product assignment'!$AB$18:$AB$2017,MATCH(B75,'6. Product assignment'!$C$18:$C$2017,0)),"") -> 0 | AL75: =IFERROR(INDEX('6. Product assignment'!$AC$18:$AC$2017,MATCH(B75,'6. Product assignment'!$C$18:$C$2017,0)),"") -> 1 | AM75: =IFERROR(INDEX('6. Product assignment'!$AD$18:$AD$2017,MATCH(B75,'6. Product assignment'!$C$18:$C$2017,0)),"") -> 0 | AN75: =IFERROR(INDEX('6. Product assignment'!$AE$18:$AE$2017,MATCH(B75,'6. Product assignment'!$C$18:$C$2017,0)),"") -> 0 | AO75: =IFERROR(INDEX('6. Product assignment'!$Z$18:$Z$2017,MATCH(B75,'6. Product assignment'!$C$18:$C$2017,0)),"") -> 1 | AP75: =IFERROR(INDEX('6. Product assignment'!$AA$18:$AA$2017,MATCH(B75,'6. Product assignment'!$C$18:$C$2017,0)),"") -> 0 | AR75: 65
B76: SITE 66 | C76: District C | D76: 3511 | E76: 126 | F76: 146 | G76: 80 | H76: None | I76: Conventional | J76: Yes | K76: Yes | M76: =D76*'1. Inputs'!$D$36+D76*'1. Inputs'!$D$37 -> 3862.1 | N76: =M76/'1. Inputs'!$D$48 -> 15.4484 | O76: =MAX(F76,E76)*'1. Inputs'!$D$38+MAX(E76,F76)*'1. Inputs'!$D$39 -> 302.22 | P76: =O76/'1. Inputs'!$D$48 -> 1.20888 | Q76: =IF(H76="Conventional",H76,IF(H76="None","None",IF(H76="","","POC"))) -> None | R76: =IF(I76="Conventional",I76,IF(I76="None","None",IF(I76="","","POC"))) -> Conventional | S76: =IF('1. Inputs'!$C$13="VL_only",M76,IF('1. Inputs'!$C$13="EID_only",O76,M76+O76)) -> 4164.32 | T76: =S76/'1. Inputs'!$D$48 -> 16.65728 | U76: 1 | V76: 1 | W76: =IF(AND('1. Inputs'!$C$27="Yes",J76="No"),"No",IF(AND('1. Inputs'!$C$29="Yes",K76="No"),"No",IF(AND(S76>0,T76<='1. Inputs'!$D$46*'1. Inputs'!$D$89),"Yes","No"))) -> Yes | X76: 80 | Y76: 4164.32 | Z76: =IFERROR(IF(W76="No","",(_xlfn.NORM.DIST(G76,$AW$15,$AV$16,TRUE)*'1. Inputs'!$D$24)),"") -> 0.03529491153 | AA76: =IF(AD76="","",(1-_xlfn.NORM.DIST(AD76,$AW$12,$AV$13,TRUE))*'1. Inputs'!$D$22) -> 0.280153819 | AB76: =IF(W76="No","",_xlfn.NORM.DIST(Y76,$AW$18,$AV$19,TRUE)*'1. Inputs'!$D$23) -> 0.35 | AC76: =IFERROR(IF(AB76*(1-('3. Gap Analysis '!$J$109/100))+Z76*('3. Gap Analysis '!$J$109/100)=0,"",AB76*(1-('3. Gap Analysis '!$J$109/100))+Z76*('3. Gap Analysis '!$J$109/100)),"") -> 0.1297064381 | AD76: =IF(W76="Yes",(S76*'1. Inputs'!$D$72+AG76*'1. Inputs'!$D$70/'1. Inputs'!$D$71+'1. Inputs'!$D$74*'1. Inputs'!$D$73*'1. Inputs'!$D$47*AG76+'1. Inputs'!$D$75)/S76,"") -> 25.23229723 | AE76: =IFERROR(IFERROR(_xlfn.RANK.EQ(AC76,$AC$11:$AC$2010),_xlfn.RANK.EQ(AD76,$AD$11:$AD$2010,1)),"") -> 50 | AF76: =IFERROR(IF(AND(AE76>0,AE76<MIN(COUNTA($B$11:$B$2000)*'3. Gap Analysis '!$B$104,COUNTIF($W$11:$W$2010,"Yes"))),"Yes","No"),"") -> Yes | AG76: =IFERROR(IF(W76="Yes",ROUNDUP(S76/('1. Inputs'!$D$89*'1. Inputs'!$D$48),0),0),"") -> 2 | AH76: No | AI76: =IF(AND(AH76="Yes",S76>0),(G76*2*'1. Inputs'!$D$54)*'1. Inputs'!$D$56*52+'1. Inputs'!$D$52/'1. Inputs'!$D$53+'1. Inputs'!$D$55*T76*('1. Inputs'!$D$48/52)+'1. Inputs'!$D$57*'1. Inputs'!$D$54*52,"") ->  | AJ76: =IFERROR(IF(INDEX('6. Product assignment'!$Y$18:$Y$2017,MATCH(B76,'6. Product assignment'!$C$18:$C$2017,0))="POC",1,0),0) -> 1 | AK76: =IFERROR(INDEX('6. Product assignment'!$AB$18:$AB$2017,MATCH(B76,'6. Product assignment'!$C$18:$C$2017,0)),"") -> 0 | AL76: =IFERROR(INDEX('6. Product assignment'!$AC$18:$AC$2017,MATCH(B76,'6. Product assignment'!$C$18:$C$2017,0)),"") -> 1 | AM76: =IFERROR(INDEX('6. Product assignment'!$AD$18:$AD$2017,MATCH(B76,'6. Product assignment'!$C$18:$C$2017,0)),"") -> 0 | AN76: =IFERROR(INDEX('6. Product assignment'!$AE$18:$AE$2017,MATCH(B76,'6. Product assignment'!$C$18:$C$2017,0)),"") -> 0 | AO76: =IFERROR(INDEX('6. Product assignment'!$Z$18:$Z$2017,MATCH(B76,'6. Product assignment'!$C$18:$C$2017,0)),"") -> 1 | AP76: =IFERROR(INDEX('6. Product assignment'!$AA$18:$AA$2017,MATCH(B76,'6. Product assignment'!$C$18:$C$2017,0)),"") -> 0 | AR76: 66
B77: SITE 67 | C77: District C | D77: 1102 | E77: 8 | F77: 18 | G77: 11.09473336 | H77: Conventional | I77: Conventional | J77: Yes | K77: Yes | M77: =D77*'1. Inputs'!$D$36+D77*'1. Inputs'!$D$37 -> 1212.2 | N77: =M77/'1. Inputs'!$D$48 -> 4.8488 | O77: =MAX(F77,E77)*'1. Inputs'!$D$38+MAX(E77,F77)*'1. Inputs'!$D$39 -> 37.26 | P77: =O77/'1. Inputs'!$D$48 -> 0.14904 | Q77: Conventional | R77: Conventional | S77: =IF('1. Inputs'!$C$13="VL_only",M77,IF('1. Inputs'!$C$13="EID_only",O77,M77+O77)) -> 1249.46 | T77: =S77/'1. Inputs'!$D$48 -> 4.99784 | U77: 1 | V77: 1 | W77: =IF(AND('1. Inputs'!$C$27="Yes",J77="No"),"No",IF(AND('1. Inputs'!$C$29="Yes",K77="No"),"No",IF(AND(S77>0,T77<='1. Inputs'!$D$46*'1. Inputs'!$D$89),"Yes","No"))) -> Yes | X77: 11.09473336 | Y77: 1249.46 | Z77: =IFERROR(IF(W77="No","",(_xlfn.NORM.DIST(G77,$AW$15,$AV$16,TRUE)*'1. Inputs'!$D$24)),"") -> 0.009934782297 | AA77: =IF(AD77="","",(1-_xlfn.NORM.DIST(AD77,$AW$12,$AV$13,TRUE))*'1. Inputs'!$D$22) -> 0.2755033145 | AB77: =IF(W77="No","",_xlfn.NORM.DIST(Y77,$AW$18,$AV$19,TRUE)*'1. Inputs'!$D$23) -> 0.3499677949 | AC77: =IFERROR(IF(AB77*(1-('3. Gap Analysis '!$J$109/100))+Z77*('3. Gap Analysis '!$J$109/100)=0,"",AB77*(1-('3. Gap Analysis '!$J$109/100))+Z77*('3. Gap Analysis '!$J$109/100)),"") -> 0.1119446861 | AD77: =IF(W77="Yes",(S77*'1. Inputs'!$D$72+AG77*'1. Inputs'!$D$70/'1. Inputs'!$D$71+'1. Inputs'!$D$74*'1. Inputs'!$D$73*'1. Inputs'!$D$47*AG77+'1. Inputs'!$D$75)/S77,"") -> 26.72000704 | AE77: 66 | AF77: =IFERROR(IF(AND(AE77>0,AE77<MIN(COUNTA($B$11:$B$2000)*'3. Gap Analysis '!$B$104,COUNTIF($W$11:$W$2010,"Yes"))),"Yes","No"),"") -> Yes | AG77: =IFERROR(IF(W77="Yes",ROUNDUP(S77/('1. Inputs'!$D$89*'1. Inputs'!$D$48),0),0),"") -> 1 | AH77: No | AI77: =IF(AND(AH77="Yes",S77>0),(G77*2*'1. Inputs'!$D$54)*'1. Inputs'!$D$56*52+'1. Inputs'!$D$52/'1. Inputs'!$D$53+'1. Inputs'!$D$55*T77*('1. Inputs'!$D$48/52)+'1. Inputs'!$D$57*'1. Inputs'!$D$54*52,"") ->  | AJ77: =IFERROR(IF(INDEX('6. Product assignment'!$Y$18:$Y$2017,MATCH(B77,'6. Product assignment'!$C$18:$C$2017,0))="POC",1,0),0) -> 0 | AK77: =IFERROR(INDEX('6. Product assignment'!$AB$18:$AB$2017,MATCH(B77,'6. Product assignment'!$C$18:$C$2017,0)),"") -> 0 | AL77: =IFERROR(INDEX('6. Product assignment'!$AC$18:$AC$2017,MATCH(B77,'6. Product assignment'!$C$18:$C$2017,0)),"") -> 0 | AM77: =IFERROR(INDEX('6. Product assignment'!$AD$18:$AD$2017,MATCH(B77,'6. Product assignment'!$C$18:$C$2017,0)),"") -> 0 | AN77: =IFERROR(INDEX('6. Product assignment'!$AE$18:$AE$2017,MATCH(B77,'6. Product assignment'!$C$18:$C$2017,0)),"") -> 0 | AO77: =IFERROR(INDEX('6. Product assignment'!$Z$18:$Z$2017,MATCH(B77,'6. Product assignment'!$C$18:$C$2017,0)),"") -> 0 | AP77: =IFERROR(INDEX('6. Product assignment'!$AA$18:$AA$2017,MATCH(B77,'6. Product assignment'!$C$18:$C$2017,0)),"") -> 0 | AR77: =AR76+1 -> 67
B78: SITE 68 | C78: District C | D78: 112 | E78: 7 | F78: 50 | G78: 160 | H78: None | I78: Conventional | J78: Yes | K78: Yes | M78: =D78*'1. Inputs'!$D$36+D78*'1. Inputs'!$D$37 -> 123.2 | N78: =M78/'1. Inputs'!$D$48 -> 0.4928 | O78: =MAX(F78,E78)*'1. Inputs'!$D$38+MAX(E78,F78)*'1. Inputs'!$D$39 -> 103.5 | P78: =O78/'1. Inputs'!$D$48 -> 0.414 | Q78: None | R78: Conventional | S78: =IF('1. Inputs'!$C$13="VL_only",M78,IF('1. Inputs'!$C$13="EID_only",O78,M78+O78)) -> 226.7 | T78: =S78/'1. Inputs'!$D$48 -> 0.9068 | U78: 1 | V78: 1 | W78: =IF(AND('1. Inputs'!$C$27="Yes",J78="No"),"No",IF(AND('1. Inputs'!$C$29="Yes",K78="No"),"No",IF(AND(S78>0,T78<='1. Inputs'!$D$46*'1. Inputs'!$D$89),"Yes","No"))) -> Yes | X78: 160 | Y78: 226.7 | Z78: =IFERROR(IF(W78="No","",(_xlfn.NORM.DIST(G78,$AW$15,$AV$16,TRUE)*'1. Inputs'!$D$24)),"") -> 0.08615562877 | AA78: =IF(AD78="","",(1-_xlfn.NORM.DIST(AD78,$AW$12,$AV$13,TRUE))*'1. Inputs'!$D$22) -> 0.2226791375 | AB78: =IF(W78="No","",_xlfn.NORM.DIST(Y78,$AW$18,$AV$19,TRUE)*'1. Inputs'!$D$23) -> 0.2517574067 | AC78: =IFERROR(IF(AB78*(1-('3. Gap Analysis '!$J$109/100))+Z78*('3. Gap Analysis '!$J$109/100)=0,"",AB78*(1-('3. Gap Analysis '!$J$109/100))+Z78*('3. Gap Analysis '!$J$109/100)),"") -> 0.1358361621 | AD78: =IF(W78="Yes",(S78*'1. Inputs'!$D$72+AG78*'1. Inputs'!$D$70/'1. Inputs'!$D$71+'1. Inputs'!$D$74*'1. Inputs'!$D$73*'1. Inputs'!$D$47*AG78+'1. Inputs'!$D$75)/S78,"") -> 43.50286723 | AE78: 46 | AF78: =IFERROR(IF(AND(AE78>0,AE78<MIN(COUNTA($B$11:$B$2000)*'3. Gap Analysis '!$B$104,COUNTIF($W$11:$W$2010,"Yes"))),"Yes","No"),"") -> Yes | AG78: =IFERROR(IF(W78="Yes",ROUNDUP(S78/('1. Inputs'!$D$89*'1. Inputs'!$D$48),0),0),"") -> 1 | AH78: No | AI78: =IF(AND(AH78="Yes",S78>0),(G78*2*'1. Inputs'!$D$54)*'1. Inputs'!$D$56*52+'1. Inputs'!$D$52/'1. Inputs'!$D$53+'1. Inputs'!$D$55*T78*('1. Inputs'!$D$48/52)+'1. Inputs'!$D$57*'1. Inputs'!$D$54*52,"") ->  | AJ78: =IFERROR(IF(INDEX('6. Product assignment'!$Y$18:$Y$2017,MATCH(B78,'6. Product assignment'!$C$18:$C$2017,0))="POC",1,0),0) -> 1 | AK78: =IFERROR(INDEX('6. Product assignment'!$AB$18:$AB$2017,MATCH(B78,'6. Product assignment'!$C$18:$C$2017,0)),"") -> 0 | AL78: =IFERROR(INDEX('6. Product assignment'!$AC$18:$AC$2017,MATCH(B78,'6. Product assignment'!$C$18:$C$2017,0)),"") -> 1 | AM78: =IFERROR(INDEX('6. Product assignment'!$AD$18:$AD$2017,MATCH(B78,'6. Product assignment'!$C$18:$C$2017,0)),"") -> 0 | AN78: =IFERROR(INDEX('6. Product assignment'!$AE$18:$AE$2017,MATCH(B78,'6. Product assignment'!$C$18:$C$2017,0)),"") -> 0 | AO78: =IFERROR(INDEX('6. Product assignment'!$Z$18:$Z$2017,MATCH(B78,'6. Product assignment'!$C$18:$C$2017,0)),"") -> 1 | AP78: =IFERROR(INDEX('6. Product assignment'!$AA$18:$AA$2017,MATCH(B78,'6. Product assignment'!$C$18:$C$2017,0)),"") -> 0 | AR78: 68
B79: SITE 69 | C79: District C | D79: 481 | E79: 5 | F79: 12 | G79: 6 | H79: None | I79: Conventional | J79: Yes | K79: Yes | M79: =D79*'1. Inputs'!$D$36+D79*'1. Inputs'!$D$37 -> 529.1 | N79: =M79/'1. Inputs'!$D$48 -> 2.1164 | O79: =MAX(F79,E79)*'1. Inputs'!$D$38+MAX(E79,F79)*'1. Inputs'!$D$39 -> 24.84 | P79: =O79/'1. Inputs'!$D$48 -> 0.09936 | Q79: None | R79: Conventional | S79: =IF('1. Inputs'!$C$13="VL_only",M79,IF('1. Inputs'!$C$13="EID_only",O79,M79+O79)) -> 553.94 | T79: =S79/'1. Inputs'!$D$48 -> 2.21576 | U79: 1 | V79: 1 | W79: =IF(AND('1. Inputs'!$C$27="Yes",J79="No"),"No",IF(AND('1. Inputs'!$C$29="Yes",K79="No"),"No",IF(AND(S79>0,T79<='1. Inputs'!$D$46*'1. Inputs'!$D$89),"Yes","No"))) -> Yes | X79: 6 | Y79: 553.94 | Z79: =IFERROR(IF(W79="No","",(_xlfn.NORM.DIST(G79,$AW$15,$AV$16,TRUE)*'1. Inputs'!$D$24)),"") -> 0.008865470495 | AA79: =IF(AD79="","",(1-_xlfn.NORM.DIST(AD79,$AW$12,$AV$13,TRUE))*'1. Inputs'!$D$22) -> 0.2608231447 | AB79: =IF(W79="No","",_xlfn.NORM.DIST(Y79,$AW$18,$AV$19,TRUE)*'1. Inputs'!$D$23) -> 0.330491766 | AC79: =IFERROR(IF(AB79*(1-('3. Gap Analysis '!$J$109/100))+Z79*('3. Gap Analysis '!$J$109/100)=0,"",AB79*(1-('3. Gap Analysis '!$J$109/100))+Z79*('3. Gap Analysis '!$J$109/100)),"") -> 0.1053533591 | AD79: =IF(W79="Yes",(S79*'1. Inputs'!$D$72+AG79*'1. Inputs'!$D$70/'1. Inputs'!$D$71+'1. Inputs'!$D$74*'1. Inputs'!$D$73*'1. Inputs'!$D$47*AG79+'1. Inputs'!$D$75)/S79,"") -> 31.39080045 | AE79: 77 | AF79: =IFERROR(IF(AND(AE79>0,AE79<MIN(COUNTA($B$11:$B$2000)*'3. Gap Analysis '!$B$104,COUNTIF($W$11:$W$2010,"Yes"))),"Yes","No"),"") -> No | AG79: =IFERROR(IF(W79="Yes",ROUNDUP(S79/('1. Inputs'!$D$89*'1. Inputs'!$D$48),0),0),"") -> 1 | AH79: Yes | AI79: =IF(AND(AH79="Yes",S79>0),(G79*2*'1. Inputs'!$D$54)*'1. Inputs'!$D$56*52+'1. Inputs'!$D$52/'1. Inputs'!$D$53+'1. Inputs'!$D$55*T79*('1. Inputs'!$D$48/52)+'1. Inputs'!$D$57*'1. Inputs'!$D$54*52,"") -> 114.2857143 | AJ79: =IFERROR(IF(INDEX('6. Product assignment'!$Y$18:$Y$2017,MATCH(B79,'6. Product assignment'!$C$18:$C$2017,0))="POC",1,0),0) -> 0 | AK79: =IFERROR(INDEX('6. Product assignment'!$AB$18:$AB$2017,MATCH(B79,'6. Product assignment'!$C$18:$C$2017,0)),"") -> 0 | AL79: =IFERROR(INDEX('6. Product assignment'!$AC$18:$AC$2017,MATCH(B79,'6. Product assignment'!$C$18:$C$2017,0)),"") -> 0 | AM79: =IFERROR(INDEX('6. Product assignment'!$AD$18:$AD$2017,MATCH(B79,'6. Product assignment'!$C$18:$C$2017,0)),"") -> 0 | AN79: =IFERROR(INDEX('6. Product assignment'!$AE$18:$AE$2017,MATCH(B79,'6. Product assignment'!$C$18:$C$2017,0)),"") -> 0 | AO79: =IFERROR(INDEX('6. Product assignment'!$Z$18:$Z$2017,MATCH(B79,'6. Product assignment'!$C$18:$C$2017,0)),"") -> 0 | AP79: =IFERROR(INDEX('6. Product assignment'!$AA$18:$AA$2017,MATCH(B79,'6. Product assignment'!$C$18:$C$2017,0)),"") -> 0 | AR79: 69
B80: SITE 70 | C80: District C | D80: 2 | E80: 260 | G80: 121.029623 | H80: None | I80: Conventional | J80: Yes | K80: Yes | M80: =D80*'1. Inputs'!$D$36+D80*'1. Inputs'!$D$37 -> 2.2 | N80: =M80/'1. Inputs'!$D$48 -> 0.0088 | O80: =MAX(F80,E80)*'1. Inputs'!$D$38+MAX(E80,F80)*'1. Inputs'!$D$39 -> 538.2 | P80: =O80/'1. Inputs'!$D$48 -> 2.1528 | Q80: None | R80: Conventional | S80: =IF('1. Inputs'!$C$13="VL_only",M80,IF('1. Inputs'!$C$13="EID_only",O80,M80+O80)) -> 540.4 | T80: =S80/'1. Inputs'!$D$48 -> 2.1616 | U80: 1 | V80: 1 | W80: =IF(AND('1. Inputs'!$C$27="Yes",J80="No"),"No",IF(AND('1. Inputs'!$C$29="Yes",K80="No"),"No",IF(AND(S80>0,T80<='1. Inputs'!$D$46*'1. Inputs'!$D$89),"Yes","No"))) -> Yes | X80: 121.029623 | Y80: 540.4 | Z80: =IFERROR(IF(W80="No","",(_xlfn.NORM.DIST(G80,$AW$15,$AV$16,TRUE)*'1. Inputs'!$D$24)),"") -> 0.05988705106 | AA80: =IF(AD80="","",(1-_xlfn.NORM.DIST(AD80,$AW$12,$AV$13,TRUE))*'1. Inputs'!$D$22) -> 0.2601603918 | AB80: =IF(W80="No","",_xlfn.NORM.DIST(Y80,$AW$18,$AV$19,TRUE)*'1. Inputs'!$D$23) -> 0.3287906471 | AC80: =IFERROR(IF(AB80*(1-('3. Gap Analysis '!$J$109/100))+Z80*('3. Gap Analysis '!$J$109/100)=0,"",AB80*(1-('3. Gap Analysis '!$J$109/100))+Z80*('3. Gap Analysis '!$J$109/100)),"") -> 0.1405581299 | AD80: =IF(W80="Yes",(S80*'1. Inputs'!$D$72+AG80*'1. Inputs'!$D$70/'1. Inputs'!$D$71+'1. Inputs'!$D$74*'1. Inputs'!$D$73*'1. Inputs'!$D$47*AG80+'1. Inputs'!$D$75)/S80,"") -> 31.60103627 | AE80: 44 | AF80: =IFERROR(IF(AND(AE80>0,AE80<MIN(COUNTA($B$11:$B$2000)*'3. Gap Analysis '!$B$104,COUNTIF($W$11:$W$2010,"Yes"))),"Yes","No"),"") -> Yes | AG80: =IFERROR(IF(W80="Yes",ROUNDUP(S80/('1. Inputs'!$D$89*'1. Inputs'!$D$48),0),0),"") -> 1 | AH80: No | AI80: =IF(AND(AH80="Yes",S80>0),(G80*2*'1. Inputs'!$D$54)*'1. Inputs'!$D$56*52+'1. Inputs'!$D$52/'1. Inputs'!$D$53+'1. Inputs'!$D$55*T80*('1. Inputs'!$D$48/52)+'1. Inputs'!$D$57*'1. Inputs'!$D$54*52,"") ->  | AJ80: =IFERROR(IF(INDEX('6. Product assignment'!$Y$18:$Y$2017,MATCH(B80,'6. Product assignment'!$C$18:$C$2017,0))="POC",1,0),0) -> 1 | AK80: =IFERROR(INDEX('6. Product assignment'!$AB$18:$AB$2017,MATCH(B80,'6. Product assignment'!$C$18:$C$2017,0)),"") -> 0 | AL80: =IFERROR(INDEX('6. Product assignment'!$AC$18:$AC$2017,MATCH(B80,'6. Product assignment'!$C$18:$C$2017,0)),"") -> 1 | AM80: =IFERROR(INDEX('6. Product assignment'!$AD$18:$AD$2017,MATCH(B80,'6. Product assignment'!$C$18:$C$2017,0)),"") -> 0 | AN80: =IFERROR(INDEX('6. Product assignment'!$AE$18:$AE$2017,MATCH(B80,'6. Product assignment'!$C$18:$C$2017,0)),"") -> 0 | AO80: =IFERROR(INDEX('6. Product assignment'!$Z$18:$Z$2017,MATCH(B80,'6. Product assignment'!$C$18:$C$2017,0)),"") -> 1 | AP80: =IFERROR(INDEX('6. Product assignment'!$AA$18:$AA$2017,MATCH(B80,'6. Product assignment'!$C$18:$C$2017,0)),"") -> 0 | AR80: 70
B81: SITE 71 | C81: District C | E81: 1 | F81: 14 | G81: 129.0002756 | H81: None | I81: Conventional | J81: Yes | K81: Yes | M81: =D81*'1. Inputs'!$D$36+D81*'1. Inputs'!$D$37 -> 0 | N81: =M81/'1. Inputs'!$D$48 -> 0 | O81: =MAX(F81,E81)*'1. Inputs'!$D$38+MAX(E81,F81)*'1. Inputs'!$D$39 -> 28.98 | P81: =O81/'1. Inputs'!$D$48 -> 0.11592 | Q81: None | R81: Conventional | S81: =IF('1. Inputs'!$C$13="VL_only",M81,IF('1. Inputs'!$C$13="EID_only",O81,M81+O81)) -> 28.98 | T81: =S81/'1. Inputs'!$D$48 -> 0.11592 | U81: 1 | V81: 1 | W81: =IF(AND('1. Inputs'!$C$27="Yes",J81="No"),"No",IF(AND('1. Inputs'!$C$29="Yes",K81="No"),"No",IF(AND(S81>0,T81<='1. Inputs'!$D$46*'1. Inputs'!$D$89),"Yes","No"))) -> Yes | X81: 129.0002756 | Y81: 28.98 | Z81: =IFERROR(IF(W81="No","",(_xlfn.NORM.DIST(G81,$AW$15,$AV$16,TRUE)*'1. Inputs'!$D$24)),"") -> 0.06518684071 | AA81: =IF(AD81="","",(1-_xlfn.NORM.DIST(AD81,$AW$12,$AV$13,TRUE))*'1. Inputs'!$D$22) -> 0.004678610869 | AB81: =IF(W81="No","",_xlfn.NORM.DIST(Y81,$AW$18,$AV$19,TRUE)*'1. Inputs'!$D$23) -> 0.1708181939 | AC81: =IFERROR(IF(AB81*(1-('3. Gap Analysis '!$J$109/100))+Z81*('3. Gap Analysis '!$J$109/100)=0,"",AB81*(1-('3. Gap Analysis '!$J$109/100))+Z81*('3. Gap Analysis '!$J$109/100)),"") -> 0.09687624666 | AD81: =IF(W81="Yes",(S81*'1. Inputs'!$D$72+AG81*'1. Inputs'!$D$70/'1. Inputs'!$D$71+'1. Inputs'!$D$74*'1. Inputs'!$D$73*'1. Inputs'!$D$47*AG81+'1. Inputs'!$D$75)/S81,"") -> 183.3864734 | AE81: 84 | AF81: =IFERROR(IF(AND(AE81>0,AE81<MIN(COUNTA($B$11:$B$2000)*'3. Gap Analysis '!$B$104,COUNTIF($W$11:$W$2010,"Yes"))),"Yes","No"),"") -> No | AG81: =IFERROR(IF(W81="Yes",ROUNDUP(S81/('1. Inputs'!$D$89*'1. Inputs'!$D$48),0),0),"") -> 1 | AH81: Yes | AI81: =IF(AND(AH81="Yes",S81>0),(G81*2*'1. Inputs'!$D$54)*'1. Inputs'!$D$56*52+'1. Inputs'!$D$52/'1. Inputs'!$D$53+'1. Inputs'!$D$55*T81*('1. Inputs'!$D$48/52)+'1. Inputs'!$D$57*'1. Inputs'!$D$54*52,"") -> 114.2857143 | AJ81: =IFERROR(IF(INDEX('6. Product assignment'!$Y$18:$Y$2017,MATCH(B81,'6. Product assignment'!$C$18:$C$2017,0))="POC",1,0),0) -> 0 | AK81: =IFERROR(INDEX('6. Product assignment'!$AB$18:$AB$2017,MATCH(B81,'6. Product assignment'!$C$18:$C$2017,0)),"") -> 0 | AL81: =IFERROR(INDEX('6. Product assignment'!$AC$18:$AC$2017,MATCH(B81,'6. Product assignment'!$C$18:$C$2017,0)),"") -> 0 | AM81: =IFERROR(INDEX('6. Product assignment'!$AD$18:$AD$2017,MATCH(B81,'6. Product assignment'!$C$18:$C$2017,0)),"") -> 0 | AN81: =IFERROR(INDEX('6. Product assignment'!$AE$18:$AE$2017,MATCH(B81,'6. Product assignment'!$C$18:$C$2017,0)),"") -> 0 | AO81: =IFERROR(INDEX('6. Product assignment'!$Z$18:$Z$2017,MATCH(B81,'6. Product assignment'!$C$18:$C$2017,0)),"") -> 0 | AP81: =IFERROR(INDEX('6. Product assignment'!$AA$18:$AA$2017,MATCH(B81,'6. Product assignment'!$C$18:$C$2017,0)),"") -> 0 | AR81: 71
B82: SITE 72 | C82: District C | D82: 914 | E82: 3 | F82: 12 | G82: 270 | H82: None | I82: Conventional | J82: Yes | K82: Yes | M82: =D82*'1. Inputs'!$D$36+D82*'1. Inputs'!$D$37 -> 1005.4 | N82: =M82/'1. Inputs'!$D$48 -> 4.0216 | O82: =MAX(F82,E82)*'1. Inputs'!$D$38+MAX(E82,F82)*'1. Inputs'!$D$39 -> 24.84 | P82: =O82/'1. Inputs'!$D$48 -> 0.09936 | Q82: None | R82: Conventional | S82: =IF('1. Inputs'!$C$13="VL_only",M82,IF('1. Inputs'!$C$13="EID_only",O82,M82+O82)) -> 1030.24 | T82: =S82/'1. Inputs'!$D$48 -> 4.12096 | U82: 1 | V82: 1 | W82: =IF(AND('1. Inputs'!$C$27="Yes",J82="No"),"No",IF(AND('1. Inputs'!$C$29="Yes",K82="No"),"No",IF(AND(S82>0,T82<='1. Inputs'!$D$46*'1. Inputs'!$D$89),"Yes","No"))) -> Yes | X82: 270 | Y82: 1030.24 | Z82: =IFERROR(IF(W82="No","",(_xlfn.NORM.DIST(G82,$AW$15,$AV$16,TRUE)*'1. Inputs'!$D$24)),"") -> 0.1387049556 | AA82: =IF(AD82="","",(1-_xlfn.NORM.DIST(AD82,$AW$12,$AV$13,TRUE))*'1. Inputs'!$D$22) -> 0.2730230375 | AB82: =IF(W82="No","",_xlfn.NORM.DIST(Y82,$AW$18,$AV$19,TRUE)*'1. Inputs'!$D$23) -> 0.3496163158 | AC82: =IFERROR(IF(AB82*(1-('3. Gap Analysis '!$J$109/100))+Z82*('3. Gap Analysis '!$J$109/100)=0,"",AB82*(1-('3. Gap Analysis '!$J$109/100))+Z82*('3. Gap Analysis '!$J$109/100)),"") -> 0.2019783637 | AD82: =IF(W82="Yes",(S82*'1. Inputs'!$D$72+AG82*'1. Inputs'!$D$70/'1. Inputs'!$D$71+'1. Inputs'!$D$74*'1. Inputs'!$D$73*'1. Inputs'!$D$47*AG82+'1. Inputs'!$D$75)/S82,"") -> 27.51157012 | AE82: 3 | AF82: =IFERROR(IF(AND(AE82>0,AE82<MIN(COUNTA($B$11:$B$2000)*'3. Gap Analysis '!$B$104,COUNTIF($W$11:$W$2010,"Yes"))),"Yes","No"),"") -> Yes | AG82: =IFERROR(IF(W82="Yes",ROUNDUP(S82/('1. Inputs'!$D$89*'1. Inputs'!$D$48),0),0),"") -> 1 | AH82: No | AI82: =IF(AND(AH82="Yes",S82>0),(G82*2*'1. Inputs'!$D$54)*'1. Inputs'!$D$56*52+'1. Inputs'!$D$52/'1. Inputs'!$D$53+'1. Inputs'!$D$55*T82*('1. Inputs'!$D$48/52)+'1. Inputs'!$D$57*'1. Inputs'!$D$54*52,"") ->  | AJ82: =IFERROR(IF(INDEX('6. Product assignment'!$Y$18:$Y$2017,MATCH(B82,'6. Product assignment'!$C$18:$C$2017,0))="POC",1,0),0) -> 1 | AK82: =IFERROR(INDEX('6. Product assignment'!$AB$18:$AB$2017,MATCH(B82,'6. Product assignment'!$C$18:$C$2017,0)),"") -> 0 | AL82: =IFERROR(INDEX('6. Product assignment'!$AC$18:$AC$2017,MATCH(B82,'6. Product assignment'!$C$18:$C$2017,0)),"") -> 1 | AM82: =IFERROR(INDEX('6. Product assignment'!$AD$18:$AD$2017,MATCH(B82,'6. Product assignment'!$C$18:$C$2017,0)),"") -> 0 | AN82: =IFERROR(INDEX('6. Product assignment'!$AE$18:$AE$2017,MATCH(B82,'6. Product assignment'!$C$18:$C$2017,0)),"") -> 0 | AO82: =IFERROR(INDEX('6. Product assignment'!$Z$18:$Z$2017,MATCH(B82,'6. Product assignment'!$C$18:$C$2017,0)),"") -> 1 | AP82: =IFERROR(INDEX('6. Product assignment'!$AA$18:$AA$2017,MATCH(B82,'6. Product assignment'!$C$18:$C$2017,0)),"") -> 0 | AR82: 72
B83: SITE 73 | C83: District C | D83: 5060 | E83: 9 | F83: 18 | G83: 130 | H83: None | I83: Conventional | J83: Yes | K83: Yes | M83: =D83*'1. Inputs'!$D$36+D83*'1. Inputs'!$D$37 -> 5566 | N83: =M83/'1. Inputs'!$D$48 -> 22.264 | O83: =MAX(F83,E83)*'1. Inputs'!$D$38+MAX(E83,F83)*'1. Inputs'!$D$39 -> 37.26 | P83: =O83/'1. Inputs'!$D$48 -> 0.14904 | Q83: None | R83: Conventional | S83: =IF('1. Inputs'!$C$13="VL_only",M83,IF('1. Inputs'!$C$13="EID_only",O83,M83+O83)) -> 5603.26 | T83: =S83/'1. Inputs'!$D$48 -> 22.41304 | U83: 1 | V83: 1 | W83: =IF(AND('1. Inputs'!$C$27="Yes",J83="No"),"No",IF(AND('1. Inputs'!$C$29="Yes",K83="No"),"No",IF(AND(S83>0,T83<='1. Inputs'!$D$46*'1. Inputs'!$D$89),"Yes","No"))) -> Yes | X83: 130 | Y83: 5603.26 | Z83: =IFERROR(IF(W83="No","",(_xlfn.NORM.DIST(G83,$AW$15,$AV$16,TRUE)*'1. Inputs'!$D$24)),"") -> 0.06585806693 | AA83: =IF(AD83="","",(1-_xlfn.NORM.DIST(AD83,$AW$12,$AV$13,TRUE))*'1. Inputs'!$D$22) -> 0.2819415205 | AB83: =IF(W83="No","",_xlfn.NORM.DIST(Y83,$AW$18,$AV$19,TRUE)*'1. Inputs'!$D$23) -> 0.35 | AC83: =IFERROR(IF(AB83*(1-('3. Gap Analysis '!$J$109/100))+Z83*('3. Gap Analysis '!$J$109/100)=0,"",AB83*(1-('3. Gap Analysis '!$J$109/100))+Z83*('3. Gap Analysis '!$J$109/100)),"") -> 0.1511006469 | AD83: =IF(W83="Yes",(S83*'1. Inputs'!$D$72+AG83*'1. Inputs'!$D$70/'1. Inputs'!$D$71+'1. Inputs'!$D$74*'1. Inputs'!$D$73*'1. Inputs'!$D$47*AG83+'1. Inputs'!$D$75)/S83,"") -> 24.65903421 | AE83: 35 | AF83: =IFERROR(IF(AND(AE83>0,AE83<MIN(COUNTA($B$11:$B$2000)*'3. Gap Analysis '!$B$104,COUNTIF($W$11:$W$2010,"Yes"))),"Yes","No"),"") -> Yes | AG83: =IFERROR(IF(W83="Yes",ROUNDUP(S83/('1. Inputs'!$D$89*'1. Inputs'!$D$48),0),0),"") -> 2 | AH83: No | AI83: =IF(AND(AH83="Yes",S83>0),(G83*2*'1. Inputs'!$D$54)*'1. Inputs'!$D$56*52+'1. Inputs'!$D$52/'1. Inputs'!$D$53+'1. Inputs'!$D$55*T83*('1. Inputs'!$D$48/52)+'1. Inputs'!$D$57*'1. Inputs'!$D$54*52,"") ->  | AJ83: =IFERROR(IF(INDEX('6. Product assignment'!$Y$18:$Y$2017,MATCH(B83,'6. Product assignment'!$C$18:$C$2017,0))="POC",1,0),0) -> 1 | AK83: =IFERROR(INDEX('6. Product assignment'!$AB$18:$AB$2017,MATCH(B83,'6. Product assignment'!$C$18:$C$2017,0)),"") -> 0 | AL83: =IFERROR(INDEX('6. Product assignment'!$AC$18:$AC$2017,MATCH(B83,'6. Product assignment'!$C$18:$C$2017,0)),"") -> 1 | AM83: =IFERROR(INDEX('6. Product assignment'!$AD$18:$AD$2017,MATCH(B83,'6. Product assignment'!$C$18:$C$2017,0)),"") -> 0 | AN83: =IFERROR(INDEX('6. Product assignment'!$AE$18:$AE$2017,MATCH(B83,'6. Product assignment'!$C$18:$C$2017,0)),"") -> 0 | AO83: =IFERROR(INDEX('6. Product assignment'!$Z$18:$Z$2017,MATCH(B83,'6. Product assignment'!$C$18:$C$2017,0)),"") -> 1 | AP83: =IFERROR(INDEX('6. Product assignment'!$AA$18:$AA$2017,MATCH(B83,'6. Product assignment'!$C$18:$C$2017,0)),"") -> 0 | AR83: 73
B84: SITE 74 | C84: District C | D84: 171 | E84: 15 | F84: 28 | G84: 373.3867377 | H84: None | I84: Conventional | J84: Yes | K84: Yes | M84: =D84*'1. Inputs'!$D$36+D84*'1. Inputs'!$D$37 -> 188.1 | N84: =M84/'1. Inputs'!$D$48 -> 0.7524 | O84: =MAX(F84,E84)*'1. Inputs'!$D$38+MAX(E84,F84)*'1. Inputs'!$D$39 -> 57.96 | P84: =O84/'1. Inputs'!$D$48 -> 0.23184 | Q84: None | R84: Conventional | S84: =IF('1. Inputs'!$C$13="VL_only",M84,IF('1. Inputs'!$C$13="EID_only",O84,M84+O84)) -> 246.06 | T84: =S84/'1. Inputs'!$D$48 -> 0.98424 | U84: 1 | V84: 1 | W84: =IF(AND('1. Inputs'!$C$27="Yes",J84="No"),"No",IF(AND('1. Inputs'!$C$29="Yes",K84="No"),"No",IF(AND(S84>0,T84<='1. Inputs'!$D$46*'1. Inputs'!$D$89),"Yes","No"))) -> Yes | X84: 373.3867377 | Y84: 246.06 | Z84: =IFERROR(IF(W84="No","",(_xlfn.NORM.DIST(G84,$AW$15,$AV$16,TRUE)*'1. Inputs'!$D$24)),"") -> 0.1493252262 | AA84: =IF(AD84="","",(1-_xlfn.NORM.DIST(AD84,$AW$12,$AV$13,TRUE))*'1. Inputs'!$D$22) -> 0.2277320372 | AB84: =IF(W84="No","",_xlfn.NORM.DIST(Y84,$AW$18,$AV$19,TRUE)*'1. Inputs'!$D$23) -> 0.2586863171 | AC84: =IFERROR(IF(AB84*(1-('3. Gap Analysis '!$J$109/100))+Z84*('3. Gap Analysis '!$J$109/100)=0,"",AB84*(1-('3. Gap Analysis '!$J$109/100))+Z84*('3. Gap Analysis '!$J$109/100)),"") -> 0.1821335534 | AD84: =IF(W84="Yes",(S84*'1. Inputs'!$D$72+AG84*'1. Inputs'!$D$70/'1. Inputs'!$D$71+'1. Inputs'!$D$74*'1. Inputs'!$D$73*'1. Inputs'!$D$47*AG84+'1. Inputs'!$D$75)/S84,"") -> 41.8897017 | AE84: 9 | AF84: =IFERROR(IF(AND(AE84>0,AE84<MIN(COUNTA($B$11:$B$2000)*'3. Gap Analysis '!$B$104,COUNTIF($W$11:$W$2010,"Yes"))),"Yes","No"),"") -> Yes | AG84: =IFERROR(IF(W84="Yes",ROUNDUP(S84/('1. Inputs'!$D$89*'1. Inputs'!$D$48),0),0),"") -> 1 | AH84: No | AI84: =IF(AND(AH84="Yes",S84>0),(G84*2*'1. Inputs'!$D$54)*'1. Inputs'!$D$56*52+'1. Inputs'!$D$52/'1. Inputs'!$D$53+'1. Inputs'!$D$55*T84*('1. Inputs'!$D$48/52)+'1. Inputs'!$D$57*'1. Inputs'!$D$54*52,"") ->  | AJ84: =IFERROR(IF(INDEX('6. Product assignment'!$Y$18:$Y$2017,MATCH(B84,'6. Product assignment'!$C$18:$C$2017,0))="POC",1,0),0) -> 1 | AK84: =IFERROR(INDEX('6. Product assignment'!$AB$18:$AB$2017,MATCH(B84,'6. Product assignment'!$C$18:$C$2017,0)),"") -> 0 | AL84: =IFERROR(INDEX('6. Product assignment'!$AC$18:$AC$2017,MATCH(B84,'6. Product assignment'!$C$18:$C$2017,0)),"") -> 1 | AM84: =IFERROR(INDEX('6. Product assignment'!$AD$18:$AD$2017,MATCH(B84,'6. Product assignment'!$C$18:$C$2017,0)),"") -> 0 | AN84: =IFERROR(INDEX('6. Product assignment'!$AE$18:$AE$2017,MATCH(B84,'6. Product assignment'!$C$18:$C$2017,0)),"") -> 0 | AO84: =IFERROR(INDEX('6. Product assignment'!$Z$18:$Z$2017,MATCH(B84,'6. Product assignment'!$C$18:$C$2017,0)),"") -> 1 | AP84: =IFERROR(INDEX('6. Product assignment'!$AA$18:$AA$2017,MATCH(B84,'6. Product assignment'!$C$18:$C$2017,0)),"") -> 0 | AR84: 74
B85: SITE 75 | C85: District C | D85: 3286 | E85: 17 | F85: 34 | G85: 23.96158172 | H85: None | I85: Conventional | J85: Yes | K85: Yes | M85: =D85*'1. Inputs'!$D$36+D85*'1. Inputs'!$D$37 -> 3614.6 | N85: =M85/'1. Inputs'!$D$48 -> 14.4584 | O85: =MAX(F85,E85)*'1. Inputs'!$D$38+MAX(E85,F85)*'1. Inputs'!$D$39 -> 70.38 | P85: =O85/'1. Inputs'!$D$48 -> 0.28152 | Q85: None | R85: Conventional | S85: =IF('1. Inputs'!$C$13="VL_only",M85,IF('1. Inputs'!$C$13="EID_only",O85,M85+O85)) -> 3684.98 | T85: =S85/'1. Inputs'!$D$48 -> 14.73992 | U85: 1 | V85: 1 | W85: =IF(AND('1. Inputs'!$C$27="Yes",J85="No"),"No",IF(AND('1. Inputs'!$C$29="Yes",K85="No"),"No",IF(AND(S85>0,T85<='1. Inputs'!$D$46*'1. Inputs'!$D$89),"Yes","No"))) -> Yes | X85: 23.96158172 | Y85: 3684.98 | Z85: =IFERROR(IF(W85="No","",(_xlfn.NORM.DIST(G85,$AW$15,$AV$16,TRUE)*'1. Inputs'!$D$24)),"") -> 0.01307872321 | AA85: =IF(AD85="","",(1-_xlfn.NORM.DIST(AD85,$AW$12,$AV$13,TRUE))*'1. Inputs'!$D$22) -> 0.2831802045 | AB85: =IF(W85="No","",_xlfn.NORM.DIST(Y85,$AW$18,$AV$19,TRUE)*'1. Inputs'!$D$23) -> 0.35 | AC85: =IFERROR(IF(AB85*(1-('3. Gap Analysis '!$J$109/100))+Z85*('3. Gap Analysis '!$J$109/100)=0,"",AB85*(1-('3. Gap Analysis '!$J$109/100))+Z85*('3. Gap Analysis '!$J$109/100)),"") -> 0.1141551062 | AD85: =IF(W85="Yes",(S85*'1. Inputs'!$D$72+AG85*'1. Inputs'!$D$70/'1. Inputs'!$D$71+'1. Inputs'!$D$74*'1. Inputs'!$D$73*'1. Inputs'!$D$47*AG85+'1. Inputs'!$D$75)/S85,"") -> 24.26133656 | AE85: 62 | AF85: =IFERROR(IF(AND(AE85>0,AE85<MIN(COUNTA($B$11:$B$2000)*'3. Gap Analysis '!$B$104,COUNTIF($W$11:$W$2010,"Yes"))),"Yes","No"),"") -> Yes | AG85: =IFERROR(IF(W85="Yes",ROUNDUP(S85/('1. Inputs'!$D$89*'1. Inputs'!$D$48),0),0),"") -> 1 | AH85: No | AI85: =IF(AND(AH85="Yes",S85>0),(G85*2*'1. Inputs'!$D$54)*'1. Inputs'!$D$56*52+'1. Inputs'!$D$52/'1. Inputs'!$D$53+'1. Inputs'!$D$55*T85*('1. Inputs'!$D$48/52)+'1. Inputs'!$D$57*'1. Inputs'!$D$54*52,"") ->  | AJ85: =IFERROR(IF(INDEX('6. Product assignment'!$Y$18:$Y$2017,MATCH(B85,'6. Product assignment'!$C$18:$C$2017,0))="POC",1,0),0) -> 1 | AK85: =IFERROR(INDEX('6. Product assignment'!$AB$18:$AB$2017,MATCH(B85,'6. Product assignment'!$C$18:$C$2017,0)),"") -> 0 | AL85: =IFERROR(INDEX('6. Product assignment'!$AC$18:$AC$2017,MATCH(B85,'6. Product assignment'!$C$18:$C$2017,0)),"") -> 1 | AM85: =IFERROR(INDEX('6. Product assignment'!$AD$18:$AD$2017,MATCH(B85,'6. Product assignment'!$C$18:$C$2017,0)),"") -> 0 | AN85: =IFERROR(INDEX('6. Product assignment'!$AE$18:$AE$2017,MATCH(B85,'6. Product assignment'!$C$18:$C$2017,0)),"") -> 0 | AO85: =IFERROR(INDEX('6. Product assignment'!$Z$18:$Z$2017,MATCH(B85,'6. Product assignment'!$C$18:$C$2017,0)),"") -> 1 | AP85: =IFERROR(INDEX('6. Product assignment'!$AA$18:$AA$2017,MATCH(B85,'6. Product assignment'!$C$18:$C$2017,0)),"") -> 0 | AR85: 75
B86: SITE 76 | C86: District C | D86: 223 | E86: 156 | F86: 210 | G86: 40.31072594 | H86: None | I86: Conventional | J86: Yes | K86: Yes | M86: =D86*'1. Inputs'!$D$36+D86*'1. Inputs'!$D$37 -> 245.3 | N86: =M86/'1. Inputs'!$D$48 -> 0.9812 | O86: =MAX(F86,E86)*'1. Inputs'!$D$38+MAX(E86,F86)*'1. Inputs'!$D$39 -> 434.7 | P86: =O86/'1. Inputs'!$D$48 -> 1.7388 | Q86: None | R86: Conventional | S86: =IF('1. Inputs'!$C$13="VL_only",M86,IF('1. Inputs'!$C$13="EID_only",O86,M86+O86)) -> 680 | T86: =S86/'1. Inputs'!$D$48 -> 2.72 | U86: 1 | V86: 1 | W86: =IF(AND('1. Inputs'!$C$27="Yes",J86="No"),"No",IF(AND('1. Inputs'!$C$29="Yes",K86="No"),"No",IF(AND(S86>0,T86<='1. Inputs'!$D$46*'1. Inputs'!$D$89),"Yes","No"))) -> Yes | X86: 40.31072594 | Y86: 680 | Z86: =IFERROR(IF(W86="No","",(_xlfn.NORM.DIST(G86,$AW$15,$AV$16,TRUE)*'1. Inputs'!$D$24)),"") -> 0.01807522415 | AA86: =IF(AD86="","",(1-_xlfn.NORM.DIST(AD86,$AW$12,$AV$13,TRUE))*'1. Inputs'!$D$22) -> 0.2657225597 | AB86: =IF(W86="No","",_xlfn.NORM.DIST(Y86,$AW$18,$AV$19,TRUE)*'1. Inputs'!$D$23) -> 0.3416711796 | AC86: =IFERROR(IF(AB86*(1-('3. Gap Analysis '!$J$109/100))+Z86*('3. Gap Analysis '!$J$109/100)=0,"",AB86*(1-('3. Gap Analysis '!$J$109/100))+Z86*('3. Gap Analysis '!$J$109/100)),"") -> 0.1151540108 | AD86: =IF(W86="Yes",(S86*'1. Inputs'!$D$72+AG86*'1. Inputs'!$D$70/'1. Inputs'!$D$71+'1. Inputs'!$D$74*'1. Inputs'!$D$73*'1. Inputs'!$D$47*AG86+'1. Inputs'!$D$75)/S86,"") -> 29.83529412 | AE86: 61 | AF86: =IFERROR(IF(AND(AE86>0,AE86<MIN(COUNTA($B$11:$B$2000)*'3. Gap Analysis '!$B$104,COUNTIF($W$11:$W$2010,"Yes"))),"Yes","No"),"") -> Yes | AG86: =IFERROR(IF(W86="Yes",ROUNDUP(S86/('1. Inputs'!$D$89*'1. Inputs'!$D$48),0),0),"") -> 1 | AH86: No | AI86: =IF(AND(AH86="Yes",S86>0),(G86*2*'1. Inputs'!$D$54)*'1. Inputs'!$D$56*52+'1. Inputs'!$D$52/'1. Inputs'!$D$53+'1. Inputs'!$D$55*T86*('1. Inputs'!$D$48/52)+'1. Inputs'!$D$57*'1. Inputs'!$D$54*52,"") ->  | AJ86: =IFERROR(IF(INDEX('6. Product assignment'!$Y$18:$Y$2017,MATCH(B86,'6. Product assignment'!$C$18:$C$2017,0))="POC",1,0),0) -> 1 | AK86: =IFERROR(INDEX('6. Product assignment'!$AB$18:$AB$2017,MATCH(B86,'6. Product assignment'!$C$18:$C$2017,0)),"") -> 0 | AL86: =IFERROR(INDEX('6. Product assignment'!$AC$18:$AC$2017,MATCH(B86,'6. Product assignment'!$C$18:$C$2017,0)),"") -> 1 | AM86: =IFERROR(INDEX('6. Product assignment'!$AD$18:$AD$2017,MATCH(B86,'6. Product assignment'!$C$18:$C$2017,0)),"") -> 0 | AN86: =IFERROR(INDEX('6. Product assignment'!$AE$18:$AE$2017,MATCH(B86,'6. Product assignment'!$C$18:$C$2017,0)),"") -> 0 | AO86: =IFERROR(INDEX('6. Product assignment'!$Z$18:$Z$2017,MATCH(B86,'6. Product assignment'!$C$18:$C$2017,0)),"") -> 1 | AP86: =IFERROR(INDEX('6. Product assignment'!$AA$18:$AA$2017,MATCH(B86,'6. Product assignment'!$C$18:$C$2017,0)),"") -> 0 | AR86: 76
B87: SITE 77 | C87: District C | D87: 669 | E87: 37 | F87: 58 | G87: 123.9209845 | H87: None | I87: Conventional | J87: Yes | K87: Yes | M87: =D87*'1. Inputs'!$D$36+D87*'1. Inputs'!$D$37 -> 735.9 | N87: =M87/'1. Inputs'!$D$48 -> 2.9436 | O87: =MAX(F87,E87)*'1. Inputs'!$D$38+MAX(E87,F87)*'1. Inputs'!$D$39 -> 120.06 | P87: =O87/'1. Inputs'!$D$48 -> 0.48024 | Q87: None | R87: Conventional | S87: =IF('1. Inputs'!$C$13="VL_only",M87,IF('1. Inputs'!$C$13="EID_only",O87,M87+O87)) -> 855.96 | T87: =S87/'1. Inputs'!$D$48 -> 3.42384 | U87: 1 | V87: 1 | W87: =IF(AND('1. Inputs'!$C$27="Yes",J87="No"),"No",IF(AND('1. Inputs'!$C$29="Yes",K87="No"),"No",IF(AND(S87>0,T87<='1. Inputs'!$D$46*'1. Inputs'!$D$89),"Yes","No"))) -> Yes | X87: 123.9209845 | Y87: 855.96 | Z87: =IFERROR(IF(W87="No","",(_xlfn.NORM.DIST(G87,$AW$15,$AV$16,TRUE)*'1. Inputs'!$D$24)),"") -> 0.06179768626 | AA87: =IF(AD87="","",(1-_xlfn.NORM.DIST(AD87,$AW$12,$AV$13,TRUE))*'1. Inputs'!$D$22) -> 0.2701402518 | AB87: =IF(W87="No","",_xlfn.NORM.DIST(Y87,$AW$18,$AV$19,TRUE)*'1. Inputs'!$D$23) -> 0.3479724276 | AC87: =IFERROR(IF(AB87*(1-('3. Gap Analysis '!$J$109/100))+Z87*('3. Gap Analysis '!$J$109/100)=0,"",AB87*(1-('3. Gap Analysis '!$J$109/100))+Z87*('3. Gap Analysis '!$J$109/100)),"") -> 0.1476501087 | AD87: =IF(W87="Yes",(S87*'1. Inputs'!$D$72+AG87*'1. Inputs'!$D$70/'1. Inputs'!$D$71+'1. Inputs'!$D$74*'1. Inputs'!$D$73*'1. Inputs'!$D$47*AG87+'1. Inputs'!$D$75)/S87,"") -> 28.43016029 | AE87: 40 | AF87: =IFERROR(IF(AND(AE87>0,AE87<MIN(COUNTA($B$11:$B$2000)*'3. Gap Analysis '!$B$104,COUNTIF($W$11:$W$2010,"Yes"))),"Yes","No"),"") -> Yes | AG87: =IFERROR(IF(W87="Yes",ROUNDUP(S87/('1. Inputs'!$D$89*'1. Inputs'!$D$48),0),0),"") -> 1 | AH87: No | AI87: =IF(AND(AH87="Yes",S87>0),(G87*2*'1. Inputs'!$D$54)*'1. Inputs'!$D$56*52+'1. Inputs'!$D$52/'1. Inputs'!$D$53+'1. Inputs'!$D$55*T87*('1. Inputs'!$D$48/52)+'1. Inputs'!$D$57*'1. Inputs'!$D$54*52,"") ->  | AJ87: =IFERROR(IF(INDEX('6. Product assignment'!$Y$18:$Y$2017,MATCH(B87,'6. Product assignment'!$C$18:$C$2017,0))="POC",1,0),0) -> 1 | AK87: =IFERROR(INDEX('6. Product assignment'!$AB$18:$AB$2017,MATCH(B87,'6. Product assignment'!$C$18:$C$2017,0)),"") -> 0 | AL87: =IFERROR(INDEX('6. Product assignment'!$AC$18:$AC$2017,MATCH(B87,'6. Product assignment'!$C$18:$C$2017,0)),"") -> 1 | AM87: =IFERROR(INDEX('6. Product assignment'!$AD$18:$AD$2017,MATCH(B87,'6. Product assignment'!$C$18:$C$2017,0)),"") -> 0 | AN87: =IFERROR(INDEX('6. Product assignment'!$AE$18:$AE$2017,MATCH(B87,'6. Product assignment'!$C$18:$C$2017,0)),"") -> 0 | AO87: =IFERROR(INDEX('6. Product assignment'!$Z$18:$Z$2017,MATCH(B87,'6. Product assignment'!$C$18:$C$2017,0)),"") -> 1 | AP87: =IFERROR(INDEX('6. Product assignment'!$AA$18:$AA$2017,MATCH(B87,'6. Product assignment'!$C$18:$C$2017,0)),"") -> 0 | AR87: 77
B88: SITE 78 | C88: District C | D88: 254 | E88: 142 | F88: 152 | G88: 110.2336915 | H88: None | I88: Conventional | J88: Yes | K88: Yes | M88: =D88*'1. Inputs'!$D$36+D88*'1. Inputs'!$D$37 -> 279.4 | N88: =M88/'1. Inputs'!$D$48 -> 1.1176 | O88: =MAX(F88,E88)*'1. Inputs'!$D$38+MAX(E88,F88)*'1. Inputs'!$D$39 -> 314.64 | P88: =O88/'1. Inputs'!$D$48 -> 1.25856 | Q88: None | R88: Conventional | S88: =IF('1. Inputs'!$C$13="VL_only",M88,IF('1. Inputs'!$C$13="EID_only",O88,M88+O88)) -> 594.04 | T88: =S88/'1. Inputs'!$D$48 -> 2.37616 | U88: 1 | V88: 1 | W88: =IF(AND('1. Inputs'!$C$27="Yes",J88="No"),"No",IF(AND('1. Inputs'!$C$29="Yes",K88="No"),"No",IF(AND(S88>0,T88<='1. Inputs'!$D$46*'1. Inputs'!$D$89),"Yes","No"))) -> Yes | X88: 110.2336915 | Y88: 594.04 | Z88: =IFERROR(IF(W88="No","",(_xlfn.NORM.DIST(G88,$AW$15,$AV$16,TRUE)*'1. Inputs'!$D$24)),"") -> 0.05290908569 | AA88: =IF(AD88="","",(1-_xlfn.NORM.DIST(AD88,$AW$12,$AV$13,TRUE))*'1. Inputs'!$D$22) -> 0.2626080987 | AB88: =IF(W88="No","",_xlfn.NORM.DIST(Y88,$AW$18,$AV$19,TRUE)*'1. Inputs'!$D$23) -> 0.3349043515 | AC88: =IFERROR(IF(AB88*(1-('3. Gap Analysis '!$J$109/100))+Z88*('3. Gap Analysis '!$J$109/100)=0,"",AB88*(1-('3. Gap Analysis '!$J$109/100))+Z88*('3. Gap Analysis '!$J$109/100)),"") -> 0.1375076654 | AD88: =IF(W88="Yes",(S88*'1. Inputs'!$D$72+AG88*'1. Inputs'!$D$70/'1. Inputs'!$D$71+'1. Inputs'!$D$74*'1. Inputs'!$D$73*'1. Inputs'!$D$47*AG88+'1. Inputs'!$D$75)/S88,"") -> 30.82438893 | AE88: 45 | AF88: =IFERROR(IF(AND(AE88>0,AE88<MIN(COUNTA($B$11:$B$2000)*'3. Gap Analysis '!$B$104,COUNTIF($W$11:$W$2010,"Yes"))),"Yes","No"),"") -> Yes | AG88: =IFERROR(IF(W88="Yes",ROUNDUP(S88/('1. Inputs'!$D$89*'1. Inputs'!$D$48),0),0),"") -> 1 | AH88: No | AI88: =IF(AND(AH88="Yes",S88>0),(G88*2*'1. Inputs'!$D$54)*'1. Inputs'!$D$56*52+'1. Inputs'!$D$52/'1. Inputs'!$D$53+'1. Inputs'!$D$55*T88*('1. Inputs'!$D$48/52)+'1. Inputs'!$D$57*'1. Inputs'!$D$54*52,"") ->  | AJ88: =IFERROR(IF(INDEX('6. Product assignment'!$Y$18:$Y$2017,MATCH(B88,'6. Product assignment'!$C$18:$C$2017,0))="POC",1,0),0) -> 1 | AK88: =IFERROR(INDEX('6. Product assignment'!$AB$18:$AB$2017,MATCH(B88,'6. Product assignment'!$C$18:$C$2017,0)),"") -> 0 | AL88: =IFERROR(INDEX('6. Product assignment'!$AC$18:$AC$2017,MATCH(B88,'6. Product assignment'!$C$18:$C$2017,0)),"") -> 1 | AM88: =IFERROR(INDEX('6. Product assignment'!$AD$18:$AD$2017,MATCH(B88,'6. Product assignment'!$C$18:$C$2017,0)),"") -> 0 | AN88: =IFERROR(INDEX('6. Product assignment'!$AE$18:$AE$2017,MATCH(B88,'6. Product assignment'!$C$18:$C$2017,0)),"") -> 0 | AO88: =IFERROR(INDEX('6. Product assignment'!$Z$18:$Z$2017,MATCH(B88,'6. Product assignment'!$C$18:$C$2017,0)),"") -> 1 | AP88: =IFERROR(INDEX('6. Product assignment'!$AA$18:$AA$2017,MATCH(B88,'6. Product assignment'!$C$18:$C$2017,0)),"") -> 0 | AR88: 78
B89: SITE 79 | C89: District C | D89: 10 | E89: 8 | F89: 12 | G89: 84.50057349 | H89: None | I89: Conventional | J89: Yes | K89: Yes | M89: =D89*'1. Inputs'!$D$36+D89*'1. Inputs'!$D$37 -> 11 | N89: =M89/'1. Inputs'!$D$48 -> 0.044 | O89: =MAX(F89,E89)*'1. Inputs'!$D$38+MAX(E89,F89)*'1. Inputs'!$D$39 -> 24.84 | P89: =O89/'1. Inputs'!$D$48 -> 0.09936 | Q89: None | R89: Conventional | S89: =IF('1. Inputs'!$C$13="VL_only",M89,IF('1. Inputs'!$C$13="EID_only",O89,M89+O89)) -> 35.84 | T89: =S89/'1. Inputs'!$D$48 -> 0.14336 | U89: 1 | V89: 1 | W89: =IF(AND('1. Inputs'!$C$27="Yes",J89="No"),"No",IF(AND('1. Inputs'!$C$29="Yes",K89="No"),"No",IF(AND(S89>0,T89<='1. Inputs'!$D$46*'1. Inputs'!$D$89),"Yes","No"))) -> Yes | X89: 84.50057349 | Y89: 35.84 | Z89: =IFERROR(IF(W89="No","",(_xlfn.NORM.DIST(G89,$AW$15,$AV$16,TRUE)*'1. Inputs'!$D$24)),"") -> 0.03769682437 | AA89: =IF(AD89="","",(1-_xlfn.NORM.DIST(AD89,$AW$12,$AV$13,TRUE))*'1. Inputs'!$D$22) -> 0.01553364222 | AB89: =IF(W89="No","",_xlfn.NORM.DIST(Y89,$AW$18,$AV$19,TRUE)*'1. Inputs'!$D$23) -> 0.1737763197 | AC89: =IFERROR(IF(AB89*(1-('3. Gap Analysis '!$J$109/100))+Z89*('3. Gap Analysis '!$J$109/100)=0,"",AB89*(1-('3. Gap Analysis '!$J$109/100))+Z89*('3. Gap Analysis '!$J$109/100)),"") -> 0.07852067298 | AD89: =IF(W89="Yes",(S89*'1. Inputs'!$D$72+AG89*'1. Inputs'!$D$70/'1. Inputs'!$D$71+'1. Inputs'!$D$74*'1. Inputs'!$D$73*'1. Inputs'!$D$47*AG89+'1. Inputs'!$D$75)/S89,"") -> 152.6875 | AE89: 90 | AF89: =IFERROR(IF(AND(AE89>0,AE89<MIN(COUNTA($B$11:$B$2000)*'3. Gap Analysis '!$B$104,COUNTIF($W$11:$W$2010,"Yes"))),"Yes","No"),"") -> No | AG89: =IFERROR(IF(W89="Yes",ROUNDUP(S89/('1. Inputs'!$D$89*'1. Inputs'!$D$48),0),0),"") -> 1 | AH89: Yes | AI89: =IF(AND(AH89="Yes",S89>0),(G89*2*'1. Inputs'!$D$54)*'1. Inputs'!$D$56*52+'1. Inputs'!$D$52/'1. Inputs'!$D$53+'1. Inputs'!$D$55*T89*('1. Inputs'!$D$48/52)+'1. Inputs'!$D$57*'1. Inputs'!$D$54*52,"") -> 114.2857143 | AJ89: =IFERROR(IF(INDEX('6. Product assignment'!$Y$18:$Y$2017,MATCH(B89,'6. Product assignment'!$C$18:$C$2017,0))="POC",1,0),0) -> 0 | AK89: =IFERROR(INDEX('6. Product assignment'!$AB$18:$AB$2017,MATCH(B89,'6. Product assignment'!$C$18:$C$2017,0)),"") -> 0 | AL89: =IFERROR(INDEX('6. Product assignment'!$AC$18:$AC$2017,MATCH(B89,'6. Product assignment'!$C$18:$C$2017,0)),"") -> 0 | AM89: =IFERROR(INDEX('6. Product assignment'!$AD$18:$AD$2017,MATCH(B89,'6. Product assignment'!$C$18:$C$2017,0)),"") -> 0 | AN89: =IFERROR(INDEX('6. Product assignment'!$AE$18:$AE$2017,MATCH(B89,'6. Product assignment'!$C$18:$C$2017,0)),"") -> 0 | AO89: =IFERROR(INDEX('6. Product assignment'!$Z$18:$Z$2017,MATCH(B89,'6. Product assignment'!$C$18:$C$2017,0)),"") -> 0 | AP89: =IFERROR(INDEX('6. Product assignment'!$AA$18:$AA$2017,MATCH(B89,'6. Product assignment'!$C$18:$C$2017,0)),"") -> 0 | AR89: 79
B90: SITE 80 | C90: District C | D90: 234 | E90: 62 | F90: 66 | G90: 232.6780126 | H90: None | I90: Conventional | J90: Yes | K90: Yes | M90: =D90*'1. Inputs'!$D$36+D90*'1. Inputs'!$D$37 -> 257.4 | N90: =M90/'1. Inputs'!$D$48 -> 1.0296 | O90: =MAX(F90,E90)*'1. Inputs'!$D$38+MAX(E90,F90)*'1. Inputs'!$D$39 -> 136.62 | P90: =O90/'1. Inputs'!$D$48 -> 0.54648 | Q90: None | R90: Conventional | S90: =IF('1. Inputs'!$C$13="VL_only",M90,IF('1. Inputs'!$C$13="EID_only",O90,M90+O90)) -> 394.02 | T90: =S90/'1. Inputs'!$D$48 -> 1.57608 | U90: 1 | V90: 1 | W90: =IF(AND('1. Inputs'!$C$27="Yes",J90="No"),"No",IF(AND('1. Inputs'!$C$29="Yes",K90="No"),"No",IF(AND(S90>0,T90<='1. Inputs'!$D$46*'1. Inputs'!$D$89),"Yes","No"))) -> Yes | X90: 232.6780126 | Y90: 394.02 | Z90: =IFERROR(IF(W90="No","",(_xlfn.NORM.DIST(G90,$AW$15,$AV$16,TRUE)*'1. Inputs'!$D$24)),"") -> 0.1266824403 | AA90: =IF(AD90="","",(1-_xlfn.NORM.DIST(AD90,$AW$12,$AV$13,TRUE))*'1. Inputs'!$D$22) -> 0.2500778218 | AB90: =IF(W90="No","",_xlfn.NORM.DIST(Y90,$AW$18,$AV$19,TRUE)*'1. Inputs'!$D$23) -> 0.3023350575 | AC90: =IFERROR(IF(AB90*(1-('3. Gap Analysis '!$J$109/100))+Z90*('3. Gap Analysis '!$J$109/100)=0,"",AB90*(1-('3. Gap Analysis '!$J$109/100))+Z90*('3. Gap Analysis '!$J$109/100)),"") -> 0.1793782255 | AD90: =IF(W90="Yes",(S90*'1. Inputs'!$D$72+AG90*'1. Inputs'!$D$70/'1. Inputs'!$D$71+'1. Inputs'!$D$74*'1. Inputs'!$D$73*'1. Inputs'!$D$47*AG90+'1. Inputs'!$D$75)/S90,"") -> 34.79635551 | AE90: 10 | AF90: =IFERROR(IF(AND(AE90>0,AE90<MIN(COUNTA($B$11:$B$2000)*'3. Gap Analysis '!$B$104,COUNTIF($W$11:$W$2010,"Yes"))),"Yes","No"),"") -> Yes | AG90: =IFERROR(IF(W90="Yes",ROUNDUP(S90/('1. Inputs'!$D$89*'1. Inputs'!$D$48),0),0),"") -> 1 | AH90: No | AI90: =IF(AND(AH90="Yes",S90>0),(G90*2*'1. Inputs'!$D$54)*'1. Inputs'!$D$56*52+'1. Inputs'!$D$52/'1. Inputs'!$D$53+'1. Inputs'!$D$55*T90*('1. Inputs'!$D$48/52)+'1. Inputs'!$D$57*'1. Inputs'!$D$54*52,"") ->  | AJ90: =IFERROR(IF(INDEX('6. Product assignment'!$Y$18:$Y$2017,MATCH(B90,'6. Product assignment'!$C$18:$C$2017,0))="POC",1,0),0) -> 1 | AK90: =IFERROR(INDEX('6. Product assignment'!$AB$18:$AB$2017,MATCH(B90,'6. Product assignment'!$C$18:$C$2017,0)),"") -> 0 | AL90: =IFERROR(INDEX('6. Product assignment'!$AC$18:$AC$2017,MATCH(B90,'6. Product assignment'!$C$18:$C$2017,0)),"") -> 1 | AM90: =IFERROR(INDEX('6. Product assignment'!$AD$18:$AD$2017,MATCH(B90,'6. Product assignment'!$C$18:$C$2017,0)),"") -> 0 | AN90: =IFERROR(INDEX('6. Product assignment'!$AE$18:$AE$2017,MATCH(B90,'6. Product assignment'!$C$18:$C$2017,0)),"") -> 0 | AO90: =IFERROR(INDEX('6. Product assignment'!$Z$18:$Z$2017,MATCH(B90,'6. Product assignment'!$C$18:$C$2017,0)),"") -> 1 | AP90: =IFERROR(INDEX('6. Product assignment'!$AA$18:$AA$2017,MATCH(B90,'6. Product assignment'!$C$18:$C$2017,0)),"") -> 0 | AR90: 80
B91: SITE 81 | C91: District C | D91: 21 | E91: 6 | F91: 16 | G91: 130 | H91: None | I91: Conventional | J91: Yes | K91: Yes | M91: =D91*'1. Inputs'!$D$36+D91*'1. Inputs'!$D$37 -> 23.1 | N91: =M91/'1. Inputs'!$D$48 -> 0.0924 | O91: =MAX(F91,E91)*'1. Inputs'!$D$38+MAX(E91,F91)*'1. Inputs'!$D$39 -> 33.12 | P91: =O91/'1. Inputs'!$D$48 -> 0.13248 | Q91: None | R91: Conventional | S91: =IF('1. Inputs'!$C$13="VL_only",M91,IF('1. Inputs'!$C$13="EID_only",O91,M91+O91)) -> 56.22 | T91: =S91/'1. Inputs'!$D$48 -> 0.22488 | U91: 1 | V91: 1 | W91: =IF(AND('1. Inputs'!$C$27="Yes",J91="No"),"No",IF(AND('1. Inputs'!$C$29="Yes",K91="No"),"No",IF(AND(S91>0,T91<='1. Inputs'!$D$46*'1. Inputs'!$D$89),"Yes","No"))) -> Yes | X91: 130 | Y91: 56.22 | Z91: =IFERROR(IF(W91="No","",(_xlfn.NORM.DIST(G91,$AW$15,$AV$16,TRUE)*'1. Inputs'!$D$24)),"") -> 0.06585806693 | AA91: =IF(AD91="","",(1-_xlfn.NORM.DIST(AD91,$AW$12,$AV$13,TRUE))*'1. Inputs'!$D$22) -> 0.06553728329 | AB91: =IF(W91="No","",_xlfn.NORM.DIST(Y91,$AW$18,$AV$19,TRUE)*'1. Inputs'!$D$23) -> 0.1825625489 | AC91: =IFERROR(IF(AB91*(1-('3. Gap Analysis '!$J$109/100))+Z91*('3. Gap Analysis '!$J$109/100)=0,"",AB91*(1-('3. Gap Analysis '!$J$109/100))+Z91*('3. Gap Analysis '!$J$109/100)),"") -> 0.1008694115 | AD91: =IF(W91="Yes",(S91*'1. Inputs'!$D$72+AG91*'1. Inputs'!$D$70/'1. Inputs'!$D$71+'1. Inputs'!$D$74*'1. Inputs'!$D$73*'1. Inputs'!$D$47*AG91+'1. Inputs'!$D$75)/S91,"") -> 105.6752046 | AE91: 82 | AF91: =IFERROR(IF(AND(AE91>0,AE91<MIN(COUNTA($B$11:$B$2000)*'3. Gap Analysis '!$B$104,COUNTIF($W$11:$W$2010,"Yes"))),"Yes","No"),"") -> No | AG91: =IFERROR(IF(W91="Yes",ROUNDUP(S91/('1. Inputs'!$D$89*'1. Inputs'!$D$48),0),0),"") -> 1 | AH91: Yes | AI91: =IF(AND(AH91="Yes",S91>0),(G91*2*'1. Inputs'!$D$54)*'1. Inputs'!$D$56*52+'1. Inputs'!$D$52/'1. Inputs'!$D$53+'1. Inputs'!$D$55*T91*('1. Inputs'!$D$48/52)+'1. Inputs'!$D$57*'1. Inputs'!$D$54*52,"") -> 114.2857143 | AJ91: =IFERROR(IF(INDEX('6. Product assignment'!$Y$18:$Y$2017,MATCH(B91,'6. Product assignment'!$C$18:$C$2017,0))="POC",1,0),0) -> 0 | AK91: =IFERROR(INDEX('6. Product assignment'!$AB$18:$AB$2017,MATCH(B91,'6. Product assignment'!$C$18:$C$2017,0)),"") -> 0 | AL91: =IFERROR(INDEX('6. Product assignment'!$AC$18:$AC$2017,MATCH(B91,'6. Product assignment'!$C$18:$C$2017,0)),"") -> 0 | AM91: =IFERROR(INDEX('6. Product assignment'!$AD$18:$AD$2017,MATCH(B91,'6. Product assignment'!$C$18:$C$2017,0)),"") -> 0 | AN91: =IFERROR(INDEX('6. Product assignment'!$AE$18:$AE$2017,MATCH(B91,'6. Product assignment'!$C$18:$C$2017,0)),"") -> 0 | AO91: =IFERROR(INDEX('6. Product assignment'!$Z$18:$Z$2017,MATCH(B91,'6. Product assignment'!$C$18:$C$2017,0)),"") -> 0 | AP91: =IFERROR(INDEX('6. Product assignment'!$AA$18:$AA$2017,MATCH(B91,'6. Product assignment'!$C$18:$C$2017,0)),"") -> 0 | AR91: 81
B92: SITE 82 | C92: District C | D92: 16 | E92: 18 | F92: 30 | G92: 295.1671968 | H92: Samba II | I92: Samba II | J92: Yes | K92: Yes | M92: =D92*'1. Inputs'!$D$36+D92*'1. Inputs'!$D$37 -> 17.6 | N92: =M92/'1. Inputs'!$D$48 -> 0.0704 | O92: =MAX(F92,E92)*'1. Inputs'!$D$38+MAX(E92,F92)*'1. Inputs'!$D$39 -> 62.1 | P92: =O92/'1. Inputs'!$D$48 -> 0.2484 | Q92: POC | R92: POC | S92: =IF('1. Inputs'!$C$13="VL_only",M92,IF('1. Inputs'!$C$13="EID_only",O92,M92+O92)) -> 79.7 | T92: =S92/'1. Inputs'!$D$48 -> 0.3188 | U92: 1 | V92: 1 | W92: =IF(AND('1. Inputs'!$C$27="Yes",J92="No"),"No",IF(AND('1. Inputs'!$C$29="Yes",K92="No"),"No",IF(AND(S92>0,T92<='1. Inputs'!$D$46*'1. Inputs'!$D$89),"Yes","No"))) -> Yes | X92: 295.1671968 | Y92: 79.7 | Z92: =IFERROR(IF(W92="No","",(_xlfn.NORM.DIST(G92,$AW$15,$AV$16,TRUE)*'1. Inputs'!$D$24)),"") -> 0.1436385307 | AA92: =IF(AD92="","",(1-_xlfn.NORM.DIST(AD92,$AW$12,$AV$13,TRUE))*'1. Inputs'!$D$22) -> 0.1154533413 | AB92: =IF(W92="No","",_xlfn.NORM.DIST(Y92,$AW$18,$AV$19,TRUE)*'1. Inputs'!$D$23) -> 0.1926459986 | AC92: =IFERROR(IF(AB92*(1-('3. Gap Analysis '!$J$109/100))+Z92*('3. Gap Analysis '!$J$109/100)=0,"",AB92*(1-('3. Gap Analysis '!$J$109/100))+Z92*('3. Gap Analysis '!$J$109/100)),"") -> 0.1583407711 | AD92: =IF(W92="Yes",(S92*'1. Inputs'!$D$72+AG92*'1. Inputs'!$D$70/'1. Inputs'!$D$71+'1. Inputs'!$D$74*'1. Inputs'!$D$73*'1. Inputs'!$D$47*AG92+'1. Inputs'!$D$75)/S92,"") -> 81.31869511 | AE92: 24 | AF92: =IFERROR(IF(AND(AE92>0,AE92<MIN(COUNTA($B$11:$B$2000)*'3. Gap Analysis '!$B$104,COUNTIF($W$11:$W$2010,"Yes"))),"Yes","No"),"") -> Yes | AG92: =IFERROR(IF(W92="Yes",ROUNDUP(S92/('1. Inputs'!$D$89*'1. Inputs'!$D$48),0),0),"") -> 1 | AH92: No | AI92: =IF(AND(AH92="Yes",S92>0),(G92*2*'1. Inputs'!$D$54)*'1. Inputs'!$D$56*52+'1. Inputs'!$D$52/'1. Inputs'!$D$53+'1. Inputs'!$D$55*T92*('1. Inputs'!$D$48/52)+'1. Inputs'!$D$57*'1. Inputs'!$D$54*52,"") ->  | AJ92: =IFERROR(IF(INDEX('6. Product assignment'!$Y$18:$Y$2017,MATCH(B92,'6. Product assignment'!$C$18:$C$2017,0))="POC",1,0),0) -> 1 | AK92: =IFERROR(INDEX('6. Product assignment'!$AB$18:$AB$2017,MATCH(B92,'6. Product assignment'!$C$18:$C$2017,0)),"") -> 0 | AL92: =IFERROR(INDEX('6. Product assignment'!$AC$18:$AC$2017,MATCH(B92,'6. Product assignment'!$C$18:$C$2017,0)),"") -> 0 | AM92: =IFERROR(INDEX('6. Product assignment'!$AD$18:$AD$2017,MATCH(B92,'6. Product assignment'!$C$18:$C$2017,0)),"") -> 1 | AN92: =IFERROR(INDEX('6. Product assignment'!$AE$18:$AE$2017,MATCH(B92,'6. Product assignment'!$C$18:$C$2017,0)),"") -> 1 | AO92: =IFERROR(INDEX('6. Product assignment'!$Z$18:$Z$2017,MATCH(B92,'6. Product assignment'!$C$18:$C$2017,0)),"") -> 0 | AP92: =IFERROR(INDEX('6. Product assignment'!$AA$18:$AA$2017,MATCH(B92,'6. Product assignment'!$C$18:$C$2017,0)),"") -> 0 | AR92: 82
B93: SITE 83 | C93: District C | D93: 883 | E93: 13 | F93: 16 | G93: 294.4532979 | H93: None | I93: Conventional | J93: Yes | K93: Yes | M93: =D93*'1. Inputs'!$D$36+D93*'1. Inputs'!$D$37 -> 971.3 | N93: =M93/'1. Inputs'!$D$48 -> 3.8852 | O93: =MAX(F93,E93)*'1. Inputs'!$D$38+MAX(E93,F93)*'1. Inputs'!$D$39 -> 33.12 | P93: =O93/'1. Inputs'!$D$48 -> 0.13248 | Q93: None | R93: Conventional | S93: =IF('1. Inputs'!$C$13="VL_only",M93,IF('1. Inputs'!$C$13="EID_only",O93,M93+O93)) -> 1004.42 | T93: =S93/'1. Inputs'!$D$48 -> 4.01768 | U93: 1 | V93: 1 | W93: =IF(AND('1. Inputs'!$C$27="Yes",J93="No"),"No",IF(AND('1. Inputs'!$C$29="Yes",K93="No"),"No",IF(AND(S93>0,T93<='1. Inputs'!$D$46*'1. Inputs'!$D$89),"Yes","No"))) -> Yes | X93: 294.4532979 | Y93: 1004.42 | Z93: =IFERROR(IF(W93="No","",(_xlfn.NORM.DIST(G93,$AW$15,$AV$16,TRUE)*'1. Inputs'!$D$24)),"") -> 0.1435278127 | AA93: =IF(AD93="","",(1-_xlfn.NORM.DIST(AD93,$AW$12,$AV$13,TRUE))*'1. Inputs'!$D$22) -> 0.2726593276 | AB93: =IF(W93="No","",_xlfn.NORM.DIST(Y93,$AW$18,$AV$19,TRUE)*'1. Inputs'!$D$23) -> 0.3495006196 | AC93: =IFERROR(IF(AB93*(1-('3. Gap Analysis '!$J$109/100))+Z93*('3. Gap Analysis '!$J$109/100)=0,"",AB93*(1-('3. Gap Analysis '!$J$109/100))+Z93*('3. Gap Analysis '!$J$109/100)),"") -> 0.2053196548 | AD93: =IF(W93="Yes",(S93*'1. Inputs'!$D$72+AG93*'1. Inputs'!$D$70/'1. Inputs'!$D$71+'1. Inputs'!$D$74*'1. Inputs'!$D$73*'1. Inputs'!$D$47*AG93+'1. Inputs'!$D$75)/S93,"") -> 27.62754625 | AE93: 1 | AF93: =IFERROR(IF(AND(AE93>0,AE93<MIN(COUNTA($B$11:$B$2000)*'3. Gap Analysis '!$B$104,COUNTIF($W$11:$W$2010,"Yes"))),"Yes","No"),"") -> Yes | AG93: =IFERROR(IF(W93="Yes",ROUNDUP(S93/('1. Inputs'!$D$89*'1. Inputs'!$D$48),0),0),"") -> 1 | AH93: No | AI93: =IF(AND(AH93="Yes",S93>0),(G93*2*'1. Inputs'!$D$54)*'1. Inputs'!$D$56*52+'1. Inputs'!$D$52/'1. Inputs'!$D$53+'1. Inputs'!$D$55*T93*('1. Inputs'!$D$48/52)+'1. Inputs'!$D$57*'1. Inputs'!$D$54*52,"") ->  | AJ93: =IFERROR(IF(INDEX('6. Product assignment'!$Y$18:$Y$2017,MATCH(B93,'6. Product assignment'!$C$18:$C$2017,0))="POC",1,0),0) -> 1 | AK93: =IFERROR(INDEX('6. Product assignment'!$AB$18:$AB$2017,MATCH(B93,'6. Product assignment'!$C$18:$C$2017,0)),"") -> 0 | AL93: =IFERROR(INDEX('6. Product assignment'!$AC$18:$AC$2017,MATCH(B93,'6. Product assignment'!$C$18:$C$2017,0)),"") -> 1 | AM93: =IFERROR(INDEX('6. Product assignment'!$AD$18:$AD$2017,MATCH(B93,'6. Product assignment'!$C$18:$C$2017,0)),"") -> 0 | AN93: =IFERROR(INDEX('6. Product assignment'!$AE$18:$AE$2017,MATCH(B93,'6. Product assignment'!$C$18:$C$2017,0)),"") -> 0 | AO93: =IFERROR(INDEX('6. Product assignment'!$Z$18:$Z$2017,MATCH(B93,'6. Product assignment'!$C$18:$C$2017,0)),"") -> 1 | AP93: =IFERROR(INDEX('6. Product assignment'!$AA$18:$AA$2017,MATCH(B93,'6. Product assignment'!$C$18:$C$2017,0)),"") -> 0 | AR93: 83
B94: SITE 84 | C94: District C | E94: 23 | F94: 38 | G94: 57.33082472 | H94: None | I94: Conventional | J94: Yes | K94: Yes | M94: =D94*'1. Inputs'!$D$36+D94*'1. Inputs'!$D$37 -> 0 | N94: =M94/'1. Inputs'!$D$48 -> 0 | O94: =MAX(F94,E94)*'1. Inputs'!$D$38+MAX(E94,F94)*'1. Inputs'!$D$39 -> 78.66 | P94: =O94/'1. Inputs'!$D$48 -> 0.31464 | Q94: None | R94: Conventional | S94: =IF('1. Inputs'!$C$13="VL_only",M94,IF('1. Inputs'!$C$13="EID_only",O94,M94+O94)) -> 78.66 | T94: =S94/'1. Inputs'!$D$48 -> 0.31464 | U94: 1 | V94: 1 | W94: =IF(AND('1. Inputs'!$C$27="Yes",J94="No"),"No",IF(AND('1. Inputs'!$C$29="Yes",K94="No"),"No",IF(AND(S94>0,T94<='1. Inputs'!$D$46*'1. Inputs'!$D$89),"Yes","No"))) -> Yes | X94: 57.33082472 | Y94: 78.66 | Z94: =IFERROR(IF(W94="No","",(_xlfn.NORM.DIST(G94,$AW$15,$AV$16,TRUE)*'1. Inputs'!$D$24)),"") -> 0.02456520964 | AA94: =IF(AD94="","",(1-_xlfn.NORM.DIST(AD94,$AW$12,$AV$13,TRUE))*'1. Inputs'!$D$22) -> 0.1136049666 | AB94: =IF(W94="No","",_xlfn.NORM.DIST(Y94,$AW$18,$AV$19,TRUE)*'1. Inputs'!$D$23) -> 0.1922009409 | AC94: =IFERROR(IF(AB94*(1-('3. Gap Analysis '!$J$109/100))+Z94*('3. Gap Analysis '!$J$109/100)=0,"",AB94*(1-('3. Gap Analysis '!$J$109/100))+Z94*('3. Gap Analysis '!$J$109/100)),"") -> 0.07485592901 | AD94: =IF(W94="Yes",(S94*'1. Inputs'!$D$72+AG94*'1. Inputs'!$D$70/'1. Inputs'!$D$71+'1. Inputs'!$D$74*'1. Inputs'!$D$73*'1. Inputs'!$D$47*AG94+'1. Inputs'!$D$75)/S94,"") -> 82.08975337 | AE94: 91 | AF94: =IFERROR(IF(AND(AE94>0,AE94<MIN(COUNTA($B$11:$B$2000)*'3. Gap Analysis '!$B$104,COUNTIF($W$11:$W$2010,"Yes"))),"Yes","No"),"") -> No | AG94: =IFERROR(IF(W94="Yes",ROUNDUP(S94/('1. Inputs'!$D$89*'1. Inputs'!$D$48),0),0),"") -> 1 | AH94: Yes | AI94: =IF(AND(AH94="Yes",S94>0),(G94*2*'1. Inputs'!$D$54)*'1. Inputs'!$D$56*52+'1. Inputs'!$D$52/'1. Inputs'!$D$53+'1. Inputs'!$D$55*T94*('1. Inputs'!$D$48/52)+'1. Inputs'!$D$57*'1. Inputs'!$D$54*52,"") -> 114.2857143 | AJ94: =IFERROR(IF(INDEX('6. Product assignment'!$Y$18:$Y$2017,MATCH(B94,'6. Product assignment'!$C$18:$C$2017,0))="POC",1,0),0) -> 0 | AK94: =IFERROR(INDEX('6. Product assignment'!$AB$18:$AB$2017,MATCH(B94,'6. Product assignment'!$C$18:$C$2017,0)),"") -> 0 | AL94: =IFERROR(INDEX('6. Product assignment'!$AC$18:$AC$2017,MATCH(B94,'6. Product assignment'!$C$18:$C$2017,0)),"") -> 0 | AM94: =IFERROR(INDEX('6. Product assignment'!$AD$18:$AD$2017,MATCH(B94,'6. Product assignment'!$C$18:$C$2017,0)),"") -> 0 | AN94: =IFERROR(INDEX('6. Product assignment'!$AE$18:$AE$2017,MATCH(B94,'6. Product assignment'!$C$18:$C$2017,0)),"") -> 0 | AO94: =IFERROR(INDEX('6. Product assignment'!$Z$18:$Z$2017,MATCH(B94,'6. Product assignment'!$C$18:$C$2017,0)),"") -> 0 | AP94: =IFERROR(INDEX('6. Product assignment'!$AA$18:$AA$2017,MATCH(B94,'6. Product assignment'!$C$18:$C$2017,0)),"") -> 0 | AR94: 84
B95: SITE 85 | C95: District C | D95: 2471 | E95: 2 | F95: 6 | G95: 145.9613567 | H95: None | I95: Conventional | J95: Yes | K95: Yes | M95: =D95*'1. Inputs'!$D$36+D95*'1. Inputs'!$D$37 -> 2718.1 | N95: =M95/'1. Inputs'!$D$48 -> 10.8724 | O95: =MAX(F95,E95)*'1. Inputs'!$D$38+MAX(E95,F95)*'1. Inputs'!$D$39 -> 12.42 | P95: =O95/'1. Inputs'!$D$48 -> 0.04968 | Q95: None | R95: Conventional | S95: =IF('1. Inputs'!$C$13="VL_only",M95,IF('1. Inputs'!$C$13="EID_only",O95,M95+O95)) -> 2730.52 | T95: =S95/'1. Inputs'!$D$48 -> 10.92208 | U95: 1 | V95: 1 | W95: =IF(AND('1. Inputs'!$C$27="Yes",J95="No"),"No",IF(AND('1. Inputs'!$C$29="Yes",K95="No"),"No",IF(AND(S95>0,T95<='1. Inputs'!$D$46*'1. Inputs'!$D$89),"Yes","No"))) -> Yes | X95: 145.9613567 | Y95: 2730.52 | Z95: =IFERROR(IF(W95="No","",(_xlfn.NORM.DIST(G95,$AW$15,$AV$16,TRUE)*'1. Inputs'!$D$24)),"") -> 0.07667509345 | AA95: =IF(AD95="","",(1-_xlfn.NORM.DIST(AD95,$AW$12,$AV$13,TRUE))*'1. Inputs'!$D$22) -> 0.2818068741 | AB95: =IF(W95="No","",_xlfn.NORM.DIST(Y95,$AW$18,$AV$19,TRUE)*'1. Inputs'!$D$23) -> 0.35 | AC95: =IFERROR(IF(AB95*(1-('3. Gap Analysis '!$J$109/100))+Z95*('3. Gap Analysis '!$J$109/100)=0,"",AB95*(1-('3. Gap Analysis '!$J$109/100))+Z95*('3. Gap Analysis '!$J$109/100)),"") -> 0.1586725654 | AD95: =IF(W95="Yes",(S95*'1. Inputs'!$D$72+AG95*'1. Inputs'!$D$70/'1. Inputs'!$D$71+'1. Inputs'!$D$74*'1. Inputs'!$D$73*'1. Inputs'!$D$47*AG95+'1. Inputs'!$D$75)/S95,"") -> 24.70223987 | AE95: 23 | AF95: =IFERROR(IF(AND(AE95>0,AE95<MIN(COUNTA($B$11:$B$2000)*'3. Gap Analysis '!$B$104,COUNTIF($W$11:$W$2010,"Yes"))),"Yes","No"),"") -> Yes | AG95: =IFERROR(IF(W95="Yes",ROUNDUP(S95/('1. Inputs'!$D$89*'1. Inputs'!$D$48),0),0),"") -> 1 | AH95: No | AI95: =IF(AND(AH95="Yes",S95>0),(G95*2*'1. Inputs'!$D$54)*'1. Inputs'!$D$56*52+'1. Inputs'!$D$52/'1. Inputs'!$D$53+'1. Inputs'!$D$55*T95*('1. Inputs'!$D$48/52)+'1. Inputs'!$D$57*'1. Inputs'!$D$54*52,"") ->  | AJ95: =IFERROR(IF(INDEX('6. Product assignment'!$Y$18:$Y$2017,MATCH(B95,'6. Product assignment'!$C$18:$C$2017,0))="POC",1,0),0) -> 1 | AK95: =IFERROR(INDEX('6. Product assignment'!$AB$18:$AB$2017,MATCH(B95,'6. Product assignment'!$C$18:$C$2017,0)),"") -> 0 | AL95: =IFERROR(INDEX('6. Product assignment'!$AC$18:$AC$2017,MATCH(B95,'6. Product assignment'!$C$18:$C$2017,0)),"") -> 1 | AM95: =IFERROR(INDEX('6. Product assignment'!$AD$18:$AD$2017,MATCH(B95,'6. Product assignment'!$C$18:$C$2017,0)),"") -> 0 | AN95: =IFERROR(INDEX('6. Product assignment'!$AE$18:$AE$2017,MATCH(B95,'6. Product assignment'!$C$18:$C$2017,0)),"") -> 0 | AO95: =IFERROR(INDEX('6. Product assignment'!$Z$18:$Z$2017,MATCH(B95,'6. Product assignment'!$C$18:$C$2017,0)),"") -> 1 | AP95: =IFERROR(INDEX('6. Product assignment'!$AA$18:$AA$2017,MATCH(B95,'6. Product assignment'!$C$18:$C$2017,0)),"") -> 0 | AR95: 85
B96: SITE 86 | C96: District C | D96: 43 | E96: 8 | F96: 28 | G96: 132.085417 | H96: None | I96: Conventional | J96: Yes | K96: Yes | M96: =D96*'1. Inputs'!$D$36+D96*'1. Inputs'!$D$37 -> 47.3 | N96: =M96/'1. Inputs'!$D$48 -> 0.1892 | O96: =MAX(F96,E96)*'1. Inputs'!$D$38+MAX(E96,F96)*'1. Inputs'!$D$39 -> 57.96 | P96: =O96/'1. Inputs'!$D$48 -> 0.23184 | Q96: None | R96: Conventional | S96: =IF('1. Inputs'!$C$13="VL_only",M96,IF('1. Inputs'!$C$13="EID_only",O96,M96+O96)) -> 105.26 | T96: =S96/'1. Inputs'!$D$48 -> 0.42104 | U96: 1 | V96: 1 | W96: =IF(AND('1. Inputs'!$C$27="Yes",J96="No"),"No",IF(AND('1. Inputs'!$C$29="Yes",K96="No"),"No",IF(AND(S96>0,T96<='1. Inputs'!$D$46*'1. Inputs'!$D$89),"Yes","No"))) -> Yes | X96: 132.085417 | Y96: 105.26 | Z96: =IFERROR(IF(W96="No","",(_xlfn.NORM.DIST(G96,$AW$15,$AV$16,TRUE)*'1. Inputs'!$D$24)),"") -> 0.06726190769 | AA96: =IF(AD96="","",(1-_xlfn.NORM.DIST(AD96,$AW$12,$AV$13,TRUE))*'1. Inputs'!$D$22) -> 0.152206702 | AB96: =IF(W96="No","",_xlfn.NORM.DIST(Y96,$AW$18,$AV$19,TRUE)*'1. Inputs'!$D$23) -> 0.2035161524 | AC96: =IFERROR(IF(AB96*(1-('3. Gap Analysis '!$J$109/100))+Z96*('3. Gap Analysis '!$J$109/100)=0,"",AB96*(1-('3. Gap Analysis '!$J$109/100))+Z96*('3. Gap Analysis '!$J$109/100)),"") -> 0.1081381811 | AD96: =IF(W96="Yes",(S96*'1. Inputs'!$D$72+AG96*'1. Inputs'!$D$70/'1. Inputs'!$D$71+'1. Inputs'!$D$74*'1. Inputs'!$D$73*'1. Inputs'!$D$47*AG96+'1. Inputs'!$D$75)/S96,"") -> 67.15732472 | AE96: 75 | AF96: =IFERROR(IF(AND(AE96>0,AE96<MIN(COUNTA($B$11:$B$2000)*'3. Gap Analysis '!$B$104,COUNTIF($W$11:$W$2010,"Yes"))),"Yes","No"),"") -> No | AG96: =IFERROR(IF(W96="Yes",ROUNDUP(S96/('1. Inputs'!$D$89*'1. Inputs'!$D$48),0),0),"") -> 1 | AH96: Yes | AI96: =IF(AND(AH96="Yes",S96>0),(G96*2*'1. Inputs'!$D$54)*'1. Inputs'!$D$56*52+'1. Inputs'!$D$52/'1. Inputs'!$D$53+'1. Inputs'!$D$55*T96*('1. Inputs'!$D$48/52)+'1. Inputs'!$D$57*'1. Inputs'!$D$54*52,"") -> 114.2857143 | AJ96: =IFERROR(IF(INDEX('6. Product assignment'!$Y$18:$Y$2017,MATCH(B96,'6. Product assignment'!$C$18:$C$2017,0))="POC",1,0),0) -> 0 | AK96: =IFERROR(INDEX('6. Product assignment'!$AB$18:$AB$2017,MATCH(B96,'6. Product assignment'!$C$18:$C$2017,0)),"") -> 0 | AL96: =IFERROR(INDEX('6. Product assignment'!$AC$18:$AC$2017,MATCH(B96,'6. Product assignment'!$C$18:$C$2017,0)),"") -> 0 | AM96: =IFERROR(INDEX('6. Product assignment'!$AD$18:$AD$2017,MATCH(B96,'6. Product assignment'!$C$18:$C$2017,0)),"") -> 0 | AN96: =IFERROR(INDEX('6. Product assignment'!$AE$18:$AE$2017,MATCH(B96,'6. Product assignment'!$C$18:$C$2017,0)),"") -> 0 | AO96: =IFERROR(INDEX('6. Product assignment'!$Z$18:$Z$2017,MATCH(B96,'6. Product assignment'!$C$18:$C$2017,0)),"") -> 0 | AP96: =IFERROR(INDEX('6. Product assignment'!$AA$18:$AA$2017,MATCH(B96,'6. Product assignment'!$C$18:$C$2017,0)),"") -> 0 | AR96: 86
B97: SITE 87 | C97: District C | D97: 77 | E97: 26 | F97: 36 | G97: 211.3756469 | H97: None | I97: Conventional | J97: Yes | K97: Yes | M97: =D97*'1. Inputs'!$D$36+D97*'1. Inputs'!$D$37 -> 84.7 | N97: =M97/'1. Inputs'!$D$48 -> 0.3388 | O97: =MAX(F97,E97)*'1. Inputs'!$D$38+MAX(E97,F97)*'1. Inputs'!$D$39 -> 74.52 | P97: =O97/'1. Inputs'!$D$48 -> 0.29808 | Q97: None | R97: Conventional | S97: =IF('1. Inputs'!$C$13="VL_only",M97,IF('1. Inputs'!$C$13="EID_only",O97,M97+O97)) -> 159.22 | T97: =S97/'1. Inputs'!$D$48 -> 0.63688 | U97: 1 | V97: 1 | W97: =IF(AND('1. Inputs'!$C$27="Yes",J97="No"),"No",IF(AND('1. Inputs'!$C$29="Yes",K97="No"),"No",IF(AND(S97>0,T97<='1. Inputs'!$D$46*'1. Inputs'!$D$89),"Yes","No"))) -> Yes | X97: 211.3756469 | Y97: 159.22 | Z97: =IFERROR(IF(W97="No","",(_xlfn.NORM.DIST(G97,$AW$15,$AV$16,TRUE)*'1. Inputs'!$D$24)),"") -> 0.1169594576 | AA97: =IF(AD97="","",(1-_xlfn.NORM.DIST(AD97,$AW$12,$AV$13,TRUE))*'1. Inputs'!$D$22) -> 0.1958453482 | AB97: =IF(W97="No","",_xlfn.NORM.DIST(Y97,$AW$18,$AV$19,TRUE)*'1. Inputs'!$D$23) -> 0.2258136594 | AC97: =IFERROR(IF(AB97*(1-('3. Gap Analysis '!$J$109/100))+Z97*('3. Gap Analysis '!$J$109/100)=0,"",AB97*(1-('3. Gap Analysis '!$J$109/100))+Z97*('3. Gap Analysis '!$J$109/100)),"") -> 0.1496157181 | AD97: =IF(W97="Yes",(S97*'1. Inputs'!$D$72+AG97*'1. Inputs'!$D$70/'1. Inputs'!$D$71+'1. Inputs'!$D$74*'1. Inputs'!$D$73*'1. Inputs'!$D$47*AG97+'1. Inputs'!$D$75)/S97,"") -> 52.19231252 | AE97: 37 | AF97: =IFERROR(IF(AND(AE97>0,AE97<MIN(COUNTA($B$11:$B$2000)*'3. Gap Analysis '!$B$104,COUNTIF($W$11:$W$2010,"Yes"))),"Yes","No"),"") -> Yes | AG97: =IFERROR(IF(W97="Yes",ROUNDUP(S97/('1. Inputs'!$D$89*'1. Inputs'!$D$48),0),0),"") -> 1 | AH97: No | AI97: =IF(AND(AH97="Yes",S97>0),(G97*2*'1. Inputs'!$D$54)*'1. Inputs'!$D$56*52+'1. Inputs'!$D$52/'1. Inputs'!$D$53+'1. Inputs'!$D$55*T97*('1. Inputs'!$D$48/52)+'1. Inputs'!$D$57*'1. Inputs'!$D$54*52,"") ->  | AJ97: =IFERROR(IF(INDEX('6. Product assignment'!$Y$18:$Y$2017,MATCH(B97,'6. Product assignment'!$C$18:$C$2017,0))="POC",1,0),0) -> 1 | AK97: =IFERROR(INDEX('6. Product assignment'!$AB$18:$AB$2017,MATCH(B97,'6. Product assignment'!$C$18:$C$2017,0)),"") -> 0 | AL97: =IFERROR(INDEX('6. Product assignment'!$AC$18:$AC$2017,MATCH(B97,'6. Product assignment'!$C$18:$C$2017,0)),"") -> 1 | AM97: =IFERROR(INDEX('6. Product assignment'!$AD$18:$AD$2017,MATCH(B97,'6. Product assignment'!$C$18:$C$2017,0)),"") -> 0 | AN97: =IFERROR(INDEX('6. Product assignment'!$AE$18:$AE$2017,MATCH(B97,'6. Product assignment'!$C$18:$C$2017,0)),"") -> 0 | AO97: =IFERROR(INDEX('6. Product assignment'!$Z$18:$Z$2017,MATCH(B97,'6. Product assignment'!$C$18:$C$2017,0)),"") -> 1 | AP97: =IFERROR(INDEX('6. Product assignment'!$AA$18:$AA$2017,MATCH(B97,'6. Product assignment'!$C$18:$C$2017,0)),"") -> 0 | AR97: 87
B98: SITE 88 | C98: District C | D98: 3132 | E98: 172 | F98: 176 | G98: 131.2102622 | H98: None | I98: Conventional | J98: Yes | K98: Yes | M98: =D98*'1. Inputs'!$D$36+D98*'1. Inputs'!$D$37 -> 3445.2 | N98: =M98/'1. Inputs'!$D$48 -> 13.7808 | O98: =MAX(F98,E98)*'1. Inputs'!$D$38+MAX(E98,F98)*'1. Inputs'!$D$39 -> 364.32 | P98: =O98/'1. Inputs'!$D$48 -> 1.45728 | Q98: None | R98: Conventional | S98: =IF('1. Inputs'!$C$13="VL_only",M98,IF('1. Inputs'!$C$13="EID_only",O98,M98+O98)) -> 3809.52 | T98: =S98/'1. Inputs'!$D$48 -> 15.23808 | U98: 1 | V98: 1 | W98: =IF(AND('1. Inputs'!$C$27="Yes",J98="No"),"No",IF(AND('1. Inputs'!$C$29="Yes",K98="No"),"No",IF(AND(S98>0,T98<='1. Inputs'!$D$46*'1. Inputs'!$D$89),"Yes","No"))) -> Yes | X98: 131.2102622 | Y98: 3809.52 | Z98: =IFERROR(IF(W98="No","",(_xlfn.NORM.DIST(G98,$AW$15,$AV$16,TRUE)*'1. Inputs'!$D$24)),"") -> 0.06667220875 | AA98: =IF(AD98="","",(1-_xlfn.NORM.DIST(AD98,$AW$12,$AV$13,TRUE))*'1. Inputs'!$D$22) -> 0.2795048575 | AB98: =IF(W98="No","",_xlfn.NORM.DIST(Y98,$AW$18,$AV$19,TRUE)*'1. Inputs'!$D$23) -> 0.35 | AC98: =IFERROR(IF(AB98*(1-('3. Gap Analysis '!$J$109/100))+Z98*('3. Gap Analysis '!$J$109/100)=0,"",AB98*(1-('3. Gap Analysis '!$J$109/100))+Z98*('3. Gap Analysis '!$J$109/100)),"") -> 0.1516705461 | AD98: =IF(W98="Yes",(S98*'1. Inputs'!$D$72+AG98*'1. Inputs'!$D$70/'1. Inputs'!$D$71+'1. Inputs'!$D$74*'1. Inputs'!$D$73*'1. Inputs'!$D$47*AG98+'1. Inputs'!$D$75)/S98,"") -> 25.44020244 | AE98: 33 | AF98: =IFERROR(IF(AND(AE98>0,AE98<MIN(COUNTA($B$11:$B$2000)*'3. Gap Analysis '!$B$104,COUNTIF($W$11:$W$2010,"Yes"))),"Yes","No"),"") -> Yes | AG98: =IFERROR(IF(W98="Yes",ROUNDUP(S98/('1. Inputs'!$D$89*'1. Inputs'!$D$48),0),0),"") -> 2 | AH98: No | AI98: =IF(AND(AH98="Yes",S98>0),(G98*2*'1. Inputs'!$D$54)*'1. Inputs'!$D$56*52+'1. Inputs'!$D$52/'1. Inputs'!$D$53+'1. Inputs'!$D$55*T98*('1. Inputs'!$D$48/52)+'1. Inputs'!$D$57*'1. Inputs'!$D$54*52,"") ->  | AJ98: =IFERROR(IF(INDEX('6. Product assignment'!$Y$18:$Y$2017,MATCH(B98,'6. Product assignment'!$C$18:$C$2017,0))="POC",1,0),0) -> 1 | AK98: =IFERROR(INDEX('6. Product assignment'!$AB$18:$AB$2017,MATCH(B98,'6. Product assignment'!$C$18:$C$2017,0)),"") -> 0 | AL98: =IFERROR(INDEX('6. Product assignment'!$AC$18:$AC$2017,MATCH(B98,'6. Product assignment'!$C$18:$C$2017,0)),"") -> 1 | AM98: =IFERROR(INDEX('6. Product assignment'!$AD$18:$AD$2017,MATCH(B98,'6. Product assignment'!$C$18:$C$2017,0)),"") -> 0 | AN98: =IFERROR(INDEX('6. Product assignment'!$AE$18:$AE$2017,MATCH(B98,'6. Product assignment'!$C$18:$C$2017,0)),"") -> 0 | AO98: =IFERROR(INDEX('6. Product assignment'!$Z$18:$Z$2017,MATCH(B98,'6. Product assignment'!$C$18:$C$2017,0)),"") -> 1 | AP98: =IFERROR(INDEX('6. Product assignment'!$AA$18:$AA$2017,MATCH(B98,'6. Product assignment'!$C$18:$C$2017,0)),"") -> 0 | AR98: 88
B99: SITE 89 | C99: District C | D99: 252 | E99: 167 | F99: 244 | G99: 152.6012767 | H99: None | I99: Conventional | J99: Yes | K99: Yes | M99: =D99*'1. Inputs'!$D$36+D99*'1. Inputs'!$D$37 -> 277.2 | N99: =M99/'1. Inputs'!$D$48 -> 1.1088 | O99: =MAX(F99,E99)*'1. Inputs'!$D$38+MAX(E99,F99)*'1. Inputs'!$D$39 -> 505.08 | P99: =O99/'1. Inputs'!$D$48 -> 2.02032 | Q99: None | R99: Conventional | S99: =IF('1. Inputs'!$C$13="VL_only",M99,IF('1. Inputs'!$C$13="EID_only",O99,M99+O99)) -> 782.28 | T99: =S99/'1. Inputs'!$D$48 -> 3.12912 | U99: 1 | V99: 1 | W99: =IF(AND('1. Inputs'!$C$27="Yes",J99="No"),"No",IF(AND('1. Inputs'!$C$29="Yes",K99="No"),"No",IF(AND(S99>0,T99<='1. Inputs'!$D$46*'1. Inputs'!$D$89),"Yes","No"))) -> Yes | X99: 152.6012767 | Y99: 782.28 | Z99: =IFERROR(IF(W99="No","",(_xlfn.NORM.DIST(G99,$AW$15,$AV$16,TRUE)*'1. Inputs'!$D$24)),"") -> 0.08117917625 | AA99: =IF(AD99="","",(1-_xlfn.NORM.DIST(AD99,$AW$12,$AV$13,TRUE))*'1. Inputs'!$D$22) -> 0.2685333174 | AB99: =IF(W99="No","",_xlfn.NORM.DIST(Y99,$AW$18,$AV$19,TRUE)*'1. Inputs'!$D$23) -> 0.346215867 | AC99: =IFERROR(IF(AB99*(1-('3. Gap Analysis '!$J$109/100))+Z99*('3. Gap Analysis '!$J$109/100)=0,"",AB99*(1-('3. Gap Analysis '!$J$109/100))+Z99*('3. Gap Analysis '!$J$109/100)),"") -> 0.1606901835 | AD99: =IF(W99="Yes",(S99*'1. Inputs'!$D$72+AG99*'1. Inputs'!$D$70/'1. Inputs'!$D$71+'1. Inputs'!$D$74*'1. Inputs'!$D$73*'1. Inputs'!$D$47*AG99+'1. Inputs'!$D$75)/S99,"") -> 28.94160659 | AE99: 19 | AF99: =IFERROR(IF(AND(AE99>0,AE99<MIN(COUNTA($B$11:$B$2000)*'3. Gap Analysis '!$B$104,COUNTIF($W$11:$W$2010,"Yes"))),"Yes","No"),"") -> Yes | AG99: =IFERROR(IF(W99="Yes",ROUNDUP(S99/('1. Inputs'!$D$89*'1. Inputs'!$D$48),0),0),"") -> 1 | AH99: No | AI99: =IF(AND(AH99="Yes",S99>0),(G99*2*'1. Inputs'!$D$54)*'1. Inputs'!$D$56*52+'1. Inputs'!$D$52/'1. Inputs'!$D$53+'1. Inputs'!$D$55*T99*('1. Inputs'!$D$48/52)+'1. Inputs'!$D$57*'1. Inputs'!$D$54*52,"") ->  | AJ99: =IFERROR(IF(INDEX('6. Product assignment'!$Y$18:$Y$2017,MATCH(B99,'6. Product assignment'!$C$18:$C$2017,0))="POC",1,0),0) -> 1 | AK99: =IFERROR(INDEX('6. Product assignment'!$AB$18:$AB$2017,MATCH(B99,'6. Product assignment'!$C$18:$C$2017,0)),"") -> 0 | AL99: =IFERROR(INDEX('6. Product assignment'!$AC$18:$AC$2017,MATCH(B99,'6. Product assignment'!$C$18:$C$2017,0)),"") -> 1 | AM99: =IFERROR(INDEX('6. Product assignment'!$AD$18:$AD$2017,MATCH(B99,'6. Product assignment'!$C$18:$C$2017,0)),"") -> 0 | AN99: =IFERROR(INDEX('6. Product assignment'!$AE$18:$AE$2017,MATCH(B99,'6. Product assignment'!$C$18:$C$2017,0)),"") -> 0 | AO99: =IFERROR(INDEX('6. Product assignment'!$Z$18:$Z$2017,MATCH(B99,'6. Product assignment'!$C$18:$C$2017,0)),"") -> 1 | AP99: =IFERROR(INDEX('6. Product assignment'!$AA$18:$AA$2017,MATCH(B99,'6. Product assignment'!$C$18:$C$2017,0)),"") -> 0 | AR99: 89
B100: SITE 90 | C100: District C | D100: 200 | E100: 6 | F100: 26 | G100: 94.4308759 | H100: None | I100: Conventional | J100: Yes | K100: Yes | M100: =D100*'1. Inputs'!$D$36+D100*'1. Inputs'!$D$37 -> 220 | N100: =M100/'1. Inputs'!$D$48 -> 0.88 | O100: =MAX(F100,E100)*'1. Inputs'!$D$38+MAX(E100,F100)*'1. Inputs'!$D$39 -> 53.82 | P100: =O100/'1. Inputs'!$D$48 -> 0.21528 | Q100: None | R100: Conventional | S100: =IF('1. Inputs'!$C$13="VL_only",M100,IF('1. Inputs'!$C$13="EID_only",O100,M100+O100)) -> 273.82 | T100: =S100/'1. Inputs'!$D$48 -> 1.09528 | U100: 1 | V100: 1 | W100: =IF(AND('1. Inputs'!$C$27="Yes",J100="No"),"No",IF(AND('1. Inputs'!$C$29="Yes",K100="No"),"No",IF(AND(S100>0,T100<='1. Inputs'!$D$46*'1. Inputs'!$D$89),"Yes","No"))) -> Yes | X100: 94.4308759 | Y100: 273.82 | Z100: =IFERROR(IF(W100="No","",(_xlfn.NORM.DIST(G100,$AW$15,$AV$16,TRUE)*'1. Inputs'!$D$24)),"") -> 0.04328735385 | AA100: =IF(AD100="","",(1-_xlfn.NORM.DIST(AD100,$AW$12,$AV$13,TRUE))*'1. Inputs'!$D$22) -> 0.2337490118 | AB100: =IF(W100="No","",_xlfn.NORM.DIST(Y100,$AW$18,$AV$19,TRUE)*'1. Inputs'!$D$23) -> 0.2681639017 | AC100: =IFERROR(IF(AB100*(1-('3. Gap Analysis '!$J$109/100))+Z100*('3. Gap Analysis '!$J$109/100)=0,"",AB100*(1-('3. Gap Analysis '!$J$109/100))+Z100*('3. Gap Analysis '!$J$109/100)),"") -> 0.1107503182 | AD100: =IF(W100="Yes",(S100*'1. Inputs'!$D$72+AG100*'1. Inputs'!$D$70/'1. Inputs'!$D$71+'1. Inputs'!$D$74*'1. Inputs'!$D$73*'1. Inputs'!$D$47*AG100+'1. Inputs'!$D$75)/S100,"") -> 39.97465488 | AE100: 70 | AF100: =IFERROR(IF(AND(AE100>0,AE100<MIN(COUNTA($B$11:$B$2000)*'3. Gap Analysis '!$B$104,COUNTIF($W$11:$W$2010,"Yes"))),"Yes","No"),"") -> Yes | AG100: =IFERROR(IF(W100="Yes",ROUNDUP(S100/('1. Inputs'!$D$89*'1. Inputs'!$D$48),0),0),"") -> 1 | AH100: No | AI100: =IF(AND(AH100="Yes",S100>0),(G100*2*'1. Inputs'!$D$54)*'1. Inputs'!$D$56*52+'1. Inputs'!$D$52/'1. Inputs'!$D$53+'1. Inputs'!$D$55*T100*('1. Inputs'!$D$48/52)+'1. Inputs'!$D$57*'1. Inputs'!$D$54*52,"") ->  | AJ100: =IFERROR(IF(INDEX('6. Product assignment'!$Y$18:$Y$2017,MATCH(B100,'6. Product assignment'!$C$18:$C$2017,0))="POC",1,0),0) -> 1 | AK100: =IFERROR(INDEX('6. Product assignment'!$AB$18:$AB$2017,MATCH(B100,'6. Product assignment'!$C$18:$C$2017,0)),"") -> 0 | AL100: =IFERROR(INDEX('6. Product assignment'!$AC$18:$AC$2017,MATCH(B100,'6. Product assignment'!$C$18:$C$2017,0)),"") -> 1 | AM100: =IFERROR(INDEX('6. Product assignment'!$AD$18:$AD$2017,MATCH(B100,'6. Product assignment'!$C$18:$C$2017,0)),"") -> 0 | AN100: =IFERROR(INDEX('6. Product assignment'!$AE$18:$AE$2017,MATCH(B100,'6. Product assignment'!$C$18:$C$2017,0)),"") -> 0 | AO100: =IFERROR(INDEX('6. Product assignment'!$Z$18:$Z$2017,MATCH(B100,'6. Product assignment'!$C$18:$C$2017,0)),"") -> 1 | AP100: =IFERROR(INDEX('6. Product assignment'!$AA$18:$AA$2017,MATCH(B100,'6. Product assignment'!$C$18:$C$2017,0)),"") -> 0 | AR100: 90
B101: SITE 91 | C101: District C | D101: 295 | E101: 1 | F101: 2 | G101: 60.27102707 | H101: None | I101: Conventional | J101: Yes | K101: Yes | M101: =D101*'1. Inputs'!$D$36+D101*'1. Inputs'!$D$37 -> 324.5 | N101: =M101/'1. Inputs'!$D$48 -> 1.298 | O101: =MAX(F101,E101)*'1. Inputs'!$D$38+MAX(E101,F101)*'1. Inputs'!$D$39 -> 4.14 | P101: =O101/'1. Inputs'!$D$48 -> 0.01656 | Q101: None | R101: Conventional | S101: =IF('1. Inputs'!$C$13="VL_only",M101,IF('1. Inputs'!$C$13="EID_only",O101,M101+O101)) -> 328.64 | T101: =S101/'1. Inputs'!$D$48 -> 1.31456 | U101: 1 | V101: 1 | W101: =IF(AND('1. Inputs'!$C$27="Yes",J101="No"),"No",IF(AND('1. Inputs'!$C$29="Yes",K101="No"),"No",IF(AND(S101>0,T101<='1. Inputs'!$D$46*'1. Inputs'!$D$89),"Yes","No"))) -> Yes | X101: 60.27102707 | Y101: 328.64 | Z101: =IFERROR(IF(W101="No","",(_xlfn.NORM.DIST(G101,$AW$15,$AV$16,TRUE)*'1. Inputs'!$D$24)),"") -> 0.02582338576 | AA101: =IF(AD101="","",(1-_xlfn.NORM.DIST(AD101,$AW$12,$AV$13,TRUE))*'1. Inputs'!$D$22) -> 0.2426711688 | AB101: =IF(W101="No","",_xlfn.NORM.DIST(Y101,$AW$18,$AV$19,TRUE)*'1. Inputs'!$D$23) -> 0.2851745641 | AC101: =IFERROR(IF(AB101*(1-('3. Gap Analysis '!$J$109/100))+Z101*('3. Gap Analysis '!$J$109/100)=0,"",AB101*(1-('3. Gap Analysis '!$J$109/100))+Z101*('3. Gap Analysis '!$J$109/100)),"") -> 0.1036287393 | AD101: =IF(W101="Yes",(S101*'1. Inputs'!$D$72+AG101*'1. Inputs'!$D$70/'1. Inputs'!$D$71+'1. Inputs'!$D$74*'1. Inputs'!$D$73*'1. Inputs'!$D$47*AG101+'1. Inputs'!$D$75)/S101,"") -> 37.14313535 | AE101: 79 | AF101: =IFERROR(IF(AND(AE101>0,AE101<MIN(COUNTA($B$11:$B$2000)*'3. Gap Analysis '!$B$104,COUNTIF($W$11:$W$2010,"Yes"))),"Yes","No"),"") -> No | AG101: =IFERROR(IF(W101="Yes",ROUNDUP(S101/('1. Inputs'!$D$89*'1. Inputs'!$D$48),0),0),"") -> 1 | AH101: Yes | AI101: =IF(AND(AH101="Yes",S101>0),(G101*2*'1. Inputs'!$D$54)*'1. Inputs'!$D$56*52+'1. Inputs'!$D$52/'1. Inputs'!$D$53+'1. Inputs'!$D$55*T101*('1. Inputs'!$D$48/52)+'1. Inputs'!$D$57*'1. Inputs'!$D$54*52,"") -> 114.2857143 | AJ101: =IFERROR(IF(INDEX('6. Product assignment'!$Y$18:$Y$2017,MATCH(B101,'6. Product assignment'!$C$18:$C$2017,0))="POC",1,0),0) -> 0 | AK101: =IFERROR(INDEX('6. Product assignment'!$AB$18:$AB$2017,MATCH(B101,'6. Product assignment'!$C$18:$C$2017,0)),"") -> 0 | AL101: =IFERROR(INDEX('6. Product assignment'!$AC$18:$AC$2017,MATCH(B101,'6. Product assignment'!$C$18:$C$2017,0)),"") -> 0 | AM101: =IFERROR(INDEX('6. Product assignment'!$AD$18:$AD$2017,MATCH(B101,'6. Product assignment'!$C$18:$C$2017,0)),"") -> 0 | AN101: =IFERROR(INDEX('6. Product assignment'!$AE$18:$AE$2017,MATCH(B101,'6. Product assignment'!$C$18:$C$2017,0)),"") -> 0 | AO101: =IFERROR(INDEX('6. Product assignment'!$Z$18:$Z$2017,MATCH(B101,'6. Product assignment'!$C$18:$C$2017,0)),"") -> 0 | AP101: =IFERROR(INDEX('6. Product assignment'!$AA$18:$AA$2017,MATCH(B101,'6. Product assignment'!$C$18:$C$2017,0)),"") -> 0 | AR101: 91
B102: SITE 92 | C102: District C | D102: 52 | E102: 253 | F102: 304 | G102: 55.45509511 | H102: None | I102: Conventional | J102: Yes | K102: Yes | M102: =D102*'1. Inputs'!$D$36+D102*'1. Inputs'!$D$37 -> 57.2 | N102: =M102/'1. Inputs'!$D$48 -> 0.2288 | O102: =MAX(F102,E102)*'1. Inputs'!$D$38+MAX(E102,F102)*'1. Inputs'!$D$39 -> 629.28 | P102: =O102/'1. Inputs'!$D$48 -> 2.51712 | Q102: None | R102: Conventional | S102: =IF('1. Inputs'!$C$13="VL_only",M102,IF('1. Inputs'!$C$13="EID_only",O102,M102+O102)) -> 686.48 | T102: =S102/'1. Inputs'!$D$48 -> 2.74592 | U102: 1 | V102: 1 | W102: =IF(AND('1. Inputs'!$C$27="Yes",J102="No"),"No",IF(AND('1. Inputs'!$C$29="Yes",K102="No"),"No",IF(AND(S102>0,T102<='1. Inputs'!$D$46*'1. Inputs'!$D$89),"Yes","No"))) -> Yes | X102: 55.45509511 | Y102: 686.48 | Z102: =IFERROR(IF(W102="No","",(_xlfn.NORM.DIST(G102,$AW$15,$AV$16,TRUE)*'1. Inputs'!$D$24)),"") -> 0.02378369443 | AA102: =IF(AD102="","",(1-_xlfn.NORM.DIST(AD102,$AW$12,$AV$13,TRUE))*'1. Inputs'!$D$22) -> 0.2659255995 | AB102: =IF(W102="No","",_xlfn.NORM.DIST(Y102,$AW$18,$AV$19,TRUE)*'1. Inputs'!$D$23) -> 0.342056301 | AC102: =IFERROR(IF(AB102*(1-('3. Gap Analysis '!$J$109/100))+Z102*('3. Gap Analysis '!$J$109/100)=0,"",AB102*(1-('3. Gap Analysis '!$J$109/100))+Z102*('3. Gap Analysis '!$J$109/100)),"") -> 0.1192654764 | AD102: =IF(W102="Yes",(S102*'1. Inputs'!$D$72+AG102*'1. Inputs'!$D$70/'1. Inputs'!$D$71+'1. Inputs'!$D$74*'1. Inputs'!$D$73*'1. Inputs'!$D$47*AG102+'1. Inputs'!$D$75)/S102,"") -> 29.77077264 | AE102: 57 | AF102: =IFERROR(IF(AND(AE102>0,AE102<MIN(COUNTA($B$11:$B$2000)*'3. Gap Analysis '!$B$104,COUNTIF($W$11:$W$2010,"Yes"))),"Yes","No"),"") -> Yes | AG102: =IFERROR(IF(W102="Yes",ROUNDUP(S102/('1. Inputs'!$D$89*'1. Inputs'!$D$48),0),0),"") -> 1 | AH102: No | AI102: =IF(AND(AH102="Yes",S102>0),(G102*2*'1. Inputs'!$D$54)*'1. Inputs'!$D$56*52+'1. Inputs'!$D$52/'1. Inputs'!$D$53+'1. Inputs'!$D$55*T102*('1. Inputs'!$D$48/52)+'1. Inputs'!$D$57*'1. Inputs'!$D$54*52,"") ->  | AJ102: =IFERROR(IF(INDEX('6. Product assignment'!$Y$18:$Y$2017,MATCH(B102,'6. Product assignment'!$C$18:$C$2017,0))="POC",1,0),0) -> 1 | AK102: =IFERROR(INDEX('6. Product assignment'!$AB$18:$AB$2017,MATCH(B102,'6. Product assignment'!$C$18:$C$2017,0)),"") -> 0 | AL102: =IFERROR(INDEX('6. Product assignment'!$AC$18:$AC$2017,MATCH(B102,'6. Product assignment'!$C$18:$C$2017,0)),"") -> 1 | AM102: =IFERROR(INDEX('6. Product assignment'!$AD$18:$AD$2017,MATCH(B102,'6. Product assignment'!$C$18:$C$2017,0)),"") -> 0 | AN102: =IFERROR(INDEX('6. Product assignment'!$AE$18:$AE$2017,MATCH(B102,'6. Product assignment'!$C$18:$C$2017,0)),"") -> 0 | AO102: =IFERROR(INDEX('6. Product assignment'!$Z$18:$Z$2017,MATCH(B102,'6. Product assignment'!$C$18:$C$2017,0)),"") -> 1 | AP102: =IFERROR(INDEX('6. Product assignment'!$AA$18:$AA$2017,MATCH(B102,'6. Product assignment'!$C$18:$C$2017,0)),"") -> 0 | AR102: 92
B103: SITE 93 | C103: District C | D103: 3022 | E103: 10 | F103: 28 | G103: 3.783623667 | H103: Conventional | I103: Conventional | J103: Yes | K103: Yes | M103: =D103*'1. Inputs'!$D$36+D103*'1. Inputs'!$D$37 -> 3324.2 | N103: =M103/'1. Inputs'!$D$48 -> 13.2968 | O103: =MAX(F103,E103)*'1. Inputs'!$D$38+MAX(E103,F103)*'1. Inputs'!$D$39 -> 57.96 | P103: =O103/'1. Inputs'!$D$48 -> 0.23184 | Q103: Conventional | R103: Conventional | S103: =IF('1. Inputs'!$C$13="VL_only",M103,IF('1. Inputs'!$C$13="EID_only",O103,M103+O103)) -> 3382.16 | T103: =S103/'1. Inputs'!$D$48 -> 13.52864 | U103: 1 | V103: 1 | W103: =IF(AND('1. Inputs'!$C$27="Yes",J103="No"),"No",IF(AND('1. Inputs'!$C$29="Yes",K103="No"),"No",IF(AND(S103>0,T103<='1. Inputs'!$D$46*'1. Inputs'!$D$89),"Yes","No"))) -> Yes | X103: 3.783623667 | Y103: 3382.16 | Z103: =IFERROR(IF(W103="No","",(_xlfn.NORM.DIST(G103,$AW$15,$AV$16,TRUE)*'1. Inputs'!$D$24)),"") -> 0.008429431546 | AA103: =IF(AD103="","",(1-_xlfn.NORM.DIST(AD103,$AW$12,$AV$13,TRUE))*'1. Inputs'!$D$22) -> 0.282828589 | AB103: =IF(W103="No","",_xlfn.NORM.DIST(Y103,$AW$18,$AV$19,TRUE)*'1. Inputs'!$D$23) -> 0.35 | AC103: =IFERROR(IF(AB103*(1-('3. Gap Analysis '!$J$109/100))+Z103*('3. Gap Analysis '!$J$109/100)=0,"",AB103*(1-('3. Gap Analysis '!$J$109/100))+Z103*('3. Gap Analysis '!$J$109/100)),"") -> 0.1109006021 | AD103: =IF(W103="Yes",(S103*'1. Inputs'!$D$72+AG103*'1. Inputs'!$D$70/'1. Inputs'!$D$71+'1. Inputs'!$D$74*'1. Inputs'!$D$73*'1. Inputs'!$D$47*AG103+'1. Inputs'!$D$75)/S103,"") -> 24.3742697 | AE103: 69 | AF103: =IFERROR(IF(AND(AE103>0,AE103<MIN(COUNTA($B$11:$B$2000)*'3. Gap Analysis '!$B$104,COUNTIF($W$11:$W$2010,"Yes"))),"Yes","No"),"") -> Yes | AG103: =IFERROR(IF(W103="Yes",ROUNDUP(S103/('1. Inputs'!$D$89*'1. Inputs'!$D$48),0),0),"") -> 1 | AH103: No | AI103: =IF(AND(AH103="Yes",S103>0),(G103*2*'1. Inputs'!$D$54)*'1. Inputs'!$D$56*52+'1. Inputs'!$D$52/'1. Inputs'!$D$53+'1. Inputs'!$D$55*T103*('1. Inputs'!$D$48/52)+'1. Inputs'!$D$57*'1. Inputs'!$D$54*52,"") ->  | AJ103: =IFERROR(IF(INDEX('6. Product assignment'!$Y$18:$Y$2017,MATCH(B103,'6. Product assignment'!$C$18:$C$2017,0))="POC",1,0),0) -> 1 | AK103: =IFERROR(INDEX('6. Product assignment'!$AB$18:$AB$2017,MATCH(B103,'6. Product assignment'!$C$18:$C$2017,0)),"") -> 1 | AL103: =IFERROR(INDEX('6. Product assignment'!$AC$18:$AC$2017,MATCH(B103,'6. Product assignment'!$C$18:$C$2017,0)),"") -> 1 | AM103: =IFERROR(INDEX('6. Product assignment'!$AD$18:$AD$2017,MATCH(B103,'6. Product assignment'!$C$18:$C$2017,0)),"") -> 0 | AN103: =IFERROR(INDEX('6. Product assignment'!$AE$18:$AE$2017,MATCH(B103,'6. Product assignment'!$C$18:$C$2017,0)),"") -> 0 | AO103: =IFERROR(INDEX('6. Product assignment'!$Z$18:$Z$2017,MATCH(B103,'6. Product assignment'!$C$18:$C$2017,0)),"") -> 0 | AP103: =IFERROR(INDEX('6. Product assignment'!$AA$18:$AA$2017,MATCH(B103,'6. Product assignment'!$C$18:$C$2017,0)),"") -> 0 | AR103: 93
B104: SITE 94 | C104: District C | D104: 1 | E104: 8 | F104: 16 | G104: 180 | H104: None | I104: Conventional | J104: Yes | K104: Yes | M104: =D104*'1. Inputs'!$D$36+D104*'1. Inputs'!$D$37 -> 1.1 | N104: =M104/'1. Inputs'!$D$48 -> 0.0044 | O104: =MAX(F104,E104)*'1. Inputs'!$D$38+MAX(E104,F104)*'1. Inputs'!$D$39 -> 33.12 | P104: =O104/'1. Inputs'!$D$48 -> 0.13248 | Q104: None | R104: Conventional | S104: =IF('1. Inputs'!$C$13="VL_only",M104,IF('1. Inputs'!$C$13="EID_only",O104,M104+O104)) -> 34.22 | T104: =S104/'1. Inputs'!$D$48 -> 0.13688 | U104: 1 | V104: 1 | W104: =IF(AND('1. Inputs'!$C$27="Yes",J104="No"),"No",IF(AND('1. Inputs'!$C$29="Yes",K104="No"),"No",IF(AND(S104>0,T104<='1. Inputs'!$D$46*'1. Inputs'!$D$89),"Yes","No"))) -> Yes | X104: 180 | Y104: 34.22 | Z104: =IFERROR(IF(W104="No","",(_xlfn.NORM.DIST(G104,$AW$15,$AV$16,TRUE)*'1. Inputs'!$D$24)),"") -> 0.09912660554 | AA104: =IF(AD104="","",(1-_xlfn.NORM.DIST(AD104,$AW$12,$AV$13,TRUE))*'1. Inputs'!$D$22) -> 0.01242616513 | AB104: =IF(W104="No","",_xlfn.NORM.DIST(Y104,$AW$18,$AV$19,TRUE)*'1. Inputs'!$D$23) -> 0.1730776547 | AC104: =IFERROR(IF(AB104*(1-('3. Gap Analysis '!$J$109/100))+Z104*('3. Gap Analysis '!$J$109/100)=0,"",AB104*(1-('3. Gap Analysis '!$J$109/100))+Z104*('3. Gap Analysis '!$J$109/100)),"") -> 0.1213119203 | AD104: =IF(W104="Yes",(S104*'1. Inputs'!$D$72+AG104*'1. Inputs'!$D$70/'1. Inputs'!$D$71+'1. Inputs'!$D$74*'1. Inputs'!$D$73*'1. Inputs'!$D$47*AG104+'1. Inputs'!$D$75)/S104,"") -> 158.8270018 | AE104: 56 | AF104: =IFERROR(IF(AND(AE104>0,AE104<MIN(COUNTA($B$11:$B$2000)*'3. Gap Analysis '!$B$104,COUNTIF($W$11:$W$2010,"Yes"))),"Yes","No"),"") -> Yes | AG104: =IFERROR(IF(W104="Yes",ROUNDUP(S104/('1. Inputs'!$D$89*'1. Inputs'!$D$48),0),0),"") -> 1 | AH104: No | AI104: =IF(AND(AH104="Yes",S104>0),(G104*2*'1. Inputs'!$D$54)*'1. Inputs'!$D$56*52+'1. Inputs'!$D$52/'1. Inputs'!$D$53+'1. Inputs'!$D$55*T104*('1. Inputs'!$D$48/52)+'1. Inputs'!$D$57*'1. Inputs'!$D$54*52,"") ->  | AJ104: =IFERROR(IF(INDEX('6. Product assignment'!$Y$18:$Y$2017,MATCH(B104,'6. Product assignment'!$C$18:$C$2017,0))="POC",1,0),0) -> 1 | AK104: =IFERROR(INDEX('6. Product assignment'!$AB$18:$AB$2017,MATCH(B104,'6. Product assignment'!$C$18:$C$2017,0)),"") -> 0 | AL104: =IFERROR(INDEX('6. Product assignment'!$AC$18:$AC$2017,MATCH(B104,'6. Product assignment'!$C$18:$C$2017,0)),"") -> 1 | AM104: =IFERROR(INDEX('6. Product assignment'!$AD$18:$AD$2017,MATCH(B104,'6. Product assignment'!$C$18:$C$2017,0)),"") -> 0 | AN104: =IFERROR(INDEX('6. Product assignment'!$AE$18:$AE$2017,MATCH(B104,'6. Product assignment'!$C$18:$C$2017,0)),"") -> 0 | AO104: =IFERROR(INDEX('6. Product assignment'!$Z$18:$Z$2017,MATCH(B104,'6. Product assignment'!$C$18:$C$2017,0)),"") -> 1 | AP104: =IFERROR(INDEX('6. Product assignment'!$AA$18:$AA$2017,MATCH(B104,'6. Product assignment'!$C$18:$C$2017,0)),"") -> 0 | AR104: 94
B105: SITE 95 | C105: District C | D105: 518 | E105: 125 | F105: 146 | G105: 212.3861868 | H105: None | I105: Conventional | J105: Yes | K105: Yes | M105: =D105*'1. Inputs'!$D$36+D105*'1. Inputs'!$D$37 -> 569.8 | N105: =M105/'1. Inputs'!$D$48 -> 2.2792 | O105: =MAX(F105,E105)*'1. Inputs'!$D$38+MAX(E105,F105)*'1. Inputs'!$D$39 -> 302.22 | P105: =O105/'1. Inputs'!$D$48 -> 1.20888 | Q105: None | R105: Conventional | S105: =IF('1. Inputs'!$C$13="VL_only",M105,IF('1. Inputs'!$C$13="EID_only",O105,M105+O105)) -> 872.02 | T105: =S105/'1. Inputs'!$D$48 -> 3.48808 | U105: 1 | V105: 1 | W105: =IF(AND('1. Inputs'!$C$27="Yes",J105="No"),"No",IF(AND('1. Inputs'!$C$29="Yes",K105="No"),"No",IF(AND(S105>0,T105<='1. Inputs'!$D$46*'1. Inputs'!$D$89),"Yes","No"))) -> Yes | X105: 212.3861868 | Y105: 872.02 | Z105: =IFERROR(IF(W105="No","",(_xlfn.NORM.DIST(G105,$AW$15,$AV$16,TRUE)*'1. Inputs'!$D$24)),"") -> 0.1174675362 | AA105: =IF(AD105="","",(1-_xlfn.NORM.DIST(AD105,$AW$12,$AV$13,TRUE))*'1. Inputs'!$D$22) -> 0.2704543185 | AB105: =IF(W105="No","",_xlfn.NORM.DIST(Y105,$AW$18,$AV$19,TRUE)*'1. Inputs'!$D$23) -> 0.3482412946 | AC105: =IFERROR(IF(AB105*(1-('3. Gap Analysis '!$J$109/100))+Z105*('3. Gap Analysis '!$J$109/100)=0,"",AB105*(1-('3. Gap Analysis '!$J$109/100))+Z105*('3. Gap Analysis '!$J$109/100)),"") -> 0.1866996637 | AD105: =IF(W105="Yes",(S105*'1. Inputs'!$D$72+AG105*'1. Inputs'!$D$70/'1. Inputs'!$D$71+'1. Inputs'!$D$74*'1. Inputs'!$D$73*'1. Inputs'!$D$47*AG105+'1. Inputs'!$D$75)/S105,"") -> 28.33015298 | AE105: 6 | AF105: =IFERROR(IF(AND(AE105>0,AE105<MIN(COUNTA($B$11:$B$2000)*'3. Gap Analysis '!$B$104,COUNTIF($W$11:$W$2010,"Yes"))),"Yes","No"),"") -> Yes | AG105: =IFERROR(IF(W105="Yes",ROUNDUP(S105/('1. Inputs'!$D$89*'1. Inputs'!$D$48),0),0),"") -> 1 | AH105: No | AI105: =IF(AND(AH105="Yes",S105>0),(G105*2*'1. Inputs'!$D$54)*'1. Inputs'!$D$56*52+'1. Inputs'!$D$52/'1. Inputs'!$D$53+'1. Inputs'!$D$55*T105*('1. Inputs'!$D$48/52)+'1. Inputs'!$D$57*'1. Inputs'!$D$54*52,"") ->  | AJ105: =IFERROR(IF(INDEX('6. Product assignment'!$Y$18:$Y$2017,MATCH(B105,'6. Product assignment'!$C$18:$C$2017,0))="POC",1,0),0) -> 1 | AK105: =IFERROR(INDEX('6. Product assignment'!$AB$18:$AB$2017,MATCH(B105,'6. Product assignment'!$C$18:$C$2017,0)),"") -> 0 | AL105: =IFERROR(INDEX('6. Product assignment'!$AC$18:$AC$2017,MATCH(B105,'6. Product assignment'!$C$18:$C$2017,0)),"") -> 1 | AM105: =IFERROR(INDEX('6. Product assignment'!$AD$18:$AD$2017,MATCH(B105,'6. Product assignment'!$C$18:$C$2017,0)),"") -> 0 | AN105: =IFERROR(INDEX('6. Product assignment'!$AE$18:$AE$2017,MATCH(B105,'6. Product assignment'!$C$18:$C$2017,0)),"") -> 0 | AO105: =IFERROR(INDEX('6. Product assignment'!$Z$18:$Z$2017,MATCH(B105,'6. Product assignment'!$C$18:$C$2017,0)),"") -> 1 | AP105: =IFERROR(INDEX('6. Product assignment'!$AA$18:$AA$2017,MATCH(B105,'6. Product assignment'!$C$18:$C$2017,0)),"") -> 0 | AR105: 95
B106: SITE 96 | C106: District C | D106: 1632 | E106: 202 | F106: 206 | G106: 201.9863802 | H106: None | I106: Conventional | J106: Yes | K106: Yes | M106: =D106*'1. Inputs'!$D$36+D106*'1. Inputs'!$D$37 -> 1795.2 | N106: =M106/'1. Inputs'!$D$48 -> 7.1808 | O106: =MAX(F106,E106)*'1. Inputs'!$D$38+MAX(E106,F106)*'1. Inputs'!$D$39 -> 426.42 | P106: =O106/'1. Inputs'!$D$48 -> 1.70568 | Q106: None | R106: Conventional | S106: =IF('1. Inputs'!$C$13="VL_only",M106,IF('1. Inputs'!$C$13="EID_only",O106,M106+O106)) -> 2221.62 | T106: =S106/'1. Inputs'!$D$48 -> 8.88648 | U106: 1 | V106: 1 | W106: =IF(AND('1. Inputs'!$C$27="Yes",J106="No"),"No",IF(AND('1. Inputs'!$C$29="Yes",K106="No"),"No",IF(AND(S106>0,T106<='1. Inputs'!$D$46*'1. Inputs'!$D$89),"Yes","No"))) -> Yes | X106: 201.9863802 | Y106: 2221.62 | Z106: =IFERROR(IF(W106="No","",(_xlfn.NORM.DIST(G106,$AW$15,$AV$16,TRUE)*'1. Inputs'!$D$24)),"") -> 0.1120266874 | AA106: =IF(AD106="","",(1-_xlfn.NORM.DIST(AD106,$AW$12,$AV$13,TRUE))*'1. Inputs'!$D$22) -> 0.2805910434 | AB106: =IF(W106="No","",_xlfn.NORM.DIST(Y106,$AW$18,$AV$19,TRUE)*'1. Inputs'!$D$23) -> 0.35 | AC106: =IFERROR(IF(AB106*(1-('3. Gap Analysis '!$J$109/100))+Z106*('3. Gap Analysis '!$J$109/100)=0,"",AB106*(1-('3. Gap Analysis '!$J$109/100))+Z106*('3. Gap Analysis '!$J$109/100)),"") -> 0.1834186812 | AD106: =IF(W106="Yes",(S106*'1. Inputs'!$D$72+AG106*'1. Inputs'!$D$70/'1. Inputs'!$D$71+'1. Inputs'!$D$74*'1. Inputs'!$D$73*'1. Inputs'!$D$47*AG106+'1. Inputs'!$D$75)/S106,"") -> 25.09216698 | AE106: 8 | AF106: =IFERROR(IF(AND(AE106>0,AE106<MIN(COUNTA($B$11:$B$2000)*'3. Gap Analysis '!$B$104,COUNTIF($W$11:$W$2010,"Yes"))),"Yes","No"),"") -> Yes | AG106: =IFERROR(IF(W106="Yes",ROUNDUP(S106/('1. Inputs'!$D$89*'1. Inputs'!$D$48),0),0),"") -> 1 | AH106: No | AI106: =IF(AND(AH106="Yes",S106>0),(G106*2*'1. Inputs'!$D$54)*'1. Inputs'!$D$56*52+'1. Inputs'!$D$52/'1. Inputs'!$D$53+'1. Inputs'!$D$55*T106*('1. Inputs'!$D$48/52)+'1. Inputs'!$D$57*'1. Inputs'!$D$54*52,"") ->  | AJ106: =IFERROR(IF(INDEX('6. Product assignment'!$Y$18:$Y$2017,MATCH(B106,'6. Product assignment'!$C$18:$C$2017,0))="POC",1,0),0) -> 1 | AK106: =IFERROR(INDEX('6. Product assignment'!$AB$18:$AB$2017,MATCH(B106,'6. Product assignment'!$C$18:$C$2017,0)),"") -> 0 | AL106: =IFERROR(INDEX('6. Product assignment'!$AC$18:$AC$2017,MATCH(B106,'6. Product assignment'!$C$18:$C$2017,0)),"") -> 1 | AM106: =IFERROR(INDEX('6. Product assignment'!$AD$18:$AD$2017,MATCH(B106,'6. Product assignment'!$C$18:$C$2017,0)),"") -> 0 | AN106: =IFERROR(INDEX('6. Product assignment'!$AE$18:$AE$2017,MATCH(B106,'6. Product assignment'!$C$18:$C$2017,0)),"") -> 0 | AO106: =IFERROR(INDEX('6. Product assignment'!$Z$18:$Z$2017,MATCH(B106,'6. Product assignment'!$C$18:$C$2017,0)),"") -> 1 | AP106: =IFERROR(INDEX('6. Product assignment'!$AA$18:$AA$2017,MATCH(B106,'6. Product assignment'!$C$18:$C$2017,0)),"") -> 0 | AR106: 96
B107: SITE 97 | C107: District C | D107: 369 | E107: 150 | F107: 172 | G107: 219.4906668 | H107: None | I107: Conventional | J107: Yes | K107: Yes | M107: =D107*'1. Inputs'!$D$36+D107*'1. Inputs'!$D$37 -> 405.9 | N107: =M107/'1. Inputs'!$D$48 -> 1.6236 | O107: =MAX(F107,E107)*'1. Inputs'!$D$38+MAX(E107,F107)*'1. Inputs'!$D$39 -> 356.04 | P107: =O107/'1. Inputs'!$D$48 -> 1.42416 | Q107: None | R107: Conventional | S107: =IF('1. Inputs'!$C$13="VL_only",M107,IF('1. Inputs'!$C$13="EID_only",O107,M107+O107)) -> 761.94 | T107: =S107/'1. Inputs'!$D$48 -> 3.04776 | U107: 1 | V107: 1 | W107: =IF(AND('1. Inputs'!$C$27="Yes",J107="No"),"No",IF(AND('1. Inputs'!$C$29="Yes",K107="No"),"No",IF(AND(S107>0,T107<='1. Inputs'!$D$46*'1. Inputs'!$D$89),"Yes","No"))) -> Yes | X107: 219.4906668 | Y107: 761.94 | Z107: =IFERROR(IF(W107="No","",(_xlfn.NORM.DIST(G107,$AW$15,$AV$16,TRUE)*'1. Inputs'!$D$24)),"") -> 0.1209098696 | AA107: =IF(AD107="","",(1-_xlfn.NORM.DIST(AD107,$AW$12,$AV$13,TRUE))*'1. Inputs'!$D$22) -> 0.2680347191 | AB107: =IF(W107="No","",_xlfn.NORM.DIST(Y107,$AW$18,$AV$19,TRUE)*'1. Inputs'!$D$23) -> 0.3455414616 | AC107: =IFERROR(IF(AB107*(1-('3. Gap Analysis '!$J$109/100))+Z107*('3. Gap Analysis '!$J$109/100)=0,"",AB107*(1-('3. Gap Analysis '!$J$109/100))+Z107*('3. Gap Analysis '!$J$109/100)),"") -> 0.1882993472 | AD107: =IF(W107="Yes",(S107*'1. Inputs'!$D$72+AG107*'1. Inputs'!$D$70/'1. Inputs'!$D$71+'1. Inputs'!$D$74*'1. Inputs'!$D$73*'1. Inputs'!$D$47*AG107+'1. Inputs'!$D$75)/S107,"") -> 29.10021786 | AE107: 5 | AF107: =IFERROR(IF(AND(AE107>0,AE107<MIN(COUNTA($B$11:$B$2000)*'3. Gap Analysis '!$B$104,COUNTIF($W$11:$W$2010,"Yes"))),"Yes","No"),"") -> Yes | AG107: =IFERROR(IF(W107="Yes",ROUNDUP(S107/('1. Inputs'!$D$89*'1. Inputs'!$D$48),0),0),"") -> 1 | AH107: No | AI107: =IF(AND(AH107="Yes",S107>0),(G107*2*'1. Inputs'!$D$54)*'1. Inputs'!$D$56*52+'1. Inputs'!$D$52/'1. Inputs'!$D$53+'1. Inputs'!$D$55*T107*('1. Inputs'!$D$48/52)+'1. Inputs'!$D$57*'1. Inputs'!$D$54*52,"") ->  | AJ107: =IFERROR(IF(INDEX('6. Product assignment'!$Y$18:$Y$2017,MATCH(B107,'6. Product assignment'!$C$18:$C$2017,0))="POC",1,0),0) -> 1 | AK107: =IFERROR(INDEX('6. Product assignment'!$AB$18:$AB$2017,MATCH(B107,'6. Product assignment'!$C$18:$C$2017,0)),"") -> 0 | AL107: =IFERROR(INDEX('6. Product assignment'!$AC$18:$AC$2017,MATCH(B107,'6. Product assignment'!$C$18:$C$2017,0)),"") -> 1 | AM107: =IFERROR(INDEX('6. Product assignment'!$AD$18:$AD$2017,MATCH(B107,'6. Product assignment'!$C$18:$C$2017,0)),"") -> 0 | AN107: =IFERROR(INDEX('6. Product assignment'!$AE$18:$AE$2017,MATCH(B107,'6. Product assignment'!$C$18:$C$2017,0)),"") -> 0 | AO107: =IFERROR(INDEX('6. Product assignment'!$Z$18:$Z$2017,MATCH(B107,'6. Product assignment'!$C$18:$C$2017,0)),"") -> 1 | AP107: =IFERROR(INDEX('6. Product assignment'!$AA$18:$AA$2017,MATCH(B107,'6. Product assignment'!$C$18:$C$2017,0)),"") -> 0 | AR107: 97
B108: SITE 98 | C108: District C | D108: 0 | E108: 39 | F108: 76 | G108: 163.3231599 | H108: None | I108: Conventional | J108: Yes | K108: Yes | M108: =D108*'1. Inputs'!$D$36+D108*'1. Inputs'!$D$37 -> 0 | N108: =M108/'1. Inputs'!$D$48 -> 0 | O108: =MAX(F108,E108)*'1. Inputs'!$D$38+MAX(E108,F108)*'1. Inputs'!$D$39 -> 157.32 | P108: =O108/'1. Inputs'!$D$48 -> 0.62928 | Q108: None | R108: Conventional | S108: =IF('1. Inputs'!$C$13="VL_only",M108,IF('1. Inputs'!$C$13="EID_only",O108,M108+O108)) -> 157.32 | T108: =S108/'1. Inputs'!$D$48 -> 0.62928 | U108: 1 | V108: 1 | W108: =IF(AND('1. Inputs'!$C$27="Yes",J108="No"),"No",IF(AND('1. Inputs'!$C$29="Yes",K108="No"),"No",IF(AND(S108>0,T108<='1. Inputs'!$D$46*'1. Inputs'!$D$89),"Yes","No"))) -> Yes | X108: 163.3231599 | Y108: 157.32 | Z108: =IFERROR(IF(W108="No","",(_xlfn.NORM.DIST(G108,$AW$15,$AV$16,TRUE)*'1. Inputs'!$D$24)),"") -> 0.08836750287 | AA108: =IF(AD108="","",(1-_xlfn.NORM.DIST(AD108,$AW$12,$AV$13,TRUE))*'1. Inputs'!$D$22) -> 0.1947744761 | AB108: =IF(W108="No","",_xlfn.NORM.DIST(Y108,$AW$18,$AV$19,TRUE)*'1. Inputs'!$D$23) -> 0.2250482349 | AC108: =IFERROR(IF(AB108*(1-('3. Gap Analysis '!$J$109/100))+Z108*('3. Gap Analysis '!$J$109/100)=0,"",AB108*(1-('3. Gap Analysis '!$J$109/100))+Z108*('3. Gap Analysis '!$J$109/100)),"") -> 0.1293717225 | AD108: =IF(W108="Yes",(S108*'1. Inputs'!$D$72+AG108*'1. Inputs'!$D$70/'1. Inputs'!$D$71+'1. Inputs'!$D$74*'1. Inputs'!$D$73*'1. Inputs'!$D$47*AG108+'1. Inputs'!$D$75)/S108,"") -> 52.54487668 | AE108: 51 | AF108: =IFERROR(IF(AND(AE108>0,AE108<MIN(COUNTA($B$11:$B$2000)*'3. Gap Analysis '!$B$104,COUNTIF($W$11:$W$2010,"Yes"))),"Yes","No"),"") -> Yes | AG108: =IFERROR(IF(W108="Yes",ROUNDUP(S108/('1. Inputs'!$D$89*'1. Inputs'!$D$48),0),0),"") -> 1 | AH108: No | AI108: =IF(AND(AH108="Yes",S108>0),(G108*2*'1. Inputs'!$D$54)*'1. Inputs'!$D$56*52+'1. Inputs'!$D$52/'1. Inputs'!$D$53+'1. Inputs'!$D$55*T108*('1. Inputs'!$D$48/52)+'1. Inputs'!$D$57*'1. Inputs'!$D$54*52,"") ->  | AJ108: =IFERROR(IF(INDEX('6. Product assignment'!$Y$18:$Y$2017,MATCH(B108,'6. Product assignment'!$C$18:$C$2017,0))="POC",1,0),0) -> 0 | AK108: =IFERROR(INDEX('6. Product assignment'!$AB$18:$AB$2017,MATCH(B108,'6. Product assignment'!$C$18:$C$2017,0)),"") -> 0 | AL108: =IFERROR(INDEX('6. Product assignment'!$AC$18:$AC$2017,MATCH(B108,'6. Product assignment'!$C$18:$C$2017,0)),"") -> 0 | AM108: =IFERROR(INDEX('6. Product assignment'!$AD$18:$AD$2017,MATCH(B108,'6. Product assignment'!$C$18:$C$2017,0)),"") -> 0 | AN108: =IFERROR(INDEX('6. Product assignment'!$AE$18:$AE$2017,MATCH(B108,'6. Product assignment'!$C$18:$C$2017,0)),"") -> 0 | AO108: =IFERROR(INDEX('6. Product assignment'!$Z$18:$Z$2017,MATCH(B108,'6. Product assignment'!$C$18:$C$2017,0)),"") -> 0 | AP108: =IFERROR(INDEX('6. Product assignment'!$AA$18:$AA$2017,MATCH(B108,'6. Product assignment'!$C$18:$C$2017,0)),"") -> 0 | AR108: 98
B109: SITE 99 | C109: District C | D109: 183 | E109: 5 | F109: 22 | G109: 85.16670871 | H109: None | I109: Conventional | J109: Yes | K109: Yes | M109: =D109*'1. Inputs'!$D$36+D109*'1. Inputs'!$D$37 -> 201.3 | N109: =M109/'1. Inputs'!$D$48 -> 0.8052 | O109: =MAX(F109,E109)*'1. Inputs'!$D$38+MAX(E109,F109)*'1. Inputs'!$D$39 -> 45.54 | P109: =O109/'1. Inputs'!$D$48 -> 0.18216 | Q109: None | R109: Conventional | S109: =IF('1. Inputs'!$C$13="VL_only",M109,IF('1. Inputs'!$C$13="EID_only",O109,M109+O109)) -> 246.84 | T109: =S109/'1. Inputs'!$D$48 -> 0.98736 | U109: 1 | V109: 1 | W109: =IF(AND('1. Inputs'!$C$27="Yes",J109="No"),"No",IF(AND('1. Inputs'!$C$29="Yes",K109="No"),"No",IF(AND(S109>0,T109<='1. Inputs'!$D$46*'1. Inputs'!$D$89),"Yes","No"))) -> Yes | X109: 85.16670871 | Y109: 246.84 | Z109: =IFERROR(IF(W109="No","",(_xlfn.NORM.DIST(G109,$AW$15,$AV$16,TRUE)*'1. Inputs'!$D$24)),"") -> 0.03805953517 | AA109: =IF(AD109="","",(1-_xlfn.NORM.DIST(AD109,$AW$12,$AV$13,TRUE))*'1. Inputs'!$D$22) -> 0.2279193019 | AB109: =IF(W109="No","",_xlfn.NORM.DIST(Y109,$AW$18,$AV$19,TRUE)*'1. Inputs'!$D$23) -> 0.258960118 | AC109: =IFERROR(IF(AB109*(1-('3. Gap Analysis '!$J$109/100))+Z109*('3. Gap Analysis '!$J$109/100)=0,"",AB109*(1-('3. Gap Analysis '!$J$109/100))+Z109*('3. Gap Analysis '!$J$109/100)),"") -> 0.10432971 | AD109: =IF(W109="Yes",(S109*'1. Inputs'!$D$72+AG109*'1. Inputs'!$D$70/'1. Inputs'!$D$71+'1. Inputs'!$D$74*'1. Inputs'!$D$73*'1. Inputs'!$D$47*AG109+'1. Inputs'!$D$75)/S109,"") -> 41.83001134 | AE109: 78 | AF109: =IFERROR(IF(AND(AE109>0,AE109<MIN(COUNTA($B$11:$B$2000)*'3. Gap Analysis '!$B$104,COUNTIF($W$11:$W$2010,"Yes"))),"Yes","No"),"") -> No | AG109: =IFERROR(IF(W109="Yes",ROUNDUP(S109/('1. Inputs'!$D$89*'1. Inputs'!$D$48),0),0),"") -> 1 | AH109: Yes | AI109: =IF(AND(AH109="Yes",S109>0),(G109*2*'1. Inputs'!$D$54)*'1. Inputs'!$D$56*52+'1. Inputs'!$D$52/'1. Inputs'!$D$53+'1. Inputs'!$D$55*T109*('1. Inputs'!$D$48/52)+'1. Inputs'!$D$57*'1. Inputs'!$D$54*52,"") -> 114.2857143 | AJ109: =IFERROR(IF(INDEX('6. Product assignment'!$Y$18:$Y$2017,MATCH(B109,'6. Product assignment'!$C$18:$C$2017,0))="POC",1,0),0) -> 0 | AK109: =IFERROR(INDEX('6. Product assignment'!$AB$18:$AB$2017,MATCH(B109,'6. Product assignment'!$C$18:$C$2017,0)),"") -> 0 | AL109: =IFERROR(INDEX('6. Product assignment'!$AC$18:$AC$2017,MATCH(B109,'6. Product assignment'!$C$18:$C$2017,0)),"") -> 0 | AM109: =IFERROR(INDEX('6. Product assignment'!$AD$18:$AD$2017,MATCH(B109,'6. Product assignment'!$C$18:$C$2017,0)),"") -> 0 | AN109: =IFERROR(INDEX('6. Product assignment'!$AE$18:$AE$2017,MATCH(B109,'6. Product assignment'!$C$18:$C$2017,0)),"") -> 0 | AO109: =IFERROR(INDEX('6. Product assignment'!$Z$18:$Z$2017,MATCH(B109,'6. Product assignment'!$C$18:$C$2017,0)),"") -> 0 | AP109: =IFERROR(INDEX('6. Product assignment'!$AA$18:$AA$2017,MATCH(B109,'6. Product assignment'!$C$18:$C$2017,0)),"") -> 0 | AR109: 99
